Workbook

Sheet B
D1: TOTAL | E1: ACTIVIDADES | I1: INTERVENCIONES QUIRÚRGICAS | P1: INTERVENCIONES QUIRÚRGICAS MAYORES NO AMBULATORIAS ELECTIVAS | S1: INTERVENCIONES QUIRÚRGICAS MAYORES AMBULATORIAS ELECTIVA | V1: INTERVENCIONES QUIRÚRGICAS MAYORES AMBULATORIAS URGENCIA | Y1: INTERVENCIONES QUIRÚRGICAS MAYORES NO AMBULATORIAS URGENCIA | AB1: PROCEDENCIA | AE1: PRODUCCION INTRA HOSPITAL | AH1: OPERATIVO | AI1: COMPRAS REALIZADAS | AK1: VENTAS DE SERVICIOS | AL1: TRANSFERENCIA 2022 | AM1: TOTAL FACTURADO
B2: CÓDIGO | C2: GLOSA | E2: TOTAL BENEFI-CIARIOS | F2: BENEFICIARIOS | H2: NO BENEFI-CIARIOS | I2: TOTAL BENEFI- CIARIOS | J2: PRINCIPAL | M2: SECUNDARIA | S2: < 15 AÑOS | V2: < 15 AÑOS | Y2: < 15 AÑOS
F3: MAI | G3: MLE | J3: MAI | K3: MLE | L3: NO BENEFI-CIARIO | M3: MAI | N3: MLE | O3: NO BENEFI-CIARIO | P3: TOTAL | Q3: < 15 AÑOS | R3: 15 AÑOS Y MÁS | S3: TOTAL | T3: < 15 AÑOS | U3: 15 AÑOS Y MÁS | V3: TOTAL | W3: < 15 AÑOS | X3: 15 AÑOS Y MÁS | Y3: TOTAL | Z3: < 15 AÑOS | AA3: 15 AÑOS Y MÁS | AB3: ATENCION CERRADA | AC3: ATENCION ABIERTA | AD3: EMERGENCIA | AE3: POR HONO- RARIOS | AF3: POR CONVENIOS | AG3: POR CONSULTO- RES DE LLAMADA | AI3: AL SISTEMA | AJ3: EXTRA-SISTEMA
C4: CONSULTAS Y ATENCION MEDICA
C5: CONSULTAS DE ESPECIALIDADES MEDICAS
A6: 01014275 | B6: 0101201 | C6: Consulta Médica de Especialidad en Dermatología | D6: =IFERROR(VLOOKUP($A6,Filtro.12!$A$4:$AL$2956,2,FALSE),0) -> 7266 | E6: =IFERROR(VLOOKUP($A6,Filtro.12!$A$4:$AL$2956,3,FALSE),0) -> 7265 | F6: =IFERROR(VLOOKUP($A6,Filtro.12!$A$4:$AL$2956,4,FALSE),0) -> 7265 | G6: =IFERROR(VLOOKUP($A6,Filtro.12!$A$4:$AL$2956,5,FALSE),0) -> 0 | H6: =IFERROR(VLOOKUP($A6,Filtro.12!$A$4:$AL$2956,6,FALSE),0) -> 1 | AB6: =IFERROR(VLOOKUP($A6,Filtro.12!$A$4:$AL$2956,26,FALSE),0) -> 0 | AC6: =IFERROR(VLOOKUP($A6,Filtro.12!$A$4:$AL$2956,27,FALSE),0) -> 7266 | AD6: =IFERROR(VLOOKUP($A6,Filtro.12!$A$4:$AL$2956,28,FALSE),0) -> 0 | AE6: =IFERROR(VLOOKUP($A6,Filtro.12!$A$4:$AL$2956,29,FALSE),0) -> 0 | AF6: =IFERROR(VLOOKUP($A6,Filtro.12!$A$4:$AL$2956,30,FALSE),0) -> 0 | AG6: =IFERROR(VLOOKUP($A6,Filtro.12!$A$4:$AL$2956,31,FALSE),0) -> 0 | AH6: =IFERROR(VLOOKUP($A6,Filtro.12!$A$4:$AL$2956,32,FALSE),0) -> 45 | AI6: =IFERROR(VLOOKUP($A6,Filtro.12!$A$4:$AL$2956,33,FALSE),0) -> 0 | AJ6: =IFERROR(VLOOKUP($A6,Filtro.12!$A$4:$AL$2956,34,FALSE),0) -> 0 | AK6: =IFERROR(VLOOKUP($A6,Filtro.12!$A$4:$AL$2956,35,FALSE),0) -> 0 | AL6: 9,620 | AM6: =IFERROR(VLOOKUP($A6,Filtro.12!$A$4:$AL$2956,37,FALSE),0) -> 69,889,300
A7: 01014276 | B7: 0101202 | C7: Consulta Médica de Especialidad en Geriatría | D7: =IFERROR(VLOOKUP($A7,Filtro.12!$A$4:$AL$2956,2,FALSE),0) -> 1601 | E7: =IFERROR(VLOOKUP($A7,Filtro.12!$A$4:$AL$2956,3,FALSE),0) -> 1601 | F7: =IFERROR(VLOOKUP($A7,Filtro.12!$A$4:$AL$2956,4,FALSE),0) -> 1601 | G7: =IFERROR(VLOOKUP($A7,Filtro.12!$A$4:$AL$2956,5,FALSE),0) -> 0 | H7: =IFERROR(VLOOKUP($A7,Filtro.12!$A$4:$AL$2956,6,FALSE),0) -> 0 | AB7: =IFERROR(VLOOKUP($A7,Filtro.12!$A$4:$AL$2956,26,FALSE),0) -> 0 | AC7: =IFERROR(VLOOKUP($A7,Filtro.12!$A$4:$AL$2956,27,FALSE),0) -> 1601 | AD7: =IFERROR(VLOOKUP($A7,Filtro.12!$A$4:$AL$2956,28,FALSE),0) -> 0 | AE7: =IFERROR(VLOOKUP($A7,Filtro.12!$A$4:$AL$2956,29,FALSE),0) -> 0 | AF7: =IFERROR(VLOOKUP($A7,Filtro.12!$A$4:$AL$2956,30,FALSE),0) -> 0 | AG7: =IFERROR(VLOOKUP($A7,Filtro.12!$A$4:$AL$2956,31,FALSE),0) -> 0 | AH7: =IFERROR(VLOOKUP($A7,Filtro.12!$A$4:$AL$2956,32,FALSE),0) -> 0 | AI7: =IFERROR(VLOOKUP($A7,Filtro.12!$A$4:$AL$2956,33,FALSE),0) -> 0 | AJ7: =IFERROR(VLOOKUP($A7,Filtro.12!$A$4:$AL$2956,34,FALSE),0) -> 0 | AK7: =IFERROR(VLOOKUP($A7,Filtro.12!$A$4:$AL$2956,35,FALSE),0) -> 0 | AL7: 9,620 | AM7: =IFERROR(VLOOKUP($A7,Filtro.12!$A$4:$AL$2956,37,FALSE),0) -> 15,401,620
A8: 01014277 | B8: 0101203 | C8: Consulta Médica de Especialidad en Neurocirugía | D8: =IFERROR(VLOOKUP($A8,Filtro.12!$A$4:$AL$2956,2,FALSE),0) -> 6135 | E8: =IFERROR(VLOOKUP($A8,Filtro.12!$A$4:$AL$2956,3,FALSE),0) -> 6135 | F8: =IFERROR(VLOOKUP($A8,Filtro.12!$A$4:$AL$2956,4,FALSE),0) -> 6135 | G8: =IFERROR(VLOOKUP($A8,Filtro.12!$A$4:$AL$2956,5,FALSE),0) -> 0 | H8: =IFERROR(VLOOKUP($A8,Filtro.12!$A$4:$AL$2956,6,FALSE),0) -> 0 | AB8: =IFERROR(VLOOKUP($A8,Filtro.12!$A$4:$AL$2956,26,FALSE),0) -> 0 | AC8: =IFERROR(VLOOKUP($A8,Filtro.12!$A$4:$AL$2956,27,FALSE),0) -> 6135 | AD8: =IFERROR(VLOOKUP($A8,Filtro.12!$A$4:$AL$2956,28,FALSE),0) -> 0 | AE8: =IFERROR(VLOOKUP($A8,Filtro.12!$A$4:$AL$2956,29,FALSE),0) -> 0 | AF8: =IFERROR(VLOOKUP($A8,Filtro.12!$A$4:$AL$2956,30,FALSE),0) -> 0 | AG8: =IFERROR(VLOOKUP($A8,Filtro.12!$A$4:$AL$2956,31,FALSE),0) -> 0 | AH8: =IFERROR(VLOOKUP($A8,Filtro.12!$A$4:$AL$2956,32,FALSE),0) -> 0 | AI8: =IFERROR(VLOOKUP($A8,Filtro.12!$A$4:$AL$2956,33,FALSE),0) -> 0 | AJ8: =IFERROR(VLOOKUP($A8,Filtro.12!$A$4:$AL$2956,34,FALSE),0) -> 0 | AK8: =IFERROR(VLOOKUP($A8,Filtro.12!$A$4:$AL$2956,35,FALSE),0) -> 0 | AL8: 9,620 | AM8: =IFERROR(VLOOKUP($A8,Filtro.12!$A$4:$AL$2956,37,FALSE),0) -> 59,018,700
A9: 01014278 | B9: 0101204 | C9: Consulta Médica de Especialidad en Oftalmología | D9: =IFERROR(VLOOKUP($A9,Filtro.12!$A$4:$AL$2956,2,FALSE),0) -> 21033 | E9: =IFERROR(VLOOKUP($A9,Filtro.12!$A$4:$AL$2956,3,FALSE),0) -> 20940 | F9: =IFERROR(VLOOKUP($A9,Filtro.12!$A$4:$AL$2956,4,FALSE),0) -> 20940 | G9: =IFERROR(VLOOKUP($A9,Filtro.12!$A$4:$AL$2956,5,FALSE),0) -> 0 | H9: =IFERROR(VLOOKUP($A9,Filtro.12!$A$4:$AL$2956,6,FALSE),0) -> 93 | AB9: =IFERROR(VLOOKUP($A9,Filtro.12!$A$4:$AL$2956,26,FALSE),0) -> 363 | AC9: =IFERROR(VLOOKUP($A9,Filtro.12!$A$4:$AL$2956,27,FALSE),0) -> 20670 | AD9: =IFERROR(VLOOKUP($A9,Filtro.12!$A$4:$AL$2956,28,FALSE),0) -> 0 | AE9: =IFERROR(VLOOKUP($A9,Filtro.12!$A$4:$AL$2956,29,FALSE),0) -> 431 | AF9: =IFERROR(VLOOKUP($A9,Filtro.12!$A$4:$AL$2956,30,FALSE),0) -> 5984 | AG9: =IFERROR(VLOOKUP($A9,Filtro.12!$A$4:$AL$2956,31,FALSE),0) -> 0 | AH9: =IFERROR(VLOOKUP($A9,Filtro.12!$A$4:$AL$2956,32,FALSE),0) -> 0 | AI9: =IFERROR(VLOOKUP($A9,Filtro.12!$A$4:$AL$2956,33,FALSE),0) -> 0 | AJ9: =IFERROR(VLOOKUP($A9,Filtro.12!$A$4:$AL$2956,34,FALSE),0) -> 0 | AK9: =IFERROR(VLOOKUP($A9,Filtro.12!$A$4:$AL$2956,35,FALSE),0) -> 0 | AL9: 9,620 | AM9: =IFERROR(VLOOKUP($A9,Filtro.12!$A$4:$AL$2956,37,FALSE),0) -> 201,442,800
A10: 01014279 | B10: 0101205 | C10: Consulta Médica de Especialidad en Otorrinolaringología | D10: =IFERROR(VLOOKUP($A10,Filtro.12!$A$4:$AL$2956,2,FALSE),0) -> 26411 | E10: =IFERROR(VLOOKUP($A10,Filtro.12!$A$4:$AL$2956,3,FALSE),0) -> 26352 | F10: =IFERROR(VLOOKUP($A10,Filtro.12!$A$4:$AL$2956,4,FALSE),0) -> 26352 | G10: =IFERROR(VLOOKUP($A10,Filtro.12!$A$4:$AL$2956,5,FALSE),0) -> 0 | H10: =IFERROR(VLOOKUP($A10,Filtro.12!$A$4:$AL$2956,6,FALSE),0) -> 59 | AB10: =IFERROR(VLOOKUP($A10,Filtro.12!$A$4:$AL$2956,26,FALSE),0) -> 330 | AC10: =IFERROR(VLOOKUP($A10,Filtro.12!$A$4:$AL$2956,27,FALSE),0) -> 26108 | AD10: =IFERROR(VLOOKUP($A10,Filtro.12!$A$4:$AL$2956,28,FALSE),0) -> 0 | AE10: =IFERROR(VLOOKUP($A10,Filtro.12!$A$4:$AL$2956,29,FALSE),0) -> 1076 | AF10: =IFERROR(VLOOKUP($A10,Filtro.12!$A$4:$AL$2956,30,FALSE),0) -> 0 | AG10: =IFERROR(VLOOKUP($A10,Filtro.12!$A$4:$AL$2956,31,FALSE),0) -> 0 | AH10: =IFERROR(VLOOKUP($A10,Filtro.12!$A$4:$AL$2956,32,FALSE),0) -> 0 | AI10: =IFERROR(VLOOKUP($A10,Filtro.12!$A$4:$AL$2956,33,FALSE),0) -> 0 | AJ10: =IFERROR(VLOOKUP($A10,Filtro.12!$A$4:$AL$2956,34,FALSE),0) -> 0 | AK10: =IFERROR(VLOOKUP($A10,Filtro.12!$A$4:$AL$2956,35,FALSE),0) -> 0 | AL10: 9,620 | AM10: =IFERROR(VLOOKUP($A10,Filtro.12!$A$4:$AL$2956,37,FALSE),0) -> 253,506,240
A11: 01014280 | B11: 0101206 | C11: Consulta Médica de Especialidad en Reumatología | D11: =IFERROR(VLOOKUP($A11,Filtro.12!$A$4:$AL$2956,2,FALSE),0) -> 6658 | E11: =IFERROR(VLOOKUP($A11,Filtro.12!$A$4:$AL$2956,3,FALSE),0) -> 6623 | F11: =IFERROR(VLOOKUP($A11,Filtro.12!$A$4:$AL$2956,4,FALSE),0) -> 6623 | G11: =IFERROR(VLOOKUP($A11,Filtro.12!$A$4:$AL$2956,5,FALSE),0) -> 0 | H11: =IFERROR(VLOOKUP($A11,Filtro.12!$A$4:$AL$2956,6,FALSE),0) -> 35 | AB11: =IFERROR(VLOOKUP($A11,Filtro.12!$A$4:$AL$2956,26,FALSE),0) -> 0 | AC11: =IFERROR(VLOOKUP($A11,Filtro.12!$A$4:$AL$2956,27,FALSE),0) -> 6658 | AD11: =IFERROR(VLOOKUP($A11,Filtro.12!$A$4:$AL$2956,28,FALSE),0) -> 0 | AE11: =IFERROR(VLOOKUP($A11,Filtro.12!$A$4:$AL$2956,29,FALSE),0) -> 0 | AF11: =IFERROR(VLOOKUP($A11,Filtro.12!$A$4:$AL$2956,30,FALSE),0) -> 23 | AG11: =IFERROR(VLOOKUP($A11,Filtro.12!$A$4:$AL$2956,31,FALSE),0) -> 0 | AH11: =IFERROR(VLOOKUP($A11,Filtro.12!$A$4:$AL$2956,32,FALSE),0) -> 0 | AI11: =IFERROR(VLOOKUP($A11,Filtro.12!$A$4:$AL$2956,33,FALSE),0) -> 0 | AJ11: =IFERROR(VLOOKUP($A11,Filtro.12!$A$4:$AL$2956,34,FALSE),0) -> 0 | AK11: =IFERROR(VLOOKUP($A11,Filtro.12!$A$4:$AL$2956,35,FALSE),0) -> 0 | AL11: 9,620 | AM11: =IFERROR(VLOOKUP($A11,Filtro.12!$A$4:$AL$2956,37,FALSE),0) -> 63,713,260
A12: 01014281 | B12: 0101207 | C12: Consulta Médica de Especialidad en Endocrinología Adulto | D12: =IFERROR(VLOOKUP($A12,Filtro.12!$A$4:$AL$2956,2,FALSE),0) -> 6164 | E12: =IFERROR(VLOOKUP($A12,Filtro.12!$A$4:$AL$2956,3,FALSE),0) -> 6154 | F12: =IFERROR(VLOOKUP($A12,Filtro.12!$A$4:$AL$2956,4,FALSE),0) -> 6154 | G12: =IFERROR(VLOOKUP($A12,Filtro.12!$A$4:$AL$2956,5,FALSE),0) -> 0 | H12: =IFERROR(VLOOKUP($A12,Filtro.12!$A$4:$AL$2956,6,FALSE),0) -> 10 | AB12: =IFERROR(VLOOKUP($A12,Filtro.12!$A$4:$AL$2956,26,FALSE),0) -> 0 | AC12: =IFERROR(VLOOKUP($A12,Filtro.12!$A$4:$AL$2956,27,FALSE),0) -> 6164 | AD12: =IFERROR(VLOOKUP($A12,Filtro.12!$A$4:$AL$2956,28,FALSE),0) -> 0 | AE12: =IFERROR(VLOOKUP($A12,Filtro.12!$A$4:$AL$2956,29,FALSE),0) -> 0 | AF12: =IFERROR(VLOOKUP($A12,Filtro.12!$A$4:$AL$2956,30,FALSE),0) -> 0 | AG12: =IFERROR(VLOOKUP($A12,Filtro.12!$A$4:$AL$2956,31,FALSE),0) -> 0 | AH12: =IFERROR(VLOOKUP($A12,Filtro.12!$A$4:$AL$2956,32,FALSE),0) -> 0 | AI12: =IFERROR(VLOOKUP($A12,Filtro.12!$A$4:$AL$2956,33,FALSE),0) -> 0 | AJ12: =IFERROR(VLOOKUP($A12,Filtro.12!$A$4:$AL$2956,34,FALSE),0) -> 0 | AK12: =IFERROR(VLOOKUP($A12,Filtro.12!$A$4:$AL$2956,35,FALSE),0) -> 0 | AL12: 9,620 | AM12: =IFERROR(VLOOKUP($A12,Filtro.12!$A$4:$AL$2956,37,FALSE),0) -> 59,201,480
A13: 01014282 | B13: 0101208 | C13: Consulta Médica de Especialidad en Endocrinología Pediátrica | D13: =IFERROR(VLOOKUP($A13,Filtro.12!$A$4:$AL$2956,2,FALSE),0) -> 5147 | E13: =IFERROR(VLOOKUP($A13,Filtro.12!$A$4:$AL$2956,3,FALSE),0) -> 5138 | F13: =IFERROR(VLOOKUP($A13,Filtro.12!$A$4:$AL$2956,4,FALSE),0) -> 5138 | G13: =IFERROR(VLOOKUP($A13,Filtro.12!$A$4:$AL$2956,5,FALSE),0) -> 0 | H13: =IFERROR(VLOOKUP($A13,Filtro.12!$A$4:$AL$2956,6,FALSE),0) -> 9 | AB13: =IFERROR(VLOOKUP($A13,Filtro.12!$A$4:$AL$2956,26,FALSE),0) -> 0 | AC13: =IFERROR(VLOOKUP($A13,Filtro.12!$A$4:$AL$2956,27,FALSE),0) -> 5147 | AD13: =IFERROR(VLOOKUP($A13,Filtro.12!$A$4:$AL$2956,28,FALSE),0) -> 0 | AE13: =IFERROR(VLOOKUP($A13,Filtro.12!$A$4:$AL$2956,29,FALSE),0) -> 0 | AF13: =IFERROR(VLOOKUP($A13,Filtro.12!$A$4:$AL$2956,30,FALSE),0) -> 0 | AG13: =IFERROR(VLOOKUP($A13,Filtro.12!$A$4:$AL$2956,31,FALSE),0) -> 0 | AH13: =IFERROR(VLOOKUP($A13,Filtro.12!$A$4:$AL$2956,32,FALSE),0) -> 0 | AI13: =IFERROR(VLOOKUP($A13,Filtro.12!$A$4:$AL$2956,33,FALSE),0) -> 0 | AJ13: =IFERROR(VLOOKUP($A13,Filtro.12!$A$4:$AL$2956,34,FALSE),0) -> 0 | AK13: =IFERROR(VLOOKUP($A13,Filtro.12!$A$4:$AL$2956,35,FALSE),0) -> 0 | AL13: 9,620 | AM13: =IFERROR(VLOOKUP($A13,Filtro.12!$A$4:$AL$2956,37,FALSE),0) -> 49,427,560
A14: 01014283 | B14: 0101209 | C14: Consulta Médica de Especialidad en Neurología Adultos | D14: =IFERROR(VLOOKUP($A14,Filtro.12!$A$4:$AL$2956,2,FALSE),0) -> 9584 | E14: =IFERROR(VLOOKUP($A14,Filtro.12!$A$4:$AL$2956,3,FALSE),0) -> 9572 | F14: =IFERROR(VLOOKUP($A14,Filtro.12!$A$4:$AL$2956,4,FALSE),0) -> 9572 | G14: =IFERROR(VLOOKUP($A14,Filtro.12!$A$4:$AL$2956,5,FALSE),0) -> 0 | H14: =IFERROR(VLOOKUP($A14,Filtro.12!$A$4:$AL$2956,6,FALSE),0) -> 12 | AB14: =IFERROR(VLOOKUP($A14,Filtro.12!$A$4:$AL$2956,26,FALSE),0) -> 0 | AC14: =IFERROR(VLOOKUP($A14,Filtro.12!$A$4:$AL$2956,27,FALSE),0) -> 9584 | AD14: =IFERROR(VLOOKUP($A14,Filtro.12!$A$4:$AL$2956,28,FALSE),0) -> 0 | AE14: =IFERROR(VLOOKUP($A14,Filtro.12!$A$4:$AL$2956,29,FALSE),0) -> 248 | AF14: =IFERROR(VLOOKUP($A14,Filtro.12!$A$4:$AL$2956,30,FALSE),0) -> 260 | AG14: =IFERROR(VLOOKUP($A14,Filtro.12!$A$4:$AL$2956,31,FALSE),0) -> 0 | AH14: =IFERROR(VLOOKUP($A14,Filtro.12!$A$4:$AL$2956,32,FALSE),0) -> 34 | AI14: =IFERROR(VLOOKUP($A14,Filtro.12!$A$4:$AL$2956,33,FALSE),0) -> 0 | AJ14: =IFERROR(VLOOKUP($A14,Filtro.12!$A$4:$AL$2956,34,FALSE),0) -> 0 | AK14: =IFERROR(VLOOKUP($A14,Filtro.12!$A$4:$AL$2956,35,FALSE),0) -> 0 | AL14: 9,620 | AM14: =IFERROR(VLOOKUP($A14,Filtro.12!$A$4:$AL$2956,37,FALSE),0) -> 92,082,640
A15: 01014284 | B15: 0101210 | C15: Consulta Médica de Especialidad en Neurología Pediátrica | D15: =IFERROR(VLOOKUP($A15,Filtro.12!$A$4:$AL$2956,2,FALSE),0) -> 6974 | E15: =IFERROR(VLOOKUP($A15,Filtro.12!$A$4:$AL$2956,3,FALSE),0) -> 6961 | F15: =IFERROR(VLOOKUP($A15,Filtro.12!$A$4:$AL$2956,4,FALSE),0) -> 6961 | G15: =IFERROR(VLOOKUP($A15,Filtro.12!$A$4:$AL$2956,5,FALSE),0) -> 0 | H15: =IFERROR(VLOOKUP($A15,Filtro.12!$A$4:$AL$2956,6,FALSE),0) -> 13 | AB15: =IFERROR(VLOOKUP($A15,Filtro.12!$A$4:$AL$2956,26,FALSE),0) -> 0 | AC15: =IFERROR(VLOOKUP($A15,Filtro.12!$A$4:$AL$2956,27,FALSE),0) -> 6974 | AD15: =IFERROR(VLOOKUP($A15,Filtro.12!$A$4:$AL$2956,28,FALSE),0) -> 0 | AE15: =IFERROR(VLOOKUP($A15,Filtro.12!$A$4:$AL$2956,29,FALSE),0) -> 0 | AF15: =IFERROR(VLOOKUP($A15,Filtro.12!$A$4:$AL$2956,30,FALSE),0) -> 0 | AG15: =IFERROR(VLOOKUP($A15,Filtro.12!$A$4:$AL$2956,31,FALSE),0) -> 0 | AH15: =IFERROR(VLOOKUP($A15,Filtro.12!$A$4:$AL$2956,32,FALSE),0) -> 0 | AI15: =IFERROR(VLOOKUP($A15,Filtro.12!$A$4:$AL$2956,33,FALSE),0) -> 0 | AJ15: =IFERROR(VLOOKUP($A15,Filtro.12!$A$4:$AL$2956,34,FALSE),0) -> 0 | AK15: =IFERROR(VLOOKUP($A15,Filtro.12!$A$4:$AL$2956,35,FALSE),0) -> 0 | AL15: 9,620 | AM15: =IFERROR(VLOOKUP($A15,Filtro.12!$A$4:$AL$2956,37,FALSE),0) -> 66,964,820
A16: 01014285 | B16: 0101211 | C16: Consulta Médica de Especialidad en Oncología Médica | D16: =IFERROR(VLOOKUP($A16,Filtro.12!$A$4:$AL$2956,2,FALSE),0) -> 12583 | E16: =IFERROR(VLOOKUP($A16,Filtro.12!$A$4:$AL$2956,3,FALSE),0) -> 12548 | F16: =IFERROR(VLOOKUP($A16,Filtro.12!$A$4:$AL$2956,4,FALSE),0) -> 12548 | G16: =IFERROR(VLOOKUP($A16,Filtro.12!$A$4:$AL$2956,5,FALSE),0) -> 0 | H16: =IFERROR(VLOOKUP($A16,Filtro.12!$A$4:$AL$2956,6,FALSE),0) -> 35 | AB16: =IFERROR(VLOOKUP($A16,Filtro.12!$A$4:$AL$2956,26,FALSE),0) -> 0 | AC16: =IFERROR(VLOOKUP($A16,Filtro.12!$A$4:$AL$2956,27,FALSE),0) -> 12583 | AD16: =IFERROR(VLOOKUP($A16,Filtro.12!$A$4:$AL$2956,28,FALSE),0) -> 0 | AE16: =IFERROR(VLOOKUP($A16,Filtro.12!$A$4:$AL$2956,29,FALSE),0) -> 0 | AF16: =IFERROR(VLOOKUP($A16,Filtro.12!$A$4:$AL$2956,30,FALSE),0) -> 397 | AG16: =IFERROR(VLOOKUP($A16,Filtro.12!$A$4:$AL$2956,31,FALSE),0) -> 0 | AH16: =IFERROR(VLOOKUP($A16,Filtro.12!$A$4:$AL$2956,32,FALSE),0) -> 0 | AI16: =IFERROR(VLOOKUP($A16,Filtro.12!$A$4:$AL$2956,33,FALSE),0) -> 0 | AJ16: =IFERROR(VLOOKUP($A16,Filtro.12!$A$4:$AL$2956,34,FALSE),0) -> 0 | AK16: =IFERROR(VLOOKUP($A16,Filtro.12!$A$4:$AL$2956,35,FALSE),0) -> 0 | AL16: 9,620 | AM16: =IFERROR(VLOOKUP($A16,Filtro.12!$A$4:$AL$2956,37,FALSE),0) -> 120,711,760
A17: 01014286 | B17: 0101212 | C17: Consulta Médica de Especialidad en Psiquiatría adultos | D17: =IFERROR(VLOOKUP($A17,Filtro.12!$A$4:$AL$2956,2,FALSE),0) -> 21215 | E17: =IFERROR(VLOOKUP($A17,Filtro.12!$A$4:$AL$2956,3,FALSE),0) -> 21154 | F17: =IFERROR(VLOOKUP($A17,Filtro.12!$A$4:$AL$2956,4,FALSE),0) -> 21154 | G17: =IFERROR(VLOOKUP($A17,Filtro.12!$A$4:$AL$2956,5,FALSE),0) -> 0 | H17: =IFERROR(VLOOKUP($A17,Filtro.12!$A$4:$AL$2956,6,FALSE),0) -> 61 | AB17: =IFERROR(VLOOKUP($A17,Filtro.12!$A$4:$AL$2956,26,FALSE),0) -> 20 | AC17: =IFERROR(VLOOKUP($A17,Filtro.12!$A$4:$AL$2956,27,FALSE),0) -> 21100 | AD17: =IFERROR(VLOOKUP($A17,Filtro.12!$A$4:$AL$2956,28,FALSE),0) -> 0 | AE17: =IFERROR(VLOOKUP($A17,Filtro.12!$A$4:$AL$2956,29,FALSE),0) -> 0 | AF17: =IFERROR(VLOOKUP($A17,Filtro.12!$A$4:$AL$2956,30,FALSE),0) -> 0 | AG17: =IFERROR(VLOOKUP($A17,Filtro.12!$A$4:$AL$2956,31,FALSE),0) -> 0 | AH17: =IFERROR(VLOOKUP($A17,Filtro.12!$A$4:$AL$2956,32,FALSE),0) -> 0 | AI17: =IFERROR(VLOOKUP($A17,Filtro.12!$A$4:$AL$2956,33,FALSE),0) -> 0 | AJ17: =IFERROR(VLOOKUP($A17,Filtro.12!$A$4:$AL$2956,34,FALSE),0) -> 0 | AK17: =IFERROR(VLOOKUP($A17,Filtro.12!$A$4:$AL$2956,35,FALSE),0) -> 0 | AL17: 9,620 | AM17: =IFERROR(VLOOKUP($A17,Filtro.12!$A$4:$AL$2956,37,FALSE),0) -> 203,501,480
A18: 01014287 | B18: 0101213 | C18: Consulta Médica de Especialidad en Psiquiatría pediátrica y de la adolescencia | D18: =IFERROR(VLOOKUP($A18,Filtro.12!$A$4:$AL$2956,2,FALSE),0) -> 7902 | E18: =IFERROR(VLOOKUP($A18,Filtro.12!$A$4:$AL$2956,3,FALSE),0) -> 7874 | F18: =IFERROR(VLOOKUP($A18,Filtro.12!$A$4:$AL$2956,4,FALSE),0) -> 7874 | G18: =IFERROR(VLOOKUP($A18,Filtro.12!$A$4:$AL$2956,5,FALSE),0) -> 0 | H18: =IFERROR(VLOOKUP($A18,Filtro.12!$A$4:$AL$2956,6,FALSE),0) -> 28 | AB18: =IFERROR(VLOOKUP($A18,Filtro.12!$A$4:$AL$2956,26,FALSE),0) -> 0 | AC18: =IFERROR(VLOOKUP($A18,Filtro.12!$A$4:$AL$2956,27,FALSE),0) -> 7868 | AD18: =IFERROR(VLOOKUP($A18,Filtro.12!$A$4:$AL$2956,28,FALSE),0) -> 0 | AE18: =IFERROR(VLOOKUP($A18,Filtro.12!$A$4:$AL$2956,29,FALSE),0) -> 0 | AF18: =IFERROR(VLOOKUP($A18,Filtro.12!$A$4:$AL$2956,30,FALSE),0) -> 0 | AG18: =IFERROR(VLOOKUP($A18,Filtro.12!$A$4:$AL$2956,31,FALSE),0) -> 0 | AH18: =IFERROR(VLOOKUP($A18,Filtro.12!$A$4:$AL$2956,32,FALSE),0) -> 0 | AI18: =IFERROR(VLOOKUP($A18,Filtro.12!$A$4:$AL$2956,33,FALSE),0) -> 0 | AJ18: =IFERROR(VLOOKUP($A18,Filtro.12!$A$4:$AL$2956,34,FALSE),0) -> 0 | AK18: =IFERROR(VLOOKUP($A18,Filtro.12!$A$4:$AL$2956,35,FALSE),0) -> 0 | AL18: 9,620 | AM18: =IFERROR(VLOOKUP($A18,Filtro.12!$A$4:$AL$2956,37,FALSE),0) -> 75,747,880
A19: 01014288 | B19: 0101300 | C19: Consulta Médica otras Especialidades | D19: =IFERROR(VLOOKUP($A19,Filtro.12!$A$4:$AL$2956,2,FALSE),0) -> 11511 | E19: =IFERROR(VLOOKUP($A19,Filtro.12!$A$4:$AL$2956,3,FALSE),0) -> 11510 | F19: =IFERROR(VLOOKUP($A19,Filtro.12!$A$4:$AL$2956,4,FALSE),0) -> 11510 | G19: =IFERROR(VLOOKUP($A19,Filtro.12!$A$4:$AL$2956,5,FALSE),0) -> 0 | H19: =IFERROR(VLOOKUP($A19,Filtro.12!$A$4:$AL$2956,6,FALSE),0) -> 1 | AB19: =IFERROR(VLOOKUP($A19,Filtro.12!$A$4:$AL$2956,26,FALSE),0) -> 0 | AC19: =IFERROR(VLOOKUP($A19,Filtro.12!$A$4:$AL$2956,27,FALSE),0) -> 11511 | AD19: =IFERROR(VLOOKUP($A19,Filtro.12!$A$4:$AL$2956,28,FALSE),0) -> 0 | AE19: =IFERROR(VLOOKUP($A19,Filtro.12!$A$4:$AL$2956,29,FALSE),0) -> 0 | AF19: =IFERROR(VLOOKUP($A19,Filtro.12!$A$4:$AL$2956,30,FALSE),0) -> 0 | AG19: =IFERROR(VLOOKUP($A19,Filtro.12!$A$4:$AL$2956,31,FALSE),0) -> 0 | AH19: =IFERROR(VLOOKUP($A19,Filtro.12!$A$4:$AL$2956,32,FALSE),0) -> 0 | AI19: =IFERROR(VLOOKUP($A19,Filtro.12!$A$4:$AL$2956,33,FALSE),0) -> 0 | AJ19: =IFERROR(VLOOKUP($A19,Filtro.12!$A$4:$AL$2956,34,FALSE),0) -> 0 | AK19: =IFERROR(VLOOKUP($A19,Filtro.12!$A$4:$AL$2956,35,FALSE),0) -> 0 | AL19: 9,620 | AM19: =IFERROR(VLOOKUP($A19,Filtro.12!$A$4:$AL$2956,37,FALSE),0) -> 110,726,200
A20: 01014289 | B20: 0101301 | C20: Consulta Médica de Especialidad en Cardiología | D20: =IFERROR(VLOOKUP($A20,Filtro.12!$A$4:$AL$2956,2,FALSE),0) -> 13319 | E20: =IFERROR(VLOOKUP($A20,Filtro.12!$A$4:$AL$2956,3,FALSE),0) -> 13301 | F20: =IFERROR(VLOOKUP($A20,Filtro.12!$A$4:$AL$2956,4,FALSE),0) -> 13301 | G20: =IFERROR(VLOOKUP($A20,Filtro.12!$A$4:$AL$2956,5,FALSE),0) -> 0 | H20: =IFERROR(VLOOKUP($A20,Filtro.12!$A$4:$AL$2956,6,FALSE),0) -> 18 | AB20: =IFERROR(VLOOKUP($A20,Filtro.12!$A$4:$AL$2956,26,FALSE),0) -> 0 | AC20: =IFERROR(VLOOKUP($A20,Filtro.12!$A$4:$AL$2956,27,FALSE),0) -> 13319 | AD20: =IFERROR(VLOOKUP($A20,Filtro.12!$A$4:$AL$2956,28,FALSE),0) -> 0 | AE20: =IFERROR(VLOOKUP($A20,Filtro.12!$A$4:$AL$2956,29,FALSE),0) -> 48 | AF20: =IFERROR(VLOOKUP($A20,Filtro.12!$A$4:$AL$2956,30,FALSE),0) -> 395 | AG20: =IFERROR(VLOOKUP($A20,Filtro.12!$A$4:$AL$2956,31,FALSE),0) -> 0 | AH20: =IFERROR(VLOOKUP($A20,Filtro.12!$A$4:$AL$2956,32,FALSE),0) -> 0 | AI20: =IFERROR(VLOOKUP($A20,Filtro.12!$A$4:$AL$2956,33,FALSE),0) -> 0 | AJ20: =IFERROR(VLOOKUP($A20,Filtro.12!$A$4:$AL$2956,34,FALSE),0) -> 0 | AK20: =IFERROR(VLOOKUP($A20,Filtro.12!$A$4:$AL$2956,35,FALSE),0) -> 0 | AL20: 9,620 | AM20: =IFERROR(VLOOKUP($A20,Filtro.12!$A$4:$AL$2956,37,FALSE),0) -> 127,955,620
A21: 01014290 | B21: 0101302 | C21: Consulta Médica de Especialidad en Hematología | D21: =IFERROR(VLOOKUP($A21,Filtro.12!$A$4:$AL$2956,2,FALSE),0) -> 9006 | E21: =IFERROR(VLOOKUP($A21,Filtro.12!$A$4:$AL$2956,3,FALSE),0) -> 8967 | F21: =IFERROR(VLOOKUP($A21,Filtro.12!$A$4:$AL$2956,4,FALSE),0) -> 8967 | G21: =IFERROR(VLOOKUP($A21,Filtro.12!$A$4:$AL$2956,5,FALSE),0) -> 0 | H21: =IFERROR(VLOOKUP($A21,Filtro.12!$A$4:$AL$2956,6,FALSE),0) -> 39 | AB21: =IFERROR(VLOOKUP($A21,Filtro.12!$A$4:$AL$2956,26,FALSE),0) -> 0 | AC21: =IFERROR(VLOOKUP($A21,Filtro.12!$A$4:$AL$2956,27,FALSE),0) -> 9006 | AD21: =IFERROR(VLOOKUP($A21,Filtro.12!$A$4:$AL$2956,28,FALSE),0) -> 0 | AE21: =IFERROR(VLOOKUP($A21,Filtro.12!$A$4:$AL$2956,29,FALSE),0) -> 0 | AF21: =IFERROR(VLOOKUP($A21,Filtro.12!$A$4:$AL$2956,30,FALSE),0) -> 0 | AG21: =IFERROR(VLOOKUP($A21,Filtro.12!$A$4:$AL$2956,31,FALSE),0) -> 0 | AH21: =IFERROR(VLOOKUP($A21,Filtro.12!$A$4:$AL$2956,32,FALSE),0) -> 0 | AI21: =IFERROR(VLOOKUP($A21,Filtro.12!$A$4:$AL$2956,33,FALSE),0) -> 0 | AJ21: =IFERROR(VLOOKUP($A21,Filtro.12!$A$4:$AL$2956,34,FALSE),0) -> 0 | AK21: =IFERROR(VLOOKUP($A21,Filtro.12!$A$4:$AL$2956,35,FALSE),0) -> 0 | AL21: 9,620 | AM21: =IFERROR(VLOOKUP($A21,Filtro.12!$A$4:$AL$2956,37,FALSE),0) -> 86,262,540
A22: 01014291 | B22: 0101303 | C22: Consulta Médica de Especialidad en Infectología | D22: =IFERROR(VLOOKUP($A22,Filtro.12!$A$4:$AL$2956,2,FALSE),0) -> 6446 | E22: =IFERROR(VLOOKUP($A22,Filtro.12!$A$4:$AL$2956,3,FALSE),0) -> 6417 | F22: =IFERROR(VLOOKUP($A22,Filtro.12!$A$4:$AL$2956,4,FALSE),0) -> 6417 | G22: =IFERROR(VLOOKUP($A22,Filtro.12!$A$4:$AL$2956,5,FALSE),0) -> 0 | H22: =IFERROR(VLOOKUP($A22,Filtro.12!$A$4:$AL$2956,6,FALSE),0) -> 29 | AB22: =IFERROR(VLOOKUP($A22,Filtro.12!$A$4:$AL$2956,26,FALSE),0) -> 0 | AC22: =IFERROR(VLOOKUP($A22,Filtro.12!$A$4:$AL$2956,27,FALSE),0) -> 6446 | AD22: =IFERROR(VLOOKUP($A22,Filtro.12!$A$4:$AL$2956,28,FALSE),0) -> 0 | AE22: =IFERROR(VLOOKUP($A22,Filtro.12!$A$4:$AL$2956,29,FALSE),0) -> 0 | AF22: =IFERROR(VLOOKUP($A22,Filtro.12!$A$4:$AL$2956,30,FALSE),0) -> 0 | AG22: =IFERROR(VLOOKUP($A22,Filtro.12!$A$4:$AL$2956,31,FALSE),0) -> 0 | AH22: =IFERROR(VLOOKUP($A22,Filtro.12!$A$4:$AL$2956,32,FALSE),0) -> 0 | AI22: =IFERROR(VLOOKUP($A22,Filtro.12!$A$4:$AL$2956,33,FALSE),0) -> 0 | AJ22: =IFERROR(VLOOKUP($A22,Filtro.12!$A$4:$AL$2956,34,FALSE),0) -> 0 | AK22: =IFERROR(VLOOKUP($A22,Filtro.12!$A$4:$AL$2956,35,FALSE),0) -> 0 | AL22: 9,620 | AM22: =IFERROR(VLOOKUP($A22,Filtro.12!$A$4:$AL$2956,37,FALSE),0) -> 61,731,540
A23: 01014292 | B23: 0101304 | C23: Consulta Médica de Especialidad en Inmunología | D23: =IFERROR(VLOOKUP($A23,Filtro.12!$A$4:$AL$2956,2,FALSE),0) -> 1754 | E23: =IFERROR(VLOOKUP($A23,Filtro.12!$A$4:$AL$2956,3,FALSE),0) -> 1752 | F23: =IFERROR(VLOOKUP($A23,Filtro.12!$A$4:$AL$2956,4,FALSE),0) -> 1752 | G23: =IFERROR(VLOOKUP($A23,Filtro.12!$A$4:$AL$2956,5,FALSE),0) -> 0 | H23: =IFERROR(VLOOKUP($A23,Filtro.12!$A$4:$AL$2956,6,FALSE),0) -> 2 | AB23: =IFERROR(VLOOKUP($A23,Filtro.12!$A$4:$AL$2956,26,FALSE),0) -> 0 | AC23: =IFERROR(VLOOKUP($A23,Filtro.12!$A$4:$AL$2956,27,FALSE),0) -> 1754 | AD23: =IFERROR(VLOOKUP($A23,Filtro.12!$A$4:$AL$2956,28,FALSE),0) -> 0 | AE23: =IFERROR(VLOOKUP($A23,Filtro.12!$A$4:$AL$2956,29,FALSE),0) -> 0 | AF23: =IFERROR(VLOOKUP($A23,Filtro.12!$A$4:$AL$2956,30,FALSE),0) -> 0 | AG23: =IFERROR(VLOOKUP($A23,Filtro.12!$A$4:$AL$2956,31,FALSE),0) -> 0 | AH23: =IFERROR(VLOOKUP($A23,Filtro.12!$A$4:$AL$2956,32,FALSE),0) -> 0 | AI23: =IFERROR(VLOOKUP($A23,Filtro.12!$A$4:$AL$2956,33,FALSE),0) -> 0 | AJ23: =IFERROR(VLOOKUP($A23,Filtro.12!$A$4:$AL$2956,34,FALSE),0) -> 0 | AK23: =IFERROR(VLOOKUP($A23,Filtro.12!$A$4:$AL$2956,35,FALSE),0) -> 0 | AL23: 9,620 | AM23: =IFERROR(VLOOKUP($A23,Filtro.12!$A$4:$AL$2956,37,FALSE),0) -> 16,854,240
A24: 01014293 | B24: 0101305 | C24: Consulta Médica de Especialidad en Medicina Familiar | D24: =IFERROR(VLOOKUP($A24,Filtro.12!$A$4:$AL$2956,2,FALSE),0) -> 617 | E24: =IFERROR(VLOOKUP($A24,Filtro.12!$A$4:$AL$2956,3,FALSE),0) -> 617 | F24: =IFERROR(VLOOKUP($A24,Filtro.12!$A$4:$AL$2956,4,FALSE),0) -> 617 | G24: =IFERROR(VLOOKUP($A24,Filtro.12!$A$4:$AL$2956,5,FALSE),0) -> 0 | H24: =IFERROR(VLOOKUP($A24,Filtro.12!$A$4:$AL$2956,6,FALSE),0) -> 0 | AB24: =IFERROR(VLOOKUP($A24,Filtro.12!$A$4:$AL$2956,26,FALSE),0) -> 0 | AC24: =IFERROR(VLOOKUP($A24,Filtro.12!$A$4:$AL$2956,27,FALSE),0) -> 617 | AD24: =IFERROR(VLOOKUP($A24,Filtro.12!$A$4:$AL$2956,28,FALSE),0) -> 0 | AE24: =IFERROR(VLOOKUP($A24,Filtro.12!$A$4:$AL$2956,29,FALSE),0) -> 0 | AF24: =IFERROR(VLOOKUP($A24,Filtro.12!$A$4:$AL$2956,30,FALSE),0) -> 0 | AG24: =IFERROR(VLOOKUP($A24,Filtro.12!$A$4:$AL$2956,31,FALSE),0) -> 0 | AH24: =IFERROR(VLOOKUP($A24,Filtro.12!$A$4:$AL$2956,32,FALSE),0) -> 0 | AI24: =IFERROR(VLOOKUP($A24,Filtro.12!$A$4:$AL$2956,33,FALSE),0) -> 0 | AJ24: =IFERROR(VLOOKUP($A24,Filtro.12!$A$4:$AL$2956,34,FALSE),0) -> 0 | AK24: =IFERROR(VLOOKUP($A24,Filtro.12!$A$4:$AL$2956,35,FALSE),0) -> 0 | AL24: 9,620 | AM24: =IFERROR(VLOOKUP($A24,Filtro.12!$A$4:$AL$2956,37,FALSE),0) -> 5,935,540
A25: 01014294 | B25: 0101306 | C25: Consulta Médica de Especialidad en Medicina Física y Rehabilitación | D25: =IFERROR(VLOOKUP($A25,Filtro.12!$A$4:$AL$2956,2,FALSE),0) -> 8158 | E25: =IFERROR(VLOOKUP($A25,Filtro.12!$A$4:$AL$2956,3,FALSE),0) -> 8156 | F25: =IFERROR(VLOOKUP($A25,Filtro.12!$A$4:$AL$2956,4,FALSE),0) -> 8156 | G25: =IFERROR(VLOOKUP($A25,Filtro.12!$A$4:$AL$2956,5,FALSE),0) -> 0 | H25: =IFERROR(VLOOKUP($A25,Filtro.12!$A$4:$AL$2956,6,FALSE),0) -> 2 | AB25: =IFERROR(VLOOKUP($A25,Filtro.12!$A$4:$AL$2956,26,FALSE),0) -> 0 | AC25: =IFERROR(VLOOKUP($A25,Filtro.12!$A$4:$AL$2956,27,FALSE),0) -> 8158 | AD25: =IFERROR(VLOOKUP($A25,Filtro.12!$A$4:$AL$2956,28,FALSE),0) -> 0 | AE25: =IFERROR(VLOOKUP($A25,Filtro.12!$A$4:$AL$2956,29,FALSE),0) -> 0 | AF25: =IFERROR(VLOOKUP($A25,Filtro.12!$A$4:$AL$2956,30,FALSE),0) -> 175 | AG25: =IFERROR(VLOOKUP($A25,Filtro.12!$A$4:$AL$2956,31,FALSE),0) -> 0 | AH25: =IFERROR(VLOOKUP($A25,Filtro.12!$A$4:$AL$2956,32,FALSE),0) -> 0 | AI25: =IFERROR(VLOOKUP($A25,Filtro.12!$A$4:$AL$2956,33,FALSE),0) -> 0 | AJ25: =IFERROR(VLOOKUP($A25,Filtro.12!$A$4:$AL$2956,34,FALSE),0) -> 0 | AK25: =IFERROR(VLOOKUP($A25,Filtro.12!$A$4:$AL$2956,35,FALSE),0) -> 0 | AL25: 9,620 | AM25: =IFERROR(VLOOKUP($A25,Filtro.12!$A$4:$AL$2956,37,FALSE),0) -> 78,460,720
A26: 01014295 | B26: 0101307 | C26: Consulta Médica de Especialidad en Medicina Interna | D26: =IFERROR(VLOOKUP($A26,Filtro.12!$A$4:$AL$2956,2,FALSE),0) -> 41379 | E26: =IFERROR(VLOOKUP($A26,Filtro.12!$A$4:$AL$2956,3,FALSE),0) -> 41082 | F26: =IFERROR(VLOOKUP($A26,Filtro.12!$A$4:$AL$2956,4,FALSE),0) -> 41082 | G26: =IFERROR(VLOOKUP($A26,Filtro.12!$A$4:$AL$2956,5,FALSE),0) -> 0 | H26: =IFERROR(VLOOKUP($A26,Filtro.12!$A$4:$AL$2956,6,FALSE),0) -> 297 | AB26: =IFERROR(VLOOKUP($A26,Filtro.12!$A$4:$AL$2956,26,FALSE),0) -> 885 | AC26: =IFERROR(VLOOKUP($A26,Filtro.12!$A$4:$AL$2956,27,FALSE),0) -> 40494 | AD26: =IFERROR(VLOOKUP($A26,Filtro.12!$A$4:$AL$2956,28,FALSE),0) -> 0 | AE26: =IFERROR(VLOOKUP($A26,Filtro.12!$A$4:$AL$2956,29,FALSE),0) -> 569 | AF26: =IFERROR(VLOOKUP($A26,Filtro.12!$A$4:$AL$2956,30,FALSE),0) -> 22 | AG26: =IFERROR(VLOOKUP($A26,Filtro.12!$A$4:$AL$2956,31,FALSE),0) -> 0 | AH26: =IFERROR(VLOOKUP($A26,Filtro.12!$A$4:$AL$2956,32,FALSE),0) -> 61 | AI26: =IFERROR(VLOOKUP($A26,Filtro.12!$A$4:$AL$2956,33,FALSE),0) -> 0 | AJ26: =IFERROR(VLOOKUP($A26,Filtro.12!$A$4:$AL$2956,34,FALSE),0) -> 0 | AK26: =IFERROR(VLOOKUP($A26,Filtro.12!$A$4:$AL$2956,35,FALSE),0) -> 0 | AL26: 9,620 | AM26: =IFERROR(VLOOKUP($A26,Filtro.12!$A$4:$AL$2956,37,FALSE),0) -> 395,208,840
A27: 01012816 | B27: 0101308 | C27: Consulta Médica de Especialidad en Obstetricia y Ginecología | D27: =IFERROR(VLOOKUP($A27,Filtro.12!$A$4:$AL$2956,2,FALSE),0) -> 45238 | E27: =IFERROR(VLOOKUP($A27,Filtro.12!$A$4:$AL$2956,3,FALSE),0) -> 45195 | F27: =IFERROR(VLOOKUP($A27,Filtro.12!$A$4:$AL$2956,4,FALSE),0) -> 45195 | G27: =IFERROR(VLOOKUP($A27,Filtro.12!$A$4:$AL$2956,5,FALSE),0) -> 0 | H27: =IFERROR(VLOOKUP($A27,Filtro.12!$A$4:$AL$2956,6,FALSE),0) -> 43 | AB27: =IFERROR(VLOOKUP($A27,Filtro.12!$A$4:$AL$2956,26,FALSE),0) -> 373 | AC27: =IFERROR(VLOOKUP($A27,Filtro.12!$A$4:$AL$2956,27,FALSE),0) -> 44816 | AD27: =IFERROR(VLOOKUP($A27,Filtro.12!$A$4:$AL$2956,28,FALSE),0) -> 49 | AE27: =IFERROR(VLOOKUP($A27,Filtro.12!$A$4:$AL$2956,29,FALSE),0) -> 1706 | AF27: =IFERROR(VLOOKUP($A27,Filtro.12!$A$4:$AL$2956,30,FALSE),0) -> 284 | AG27: =IFERROR(VLOOKUP($A27,Filtro.12!$A$4:$AL$2956,31,FALSE),0) -> 0 | AH27: =IFERROR(VLOOKUP($A27,Filtro.12!$A$4:$AL$2956,32,FALSE),0) -> 30 | AI27: =IFERROR(VLOOKUP($A27,Filtro.12!$A$4:$AL$2956,33,FALSE),0) -> 0 | AJ27: =IFERROR(VLOOKUP($A27,Filtro.12!$A$4:$AL$2956,34,FALSE),0) -> 0 | AK27: =IFERROR(VLOOKUP($A27,Filtro.12!$A$4:$AL$2956,35,FALSE),0) -> 0 | AL27: 9,620 | AM27: =IFERROR(VLOOKUP($A27,Filtro.12!$A$4:$AL$2956,37,FALSE),0) -> 434,775,900
A28: 01014296 | B28: 0101309 | C28: Consulta Médica de Especialidad en Pediatría | D28: =IFERROR(VLOOKUP($A28,Filtro.12!$A$4:$AL$2956,2,FALSE),0) -> 16703 | E28: =IFERROR(VLOOKUP($A28,Filtro.12!$A$4:$AL$2956,3,FALSE),0) -> 16686 | F28: =IFERROR(VLOOKUP($A28,Filtro.12!$A$4:$AL$2956,4,FALSE),0) -> 16686 | G28: =IFERROR(VLOOKUP($A28,Filtro.12!$A$4:$AL$2956,5,FALSE),0) -> 0 | H28: =IFERROR(VLOOKUP($A28,Filtro.12!$A$4:$AL$2956,6,FALSE),0) -> 17 | AB28: =IFERROR(VLOOKUP($A28,Filtro.12!$A$4:$AL$2956,26,FALSE),0) -> 77 | AC28: =IFERROR(VLOOKUP($A28,Filtro.12!$A$4:$AL$2956,27,FALSE),0) -> 16626 | AD28: =IFERROR(VLOOKUP($A28,Filtro.12!$A$4:$AL$2956,28,FALSE),0) -> 0 | AE28: =IFERROR(VLOOKUP($A28,Filtro.12!$A$4:$AL$2956,29,FALSE),0) -> 0 | AF28: =IFERROR(VLOOKUP($A28,Filtro.12!$A$4:$AL$2956,30,FALSE),0) -> 0 | AG28: =IFERROR(VLOOKUP($A28,Filtro.12!$A$4:$AL$2956,31,FALSE),0) -> 0 | AH28: =IFERROR(VLOOKUP($A28,Filtro.12!$A$4:$AL$2956,32,FALSE),0) -> 0 | AI28: =IFERROR(VLOOKUP($A28,Filtro.12!$A$4:$AL$2956,33,FALSE),0) -> 0 | AJ28: =IFERROR(VLOOKUP($A28,Filtro.12!$A$4:$AL$2956,34,FALSE),0) -> 0 | AK28: =IFERROR(VLOOKUP($A28,Filtro.12!$A$4:$AL$2956,35,FALSE),0) -> 0 | AL28: 9,620 | AM28: =IFERROR(VLOOKUP($A28,Filtro.12!$A$4:$AL$2956,37,FALSE),0) -> 160,519,320
A29: 01014297 | B29: 0101310 | C29: Consulta Médica de Especialidad en Traumatología y Ortopedia | D29: =IFERROR(VLOOKUP($A29,Filtro.12!$A$4:$AL$2956,2,FALSE),0) -> 31314 | E29: =IFERROR(VLOOKUP($A29,Filtro.12!$A$4:$AL$2956,3,FALSE),0) -> 30982 | F29: =IFERROR(VLOOKUP($A29,Filtro.12!$A$4:$AL$2956,4,FALSE),0) -> 30982 | G29: =IFERROR(VLOOKUP($A29,Filtro.12!$A$4:$AL$2956,5,FALSE),0) -> 0 | H29: =IFERROR(VLOOKUP($A29,Filtro.12!$A$4:$AL$2956,6,FALSE),0) -> 332 | AB29: =IFERROR(VLOOKUP($A29,Filtro.12!$A$4:$AL$2956,26,FALSE),0) -> 281 | AC29: =IFERROR(VLOOKUP($A29,Filtro.12!$A$4:$AL$2956,27,FALSE),0) -> 31033 | AD29: =IFERROR(VLOOKUP($A29,Filtro.12!$A$4:$AL$2956,28,FALSE),0) -> 0 | AE29: =IFERROR(VLOOKUP($A29,Filtro.12!$A$4:$AL$2956,29,FALSE),0) -> 866 | AF29: =IFERROR(VLOOKUP($A29,Filtro.12!$A$4:$AL$2956,30,FALSE),0) -> 0 | AG29: =IFERROR(VLOOKUP($A29,Filtro.12!$A$4:$AL$2956,31,FALSE),0) -> 0 | AH29: =IFERROR(VLOOKUP($A29,Filtro.12!$A$4:$AL$2956,32,FALSE),0) -> 67 | AI29: =IFERROR(VLOOKUP($A29,Filtro.12!$A$4:$AL$2956,33,FALSE),0) -> 0 | AJ29: =IFERROR(VLOOKUP($A29,Filtro.12!$A$4:$AL$2956,34,FALSE),0) -> 0 | AK29: =IFERROR(VLOOKUP($A29,Filtro.12!$A$4:$AL$2956,35,FALSE),0) -> 0 | AL29: 9,620 | AM29: =IFERROR(VLOOKUP($A29,Filtro.12!$A$4:$AL$2956,37,FALSE),0) -> 298,046,840
A30: 01014298 | B30: 0101311 | C30: Consulta Médica de Especialidad en Urología | D30: =IFERROR(VLOOKUP($A30,Filtro.12!$A$4:$AL$2956,2,FALSE),0) -> 20472 | E30: =IFERROR(VLOOKUP($A30,Filtro.12!$A$4:$AL$2956,3,FALSE),0) -> 20465 | F30: =IFERROR(VLOOKUP($A30,Filtro.12!$A$4:$AL$2956,4,FALSE),0) -> 20465 | G30: =IFERROR(VLOOKUP($A30,Filtro.12!$A$4:$AL$2956,5,FALSE),0) -> 0 | H30: =IFERROR(VLOOKUP($A30,Filtro.12!$A$4:$AL$2956,6,FALSE),0) -> 7 | AB30: =IFERROR(VLOOKUP($A30,Filtro.12!$A$4:$AL$2956,26,FALSE),0) -> 173 | AC30: =IFERROR(VLOOKUP($A30,Filtro.12!$A$4:$AL$2956,27,FALSE),0) -> 20299 | AD30: =IFERROR(VLOOKUP($A30,Filtro.12!$A$4:$AL$2956,28,FALSE),0) -> 0 | AE30: =IFERROR(VLOOKUP($A30,Filtro.12!$A$4:$AL$2956,29,FALSE),0) -> 2002 | AF30: =IFERROR(VLOOKUP($A30,Filtro.12!$A$4:$AL$2956,30,FALSE),0) -> 2412 | AG30: =IFERROR(VLOOKUP($A30,Filtro.12!$A$4:$AL$2956,31,FALSE),0) -> 0 | AH30: =IFERROR(VLOOKUP($A30,Filtro.12!$A$4:$AL$2956,32,FALSE),0) -> 38 | AI30: =IFERROR(VLOOKUP($A30,Filtro.12!$A$4:$AL$2956,33,FALSE),0) -> 0 | AJ30: =IFERROR(VLOOKUP($A30,Filtro.12!$A$4:$AL$2956,34,FALSE),0) -> 0 | AK30: =IFERROR(VLOOKUP($A30,Filtro.12!$A$4:$AL$2956,35,FALSE),0) -> 0 | AL30: 9,620 | AM30: =IFERROR(VLOOKUP($A30,Filtro.12!$A$4:$AL$2956,37,FALSE),0) -> 196,873,300
A31: 01014299 | B31: 0101312 | C31: Consulta Médica de Especialidad en Cirugía General | D31: =IFERROR(VLOOKUP($A31,Filtro.12!$A$4:$AL$2956,2,FALSE),0) -> 27488 | E31: =IFERROR(VLOOKUP($A31,Filtro.12!$A$4:$AL$2956,3,FALSE),0) -> 27464 | F31: =IFERROR(VLOOKUP($A31,Filtro.12!$A$4:$AL$2956,4,FALSE),0) -> 27464 | G31: =IFERROR(VLOOKUP($A31,Filtro.12!$A$4:$AL$2956,5,FALSE),0) -> 0 | H31: =IFERROR(VLOOKUP($A31,Filtro.12!$A$4:$AL$2956,6,FALSE),0) -> 24 | AB31: =IFERROR(VLOOKUP($A31,Filtro.12!$A$4:$AL$2956,26,FALSE),0) -> 255 | AC31: =IFERROR(VLOOKUP($A31,Filtro.12!$A$4:$AL$2956,27,FALSE),0) -> 27233 | AD31: =IFERROR(VLOOKUP($A31,Filtro.12!$A$4:$AL$2956,28,FALSE),0) -> 0 | AE31: =IFERROR(VLOOKUP($A31,Filtro.12!$A$4:$AL$2956,29,FALSE),0) -> 3332 | AF31: =IFERROR(VLOOKUP($A31,Filtro.12!$A$4:$AL$2956,30,FALSE),0) -> 1868 | AG31: =IFERROR(VLOOKUP($A31,Filtro.12!$A$4:$AL$2956,31,FALSE),0) -> 0 | AH31: =IFERROR(VLOOKUP($A31,Filtro.12!$A$4:$AL$2956,32,FALSE),0) -> 0 | AI31: =IFERROR(VLOOKUP($A31,Filtro.12!$A$4:$AL$2956,33,FALSE),0) -> 0 | AJ31: =IFERROR(VLOOKUP($A31,Filtro.12!$A$4:$AL$2956,34,FALSE),0) -> 0 | AK31: =IFERROR(VLOOKUP($A31,Filtro.12!$A$4:$AL$2956,35,FALSE),0) -> 0 | AL31: 9,620 | AM31: =IFERROR(VLOOKUP($A31,Filtro.12!$A$4:$AL$2956,37,FALSE),0) -> 264,203,680
A32: 01014300 | B32: 0101313 | C32: Consulta Médica de Especialidad en Cirugía de Cabeza, Cuello y Maxilofacial | D32: =IFERROR(VLOOKUP($A32,Filtro.12!$A$4:$AL$2956,2,FALSE),0) -> 938 | E32: =IFERROR(VLOOKUP($A32,Filtro.12!$A$4:$AL$2956,3,FALSE),0) -> 938 | F32: =IFERROR(VLOOKUP($A32,Filtro.12!$A$4:$AL$2956,4,FALSE),0) -> 938 | G32: =IFERROR(VLOOKUP($A32,Filtro.12!$A$4:$AL$2956,5,FALSE),0) -> 0 | H32: =IFERROR(VLOOKUP($A32,Filtro.12!$A$4:$AL$2956,6,FALSE),0) -> 0 | AB32: =IFERROR(VLOOKUP($A32,Filtro.12!$A$4:$AL$2956,26,FALSE),0) -> 0 | AC32: =IFERROR(VLOOKUP($A32,Filtro.12!$A$4:$AL$2956,27,FALSE),0) -> 938 | AD32: =IFERROR(VLOOKUP($A32,Filtro.12!$A$4:$AL$2956,28,FALSE),0) -> 0 | AE32: =IFERROR(VLOOKUP($A32,Filtro.12!$A$4:$AL$2956,29,FALSE),0) -> 58 | AF32: =IFERROR(VLOOKUP($A32,Filtro.12!$A$4:$AL$2956,30,FALSE),0) -> 0 | AG32: =IFERROR(VLOOKUP($A32,Filtro.12!$A$4:$AL$2956,31,FALSE),0) -> 0 | AH32: =IFERROR(VLOOKUP($A32,Filtro.12!$A$4:$AL$2956,32,FALSE),0) -> 0 | AI32: =IFERROR(VLOOKUP($A32,Filtro.12!$A$4:$AL$2956,33,FALSE),0) -> 0 | AJ32: =IFERROR(VLOOKUP($A32,Filtro.12!$A$4:$AL$2956,34,FALSE),0) -> 0 | AK32: =IFERROR(VLOOKUP($A32,Filtro.12!$A$4:$AL$2956,35,FALSE),0) -> 0 | AL32: 9,620 | AM32: =IFERROR(VLOOKUP($A32,Filtro.12!$A$4:$AL$2956,37,FALSE),0) -> 9,023,560
A33: 01014301 | B33: 0101314 | C33: Consulta Médica de Especialidad en Cirugía Cardiovascular | D33: =IFERROR(VLOOKUP($A33,Filtro.12!$A$4:$AL$2956,2,FALSE),0) -> 0 | E33: =IFERROR(VLOOKUP($A33,Filtro.12!$A$4:$AL$2956,3,FALSE),0) -> 0 | F33: =IFERROR(VLOOKUP($A33,Filtro.12!$A$4:$AL$2956,4,FALSE),0) -> 0 | G33: =IFERROR(VLOOKUP($A33,Filtro.12!$A$4:$AL$2956,5,FALSE),0) -> 0 | H33: =IFERROR(VLOOKUP($A33,Filtro.12!$A$4:$AL$2956,6,FALSE),0) -> 0 | AB33: =IFERROR(VLOOKUP($A33,Filtro.12!$A$4:$AL$2956,26,FALSE),0) -> 0 | AC33: =IFERROR(VLOOKUP($A33,Filtro.12!$A$4:$AL$2956,27,FALSE),0) -> 0 | AD33: =IFERROR(VLOOKUP($A33,Filtro.12!$A$4:$AL$2956,28,FALSE),0) -> 0 | AE33: =IFERROR(VLOOKUP($A33,Filtro.12!$A$4:$AL$2956,29,FALSE),0) -> 0 | AF33: =IFERROR(VLOOKUP($A33,Filtro.12!$A$4:$AL$2956,30,FALSE),0) -> 0 | AG33: =IFERROR(VLOOKUP($A33,Filtro.12!$A$4:$AL$2956,31,FALSE),0) -> 0 | AH33: =IFERROR(VLOOKUP($A33,Filtro.12!$A$4:$AL$2956,32,FALSE),0) -> 0 | AI33: =IFERROR(VLOOKUP($A33,Filtro.12!$A$4:$AL$2956,33,FALSE),0) -> 0 | AJ33: =IFERROR(VLOOKUP($A33,Filtro.12!$A$4:$AL$2956,34,FALSE),0) -> 0 | AK33: =IFERROR(VLOOKUP($A33,Filtro.12!$A$4:$AL$2956,35,FALSE),0) -> 0 | AL33: 9,620 | AM33: =IFERROR(VLOOKUP($A33,Filtro.12!$A$4:$AL$2956,37,FALSE),0) -> 0
A34: 01014302 | B34: 0101315 | C34: Consulta Médica de Especialidad en Cirugía de Tórax | D34: =IFERROR(VLOOKUP($A34,Filtro.12!$A$4:$AL$2956,2,FALSE),0) -> 1339 | E34: =IFERROR(VLOOKUP($A34,Filtro.12!$A$4:$AL$2956,3,FALSE),0) -> 1337 | F34: =IFERROR(VLOOKUP($A34,Filtro.12!$A$4:$AL$2956,4,FALSE),0) -> 1337 | G34: =IFERROR(VLOOKUP($A34,Filtro.12!$A$4:$AL$2956,5,FALSE),0) -> 0 | H34: =IFERROR(VLOOKUP($A34,Filtro.12!$A$4:$AL$2956,6,FALSE),0) -> 2 | AB34: =IFERROR(VLOOKUP($A34,Filtro.12!$A$4:$AL$2956,26,FALSE),0) -> 0 | AC34: =IFERROR(VLOOKUP($A34,Filtro.12!$A$4:$AL$2956,27,FALSE),0) -> 1339 | AD34: =IFERROR(VLOOKUP($A34,Filtro.12!$A$4:$AL$2956,28,FALSE),0) -> 0 | AE34: =IFERROR(VLOOKUP($A34,Filtro.12!$A$4:$AL$2956,29,FALSE),0) -> 0 | AF34: =IFERROR(VLOOKUP($A34,Filtro.12!$A$4:$AL$2956,30,FALSE),0) -> 108 | AG34: =IFERROR(VLOOKUP($A34,Filtro.12!$A$4:$AL$2956,31,FALSE),0) -> 0 | AH34: =IFERROR(VLOOKUP($A34,Filtro.12!$A$4:$AL$2956,32,FALSE),0) -> 0 | AI34: =IFERROR(VLOOKUP($A34,Filtro.12!$A$4:$AL$2956,33,FALSE),0) -> 0 | AJ34: =IFERROR(VLOOKUP($A34,Filtro.12!$A$4:$AL$2956,34,FALSE),0) -> 0 | AK34: =IFERROR(VLOOKUP($A34,Filtro.12!$A$4:$AL$2956,35,FALSE),0) -> 0 | AL34: 9,620 | AM34: =IFERROR(VLOOKUP($A34,Filtro.12!$A$4:$AL$2956,37,FALSE),0) -> 12,861,940
A35: 01014303 | B35: 0101316 | C35: Consulta Médica de Especialidad en Cirugía Plástica y Reparadora | D35: =IFERROR(VLOOKUP($A35,Filtro.12!$A$4:$AL$2956,2,FALSE),0) -> 340 | E35: =IFERROR(VLOOKUP($A35,Filtro.12!$A$4:$AL$2956,3,FALSE),0) -> 340 | F35: =IFERROR(VLOOKUP($A35,Filtro.12!$A$4:$AL$2956,4,FALSE),0) -> 340 | G35: =IFERROR(VLOOKUP($A35,Filtro.12!$A$4:$AL$2956,5,FALSE),0) -> 0 | H35: =IFERROR(VLOOKUP($A35,Filtro.12!$A$4:$AL$2956,6,FALSE),0) -> 0 | AB35: =IFERROR(VLOOKUP($A35,Filtro.12!$A$4:$AL$2956,26,FALSE),0) -> 0 | AC35: =IFERROR(VLOOKUP($A35,Filtro.12!$A$4:$AL$2956,27,FALSE),0) -> 340 | AD35: =IFERROR(VLOOKUP($A35,Filtro.12!$A$4:$AL$2956,28,FALSE),0) -> 0 | AE35: =IFERROR(VLOOKUP($A35,Filtro.12!$A$4:$AL$2956,29,FALSE),0) -> 0 | AF35: =IFERROR(VLOOKUP($A35,Filtro.12!$A$4:$AL$2956,30,FALSE),0) -> 0 | AG35: =IFERROR(VLOOKUP($A35,Filtro.12!$A$4:$AL$2956,31,FALSE),0) -> 0 | AH35: =IFERROR(VLOOKUP($A35,Filtro.12!$A$4:$AL$2956,32,FALSE),0) -> 0 | AI35: =IFERROR(VLOOKUP($A35,Filtro.12!$A$4:$AL$2956,33,FALSE),0) -> 0 | AJ35: =IFERROR(VLOOKUP($A35,Filtro.12!$A$4:$AL$2956,34,FALSE),0) -> 0 | AK35: =IFERROR(VLOOKUP($A35,Filtro.12!$A$4:$AL$2956,35,FALSE),0) -> 0 | AL35: 9,620 | AM35: =IFERROR(VLOOKUP($A35,Filtro.12!$A$4:$AL$2956,37,FALSE),0) -> 3,270,800
A36: 01014304 | B36: 0101317 | C36: Consulta Médica de Especialidad en Cirugía Pediátrica | D36: =IFERROR(VLOOKUP($A36,Filtro.12!$A$4:$AL$2956,2,FALSE),0) -> 10532 | E36: =IFERROR(VLOOKUP($A36,Filtro.12!$A$4:$AL$2956,3,FALSE),0) -> 10510 | F36: =IFERROR(VLOOKUP($A36,Filtro.12!$A$4:$AL$2956,4,FALSE),0) -> 10510 | G36: =IFERROR(VLOOKUP($A36,Filtro.12!$A$4:$AL$2956,5,FALSE),0) -> 0 | H36: =IFERROR(VLOOKUP($A36,Filtro.12!$A$4:$AL$2956,6,FALSE),0) -> 22 | AB36: =IFERROR(VLOOKUP($A36,Filtro.12!$A$4:$AL$2956,26,FALSE),0) -> 59 | AC36: =IFERROR(VLOOKUP($A36,Filtro.12!$A$4:$AL$2956,27,FALSE),0) -> 10473 | AD36: =IFERROR(VLOOKUP($A36,Filtro.12!$A$4:$AL$2956,28,FALSE),0) -> 0 | AE36: =IFERROR(VLOOKUP($A36,Filtro.12!$A$4:$AL$2956,29,FALSE),0) -> 0 | AF36: =IFERROR(VLOOKUP($A36,Filtro.12!$A$4:$AL$2956,30,FALSE),0) -> 481 | AG36: =IFERROR(VLOOKUP($A36,Filtro.12!$A$4:$AL$2956,31,FALSE),0) -> 0 | AH36: =IFERROR(VLOOKUP($A36,Filtro.12!$A$4:$AL$2956,32,FALSE),0) -> 0 | AI36: =IFERROR(VLOOKUP($A36,Filtro.12!$A$4:$AL$2956,33,FALSE),0) -> 0 | AJ36: =IFERROR(VLOOKUP($A36,Filtro.12!$A$4:$AL$2956,34,FALSE),0) -> 0 | AK36: =IFERROR(VLOOKUP($A36,Filtro.12!$A$4:$AL$2956,35,FALSE),0) -> 0 | AL36: 9,620 | AM36: =IFERROR(VLOOKUP($A36,Filtro.12!$A$4:$AL$2956,37,FALSE),0) -> 101,106,200
A37: 01014305 | B37: 0101318 | C37: Consulta Médica de Especialidad en Cirugía Vascular Periférica | D37: =IFERROR(VLOOKUP($A37,Filtro.12!$A$4:$AL$2956,2,FALSE),0) -> 2608 | E37: =IFERROR(VLOOKUP($A37,Filtro.12!$A$4:$AL$2956,3,FALSE),0) -> 2607 | F37: =IFERROR(VLOOKUP($A37,Filtro.12!$A$4:$AL$2956,4,FALSE),0) -> 2607 | G37: =IFERROR(VLOOKUP($A37,Filtro.12!$A$4:$AL$2956,5,FALSE),0) -> 0 | H37: =IFERROR(VLOOKUP($A37,Filtro.12!$A$4:$AL$2956,6,FALSE),0) -> 1 | AB37: =IFERROR(VLOOKUP($A37,Filtro.12!$A$4:$AL$2956,26,FALSE),0) -> 0 | AC37: =IFERROR(VLOOKUP($A37,Filtro.12!$A$4:$AL$2956,27,FALSE),0) -> 2608 | AD37: =IFERROR(VLOOKUP($A37,Filtro.12!$A$4:$AL$2956,28,FALSE),0) -> 0 | AE37: =IFERROR(VLOOKUP($A37,Filtro.12!$A$4:$AL$2956,29,FALSE),0) -> 10 | AF37: =IFERROR(VLOOKUP($A37,Filtro.12!$A$4:$AL$2956,30,FALSE),0) -> 52 | AG37: =IFERROR(VLOOKUP($A37,Filtro.12!$A$4:$AL$2956,31,FALSE),0) -> 0 | AH37: =IFERROR(VLOOKUP($A37,Filtro.12!$A$4:$AL$2956,32,FALSE),0) -> 0 | AI37: =IFERROR(VLOOKUP($A37,Filtro.12!$A$4:$AL$2956,33,FALSE),0) -> 0 | AJ37: =IFERROR(VLOOKUP($A37,Filtro.12!$A$4:$AL$2956,34,FALSE),0) -> 0 | AK37: =IFERROR(VLOOKUP($A37,Filtro.12!$A$4:$AL$2956,35,FALSE),0) -> 0 | AL37: 9,620 | AM37: =IFERROR(VLOOKUP($A37,Filtro.12!$A$4:$AL$2956,37,FALSE),0) -> 25,079,340
A38: 01014306 | B38: 0101319 | C38: Consulta Médica de Especialidad en Coloproctología | D38: =IFERROR(VLOOKUP($A38,Filtro.12!$A$4:$AL$2956,2,FALSE),0) -> 2369 | E38: =IFERROR(VLOOKUP($A38,Filtro.12!$A$4:$AL$2956,3,FALSE),0) -> 2369 | F38: =IFERROR(VLOOKUP($A38,Filtro.12!$A$4:$AL$2956,4,FALSE),0) -> 2369 | G38: =IFERROR(VLOOKUP($A38,Filtro.12!$A$4:$AL$2956,5,FALSE),0) -> 0 | H38: =IFERROR(VLOOKUP($A38,Filtro.12!$A$4:$AL$2956,6,FALSE),0) -> 0 | AB38: =IFERROR(VLOOKUP($A38,Filtro.12!$A$4:$AL$2956,26,FALSE),0) -> 0 | AC38: =IFERROR(VLOOKUP($A38,Filtro.12!$A$4:$AL$2956,27,FALSE),0) -> 2369 | AD38: =IFERROR(VLOOKUP($A38,Filtro.12!$A$4:$AL$2956,28,FALSE),0) -> 0 | AE38: =IFERROR(VLOOKUP($A38,Filtro.12!$A$4:$AL$2956,29,FALSE),0) -> 0 | AF38: =IFERROR(VLOOKUP($A38,Filtro.12!$A$4:$AL$2956,30,FALSE),0) -> 155 | AG38: =IFERROR(VLOOKUP($A38,Filtro.12!$A$4:$AL$2956,31,FALSE),0) -> 0 | AH38: =IFERROR(VLOOKUP($A38,Filtro.12!$A$4:$AL$2956,32,FALSE),0) -> 0 | AI38: =IFERROR(VLOOKUP($A38,Filtro.12!$A$4:$AL$2956,33,FALSE),0) -> 0 | AJ38: =IFERROR(VLOOKUP($A38,Filtro.12!$A$4:$AL$2956,34,FALSE),0) -> 0 | AK38: =IFERROR(VLOOKUP($A38,Filtro.12!$A$4:$AL$2956,35,FALSE),0) -> 0 | AL38: 9,620 | AM38: =IFERROR(VLOOKUP($A38,Filtro.12!$A$4:$AL$2956,37,FALSE),0) -> 22,789,780
A39: 01014307 | B39: 0101320 | C39: Consulta Médica de Especialidad en Diabetología | D39: =IFERROR(VLOOKUP($A39,Filtro.12!$A$4:$AL$2956,2,FALSE),0) -> 866 | E39: =IFERROR(VLOOKUP($A39,Filtro.12!$A$4:$AL$2956,3,FALSE),0) -> 863 | F39: =IFERROR(VLOOKUP($A39,Filtro.12!$A$4:$AL$2956,4,FALSE),0) -> 863 | G39: =IFERROR(VLOOKUP($A39,Filtro.12!$A$4:$AL$2956,5,FALSE),0) -> 0 | H39: =IFERROR(VLOOKUP($A39,Filtro.12!$A$4:$AL$2956,6,FALSE),0) -> 3 | AB39: =IFERROR(VLOOKUP($A39,Filtro.12!$A$4:$AL$2956,26,FALSE),0) -> 0 | AC39: =IFERROR(VLOOKUP($A39,Filtro.12!$A$4:$AL$2956,27,FALSE),0) -> 866 | AD39: =IFERROR(VLOOKUP($A39,Filtro.12!$A$4:$AL$2956,28,FALSE),0) -> 0 | AE39: =IFERROR(VLOOKUP($A39,Filtro.12!$A$4:$AL$2956,29,FALSE),0) -> 0 | AF39: =IFERROR(VLOOKUP($A39,Filtro.12!$A$4:$AL$2956,30,FALSE),0) -> 166 | AG39: =IFERROR(VLOOKUP($A39,Filtro.12!$A$4:$AL$2956,31,FALSE),0) -> 0 | AH39: =IFERROR(VLOOKUP($A39,Filtro.12!$A$4:$AL$2956,32,FALSE),0) -> 0 | AI39: =IFERROR(VLOOKUP($A39,Filtro.12!$A$4:$AL$2956,33,FALSE),0) -> 0 | AJ39: =IFERROR(VLOOKUP($A39,Filtro.12!$A$4:$AL$2956,34,FALSE),0) -> 0 | AK39: =IFERROR(VLOOKUP($A39,Filtro.12!$A$4:$AL$2956,35,FALSE),0) -> 0 | AL39: 9,620 | AM39: =IFERROR(VLOOKUP($A39,Filtro.12!$A$4:$AL$2956,37,FALSE),0) -> 8,302,060
A40: 01014308 | B40: 0101321 | C40: Consulta Médica de Especialidad en Enfermedades Respiratorias Adulto | D40: =IFERROR(VLOOKUP($A40,Filtro.12!$A$4:$AL$2956,2,FALSE),0) -> 5677 | E40: =IFERROR(VLOOKUP($A40,Filtro.12!$A$4:$AL$2956,3,FALSE),0) -> 5676 | F40: =IFERROR(VLOOKUP($A40,Filtro.12!$A$4:$AL$2956,4,FALSE),0) -> 5676 | G40: =IFERROR(VLOOKUP($A40,Filtro.12!$A$4:$AL$2956,5,FALSE),0) -> 0 | H40: =IFERROR(VLOOKUP($A40,Filtro.12!$A$4:$AL$2956,6,FALSE),0) -> 1 | AB40: =IFERROR(VLOOKUP($A40,Filtro.12!$A$4:$AL$2956,26,FALSE),0) -> 0 | AC40: =IFERROR(VLOOKUP($A40,Filtro.12!$A$4:$AL$2956,27,FALSE),0) -> 5677 | AD40: =IFERROR(VLOOKUP($A40,Filtro.12!$A$4:$AL$2956,28,FALSE),0) -> 0 | AE40: =IFERROR(VLOOKUP($A40,Filtro.12!$A$4:$AL$2956,29,FALSE),0) -> 309 | AF40: =IFERROR(VLOOKUP($A40,Filtro.12!$A$4:$AL$2956,30,FALSE),0) -> 0 | AG40: =IFERROR(VLOOKUP($A40,Filtro.12!$A$4:$AL$2956,31,FALSE),0) -> 0 | AH40: =IFERROR(VLOOKUP($A40,Filtro.12!$A$4:$AL$2956,32,FALSE),0) -> 36 | AI40: =IFERROR(VLOOKUP($A40,Filtro.12!$A$4:$AL$2956,33,FALSE),0) -> 0 | AJ40: =IFERROR(VLOOKUP($A40,Filtro.12!$A$4:$AL$2956,34,FALSE),0) -> 0 | AK40: =IFERROR(VLOOKUP($A40,Filtro.12!$A$4:$AL$2956,35,FALSE),0) -> 0 | AL40: 9,620 | AM40: =IFERROR(VLOOKUP($A40,Filtro.12!$A$4:$AL$2956,37,FALSE),0) -> 54,603,120
A41: 01014309 | B41: 0101322 | C41: Consulta Médica de Especialidad en Enfermedades Respiratorias Pediátricas | D41: =IFERROR(VLOOKUP($A41,Filtro.12!$A$4:$AL$2956,2,FALSE),0) -> 5880 | E41: =IFERROR(VLOOKUP($A41,Filtro.12!$A$4:$AL$2956,3,FALSE),0) -> 5873 | F41: =IFERROR(VLOOKUP($A41,Filtro.12!$A$4:$AL$2956,4,FALSE),0) -> 5873 | G41: =IFERROR(VLOOKUP($A41,Filtro.12!$A$4:$AL$2956,5,FALSE),0) -> 0 | H41: =IFERROR(VLOOKUP($A41,Filtro.12!$A$4:$AL$2956,6,FALSE),0) -> 7 | AB41: =IFERROR(VLOOKUP($A41,Filtro.12!$A$4:$AL$2956,26,FALSE),0) -> 0 | AC41: =IFERROR(VLOOKUP($A41,Filtro.12!$A$4:$AL$2956,27,FALSE),0) -> 5880 | AD41: =IFERROR(VLOOKUP($A41,Filtro.12!$A$4:$AL$2956,28,FALSE),0) -> 0 | AE41: =IFERROR(VLOOKUP($A41,Filtro.12!$A$4:$AL$2956,29,FALSE),0) -> 0 | AF41: =IFERROR(VLOOKUP($A41,Filtro.12!$A$4:$AL$2956,30,FALSE),0) -> 0 | AG41: =IFERROR(VLOOKUP($A41,Filtro.12!$A$4:$AL$2956,31,FALSE),0) -> 0 | AH41: =IFERROR(VLOOKUP($A41,Filtro.12!$A$4:$AL$2956,32,FALSE),0) -> 0 | AI41: =IFERROR(VLOOKUP($A41,Filtro.12!$A$4:$AL$2956,33,FALSE),0) -> 0 | AJ41: =IFERROR(VLOOKUP($A41,Filtro.12!$A$4:$AL$2956,34,FALSE),0) -> 0 | AK41: =IFERROR(VLOOKUP($A41,Filtro.12!$A$4:$AL$2956,35,FALSE),0) -> 0 | AL41: 9,620 | AM41: =IFERROR(VLOOKUP($A41,Filtro.12!$A$4:$AL$2956,37,FALSE),0) -> 56,498,260
A42: 01014310 | B42: 0101323 | C42: Consulta Médica de Especialidad en Gastroenterología Adulto | D42: =IFERROR(VLOOKUP($A42,Filtro.12!$A$4:$AL$2956,2,FALSE),0) -> 5683 | E42: =IFERROR(VLOOKUP($A42,Filtro.12!$A$4:$AL$2956,3,FALSE),0) -> 5678 | F42: =IFERROR(VLOOKUP($A42,Filtro.12!$A$4:$AL$2956,4,FALSE),0) -> 5678 | G42: =IFERROR(VLOOKUP($A42,Filtro.12!$A$4:$AL$2956,5,FALSE),0) -> 0 | H42: =IFERROR(VLOOKUP($A42,Filtro.12!$A$4:$AL$2956,6,FALSE),0) -> 5 | AB42: =IFERROR(VLOOKUP($A42,Filtro.12!$A$4:$AL$2956,26,FALSE),0) -> 0 | AC42: =IFERROR(VLOOKUP($A42,Filtro.12!$A$4:$AL$2956,27,FALSE),0) -> 5683 | AD42: =IFERROR(VLOOKUP($A42,Filtro.12!$A$4:$AL$2956,28,FALSE),0) -> 0 | AE42: =IFERROR(VLOOKUP($A42,Filtro.12!$A$4:$AL$2956,29,FALSE),0) -> 27 | AF42: =IFERROR(VLOOKUP($A42,Filtro.12!$A$4:$AL$2956,30,FALSE),0) -> 402 | AG42: =IFERROR(VLOOKUP($A42,Filtro.12!$A$4:$AL$2956,31,FALSE),0) -> 0 | AH42: =IFERROR(VLOOKUP($A42,Filtro.12!$A$4:$AL$2956,32,FALSE),0) -> 0 | AI42: =IFERROR(VLOOKUP($A42,Filtro.12!$A$4:$AL$2956,33,FALSE),0) -> 0 | AJ42: =IFERROR(VLOOKUP($A42,Filtro.12!$A$4:$AL$2956,34,FALSE),0) -> 0 | AK42: =IFERROR(VLOOKUP($A42,Filtro.12!$A$4:$AL$2956,35,FALSE),0) -> 0 | AL42: 9,620 | AM42: =IFERROR(VLOOKUP($A42,Filtro.12!$A$4:$AL$2956,37,FALSE),0) -> 54,622,360
A43: 01014311 | B43: 0101324 | C43: Consulta Médica de Especialidad en Gastroenterología Pediátrico | D43: =IFERROR(VLOOKUP($A43,Filtro.12!$A$4:$AL$2956,2,FALSE),0) -> 3317 | E43: =IFERROR(VLOOKUP($A43,Filtro.12!$A$4:$AL$2956,3,FALSE),0) -> 3314 | F43: =IFERROR(VLOOKUP($A43,Filtro.12!$A$4:$AL$2956,4,FALSE),0) -> 3314 | G43: =IFERROR(VLOOKUP($A43,Filtro.12!$A$4:$AL$2956,5,FALSE),0) -> 0 | H43: =IFERROR(VLOOKUP($A43,Filtro.12!$A$4:$AL$2956,6,FALSE),0) -> 3 | AB43: =IFERROR(VLOOKUP($A43,Filtro.12!$A$4:$AL$2956,26,FALSE),0) -> 0 | AC43: =IFERROR(VLOOKUP($A43,Filtro.12!$A$4:$AL$2956,27,FALSE),0) -> 3317 | AD43: =IFERROR(VLOOKUP($A43,Filtro.12!$A$4:$AL$2956,28,FALSE),0) -> 0 | AE43: =IFERROR(VLOOKUP($A43,Filtro.12!$A$4:$AL$2956,29,FALSE),0) -> 0 | AF43: =IFERROR(VLOOKUP($A43,Filtro.12!$A$4:$AL$2956,30,FALSE),0) -> 0 | AG43: =IFERROR(VLOOKUP($A43,Filtro.12!$A$4:$AL$2956,31,FALSE),0) -> 0 | AH43: =IFERROR(VLOOKUP($A43,Filtro.12!$A$4:$AL$2956,32,FALSE),0) -> 0 | AI43: =IFERROR(VLOOKUP($A43,Filtro.12!$A$4:$AL$2956,33,FALSE),0) -> 0 | AJ43: =IFERROR(VLOOKUP($A43,Filtro.12!$A$4:$AL$2956,34,FALSE),0) -> 0 | AK43: =IFERROR(VLOOKUP($A43,Filtro.12!$A$4:$AL$2956,35,FALSE),0) -> 0 | AL43: 9,620 | AM43: =IFERROR(VLOOKUP($A43,Filtro.12!$A$4:$AL$2956,37,FALSE),0) -> 31,880,680
A44: 01014312 | B44: 0101325 | C44: Consulta Médica de Especialidad en Genética Clínica | D44: =IFERROR(VLOOKUP($A44,Filtro.12!$A$4:$AL$2956,2,FALSE),0) -> 205 | E44: =IFERROR(VLOOKUP($A44,Filtro.12!$A$4:$AL$2956,3,FALSE),0) -> 205 | F44: =IFERROR(VLOOKUP($A44,Filtro.12!$A$4:$AL$2956,4,FALSE),0) -> 205 | G44: =IFERROR(VLOOKUP($A44,Filtro.12!$A$4:$AL$2956,5,FALSE),0) -> 0 | H44: =IFERROR(VLOOKUP($A44,Filtro.12!$A$4:$AL$2956,6,FALSE),0) -> 0 | AB44: =IFERROR(VLOOKUP($A44,Filtro.12!$A$4:$AL$2956,26,FALSE),0) -> 0 | AC44: =IFERROR(VLOOKUP($A44,Filtro.12!$A$4:$AL$2956,27,FALSE),0) -> 205 | AD44: =IFERROR(VLOOKUP($A44,Filtro.12!$A$4:$AL$2956,28,FALSE),0) -> 0 | AE44: =IFERROR(VLOOKUP($A44,Filtro.12!$A$4:$AL$2956,29,FALSE),0) -> 0 | AF44: =IFERROR(VLOOKUP($A44,Filtro.12!$A$4:$AL$2956,30,FALSE),0) -> 0 | AG44: =IFERROR(VLOOKUP($A44,Filtro.12!$A$4:$AL$2956,31,FALSE),0) -> 0 | AH44: =IFERROR(VLOOKUP($A44,Filtro.12!$A$4:$AL$2956,32,FALSE),0) -> 0 | AI44: =IFERROR(VLOOKUP($A44,Filtro.12!$A$4:$AL$2956,33,FALSE),0) -> 0 | AJ44: =IFERROR(VLOOKUP($A44,Filtro.12!$A$4:$AL$2956,34,FALSE),0) -> 0 | AK44: =IFERROR(VLOOKUP($A44,Filtro.12!$A$4:$AL$2956,35,FALSE),0) -> 0 | AL44: 9,620 | AM44: =IFERROR(VLOOKUP($A44,Filtro.12!$A$4:$AL$2956,37,FALSE),0) -> 1,972,100
A45: 01014313 | B45: 0101326 | C45: Consulta Médica de Especialidad en Nefrología Adulto | D45: =IFERROR(VLOOKUP($A45,Filtro.12!$A$4:$AL$2956,2,FALSE),0) -> 9414 | E45: =IFERROR(VLOOKUP($A45,Filtro.12!$A$4:$AL$2956,3,FALSE),0) -> 9406 | F45: =IFERROR(VLOOKUP($A45,Filtro.12!$A$4:$AL$2956,4,FALSE),0) -> 9406 | G45: =IFERROR(VLOOKUP($A45,Filtro.12!$A$4:$AL$2956,5,FALSE),0) -> 0 | H45: =IFERROR(VLOOKUP($A45,Filtro.12!$A$4:$AL$2956,6,FALSE),0) -> 8 | AB45: =IFERROR(VLOOKUP($A45,Filtro.12!$A$4:$AL$2956,26,FALSE),0) -> 95 | AC45: =IFERROR(VLOOKUP($A45,Filtro.12!$A$4:$AL$2956,27,FALSE),0) -> 9319 | AD45: =IFERROR(VLOOKUP($A45,Filtro.12!$A$4:$AL$2956,28,FALSE),0) -> 0 | AE45: =IFERROR(VLOOKUP($A45,Filtro.12!$A$4:$AL$2956,29,FALSE),0) -> 0 | AF45: =IFERROR(VLOOKUP($A45,Filtro.12!$A$4:$AL$2956,30,FALSE),0) -> 0 | AG45: =IFERROR(VLOOKUP($A45,Filtro.12!$A$4:$AL$2956,31,FALSE),0) -> 0 | AH45: =IFERROR(VLOOKUP($A45,Filtro.12!$A$4:$AL$2956,32,FALSE),0) -> 0 | AI45: =IFERROR(VLOOKUP($A45,Filtro.12!$A$4:$AL$2956,33,FALSE),0) -> 0 | AJ45: =IFERROR(VLOOKUP($A45,Filtro.12!$A$4:$AL$2956,34,FALSE),0) -> 0 | AK45: =IFERROR(VLOOKUP($A45,Filtro.12!$A$4:$AL$2956,35,FALSE),0) -> 0 | AL45: 9,620 | AM45: =IFERROR(VLOOKUP($A45,Filtro.12!$A$4:$AL$2956,37,FALSE),0) -> 90,485,720
A46: 01014314 | B46: 0101327 | C46: Consulta Médica de Especialidad en Nefrología Pediátrico | D46: =IFERROR(VLOOKUP($A46,Filtro.12!$A$4:$AL$2956,2,FALSE),0) -> 1515 | E46: =IFERROR(VLOOKUP($A46,Filtro.12!$A$4:$AL$2956,3,FALSE),0) -> 1514 | F46: =IFERROR(VLOOKUP($A46,Filtro.12!$A$4:$AL$2956,4,FALSE),0) -> 1514 | G46: =IFERROR(VLOOKUP($A46,Filtro.12!$A$4:$AL$2956,5,FALSE),0) -> 0 | H46: =IFERROR(VLOOKUP($A46,Filtro.12!$A$4:$AL$2956,6,FALSE),0) -> 1 | AB46: =IFERROR(VLOOKUP($A46,Filtro.12!$A$4:$AL$2956,26,FALSE),0) -> 0 | AC46: =IFERROR(VLOOKUP($A46,Filtro.12!$A$4:$AL$2956,27,FALSE),0) -> 1515 | AD46: =IFERROR(VLOOKUP($A46,Filtro.12!$A$4:$AL$2956,28,FALSE),0) -> 0 | AE46: =IFERROR(VLOOKUP($A46,Filtro.12!$A$4:$AL$2956,29,FALSE),0) -> 0 | AF46: =IFERROR(VLOOKUP($A46,Filtro.12!$A$4:$AL$2956,30,FALSE),0) -> 0 | AG46: =IFERROR(VLOOKUP($A46,Filtro.12!$A$4:$AL$2956,31,FALSE),0) -> 0 | AH46: =IFERROR(VLOOKUP($A46,Filtro.12!$A$4:$AL$2956,32,FALSE),0) -> 0 | AI46: =IFERROR(VLOOKUP($A46,Filtro.12!$A$4:$AL$2956,33,FALSE),0) -> 0 | AJ46: =IFERROR(VLOOKUP($A46,Filtro.12!$A$4:$AL$2956,34,FALSE),0) -> 0 | AK46: =IFERROR(VLOOKUP($A46,Filtro.12!$A$4:$AL$2956,35,FALSE),0) -> 0 | AL46: 9,620 | AM46: =IFERROR(VLOOKUP($A46,Filtro.12!$A$4:$AL$2956,37,FALSE),0) -> 14,564,680
A47: 01014315 | B47: 0101328 | C47: Consulta Médica de Especialidad en Neonatología | D47: =IFERROR(VLOOKUP($A47,Filtro.12!$A$4:$AL$2956,2,FALSE),0) -> 2124 | E47: =IFERROR(VLOOKUP($A47,Filtro.12!$A$4:$AL$2956,3,FALSE),0) -> 2100 | F47: =IFERROR(VLOOKUP($A47,Filtro.12!$A$4:$AL$2956,4,FALSE),0) -> 2100 | G47: =IFERROR(VLOOKUP($A47,Filtro.12!$A$4:$AL$2956,5,FALSE),0) -> 0 | H47: =IFERROR(VLOOKUP($A47,Filtro.12!$A$4:$AL$2956,6,FALSE),0) -> 24 | AB47: =IFERROR(VLOOKUP($A47,Filtro.12!$A$4:$AL$2956,26,FALSE),0) -> 0 | AC47: =IFERROR(VLOOKUP($A47,Filtro.12!$A$4:$AL$2956,27,FALSE),0) -> 2124 | AD47: =IFERROR(VLOOKUP($A47,Filtro.12!$A$4:$AL$2956,28,FALSE),0) -> 0 | AE47: =IFERROR(VLOOKUP($A47,Filtro.12!$A$4:$AL$2956,29,FALSE),0) -> 0 | AF47: =IFERROR(VLOOKUP($A47,Filtro.12!$A$4:$AL$2956,30,FALSE),0) -> 0 | AG47: =IFERROR(VLOOKUP($A47,Filtro.12!$A$4:$AL$2956,31,FALSE),0) -> 0 | AH47: =IFERROR(VLOOKUP($A47,Filtro.12!$A$4:$AL$2956,32,FALSE),0) -> 0 | AI47: =IFERROR(VLOOKUP($A47,Filtro.12!$A$4:$AL$2956,33,FALSE),0) -> 0 | AJ47: =IFERROR(VLOOKUP($A47,Filtro.12!$A$4:$AL$2956,34,FALSE),0) -> 0 | AK47: =IFERROR(VLOOKUP($A47,Filtro.12!$A$4:$AL$2956,35,FALSE),0) -> 0 | AL47: 9,620 | AM47: =IFERROR(VLOOKUP($A47,Filtro.12!$A$4:$AL$2956,37,FALSE),0) -> 20,202,000
A48: 01014316 | B48: 0101329 | C48: Consulta Médica de Especialidad en Anestesiología | D48: =IFERROR(VLOOKUP($A48,Filtro.12!$A$4:$AL$2956,2,FALSE),0) -> 4592 | E48: =IFERROR(VLOOKUP($A48,Filtro.12!$A$4:$AL$2956,3,FALSE),0) -> 4592 | F48: =IFERROR(VLOOKUP($A48,Filtro.12!$A$4:$AL$2956,4,FALSE),0) -> 4592 | G48: =IFERROR(VLOOKUP($A48,Filtro.12!$A$4:$AL$2956,5,FALSE),0) -> 0 | H48: =IFERROR(VLOOKUP($A48,Filtro.12!$A$4:$AL$2956,6,FALSE),0) -> 0 | AB48: =IFERROR(VLOOKUP($A48,Filtro.12!$A$4:$AL$2956,26,FALSE),0) -> 127 | AC48: =IFERROR(VLOOKUP($A48,Filtro.12!$A$4:$AL$2956,27,FALSE),0) -> 4465 | AD48: =IFERROR(VLOOKUP($A48,Filtro.12!$A$4:$AL$2956,28,FALSE),0) -> 0 | AE48: =IFERROR(VLOOKUP($A48,Filtro.12!$A$4:$AL$2956,29,FALSE),0) -> 0 | AF48: =IFERROR(VLOOKUP($A48,Filtro.12!$A$4:$AL$2956,30,FALSE),0) -> 0 | AG48: =IFERROR(VLOOKUP($A48,Filtro.12!$A$4:$AL$2956,31,FALSE),0) -> 0 | AH48: =IFERROR(VLOOKUP($A48,Filtro.12!$A$4:$AL$2956,32,FALSE),0) -> 0 | AI48: =IFERROR(VLOOKUP($A48,Filtro.12!$A$4:$AL$2956,33,FALSE),0) -> 0 | AJ48: =IFERROR(VLOOKUP($A48,Filtro.12!$A$4:$AL$2956,34,FALSE),0) -> 0 | AK48: =IFERROR(VLOOKUP($A48,Filtro.12!$A$4:$AL$2956,35,FALSE),0) -> 0 | AL48: 9,620 | AM48: =IFERROR(VLOOKUP($A48,Filtro.12!$A$4:$AL$2956,37,FALSE),0) -> 44,175,040
A49: 01014317 | B49: 0101331 | C49: Consulta Médica de Especialidad en Radioterapia Oncológica | D49: =IFERROR(VLOOKUP($A49,Filtro.12!$A$4:$AL$2956,2,FALSE),0) -> 0 | E49: =IFERROR(VLOOKUP($A49,Filtro.12!$A$4:$AL$2956,3,FALSE),0) -> 0 | F49: =IFERROR(VLOOKUP($A49,Filtro.12!$A$4:$AL$2956,4,FALSE),0) -> 0 | G49: =IFERROR(VLOOKUP($A49,Filtro.12!$A$4:$AL$2956,5,FALSE),0) -> 0 | H49: =IFERROR(VLOOKUP($A49,Filtro.12!$A$4:$AL$2956,6,FALSE),0) -> 0 | AB49: =IFERROR(VLOOKUP($A49,Filtro.12!$A$4:$AL$2956,26,FALSE),0) -> 0 | AC49: =IFERROR(VLOOKUP($A49,Filtro.12!$A$4:$AL$2956,27,FALSE),0) -> 0 | AD49: =IFERROR(VLOOKUP($A49,Filtro.12!$A$4:$AL$2956,28,FALSE),0) -> 0 | AE49: =IFERROR(VLOOKUP($A49,Filtro.12!$A$4:$AL$2956,29,FALSE),0) -> 0 | AF49: =IFERROR(VLOOKUP($A49,Filtro.12!$A$4:$AL$2956,30,FALSE),0) -> 0 | AG49: =IFERROR(VLOOKUP($A49,Filtro.12!$A$4:$AL$2956,31,FALSE),0) -> 0 | AH49: =IFERROR(VLOOKUP($A49,Filtro.12!$A$4:$AL$2956,32,FALSE),0) -> 0 | AI49: =IFERROR(VLOOKUP($A49,Filtro.12!$A$4:$AL$2956,33,FALSE),0) -> 0 | AJ49: =IFERROR(VLOOKUP($A49,Filtro.12!$A$4:$AL$2956,34,FALSE),0) -> 0 | AK49: =IFERROR(VLOOKUP($A49,Filtro.12!$A$4:$AL$2956,35,FALSE),0) -> 0 | AL49: 9,620 | AM49: =IFERROR(VLOOKUP($A49,Filtro.12!$A$4:$AL$2956,37,FALSE),0) -> 0
A50: 01014318 | B50: 0101332 | C50: Consulta Médica de Especialidad en Ginecología Pediátrica y de la Adolescencia | D50: =IFERROR(VLOOKUP($A50,Filtro.12!$A$4:$AL$2956,2,FALSE),0) -> 944 | E50: =IFERROR(VLOOKUP($A50,Filtro.12!$A$4:$AL$2956,3,FALSE),0) -> 942 | F50: =IFERROR(VLOOKUP($A50,Filtro.12!$A$4:$AL$2956,4,FALSE),0) -> 942 | G50: =IFERROR(VLOOKUP($A50,Filtro.12!$A$4:$AL$2956,5,FALSE),0) -> 0 | H50: =IFERROR(VLOOKUP($A50,Filtro.12!$A$4:$AL$2956,6,FALSE),0) -> 2 | AB50: =IFERROR(VLOOKUP($A50,Filtro.12!$A$4:$AL$2956,26,FALSE),0) -> 0 | AC50: =IFERROR(VLOOKUP($A50,Filtro.12!$A$4:$AL$2956,27,FALSE),0) -> 944 | AD50: =IFERROR(VLOOKUP($A50,Filtro.12!$A$4:$AL$2956,28,FALSE),0) -> 0 | AE50: =IFERROR(VLOOKUP($A50,Filtro.12!$A$4:$AL$2956,29,FALSE),0) -> 0 | AF50: =IFERROR(VLOOKUP($A50,Filtro.12!$A$4:$AL$2956,30,FALSE),0) -> 0 | AG50: =IFERROR(VLOOKUP($A50,Filtro.12!$A$4:$AL$2956,31,FALSE),0) -> 0 | AH50: =IFERROR(VLOOKUP($A50,Filtro.12!$A$4:$AL$2956,32,FALSE),0) -> 0 | AI50: =IFERROR(VLOOKUP($A50,Filtro.12!$A$4:$AL$2956,33,FALSE),0) -> 0 | AJ50: =IFERROR(VLOOKUP($A50,Filtro.12!$A$4:$AL$2956,34,FALSE),0) -> 0 | AK50: =IFERROR(VLOOKUP($A50,Filtro.12!$A$4:$AL$2956,35,FALSE),0) -> 0 | AL50: 9,620 | AM50: =IFERROR(VLOOKUP($A50,Filtro.12!$A$4:$AL$2956,37,FALSE),0) -> 9,062,040
A51: 01014319 | B51: 0101334 | C51: Consulta Médica de Especialidad en Medicina Nuclear | D51: =IFERROR(VLOOKUP($A51,Filtro.12!$A$4:$AL$2956,2,FALSE),0) -> 0 | E51: =IFERROR(VLOOKUP($A51,Filtro.12!$A$4:$AL$2956,3,FALSE),0) -> 0 | F51: =IFERROR(VLOOKUP($A51,Filtro.12!$A$4:$AL$2956,4,FALSE),0) -> 0 | G51: =IFERROR(VLOOKUP($A51,Filtro.12!$A$4:$AL$2956,5,FALSE),0) -> 0 | H51: =IFERROR(VLOOKUP($A51,Filtro.12!$A$4:$AL$2956,6,FALSE),0) -> 0 | AB51: =IFERROR(VLOOKUP($A51,Filtro.12!$A$4:$AL$2956,26,FALSE),0) -> 0 | AC51: =IFERROR(VLOOKUP($A51,Filtro.12!$A$4:$AL$2956,27,FALSE),0) -> 0 | AD51: =IFERROR(VLOOKUP($A51,Filtro.12!$A$4:$AL$2956,28,FALSE),0) -> 0 | AE51: =IFERROR(VLOOKUP($A51,Filtro.12!$A$4:$AL$2956,29,FALSE),0) -> 0 | AF51: =IFERROR(VLOOKUP($A51,Filtro.12!$A$4:$AL$2956,30,FALSE),0) -> 0 | AG51: =IFERROR(VLOOKUP($A51,Filtro.12!$A$4:$AL$2956,31,FALSE),0) -> 0 | AH51: =IFERROR(VLOOKUP($A51,Filtro.12!$A$4:$AL$2956,32,FALSE),0) -> 0 | AI51: =IFERROR(VLOOKUP($A51,Filtro.12!$A$4:$AL$2956,33,FALSE),0) -> 0 | AJ51: =IFERROR(VLOOKUP($A51,Filtro.12!$A$4:$AL$2956,34,FALSE),0) -> 0 | AK51: =IFERROR(VLOOKUP($A51,Filtro.12!$A$4:$AL$2956,35,FALSE),0) -> 0 | AL51: 9,620 | AM51: =IFERROR(VLOOKUP($A51,Filtro.12!$A$4:$AL$2956,37,FALSE),0) -> 0
C52: TOTAL ARANCEL MAI | D52: =SUM(D6:D51) -> 430421 | E52: =SUM(E6:E51) -> 429175 | F52: =SUM(F6:F51) -> 429175 | G52: =SUM(G6:G51) -> 0 | H52: =SUM(H6:H51) -> 1246 | AB52: =SUM(AB6:AB51) -> 3038 | AC52: 427232 | AD52: 49 | AE52: 10682 | AF52: 13184 | AG52: 0 | AH52: 311 | AI52: 0 | AJ52: 0 | AK52: 0 | AM52: =SUM(AM6:AM51) -> 4,128,663,500
C53: OTRAS CONSULTAS MEDICAS
A54: 01010014 | B54: 0101001 | C54: Consulta Medicina General | D54: =IFERROR(VLOOKUP($A54,Filtro.12!$A$4:$AL$2956,2,FALSE),0) -> 80107 | E54: =IFERROR(VLOOKUP($A54,Filtro.12!$A$4:$AL$2956,3,FALSE),0) -> 80107 | F54: =IFERROR(VLOOKUP($A54,Filtro.12!$A$4:$AL$2956,4,FALSE),0) -> 80107 | G54: =IFERROR(VLOOKUP($A54,Filtro.12!$A$4:$AL$2956,5,FALSE),0) -> 0 | H54: =IFERROR(VLOOKUP($A54,Filtro.12!$A$4:$AL$2956,6,FALSE),0) -> 0 | AB54: =IFERROR(VLOOKUP($A54,Filtro.12!$A$4:$AL$2956,26,FALSE),0) -> 0 | AC54: =IFERROR(VLOOKUP($A54,Filtro.12!$A$4:$AL$2956,27,FALSE),0) -> 77065 | AD54: =IFERROR(VLOOKUP($A54,Filtro.12!$A$4:$AL$2956,28,FALSE),0) -> 3042 | AE54: =IFERROR(VLOOKUP($A54,Filtro.12!$A$4:$AL$2956,29,FALSE),0) -> 0 | AF54: =IFERROR(VLOOKUP($A54,Filtro.12!$A$4:$AL$2956,30,FALSE),0) -> 0 | AG54: =IFERROR(VLOOKUP($A54,Filtro.12!$A$4:$AL$2956,31,FALSE),0) -> 0 | AH54: =IFERROR(VLOOKUP($A54,Filtro.12!$A$4:$AL$2956,32,FALSE),0) -> 0 | AI54: =IFERROR(VLOOKUP($A54,Filtro.12!$A$4:$AL$2956,33,FALSE),0) -> 0 | AJ54: =IFERROR(VLOOKUP($A54,Filtro.12!$A$4:$AL$2956,34,FALSE),0) -> 0 | AK54: =IFERROR(VLOOKUP($A54,Filtro.12!$A$4:$AL$2956,35,FALSE),0) -> 0 | AL54: 6,760 | AM54: =IFERROR(VLOOKUP($A54,Filtro.12!$A$4:$AL$2956,37,FALSE),0) -> 541,523,320
A55: 01014320 | B55: 0101007 | C55: Atención médica del recién nacido en sala de parto o pabellón quirúrgico c/s reanimación cardio-respiratoria | D55: =IFERROR(VLOOKUP($A55,Filtro.12!$A$4:$AL$2956,2,FALSE),0) -> 3453 | E55: =IFERROR(VLOOKUP($A55,Filtro.12!$A$4:$AL$2956,3,FALSE),0) -> 3440 | F55: =IFERROR(VLOOKUP($A55,Filtro.12!$A$4:$AL$2956,4,FALSE),0) -> 3050 | G55: =IFERROR(VLOOKUP($A55,Filtro.12!$A$4:$AL$2956,5,FALSE),0) -> 390 | H55: =IFERROR(VLOOKUP($A55,Filtro.12!$A$4:$AL$2956,6,FALSE),0) -> 13 | AB55: =IFERROR(VLOOKUP($A55,Filtro.12!$A$4:$AL$2956,26,FALSE),0) -> 1710 | AC55: =IFERROR(VLOOKUP($A55,Filtro.12!$A$4:$AL$2956,27,FALSE),0) -> 685 | AD55: =IFERROR(VLOOKUP($A55,Filtro.12!$A$4:$AL$2956,28,FALSE),0) -> 1058 | AE55: =IFERROR(VLOOKUP($A55,Filtro.12!$A$4:$AL$2956,29,FALSE),0) -> 0 | AF55: =IFERROR(VLOOKUP($A55,Filtro.12!$A$4:$AL$2956,30,FALSE),0) -> 0 | AG55: =IFERROR(VLOOKUP($A55,Filtro.12!$A$4:$AL$2956,31,FALSE),0) -> 0 | AH55: =IFERROR(VLOOKUP($A55,Filtro.12!$A$4:$AL$2956,32,FALSE),0) -> 0 | AI55: =IFERROR(VLOOKUP($A55,Filtro.12!$A$4:$AL$2956,33,FALSE),0) -> 0 | AJ55: =IFERROR(VLOOKUP($A55,Filtro.12!$A$4:$AL$2956,34,FALSE),0) -> 0 | AK55: =IFERROR(VLOOKUP($A55,Filtro.12!$A$4:$AL$2956,35,FALSE),0) -> 0 | AL55: 17,850 | AM55: =IFERROR(VLOOKUP($A55,Filtro.12!$A$4:$AL$2956,37,FALSE),0) -> 54,442,500
A56: 01014321 | B56: 0101103 | C56: Consulta en Unidades de Urgencia Hospitalaria | D56: =IFERROR(VLOOKUP($A56,Filtro.12!$A$4:$AL$2956,2,FALSE),0) -> 319945 | E56: =IFERROR(VLOOKUP($A56,Filtro.12!$A$4:$AL$2956,3,FALSE),0) -> 306285 | F56: =IFERROR(VLOOKUP($A56,Filtro.12!$A$4:$AL$2956,4,FALSE),0) -> 306285 | G56: =IFERROR(VLOOKUP($A56,Filtro.12!$A$4:$AL$2956,5,FALSE),0) -> 0 | H56: =IFERROR(VLOOKUP($A56,Filtro.12!$A$4:$AL$2956,6,FALSE),0) -> 13660 | AB56: =IFERROR(VLOOKUP($A56,Filtro.12!$A$4:$AL$2956,26,FALSE),0) -> 0 | AC56: =IFERROR(VLOOKUP($A56,Filtro.12!$A$4:$AL$2956,27,FALSE),0) -> 12212 | AD56: =IFERROR(VLOOKUP($A56,Filtro.12!$A$4:$AL$2956,28,FALSE),0) -> 307733 | AE56: =IFERROR(VLOOKUP($A56,Filtro.12!$A$4:$AL$2956,29,FALSE),0) -> 0 | AF56: =IFERROR(VLOOKUP($A56,Filtro.12!$A$4:$AL$2956,30,FALSE),0) -> 0 | AG56: =IFERROR(VLOOKUP($A56,Filtro.12!$A$4:$AL$2956,31,FALSE),0) -> 0 | AH56: =IFERROR(VLOOKUP($A56,Filtro.12!$A$4:$AL$2956,32,FALSE),0) -> 0 | AI56: =IFERROR(VLOOKUP($A56,Filtro.12!$A$4:$AL$2956,33,FALSE),0) -> 0 | AJ56: =IFERROR(VLOOKUP($A56,Filtro.12!$A$4:$AL$2956,34,FALSE),0) -> 0 | AK56: =IFERROR(VLOOKUP($A56,Filtro.12!$A$4:$AL$2956,35,FALSE),0) -> 0 | AL56: 9,620 | AM56: =IFERROR(VLOOKUP($A56,Filtro.12!$A$4:$AL$2956,37,FALSE),0) -> 2,946,461,700
C57: TOTAL OTRAS CONSULTAS MÉDICAS | D57: =SUM(D54:D56) -> 403505 | E57: =SUM(E54:E56) -> 389832 | F57: =SUM(F54:F56) -> 389442 | G57: =SUM(G54:G56) -> 390 | H57: =SUM(H54:H56) -> 13673 | AB57: =SUM(AB54:AB56) -> 1710 | AC57: 89962 | AD57: 311833 | AE57: 0 | AF57: 0 | AG57: 0 | AH57: 0 | AI57: 0 | AJ57: 0 | AK57: 0 | AM57: =SUM(AM54:AM56) -> 3542427520
C58: TOTAL PRODUCCION | D58: =SUM(D52+D57) -> 833926 | E58: =SUM(E52+E57) -> 819007 | F58: =SUM(F52+F57) -> 818617 | G58: =SUM(G52+G57) -> 390 | H58: =SUM(H52+H57) -> 14919 | AB58: =SUM(AB52+AB57) -> 4748 | AC58: 517194 | AD58: 311882 | AE58: 10682 | AF58: 13184 | AG58: 0 | AH58: 311 | AI58: 0 | AJ58: 0 | AK58: 0 | AM58: =SUM(AM52+AM57) -> 7671091020
C59: CONSULTAS POR OTROS PROFESIONALES DE LA SALUD
A60: 01010020 | B60: 0102002 | C60: Control de salud niño con EDP por enfermera | D60: =IFERROR(VLOOKUP($A60,Filtro.12!$A$4:$AL$2956,2,FALSE),0) -> 2344 | E60: =IFERROR(VLOOKUP($A60,Filtro.12!$A$4:$AL$2956,3,FALSE),0) -> 2344 | F60: =IFERROR(VLOOKUP($A60,Filtro.12!$A$4:$AL$2956,4,FALSE),0) -> 2344 | G60: =IFERROR(VLOOKUP($A60,Filtro.12!$A$4:$AL$2956,5,FALSE),0) -> 0 | H60: =IFERROR(VLOOKUP($A60,Filtro.12!$A$4:$AL$2956,6,FALSE),0) -> 0 | AB60: =IFERROR(VLOOKUP($A60,Filtro.12!$A$4:$AL$2956,26,FALSE),0) -> 0 | AC60: =IFERROR(VLOOKUP($A60,Filtro.12!$A$4:$AL$2956,27,FALSE),0) -> 2344 | AD60: =IFERROR(VLOOKUP($A60,Filtro.12!$A$4:$AL$2956,28,FALSE),0) -> 0 | AE60: =IFERROR(VLOOKUP($A60,Filtro.12!$A$4:$AL$2956,29,FALSE),0) -> 0 | AF60: =IFERROR(VLOOKUP($A60,Filtro.12!$A$4:$AL$2956,30,FALSE),0) -> 0 | AG60: =IFERROR(VLOOKUP($A60,Filtro.12!$A$4:$AL$2956,31,FALSE),0) -> 0 | AH60: =IFERROR(VLOOKUP($A60,Filtro.12!$A$4:$AL$2956,32,FALSE),0) -> 0 | AI60: =IFERROR(VLOOKUP($A60,Filtro.12!$A$4:$AL$2956,33,FALSE),0) -> 0 | AJ60: =IFERROR(VLOOKUP($A60,Filtro.12!$A$4:$AL$2956,34,FALSE),0) -> 0 | AK60: =IFERROR(VLOOKUP($A60,Filtro.12!$A$4:$AL$2956,35,FALSE),0) -> 0 | AL60: 2,560 | AM60: =IFERROR(VLOOKUP($A60,Filtro.12!$A$4:$AL$2956,37,FALSE),0) -> 6,000,640
A61: 01010021 | B61: 0102003 | C61: Consulta o control por auxiliar de enfermería | D61: =IFERROR(VLOOKUP($A61,Filtro.12!$A$4:$AL$2956,2,FALSE),0) -> 25048 | E61: =IFERROR(VLOOKUP($A61,Filtro.12!$A$4:$AL$2956,3,FALSE),0) -> 25045 | F61: =IFERROR(VLOOKUP($A61,Filtro.12!$A$4:$AL$2956,4,FALSE),0) -> 25045 | G61: =IFERROR(VLOOKUP($A61,Filtro.12!$A$4:$AL$2956,5,FALSE),0) -> 0 | H61: =IFERROR(VLOOKUP($A61,Filtro.12!$A$4:$AL$2956,6,FALSE),0) -> 3 | AB61: =IFERROR(VLOOKUP($A61,Filtro.12!$A$4:$AL$2956,26,FALSE),0) -> 0 | AC61: =IFERROR(VLOOKUP($A61,Filtro.12!$A$4:$AL$2956,27,FALSE),0) -> 2586 | AD61: =IFERROR(VLOOKUP($A61,Filtro.12!$A$4:$AL$2956,28,FALSE),0) -> 22462 | AE61: =IFERROR(VLOOKUP($A61,Filtro.12!$A$4:$AL$2956,29,FALSE),0) -> 0 | AF61: =IFERROR(VLOOKUP($A61,Filtro.12!$A$4:$AL$2956,30,FALSE),0) -> 0 | AG61: =IFERROR(VLOOKUP($A61,Filtro.12!$A$4:$AL$2956,31,FALSE),0) -> 0 | AH61: =IFERROR(VLOOKUP($A61,Filtro.12!$A$4:$AL$2956,32,FALSE),0) -> 0 | AI61: =IFERROR(VLOOKUP($A61,Filtro.12!$A$4:$AL$2956,33,FALSE),0) -> 0 | AJ61: =IFERROR(VLOOKUP($A61,Filtro.12!$A$4:$AL$2956,34,FALSE),0) -> 0 | AK61: =IFERROR(VLOOKUP($A61,Filtro.12!$A$4:$AL$2956,35,FALSE),0) -> 0 | AL61: 830 | AM61: =IFERROR(VLOOKUP($A61,Filtro.12!$A$4:$AL$2956,37,FALSE),0) -> 20,787,350
A62: 01010022 | B62: 0102005 | C62: Consulta por fonoaudiólogo | D62: =IFERROR(VLOOKUP($A62,Filtro.12!$A$4:$AL$2956,2,FALSE),0) -> 18348 | E62: =IFERROR(VLOOKUP($A62,Filtro.12!$A$4:$AL$2956,3,FALSE),0) -> 18340 | F62: =IFERROR(VLOOKUP($A62,Filtro.12!$A$4:$AL$2956,4,FALSE),0) -> 18340 | G62: =IFERROR(VLOOKUP($A62,Filtro.12!$A$4:$AL$2956,5,FALSE),0) -> 0 | H62: =IFERROR(VLOOKUP($A62,Filtro.12!$A$4:$AL$2956,6,FALSE),0) -> 8 | AB62: =IFERROR(VLOOKUP($A62,Filtro.12!$A$4:$AL$2956,26,FALSE),0) -> 8612 | AC62: =IFERROR(VLOOKUP($A62,Filtro.12!$A$4:$AL$2956,27,FALSE),0) -> 9713 | AD62: =IFERROR(VLOOKUP($A62,Filtro.12!$A$4:$AL$2956,28,FALSE),0) -> 23 | AE62: =IFERROR(VLOOKUP($A62,Filtro.12!$A$4:$AL$2956,29,FALSE),0) -> 0 | AF62: =IFERROR(VLOOKUP($A62,Filtro.12!$A$4:$AL$2956,30,FALSE),0) -> 0 | AG62: =IFERROR(VLOOKUP($A62,Filtro.12!$A$4:$AL$2956,31,FALSE),0) -> 0 | AH62: =IFERROR(VLOOKUP($A62,Filtro.12!$A$4:$AL$2956,32,FALSE),0) -> 0 | AI62: =IFERROR(VLOOKUP($A62,Filtro.12!$A$4:$AL$2956,33,FALSE),0) -> 0 | AJ62: =IFERROR(VLOOKUP($A62,Filtro.12!$A$4:$AL$2956,34,FALSE),0) -> 0 | AK62: =IFERROR(VLOOKUP($A62,Filtro.12!$A$4:$AL$2956,35,FALSE),0) -> 0 | AL62: 2,040 | AM62: =IFERROR(VLOOKUP($A62,Filtro.12!$A$4:$AL$2956,37,FALSE),0) -> 37,413,600
A63: 01014322 | B63: 0102008 | C63: Consulta o control por enfermera | D63: =IFERROR(VLOOKUP($A63,Filtro.12!$A$4:$AL$2956,2,FALSE),0) -> 125804 | E63: =IFERROR(VLOOKUP($A63,Filtro.12!$A$4:$AL$2956,3,FALSE),0) -> 125433 | F63: =IFERROR(VLOOKUP($A63,Filtro.12!$A$4:$AL$2956,4,FALSE),0) -> 125433 | G63: =IFERROR(VLOOKUP($A63,Filtro.12!$A$4:$AL$2956,5,FALSE),0) -> 0 | H63: =IFERROR(VLOOKUP($A63,Filtro.12!$A$4:$AL$2956,6,FALSE),0) -> 371 | AB63: =IFERROR(VLOOKUP($A63,Filtro.12!$A$4:$AL$2956,26,FALSE),0) -> 0 | AC63: =IFERROR(VLOOKUP($A63,Filtro.12!$A$4:$AL$2956,27,FALSE),0) -> 104830 | AD63: =IFERROR(VLOOKUP($A63,Filtro.12!$A$4:$AL$2956,28,FALSE),0) -> 20974 | AE63: =IFERROR(VLOOKUP($A63,Filtro.12!$A$4:$AL$2956,29,FALSE),0) -> 0 | AF63: =IFERROR(VLOOKUP($A63,Filtro.12!$A$4:$AL$2956,30,FALSE),0) -> 0 | AG63: =IFERROR(VLOOKUP($A63,Filtro.12!$A$4:$AL$2956,31,FALSE),0) -> 0 | AH63: =IFERROR(VLOOKUP($A63,Filtro.12!$A$4:$AL$2956,32,FALSE),0) -> 0 | AI63: =IFERROR(VLOOKUP($A63,Filtro.12!$A$4:$AL$2956,33,FALSE),0) -> 0 | AJ63: =IFERROR(VLOOKUP($A63,Filtro.12!$A$4:$AL$2956,34,FALSE),0) -> 0 | AK63: =IFERROR(VLOOKUP($A63,Filtro.12!$A$4:$AL$2956,35,FALSE),0) -> 0 | AL63: 1,500 | AM63: =IFERROR(VLOOKUP($A63,Filtro.12!$A$4:$AL$2956,37,FALSE),0) -> 188,149,500
A64: 01014323 | B64: 0102009 | C64: Consulta o control por matrona | D64: =IFERROR(VLOOKUP($A64,Filtro.12!$A$4:$AL$2956,2,FALSE),0) -> 64804 | E64: =IFERROR(VLOOKUP($A64,Filtro.12!$A$4:$AL$2956,3,FALSE),0) -> 64518 | F64: =IFERROR(VLOOKUP($A64,Filtro.12!$A$4:$AL$2956,4,FALSE),0) -> 64518 | G64: =IFERROR(VLOOKUP($A64,Filtro.12!$A$4:$AL$2956,5,FALSE),0) -> 0 | H64: =IFERROR(VLOOKUP($A64,Filtro.12!$A$4:$AL$2956,6,FALSE),0) -> 286 | AB64: =IFERROR(VLOOKUP($A64,Filtro.12!$A$4:$AL$2956,26,FALSE),0) -> 134 | AC64: =IFERROR(VLOOKUP($A64,Filtro.12!$A$4:$AL$2956,27,FALSE),0) -> 58052 | AD64: =IFERROR(VLOOKUP($A64,Filtro.12!$A$4:$AL$2956,28,FALSE),0) -> 6617 | AE64: =IFERROR(VLOOKUP($A64,Filtro.12!$A$4:$AL$2956,29,FALSE),0) -> 0 | AF64: =IFERROR(VLOOKUP($A64,Filtro.12!$A$4:$AL$2956,30,FALSE),0) -> 0 | AG64: =IFERROR(VLOOKUP($A64,Filtro.12!$A$4:$AL$2956,31,FALSE),0) -> 0 | AH64: =IFERROR(VLOOKUP($A64,Filtro.12!$A$4:$AL$2956,32,FALSE),0) -> 0 | AI64: =IFERROR(VLOOKUP($A64,Filtro.12!$A$4:$AL$2956,33,FALSE),0) -> 0 | AJ64: =IFERROR(VLOOKUP($A64,Filtro.12!$A$4:$AL$2956,34,FALSE),0) -> 0 | AK64: =IFERROR(VLOOKUP($A64,Filtro.12!$A$4:$AL$2956,35,FALSE),0) -> 0 | AL64: 1,500 | AM64: =IFERROR(VLOOKUP($A64,Filtro.12!$A$4:$AL$2956,37,FALSE),0) -> 96,777,000
A65: 01014324 | B65: 0102010 | C65: Consulta o control por nutricionista | D65: =IFERROR(VLOOKUP($A65,Filtro.12!$A$4:$AL$2956,2,FALSE),0) -> 30270 | E65: =IFERROR(VLOOKUP($A65,Filtro.12!$A$4:$AL$2956,3,FALSE),0) -> 30190 | F65: =IFERROR(VLOOKUP($A65,Filtro.12!$A$4:$AL$2956,4,FALSE),0) -> 30190 | G65: =IFERROR(VLOOKUP($A65,Filtro.12!$A$4:$AL$2956,5,FALSE),0) -> 0 | H65: =IFERROR(VLOOKUP($A65,Filtro.12!$A$4:$AL$2956,6,FALSE),0) -> 80 | AB65: =IFERROR(VLOOKUP($A65,Filtro.12!$A$4:$AL$2956,26,FALSE),0) -> 0 | AC65: =IFERROR(VLOOKUP($A65,Filtro.12!$A$4:$AL$2956,27,FALSE),0) -> 30270 | AD65: =IFERROR(VLOOKUP($A65,Filtro.12!$A$4:$AL$2956,28,FALSE),0) -> 0 | AE65: =IFERROR(VLOOKUP($A65,Filtro.12!$A$4:$AL$2956,29,FALSE),0) -> 0 | AF65: =IFERROR(VLOOKUP($A65,Filtro.12!$A$4:$AL$2956,30,FALSE),0) -> 0 | AG65: =IFERROR(VLOOKUP($A65,Filtro.12!$A$4:$AL$2956,31,FALSE),0) -> 0 | AH65: =IFERROR(VLOOKUP($A65,Filtro.12!$A$4:$AL$2956,32,FALSE),0) -> 0 | AI65: =IFERROR(VLOOKUP($A65,Filtro.12!$A$4:$AL$2956,33,FALSE),0) -> 0 | AJ65: =IFERROR(VLOOKUP($A65,Filtro.12!$A$4:$AL$2956,34,FALSE),0) -> 0 | AK65: =IFERROR(VLOOKUP($A65,Filtro.12!$A$4:$AL$2956,35,FALSE),0) -> 0 | AL65: 1,500 | AM65: =IFERROR(VLOOKUP($A65,Filtro.12!$A$4:$AL$2956,37,FALSE),0) -> 45,285,000
C66: TOTAL ARANCEL MAI | D66: =SUM(D60:D65) -> 266618 | E66: =SUM(E60:E65) -> 265870 | F66: =SUM(F60:F65) -> 265870 | G66: =SUM(G60:G65) -> 0 | H66: =SUM(H60:H65) -> 748 | AB66: =SUM(AB60:AB65) -> 8746 | AC66: 207795 | AD66: 50076 | AE66: 0 | AF66: 0 | AG66: 0 | AH66: 0 | AI66: 0 | AJ66: 0 | AK66: 0 | AM66: =SUM(AM60:AM65) -> 394,413,090
A67: 01010025 | B67: 01010025 | C67: Consulta por otros profesionales | D67: =IFERROR(VLOOKUP($A67,Filtro.12!$A$4:$AL$2956,2,FALSE),0) -> 24869 | E67: =IFERROR(VLOOKUP($A67,Filtro.12!$A$4:$AL$2956,3,FALSE),0) -> 24693 | F67: =IFERROR(VLOOKUP($A67,Filtro.12!$A$4:$AL$2956,4,FALSE),0) -> 24693 | G67: =IFERROR(VLOOKUP($A67,Filtro.12!$A$4:$AL$2956,5,FALSE),0) -> 0 | H67: =IFERROR(VLOOKUP($A67,Filtro.12!$A$4:$AL$2956,6,FALSE),0) -> 176 | AB67: =IFERROR(VLOOKUP($A67,Filtro.12!$A$4:$AL$2956,26,FALSE),0) -> 0 | AC67: =IFERROR(VLOOKUP($A67,Filtro.12!$A$4:$AL$2956,27,FALSE),0) -> 24680 | AD67: =IFERROR(VLOOKUP($A67,Filtro.12!$A$4:$AL$2956,28,FALSE),0) -> 0 | AE67: =IFERROR(VLOOKUP($A67,Filtro.12!$A$4:$AL$2956,29,FALSE),0) -> 813 | AF67: =IFERROR(VLOOKUP($A67,Filtro.12!$A$4:$AL$2956,30,FALSE),0) -> 0 | AG67: =IFERROR(VLOOKUP($A67,Filtro.12!$A$4:$AL$2956,31,FALSE),0) -> 0 | AH67: =IFERROR(VLOOKUP($A67,Filtro.12!$A$4:$AL$2956,32,FALSE),0) -> 0 | AI67: =IFERROR(VLOOKUP($A67,Filtro.12!$A$4:$AL$2956,33,FALSE),0) -> 0 | AJ67: =IFERROR(VLOOKUP($A67,Filtro.12!$A$4:$AL$2956,34,FALSE),0) -> 0 | AK67: =IFERROR(VLOOKUP($A67,Filtro.12!$A$4:$AL$2956,35,FALSE),0) -> 0 | AM67: =IFERROR(VLOOKUP($A67,#REF!,37,FALSE),0) -> 0
A68: 01012817 | B68: 01012817 | C68: Consulta por Trabajador(a) Social | D68: =IFERROR(VLOOKUP($A68,Filtro.12!$A$4:$AL$2956,2,FALSE),0) -> 16205 | E68: =IFERROR(VLOOKUP($A68,Filtro.12!$A$4:$AL$2956,3,FALSE),0) -> 15774 | F68: =IFERROR(VLOOKUP($A68,Filtro.12!$A$4:$AL$2956,4,FALSE),0) -> 15774 | G68: =IFERROR(VLOOKUP($A68,Filtro.12!$A$4:$AL$2956,5,FALSE),0) -> 0 | H68: =IFERROR(VLOOKUP($A68,Filtro.12!$A$4:$AL$2956,6,FALSE),0) -> 431 | AB68: =IFERROR(VLOOKUP($A68,Filtro.12!$A$4:$AL$2956,26,FALSE),0) -> 1588 | AC68: =IFERROR(VLOOKUP($A68,Filtro.12!$A$4:$AL$2956,27,FALSE),0) -> 14350 | AD68: =IFERROR(VLOOKUP($A68,Filtro.12!$A$4:$AL$2956,28,FALSE),0) -> 0 | AE68: =IFERROR(VLOOKUP($A68,Filtro.12!$A$4:$AL$2956,29,FALSE),0) -> 0 | AF68: =IFERROR(VLOOKUP($A68,Filtro.12!$A$4:$AL$2956,30,FALSE),0) -> 0 | AG68: =IFERROR(VLOOKUP($A68,Filtro.12!$A$4:$AL$2956,31,FALSE),0) -> 0 | AH68: =IFERROR(VLOOKUP($A68,Filtro.12!$A$4:$AL$2956,32,FALSE),0) -> 0 | AI68: =IFERROR(VLOOKUP($A68,Filtro.12!$A$4:$AL$2956,33,FALSE),0) -> 0 | AJ68: =IFERROR(VLOOKUP($A68,Filtro.12!$A$4:$AL$2956,34,FALSE),0) -> 0 | AK68: =IFERROR(VLOOKUP($A68,Filtro.12!$A$4:$AL$2956,35,FALSE),0) -> 0 | AM68: =IFERROR(VLOOKUP($A68,#REF!,37,FALSE),0) -> 0
C69: TOTAL ARANCEL MLE Y NO ARANCELADO | D69: =SUM(D67:D68) -> 41074 | E69: =SUM(E67:E68) -> 40467 | F69: =SUM(F67:F68) -> 40467 | G69: =SUM(G67:G68) -> 0 | H69: =SUM(H67:H68) -> 607 | AB69: =SUM(AB67:AB68) -> 1588 | AC69: 39030 | AD69: 0 | AE69: 813 | AF69: 0 | AG69: 0 | AH69: 0 | AI69: 0 | AJ69: 0 | AK69: 0
C70: TOTAL PRODUCCION | D70: =SUM(D66+D69) -> 307692 | E70: =SUM(E66+E69) -> 306337 | F70: =SUM(F66+F69) -> 306337 | G70: =SUM(G66+G69) -> 0 | H70: =SUM(H66+H69) -> 1355 | AB70: =SUM(AB66+AB69) -> 10334 | AC70: 246825 | AD70: 50076 | AE70: 813 | AF70: 0 | AG70: 0 | AH70: 0 | AI70: 0 | AJ70: 0 | AK70: 0 | AM70: =SUM(AM66+AM69) -> 394,413,090
C71: TELEMEDICINA POR PROFESIONALES MÉDICOS
C72: TELECONSULTAS
A73: 01013100 | B73: 0108001 | C73: Teleconsulta Medicina General | D73: =IFERROR(VLOOKUP($A73,Filtro.12!$A$4:$AL$2956,2,FALSE),0) -> 11 | E73: =IFERROR(VLOOKUP($A73,Filtro.12!$A$4:$AL$2956,3,FALSE),0) -> 11 | F73: =IFERROR(VLOOKUP($A73,Filtro.12!$A$4:$AL$2956,4,FALSE),0) -> 11 | G73: =IFERROR(VLOOKUP($A73,Filtro.12!$A$4:$AL$2956,5,FALSE),0) -> 0 | H73: =IFERROR(VLOOKUP($A73,Filtro.12!$A$4:$AL$2956,6,FALSE),0) -> 0 | AB73: =IFERROR(VLOOKUP($A73,Filtro.12!$A$4:$AL$2956,26,FALSE),0) -> 0 | AC73: =IFERROR(VLOOKUP($A73,Filtro.12!$A$4:$AL$2956,27,FALSE),0) -> 11 | AD73: =IFERROR(VLOOKUP($A73,Filtro.12!$A$4:$AL$2956,28,FALSE),0) -> 0 | AE73: =IFERROR(VLOOKUP($A73,Filtro.12!$A$4:$AL$2956,29,FALSE),0) -> 0 | AF73: =IFERROR(VLOOKUP($A73,Filtro.12!$A$4:$AL$2956,30,FALSE),0) -> 0 | AG73: =IFERROR(VLOOKUP($A73,Filtro.12!$A$4:$AL$2956,31,FALSE),0) -> 0 | AH73: =IFERROR(VLOOKUP($A73,Filtro.12!$A$4:$AL$2956,32,FALSE),0) -> 0 | AI73: =IFERROR(VLOOKUP($A73,Filtro.12!$A$4:$AL$2956,33,FALSE),0) -> 0 | AJ73: =IFERROR(VLOOKUP($A73,Filtro.12!$A$4:$AL$2956,34,FALSE),0) -> 0 | AK73: =IFERROR(VLOOKUP($A73,Filtro.12!$A$4:$AL$2956,35,FALSE),0) -> 0 | AL73: 5,620 | AM73: =IFERROR(VLOOKUP($A73,Filtro.12!$A$4:$AL$2956,37,FALSE),0) -> 61,820
A74: 01014325 | B74: 0108201 | C74: Teleconsulta Médica de Especialidad en Dermatología | D74: =IFERROR(VLOOKUP($A74,Filtro.12!$A$4:$AL$2956,2,FALSE),0) -> 204 | E74: =IFERROR(VLOOKUP($A74,Filtro.12!$A$4:$AL$2956,3,FALSE),0) -> 204 | F74: =IFERROR(VLOOKUP($A74,Filtro.12!$A$4:$AL$2956,4,FALSE),0) -> 204 | G74: =IFERROR(VLOOKUP($A74,Filtro.12!$A$4:$AL$2956,5,FALSE),0) -> 0 | H74: =IFERROR(VLOOKUP($A74,Filtro.12!$A$4:$AL$2956,6,FALSE),0) -> 0 | AB74: =IFERROR(VLOOKUP($A74,Filtro.12!$A$4:$AL$2956,26,FALSE),0) -> 0 | AC74: =IFERROR(VLOOKUP($A74,Filtro.12!$A$4:$AL$2956,27,FALSE),0) -> 204 | AD74: =IFERROR(VLOOKUP($A74,Filtro.12!$A$4:$AL$2956,28,FALSE),0) -> 0 | AE74: =IFERROR(VLOOKUP($A74,Filtro.12!$A$4:$AL$2956,29,FALSE),0) -> 0 | AF74: =IFERROR(VLOOKUP($A74,Filtro.12!$A$4:$AL$2956,30,FALSE),0) -> 0 | AG74: =IFERROR(VLOOKUP($A74,Filtro.12!$A$4:$AL$2956,31,FALSE),0) -> 0 | AH74: =IFERROR(VLOOKUP($A74,Filtro.12!$A$4:$AL$2956,32,FALSE),0) -> 0 | AI74: =IFERROR(VLOOKUP($A74,Filtro.12!$A$4:$AL$2956,33,FALSE),0) -> 0 | AJ74: =IFERROR(VLOOKUP($A74,Filtro.12!$A$4:$AL$2956,34,FALSE),0) -> 0 | AK74: =IFERROR(VLOOKUP($A74,Filtro.12!$A$4:$AL$2956,35,FALSE),0) -> 0 | AL74: 8,000 | AM74: =IFERROR(VLOOKUP($A74,Filtro.12!$A$4:$AL$2956,37,FALSE),0) -> 1,632,000
A75: 01014326 | B75: 0108202 | C75: Teleconsulta Médica de Especialidad en Geriatría | D75: =IFERROR(VLOOKUP($A75,Filtro.12!$A$4:$AL$2956,2,FALSE),0) -> 6 | E75: =IFERROR(VLOOKUP($A75,Filtro.12!$A$4:$AL$2956,3,FALSE),0) -> 6 | F75: =IFERROR(VLOOKUP($A75,Filtro.12!$A$4:$AL$2956,4,FALSE),0) -> 6 | G75: =IFERROR(VLOOKUP($A75,Filtro.12!$A$4:$AL$2956,5,FALSE),0) -> 0 | H75: =IFERROR(VLOOKUP($A75,Filtro.12!$A$4:$AL$2956,6,FALSE),0) -> 0 | AB75: =IFERROR(VLOOKUP($A75,Filtro.12!$A$4:$AL$2956,26,FALSE),0) -> 0 | AC75: =IFERROR(VLOOKUP($A75,Filtro.12!$A$4:$AL$2956,27,FALSE),0) -> 6 | AD75: =IFERROR(VLOOKUP($A75,Filtro.12!$A$4:$AL$2956,28,FALSE),0) -> 0 | AE75: =IFERROR(VLOOKUP($A75,Filtro.12!$A$4:$AL$2956,29,FALSE),0) -> 0 | AF75: =IFERROR(VLOOKUP($A75,Filtro.12!$A$4:$AL$2956,30,FALSE),0) -> 0 | AG75: =IFERROR(VLOOKUP($A75,Filtro.12!$A$4:$AL$2956,31,FALSE),0) -> 0 | AH75: =IFERROR(VLOOKUP($A75,Filtro.12!$A$4:$AL$2956,32,FALSE),0) -> 0 | AI75: =IFERROR(VLOOKUP($A75,Filtro.12!$A$4:$AL$2956,33,FALSE),0) -> 0 | AJ75: =IFERROR(VLOOKUP($A75,Filtro.12!$A$4:$AL$2956,34,FALSE),0) -> 0 | AK75: =IFERROR(VLOOKUP($A75,Filtro.12!$A$4:$AL$2956,35,FALSE),0) -> 0 | AL75: 8,000 | AM75: =IFERROR(VLOOKUP($A75,Filtro.12!$A$4:$AL$2956,37,FALSE),0) -> 48,000
A76: 01014327 | B76: 0108206 | C76: Teleconsulta Médica de Especialidad en Reumatología | D76: =IFERROR(VLOOKUP($A76,Filtro.12!$A$4:$AL$2956,2,FALSE),0) -> 175 | E76: =IFERROR(VLOOKUP($A76,Filtro.12!$A$4:$AL$2956,3,FALSE),0) -> 175 | F76: =IFERROR(VLOOKUP($A76,Filtro.12!$A$4:$AL$2956,4,FALSE),0) -> 175 | G76: =IFERROR(VLOOKUP($A76,Filtro.12!$A$4:$AL$2956,5,FALSE),0) -> 0 | H76: =IFERROR(VLOOKUP($A76,Filtro.12!$A$4:$AL$2956,6,FALSE),0) -> 0 | AB76: =IFERROR(VLOOKUP($A76,Filtro.12!$A$4:$AL$2956,26,FALSE),0) -> 0 | AC76: =IFERROR(VLOOKUP($A76,Filtro.12!$A$4:$AL$2956,27,FALSE),0) -> 175 | AD76: =IFERROR(VLOOKUP($A76,Filtro.12!$A$4:$AL$2956,28,FALSE),0) -> 0 | AE76: =IFERROR(VLOOKUP($A76,Filtro.12!$A$4:$AL$2956,29,FALSE),0) -> 0 | AF76: =IFERROR(VLOOKUP($A76,Filtro.12!$A$4:$AL$2956,30,FALSE),0) -> 0 | AG76: =IFERROR(VLOOKUP($A76,Filtro.12!$A$4:$AL$2956,31,FALSE),0) -> 0 | AH76: =IFERROR(VLOOKUP($A76,Filtro.12!$A$4:$AL$2956,32,FALSE),0) -> 0 | AI76: =IFERROR(VLOOKUP($A76,Filtro.12!$A$4:$AL$2956,33,FALSE),0) -> 0 | AJ76: =IFERROR(VLOOKUP($A76,Filtro.12!$A$4:$AL$2956,34,FALSE),0) -> 0 | AK76: =IFERROR(VLOOKUP($A76,Filtro.12!$A$4:$AL$2956,35,FALSE),0) -> 0 | AL76: 8,000 | AM76: =IFERROR(VLOOKUP($A76,Filtro.12!$A$4:$AL$2956,37,FALSE),0) -> 1,400,000
A77: 01014328 | B77: 0108207 | C77: Teleconsulta Médica de Especialidad en Endocrinología Adulto | D77: =IFERROR(VLOOKUP($A77,Filtro.12!$A$4:$AL$2956,2,FALSE),0) -> 149 | E77: =IFERROR(VLOOKUP($A77,Filtro.12!$A$4:$AL$2956,3,FALSE),0) -> 149 | F77: =IFERROR(VLOOKUP($A77,Filtro.12!$A$4:$AL$2956,4,FALSE),0) -> 149 | G77: =IFERROR(VLOOKUP($A77,Filtro.12!$A$4:$AL$2956,5,FALSE),0) -> 0 | H77: =IFERROR(VLOOKUP($A77,Filtro.12!$A$4:$AL$2956,6,FALSE),0) -> 0 | AB77: =IFERROR(VLOOKUP($A77,Filtro.12!$A$4:$AL$2956,26,FALSE),0) -> 0 | AC77: =IFERROR(VLOOKUP($A77,Filtro.12!$A$4:$AL$2956,27,FALSE),0) -> 149 | AD77: =IFERROR(VLOOKUP($A77,Filtro.12!$A$4:$AL$2956,28,FALSE),0) -> 0 | AE77: =IFERROR(VLOOKUP($A77,Filtro.12!$A$4:$AL$2956,29,FALSE),0) -> 0 | AF77: =IFERROR(VLOOKUP($A77,Filtro.12!$A$4:$AL$2956,30,FALSE),0) -> 0 | AG77: =IFERROR(VLOOKUP($A77,Filtro.12!$A$4:$AL$2956,31,FALSE),0) -> 0 | AH77: =IFERROR(VLOOKUP($A77,Filtro.12!$A$4:$AL$2956,32,FALSE),0) -> 0 | AI77: =IFERROR(VLOOKUP($A77,Filtro.12!$A$4:$AL$2956,33,FALSE),0) -> 0 | AJ77: =IFERROR(VLOOKUP($A77,Filtro.12!$A$4:$AL$2956,34,FALSE),0) -> 0 | AK77: =IFERROR(VLOOKUP($A77,Filtro.12!$A$4:$AL$2956,35,FALSE),0) -> 0 | AL77: 8,000 | AM77: =IFERROR(VLOOKUP($A77,Filtro.12!$A$4:$AL$2956,37,FALSE),0) -> 1,192,000
A78: 01014329 | B78: 0108208 | C78: Teleconsulta Médica de Especialidad en Endocrinología Pediátrica | D78: =IFERROR(VLOOKUP($A78,Filtro.12!$A$4:$AL$2956,2,FALSE),0) -> 91 | E78: =IFERROR(VLOOKUP($A78,Filtro.12!$A$4:$AL$2956,3,FALSE),0) -> 91 | F78: =IFERROR(VLOOKUP($A78,Filtro.12!$A$4:$AL$2956,4,FALSE),0) -> 91 | G78: =IFERROR(VLOOKUP($A78,Filtro.12!$A$4:$AL$2956,5,FALSE),0) -> 0 | H78: =IFERROR(VLOOKUP($A78,Filtro.12!$A$4:$AL$2956,6,FALSE),0) -> 0 | AB78: =IFERROR(VLOOKUP($A78,Filtro.12!$A$4:$AL$2956,26,FALSE),0) -> 0 | AC78: =IFERROR(VLOOKUP($A78,Filtro.12!$A$4:$AL$2956,27,FALSE),0) -> 91 | AD78: =IFERROR(VLOOKUP($A78,Filtro.12!$A$4:$AL$2956,28,FALSE),0) -> 0 | AE78: =IFERROR(VLOOKUP($A78,Filtro.12!$A$4:$AL$2956,29,FALSE),0) -> 0 | AF78: =IFERROR(VLOOKUP($A78,Filtro.12!$A$4:$AL$2956,30,FALSE),0) -> 0 | AG78: =IFERROR(VLOOKUP($A78,Filtro.12!$A$4:$AL$2956,31,FALSE),0) -> 0 | AH78: =IFERROR(VLOOKUP($A78,Filtro.12!$A$4:$AL$2956,32,FALSE),0) -> 0 | AI78: =IFERROR(VLOOKUP($A78,Filtro.12!$A$4:$AL$2956,33,FALSE),0) -> 0 | AJ78: =IFERROR(VLOOKUP($A78,Filtro.12!$A$4:$AL$2956,34,FALSE),0) -> 0 | AK78: =IFERROR(VLOOKUP($A78,Filtro.12!$A$4:$AL$2956,35,FALSE),0) -> 0 | AL78: 8,000 | AM78: =IFERROR(VLOOKUP($A78,Filtro.12!$A$4:$AL$2956,37,FALSE),0) -> 728,000
A79: 01014330 | B79: 0108209 | C79: Teleconsulta Médica de Especialidad en Neurología Adultos | D79: =IFERROR(VLOOKUP($A79,Filtro.12!$A$4:$AL$2956,2,FALSE),0) -> 219 | E79: =IFERROR(VLOOKUP($A79,Filtro.12!$A$4:$AL$2956,3,FALSE),0) -> 219 | F79: =IFERROR(VLOOKUP($A79,Filtro.12!$A$4:$AL$2956,4,FALSE),0) -> 219 | G79: =IFERROR(VLOOKUP($A79,Filtro.12!$A$4:$AL$2956,5,FALSE),0) -> 0 | H79: =IFERROR(VLOOKUP($A79,Filtro.12!$A$4:$AL$2956,6,FALSE),0) -> 0 | AB79: =IFERROR(VLOOKUP($A79,Filtro.12!$A$4:$AL$2956,26,FALSE),0) -> 0 | AC79: =IFERROR(VLOOKUP($A79,Filtro.12!$A$4:$AL$2956,27,FALSE),0) -> 219 | AD79: =IFERROR(VLOOKUP($A79,Filtro.12!$A$4:$AL$2956,28,FALSE),0) -> 0 | AE79: =IFERROR(VLOOKUP($A79,Filtro.12!$A$4:$AL$2956,29,FALSE),0) -> 0 | AF79: =IFERROR(VLOOKUP($A79,Filtro.12!$A$4:$AL$2956,30,FALSE),0) -> 0 | AG79: =IFERROR(VLOOKUP($A79,Filtro.12!$A$4:$AL$2956,31,FALSE),0) -> 0 | AH79: =IFERROR(VLOOKUP($A79,Filtro.12!$A$4:$AL$2956,32,FALSE),0) -> 0 | AI79: =IFERROR(VLOOKUP($A79,Filtro.12!$A$4:$AL$2956,33,FALSE),0) -> 0 | AJ79: =IFERROR(VLOOKUP($A79,Filtro.12!$A$4:$AL$2956,34,FALSE),0) -> 0 | AK79: =IFERROR(VLOOKUP($A79,Filtro.12!$A$4:$AL$2956,35,FALSE),0) -> 0 | AL79: 8,000 | AM79: =IFERROR(VLOOKUP($A79,Filtro.12!$A$4:$AL$2956,37,FALSE),0) -> 1,752,000
A80: 01014331 | B80: 0108210 | C80: Teleconsulta Médica de Especialidad en Neurología Pediátrica | D80: =IFERROR(VLOOKUP($A80,Filtro.12!$A$4:$AL$2956,2,FALSE),0) -> 78 | E80: =IFERROR(VLOOKUP($A80,Filtro.12!$A$4:$AL$2956,3,FALSE),0) -> 78 | F80: =IFERROR(VLOOKUP($A80,Filtro.12!$A$4:$AL$2956,4,FALSE),0) -> 78 | G80: =IFERROR(VLOOKUP($A80,Filtro.12!$A$4:$AL$2956,5,FALSE),0) -> 0 | H80: =IFERROR(VLOOKUP($A80,Filtro.12!$A$4:$AL$2956,6,FALSE),0) -> 0 | AB80: =IFERROR(VLOOKUP($A80,Filtro.12!$A$4:$AL$2956,26,FALSE),0) -> 0 | AC80: =IFERROR(VLOOKUP($A80,Filtro.12!$A$4:$AL$2956,27,FALSE),0) -> 78 | AD80: =IFERROR(VLOOKUP($A80,Filtro.12!$A$4:$AL$2956,28,FALSE),0) -> 0 | AE80: =IFERROR(VLOOKUP($A80,Filtro.12!$A$4:$AL$2956,29,FALSE),0) -> 0 | AF80: =IFERROR(VLOOKUP($A80,Filtro.12!$A$4:$AL$2956,30,FALSE),0) -> 0 | AG80: =IFERROR(VLOOKUP($A80,Filtro.12!$A$4:$AL$2956,31,FALSE),0) -> 0 | AH80: =IFERROR(VLOOKUP($A80,Filtro.12!$A$4:$AL$2956,32,FALSE),0) -> 0 | AI80: =IFERROR(VLOOKUP($A80,Filtro.12!$A$4:$AL$2956,33,FALSE),0) -> 0 | AJ80: =IFERROR(VLOOKUP($A80,Filtro.12!$A$4:$AL$2956,34,FALSE),0) -> 0 | AK80: =IFERROR(VLOOKUP($A80,Filtro.12!$A$4:$AL$2956,35,FALSE),0) -> 0 | AL80: 8,000 | AM80: =IFERROR(VLOOKUP($A80,Filtro.12!$A$4:$AL$2956,37,FALSE),0) -> 624,000
A81: 01014332 | B81: 0108211 | C81: Teleconsulta Médica de Especialidad en Oncología Médica | D81: =IFERROR(VLOOKUP($A81,Filtro.12!$A$4:$AL$2956,2,FALSE),0) -> 3758 | E81: =IFERROR(VLOOKUP($A81,Filtro.12!$A$4:$AL$2956,3,FALSE),0) -> 3758 | F81: =IFERROR(VLOOKUP($A81,Filtro.12!$A$4:$AL$2956,4,FALSE),0) -> 3758 | G81: =IFERROR(VLOOKUP($A81,Filtro.12!$A$4:$AL$2956,5,FALSE),0) -> 0 | H81: =IFERROR(VLOOKUP($A81,Filtro.12!$A$4:$AL$2956,6,FALSE),0) -> 0 | AB81: =IFERROR(VLOOKUP($A81,Filtro.12!$A$4:$AL$2956,26,FALSE),0) -> 0 | AC81: =IFERROR(VLOOKUP($A81,Filtro.12!$A$4:$AL$2956,27,FALSE),0) -> 3758 | AD81: =IFERROR(VLOOKUP($A81,Filtro.12!$A$4:$AL$2956,28,FALSE),0) -> 0 | AE81: =IFERROR(VLOOKUP($A81,Filtro.12!$A$4:$AL$2956,29,FALSE),0) -> 0 | AF81: =IFERROR(VLOOKUP($A81,Filtro.12!$A$4:$AL$2956,30,FALSE),0) -> 0 | AG81: =IFERROR(VLOOKUP($A81,Filtro.12!$A$4:$AL$2956,31,FALSE),0) -> 0 | AH81: =IFERROR(VLOOKUP($A81,Filtro.12!$A$4:$AL$2956,32,FALSE),0) -> 0 | AI81: =IFERROR(VLOOKUP($A81,Filtro.12!$A$4:$AL$2956,33,FALSE),0) -> 0 | AJ81: =IFERROR(VLOOKUP($A81,Filtro.12!$A$4:$AL$2956,34,FALSE),0) -> 0 | AK81: =IFERROR(VLOOKUP($A81,Filtro.12!$A$4:$AL$2956,35,FALSE),0) -> 0 | AL81: 8,000 | AM81: =IFERROR(VLOOKUP($A81,Filtro.12!$A$4:$AL$2956,37,FALSE),0) -> 30,064,000
A82: 01014333 | B82: 0108212 | C82: Teleconsulta Médica de Especialidad en Psiquiatría adultos | D82: =IFERROR(VLOOKUP($A82,Filtro.12!$A$4:$AL$2956,2,FALSE),0) -> 714 | E82: =IFERROR(VLOOKUP($A82,Filtro.12!$A$4:$AL$2956,3,FALSE),0) -> 714 | F82: =IFERROR(VLOOKUP($A82,Filtro.12!$A$4:$AL$2956,4,FALSE),0) -> 714 | G82: =IFERROR(VLOOKUP($A82,Filtro.12!$A$4:$AL$2956,5,FALSE),0) -> 0 | H82: =IFERROR(VLOOKUP($A82,Filtro.12!$A$4:$AL$2956,6,FALSE),0) -> 0 | AB82: =IFERROR(VLOOKUP($A82,Filtro.12!$A$4:$AL$2956,26,FALSE),0) -> 1 | AC82: =IFERROR(VLOOKUP($A82,Filtro.12!$A$4:$AL$2956,27,FALSE),0) -> 713 | AD82: =IFERROR(VLOOKUP($A82,Filtro.12!$A$4:$AL$2956,28,FALSE),0) -> 0 | AE82: =IFERROR(VLOOKUP($A82,Filtro.12!$A$4:$AL$2956,29,FALSE),0) -> 0 | AF82: =IFERROR(VLOOKUP($A82,Filtro.12!$A$4:$AL$2956,30,FALSE),0) -> 0 | AG82: =IFERROR(VLOOKUP($A82,Filtro.12!$A$4:$AL$2956,31,FALSE),0) -> 0 | AH82: =IFERROR(VLOOKUP($A82,Filtro.12!$A$4:$AL$2956,32,FALSE),0) -> 0 | AI82: =IFERROR(VLOOKUP($A82,Filtro.12!$A$4:$AL$2956,33,FALSE),0) -> 0 | AJ82: =IFERROR(VLOOKUP($A82,Filtro.12!$A$4:$AL$2956,34,FALSE),0) -> 0 | AK82: =IFERROR(VLOOKUP($A82,Filtro.12!$A$4:$AL$2956,35,FALSE),0) -> 0 | AL82: 8,000 | AM82: =IFERROR(VLOOKUP($A82,Filtro.12!$A$4:$AL$2956,37,FALSE),0) -> 5,712,000
A83: 01014334 | B83: 0108213 | C83: Teleconsulta Médica de Especialidad en Psiquiatría pediátrica y de la adolescencia | D83: =IFERROR(VLOOKUP($A83,Filtro.12!$A$4:$AL$2956,2,FALSE),0) -> 260 | E83: =IFERROR(VLOOKUP($A83,Filtro.12!$A$4:$AL$2956,3,FALSE),0) -> 260 | F83: =IFERROR(VLOOKUP($A83,Filtro.12!$A$4:$AL$2956,4,FALSE),0) -> 260 | G83: =IFERROR(VLOOKUP($A83,Filtro.12!$A$4:$AL$2956,5,FALSE),0) -> 0 | H83: =IFERROR(VLOOKUP($A83,Filtro.12!$A$4:$AL$2956,6,FALSE),0) -> 0 | AB83: =IFERROR(VLOOKUP($A83,Filtro.12!$A$4:$AL$2956,26,FALSE),0) -> 1 | AC83: =IFERROR(VLOOKUP($A83,Filtro.12!$A$4:$AL$2956,27,FALSE),0) -> 259 | AD83: =IFERROR(VLOOKUP($A83,Filtro.12!$A$4:$AL$2956,28,FALSE),0) -> 0 | AE83: =IFERROR(VLOOKUP($A83,Filtro.12!$A$4:$AL$2956,29,FALSE),0) -> 0 | AF83: =IFERROR(VLOOKUP($A83,Filtro.12!$A$4:$AL$2956,30,FALSE),0) -> 0 | AG83: =IFERROR(VLOOKUP($A83,Filtro.12!$A$4:$AL$2956,31,FALSE),0) -> 0 | AH83: =IFERROR(VLOOKUP($A83,Filtro.12!$A$4:$AL$2956,32,FALSE),0) -> 0 | AI83: =IFERROR(VLOOKUP($A83,Filtro.12!$A$4:$AL$2956,33,FALSE),0) -> 0 | AJ83: =IFERROR(VLOOKUP($A83,Filtro.12!$A$4:$AL$2956,34,FALSE),0) -> 0 | AK83: =IFERROR(VLOOKUP($A83,Filtro.12!$A$4:$AL$2956,35,FALSE),0) -> 0 | AL83: 8,000 | AM83: =IFERROR(VLOOKUP($A83,Filtro.12!$A$4:$AL$2956,37,FALSE),0) -> 2,080,000
A84: 01014335 | B84: 0108301 | C84: Teleconsulta Médica de Especialidad en Cardiología | D84: =IFERROR(VLOOKUP($A84,Filtro.12!$A$4:$AL$2956,2,FALSE),0) -> 2 | E84: =IFERROR(VLOOKUP($A84,Filtro.12!$A$4:$AL$2956,3,FALSE),0) -> 2 | F84: =IFERROR(VLOOKUP($A84,Filtro.12!$A$4:$AL$2956,4,FALSE),0) -> 2 | G84: =IFERROR(VLOOKUP($A84,Filtro.12!$A$4:$AL$2956,5,FALSE),0) -> 0 | H84: =IFERROR(VLOOKUP($A84,Filtro.12!$A$4:$AL$2956,6,FALSE),0) -> 0 | AB84: =IFERROR(VLOOKUP($A84,Filtro.12!$A$4:$AL$2956,26,FALSE),0) -> 0 | AC84: =IFERROR(VLOOKUP($A84,Filtro.12!$A$4:$AL$2956,27,FALSE),0) -> 2 | AD84: =IFERROR(VLOOKUP($A84,Filtro.12!$A$4:$AL$2956,28,FALSE),0) -> 0 | AE84: =IFERROR(VLOOKUP($A84,Filtro.12!$A$4:$AL$2956,29,FALSE),0) -> 0 | AF84: =IFERROR(VLOOKUP($A84,Filtro.12!$A$4:$AL$2956,30,FALSE),0) -> 0 | AG84: =IFERROR(VLOOKUP($A84,Filtro.12!$A$4:$AL$2956,31,FALSE),0) -> 0 | AH84: =IFERROR(VLOOKUP($A84,Filtro.12!$A$4:$AL$2956,32,FALSE),0) -> 0 | AI84: =IFERROR(VLOOKUP($A84,Filtro.12!$A$4:$AL$2956,33,FALSE),0) -> 0 | AJ84: =IFERROR(VLOOKUP($A84,Filtro.12!$A$4:$AL$2956,34,FALSE),0) -> 0 | AK84: =IFERROR(VLOOKUP($A84,Filtro.12!$A$4:$AL$2956,35,FALSE),0) -> 0 | AL84: 8,000 | AM84: =IFERROR(VLOOKUP($A84,Filtro.12!$A$4:$AL$2956,37,FALSE),0) -> 16,000
A85: 01014336 | B85: 0108302 | C85: Teleconsulta Médica de Especialidad en Hematología | D85: =IFERROR(VLOOKUP($A85,Filtro.12!$A$4:$AL$2956,2,FALSE),0) -> 519 | E85: =IFERROR(VLOOKUP($A85,Filtro.12!$A$4:$AL$2956,3,FALSE),0) -> 519 | F85: =IFERROR(VLOOKUP($A85,Filtro.12!$A$4:$AL$2956,4,FALSE),0) -> 519 | G85: =IFERROR(VLOOKUP($A85,Filtro.12!$A$4:$AL$2956,5,FALSE),0) -> 0 | H85: =IFERROR(VLOOKUP($A85,Filtro.12!$A$4:$AL$2956,6,FALSE),0) -> 0 | AB85: =IFERROR(VLOOKUP($A85,Filtro.12!$A$4:$AL$2956,26,FALSE),0) -> 0 | AC85: =IFERROR(VLOOKUP($A85,Filtro.12!$A$4:$AL$2956,27,FALSE),0) -> 519 | AD85: =IFERROR(VLOOKUP($A85,Filtro.12!$A$4:$AL$2956,28,FALSE),0) -> 0 | AE85: =IFERROR(VLOOKUP($A85,Filtro.12!$A$4:$AL$2956,29,FALSE),0) -> 0 | AF85: =IFERROR(VLOOKUP($A85,Filtro.12!$A$4:$AL$2956,30,FALSE),0) -> 0 | AG85: =IFERROR(VLOOKUP($A85,Filtro.12!$A$4:$AL$2956,31,FALSE),0) -> 0 | AH85: =IFERROR(VLOOKUP($A85,Filtro.12!$A$4:$AL$2956,32,FALSE),0) -> 0 | AI85: =IFERROR(VLOOKUP($A85,Filtro.12!$A$4:$AL$2956,33,FALSE),0) -> 0 | AJ85: =IFERROR(VLOOKUP($A85,Filtro.12!$A$4:$AL$2956,34,FALSE),0) -> 0 | AK85: =IFERROR(VLOOKUP($A85,Filtro.12!$A$4:$AL$2956,35,FALSE),0) -> 0 | AL85: 8,000 | AM85: =IFERROR(VLOOKUP($A85,Filtro.12!$A$4:$AL$2956,37,FALSE),0) -> 4,152,000
A86: 01014337 | B86: 0108303 | C86: Teleconsulta Médica de Especialidad en Infectología | D86: =IFERROR(VLOOKUP($A86,Filtro.12!$A$4:$AL$2956,2,FALSE),0) -> 11 | E86: =IFERROR(VLOOKUP($A86,Filtro.12!$A$4:$AL$2956,3,FALSE),0) -> 11 | F86: =IFERROR(VLOOKUP($A86,Filtro.12!$A$4:$AL$2956,4,FALSE),0) -> 11 | G86: =IFERROR(VLOOKUP($A86,Filtro.12!$A$4:$AL$2956,5,FALSE),0) -> 0 | H86: =IFERROR(VLOOKUP($A86,Filtro.12!$A$4:$AL$2956,6,FALSE),0) -> 0 | AB86: =IFERROR(VLOOKUP($A86,Filtro.12!$A$4:$AL$2956,26,FALSE),0) -> 0 | AC86: =IFERROR(VLOOKUP($A86,Filtro.12!$A$4:$AL$2956,27,FALSE),0) -> 11 | AD86: =IFERROR(VLOOKUP($A86,Filtro.12!$A$4:$AL$2956,28,FALSE),0) -> 0 | AE86: =IFERROR(VLOOKUP($A86,Filtro.12!$A$4:$AL$2956,29,FALSE),0) -> 0 | AF86: =IFERROR(VLOOKUP($A86,Filtro.12!$A$4:$AL$2956,30,FALSE),0) -> 0 | AG86: =IFERROR(VLOOKUP($A86,Filtro.12!$A$4:$AL$2956,31,FALSE),0) -> 0 | AH86: =IFERROR(VLOOKUP($A86,Filtro.12!$A$4:$AL$2956,32,FALSE),0) -> 0 | AI86: =IFERROR(VLOOKUP($A86,Filtro.12!$A$4:$AL$2956,33,FALSE),0) -> 0 | AJ86: =IFERROR(VLOOKUP($A86,Filtro.12!$A$4:$AL$2956,34,FALSE),0) -> 0 | AK86: =IFERROR(VLOOKUP($A86,Filtro.12!$A$4:$AL$2956,35,FALSE),0) -> 0 | AL86: 8,000 | AM86: =IFERROR(VLOOKUP($A86,Filtro.12!$A$4:$AL$2956,37,FALSE),0) -> 88,000
A87: 01014338 | B87: 0108304 | C87: Teleconsulta Médica de Especialidad en Inmunología | D87: =IFERROR(VLOOKUP($A87,Filtro.12!$A$4:$AL$2956,2,FALSE),0) -> 477 | E87: =IFERROR(VLOOKUP($A87,Filtro.12!$A$4:$AL$2956,3,FALSE),0) -> 473 | F87: =IFERROR(VLOOKUP($A87,Filtro.12!$A$4:$AL$2956,4,FALSE),0) -> 473 | G87: =IFERROR(VLOOKUP($A87,Filtro.12!$A$4:$AL$2956,5,FALSE),0) -> 0 | H87: =IFERROR(VLOOKUP($A87,Filtro.12!$A$4:$AL$2956,6,FALSE),0) -> 4 | AB87: =IFERROR(VLOOKUP($A87,Filtro.12!$A$4:$AL$2956,26,FALSE),0) -> 0 | AC87: =IFERROR(VLOOKUP($A87,Filtro.12!$A$4:$AL$2956,27,FALSE),0) -> 477 | AD87: =IFERROR(VLOOKUP($A87,Filtro.12!$A$4:$AL$2956,28,FALSE),0) -> 0 | AE87: =IFERROR(VLOOKUP($A87,Filtro.12!$A$4:$AL$2956,29,FALSE),0) -> 0 | AF87: =IFERROR(VLOOKUP($A87,Filtro.12!$A$4:$AL$2956,30,FALSE),0) -> 0 | AG87: =IFERROR(VLOOKUP($A87,Filtro.12!$A$4:$AL$2956,31,FALSE),0) -> 0 | AH87: =IFERROR(VLOOKUP($A87,Filtro.12!$A$4:$AL$2956,32,FALSE),0) -> 0 | AI87: =IFERROR(VLOOKUP($A87,Filtro.12!$A$4:$AL$2956,33,FALSE),0) -> 0 | AJ87: =IFERROR(VLOOKUP($A87,Filtro.12!$A$4:$AL$2956,34,FALSE),0) -> 0 | AK87: =IFERROR(VLOOKUP($A87,Filtro.12!$A$4:$AL$2956,35,FALSE),0) -> 0 | AL87: 8,000 | AM87: =IFERROR(VLOOKUP($A87,Filtro.12!$A$4:$AL$2956,37,FALSE),0) -> 3,784,000
A88: 01014339 | B88: 0108305 | C88: Teleconsulta Médica de Especialidad en Medicina Familiar | D88: =IFERROR(VLOOKUP($A88,Filtro.12!$A$4:$AL$2956,2,FALSE),0) -> 63 | E88: =IFERROR(VLOOKUP($A88,Filtro.12!$A$4:$AL$2956,3,FALSE),0) -> 63 | F88: =IFERROR(VLOOKUP($A88,Filtro.12!$A$4:$AL$2956,4,FALSE),0) -> 63 | G88: =IFERROR(VLOOKUP($A88,Filtro.12!$A$4:$AL$2956,5,FALSE),0) -> 0 | H88: =IFERROR(VLOOKUP($A88,Filtro.12!$A$4:$AL$2956,6,FALSE),0) -> 0 | AB88: =IFERROR(VLOOKUP($A88,Filtro.12!$A$4:$AL$2956,26,FALSE),0) -> 0 | AC88: =IFERROR(VLOOKUP($A88,Filtro.12!$A$4:$AL$2956,27,FALSE),0) -> 63 | AD88: =IFERROR(VLOOKUP($A88,Filtro.12!$A$4:$AL$2956,28,FALSE),0) -> 0 | AE88: =IFERROR(VLOOKUP($A88,Filtro.12!$A$4:$AL$2956,29,FALSE),0) -> 0 | AF88: =IFERROR(VLOOKUP($A88,Filtro.12!$A$4:$AL$2956,30,FALSE),0) -> 0 | AG88: =IFERROR(VLOOKUP($A88,Filtro.12!$A$4:$AL$2956,31,FALSE),0) -> 0 | AH88: =IFERROR(VLOOKUP($A88,Filtro.12!$A$4:$AL$2956,32,FALSE),0) -> 0 | AI88: =IFERROR(VLOOKUP($A88,Filtro.12!$A$4:$AL$2956,33,FALSE),0) -> 0 | AJ88: =IFERROR(VLOOKUP($A88,Filtro.12!$A$4:$AL$2956,34,FALSE),0) -> 0 | AK88: =IFERROR(VLOOKUP($A88,Filtro.12!$A$4:$AL$2956,35,FALSE),0) -> 0 | AL88: 8,000 | AM88: =IFERROR(VLOOKUP($A88,Filtro.12!$A$4:$AL$2956,37,FALSE),0) -> 504,000
A89: 01014340 | B89: 0108306 | C89: Teleconsulta Médica de Especialidad en Medicina Física y Rehabilitación | D89: =IFERROR(VLOOKUP($A89,Filtro.12!$A$4:$AL$2956,2,FALSE),0) -> 201 | E89: =IFERROR(VLOOKUP($A89,Filtro.12!$A$4:$AL$2956,3,FALSE),0) -> 201 | F89: =IFERROR(VLOOKUP($A89,Filtro.12!$A$4:$AL$2956,4,FALSE),0) -> 201 | G89: =IFERROR(VLOOKUP($A89,Filtro.12!$A$4:$AL$2956,5,FALSE),0) -> 0 | H89: =IFERROR(VLOOKUP($A89,Filtro.12!$A$4:$AL$2956,6,FALSE),0) -> 0 | AB89: =IFERROR(VLOOKUP($A89,Filtro.12!$A$4:$AL$2956,26,FALSE),0) -> 0 | AC89: =IFERROR(VLOOKUP($A89,Filtro.12!$A$4:$AL$2956,27,FALSE),0) -> 201 | AD89: =IFERROR(VLOOKUP($A89,Filtro.12!$A$4:$AL$2956,28,FALSE),0) -> 0 | AE89: =IFERROR(VLOOKUP($A89,Filtro.12!$A$4:$AL$2956,29,FALSE),0) -> 0 | AF89: =IFERROR(VLOOKUP($A89,Filtro.12!$A$4:$AL$2956,30,FALSE),0) -> 0 | AG89: =IFERROR(VLOOKUP($A89,Filtro.12!$A$4:$AL$2956,31,FALSE),0) -> 0 | AH89: =IFERROR(VLOOKUP($A89,Filtro.12!$A$4:$AL$2956,32,FALSE),0) -> 0 | AI89: =IFERROR(VLOOKUP($A89,Filtro.12!$A$4:$AL$2956,33,FALSE),0) -> 0 | AJ89: =IFERROR(VLOOKUP($A89,Filtro.12!$A$4:$AL$2956,34,FALSE),0) -> 0 | AK89: =IFERROR(VLOOKUP($A89,Filtro.12!$A$4:$AL$2956,35,FALSE),0) -> 0 | AL89: 8,000 | AM89: =IFERROR(VLOOKUP($A89,Filtro.12!$A$4:$AL$2956,37,FALSE),0) -> 1,608,000
A90: 01014341 | B90: 0108307 | C90: Teleconsulta Médica de Especialidad en Medicina Interna | D90: =IFERROR(VLOOKUP($A90,Filtro.12!$A$4:$AL$2956,2,FALSE),0) -> 3529 | E90: =IFERROR(VLOOKUP($A90,Filtro.12!$A$4:$AL$2956,3,FALSE),0) -> 3521 | F90: =IFERROR(VLOOKUP($A90,Filtro.12!$A$4:$AL$2956,4,FALSE),0) -> 3521 | G90: =IFERROR(VLOOKUP($A90,Filtro.12!$A$4:$AL$2956,5,FALSE),0) -> 0 | H90: =IFERROR(VLOOKUP($A90,Filtro.12!$A$4:$AL$2956,6,FALSE),0) -> 8 | AB90: =IFERROR(VLOOKUP($A90,Filtro.12!$A$4:$AL$2956,26,FALSE),0) -> 0 | AC90: =IFERROR(VLOOKUP($A90,Filtro.12!$A$4:$AL$2956,27,FALSE),0) -> 3529 | AD90: =IFERROR(VLOOKUP($A90,Filtro.12!$A$4:$AL$2956,28,FALSE),0) -> 0 | AE90: =IFERROR(VLOOKUP($A90,Filtro.12!$A$4:$AL$2956,29,FALSE),0) -> 0 | AF90: =IFERROR(VLOOKUP($A90,Filtro.12!$A$4:$AL$2956,30,FALSE),0) -> 0 | AG90: =IFERROR(VLOOKUP($A90,Filtro.12!$A$4:$AL$2956,31,FALSE),0) -> 0 | AH90: =IFERROR(VLOOKUP($A90,Filtro.12!$A$4:$AL$2956,32,FALSE),0) -> 0 | AI90: =IFERROR(VLOOKUP($A90,Filtro.12!$A$4:$AL$2956,33,FALSE),0) -> 0 | AJ90: =IFERROR(VLOOKUP($A90,Filtro.12!$A$4:$AL$2956,34,FALSE),0) -> 0 | AK90: =IFERROR(VLOOKUP($A90,Filtro.12!$A$4:$AL$2956,35,FALSE),0) -> 0 | AL90: 8,000 | AM90: =IFERROR(VLOOKUP($A90,Filtro.12!$A$4:$AL$2956,37,FALSE),0) -> 28,168,000
A91: 01014342 | B91: 0108308 | C91: Teleconsulta Médica de Especialidad en Obstetricia y Ginecología | D91: =IFERROR(VLOOKUP($A91,Filtro.12!$A$4:$AL$2956,2,FALSE),0) -> 142 | E91: =IFERROR(VLOOKUP($A91,Filtro.12!$A$4:$AL$2956,3,FALSE),0) -> 142 | F91: =IFERROR(VLOOKUP($A91,Filtro.12!$A$4:$AL$2956,4,FALSE),0) -> 142 | G91: =IFERROR(VLOOKUP($A91,Filtro.12!$A$4:$AL$2956,5,FALSE),0) -> 0 | H91: =IFERROR(VLOOKUP($A91,Filtro.12!$A$4:$AL$2956,6,FALSE),0) -> 0 | AB91: =IFERROR(VLOOKUP($A91,Filtro.12!$A$4:$AL$2956,26,FALSE),0) -> 0 | AC91: =IFERROR(VLOOKUP($A91,Filtro.12!$A$4:$AL$2956,27,FALSE),0) -> 142 | AD91: =IFERROR(VLOOKUP($A91,Filtro.12!$A$4:$AL$2956,28,FALSE),0) -> 0 | AE91: =IFERROR(VLOOKUP($A91,Filtro.12!$A$4:$AL$2956,29,FALSE),0) -> 0 | AF91: =IFERROR(VLOOKUP($A91,Filtro.12!$A$4:$AL$2956,30,FALSE),0) -> 0 | AG91: =IFERROR(VLOOKUP($A91,Filtro.12!$A$4:$AL$2956,31,FALSE),0) -> 0 | AH91: =IFERROR(VLOOKUP($A91,Filtro.12!$A$4:$AL$2956,32,FALSE),0) -> 0 | AI91: =IFERROR(VLOOKUP($A91,Filtro.12!$A$4:$AL$2956,33,FALSE),0) -> 0 | AJ91: =IFERROR(VLOOKUP($A91,Filtro.12!$A$4:$AL$2956,34,FALSE),0) -> 0 | AK91: =IFERROR(VLOOKUP($A91,Filtro.12!$A$4:$AL$2956,35,FALSE),0) -> 0 | AL91: 8,000 | AM91: =IFERROR(VLOOKUP($A91,Filtro.12!$A$4:$AL$2956,37,FALSE),0) -> 1,136,000
A92: 01014343 | B92: 0108309 | C92: Teleconsulta Médica de Especialidad en Pediatría | D92: =IFERROR(VLOOKUP($A92,Filtro.12!$A$4:$AL$2956,2,FALSE),0) -> 106 | E92: =IFERROR(VLOOKUP($A92,Filtro.12!$A$4:$AL$2956,3,FALSE),0) -> 106 | F92: =IFERROR(VLOOKUP($A92,Filtro.12!$A$4:$AL$2956,4,FALSE),0) -> 106 | G92: =IFERROR(VLOOKUP($A92,Filtro.12!$A$4:$AL$2956,5,FALSE),0) -> 0 | H92: =IFERROR(VLOOKUP($A92,Filtro.12!$A$4:$AL$2956,6,FALSE),0) -> 0 | AB92: =IFERROR(VLOOKUP($A92,Filtro.12!$A$4:$AL$2956,26,FALSE),0) -> 0 | AC92: =IFERROR(VLOOKUP($A92,Filtro.12!$A$4:$AL$2956,27,FALSE),0) -> 106 | AD92: =IFERROR(VLOOKUP($A92,Filtro.12!$A$4:$AL$2956,28,FALSE),0) -> 0 | AE92: =IFERROR(VLOOKUP($A92,Filtro.12!$A$4:$AL$2956,29,FALSE),0) -> 0 | AF92: =IFERROR(VLOOKUP($A92,Filtro.12!$A$4:$AL$2956,30,FALSE),0) -> 0 | AG92: =IFERROR(VLOOKUP($A92,Filtro.12!$A$4:$AL$2956,31,FALSE),0) -> 0 | AH92: =IFERROR(VLOOKUP($A92,Filtro.12!$A$4:$AL$2956,32,FALSE),0) -> 0 | AI92: =IFERROR(VLOOKUP($A92,Filtro.12!$A$4:$AL$2956,33,FALSE),0) -> 0 | AJ92: =IFERROR(VLOOKUP($A92,Filtro.12!$A$4:$AL$2956,34,FALSE),0) -> 0 | AK92: =IFERROR(VLOOKUP($A92,Filtro.12!$A$4:$AL$2956,35,FALSE),0) -> 0 | AL92: 8,000 | AM92: =IFERROR(VLOOKUP($A92,Filtro.12!$A$4:$AL$2956,37,FALSE),0) -> 848,000
A93: 01014344 | B93: 0108310 | C93: Teleconsulta Médica de Especialidad en Traumatología y Ortopedia | D93: =IFERROR(VLOOKUP($A93,Filtro.12!$A$4:$AL$2956,2,FALSE),0) -> 0 | E93: =IFERROR(VLOOKUP($A93,Filtro.12!$A$4:$AL$2956,3,FALSE),0) -> 0 | F93: =IFERROR(VLOOKUP($A93,Filtro.12!$A$4:$AL$2956,4,FALSE),0) -> 0 | G93: =IFERROR(VLOOKUP($A93,Filtro.12!$A$4:$AL$2956,5,FALSE),0) -> 0 | H93: =IFERROR(VLOOKUP($A93,Filtro.12!$A$4:$AL$2956,6,FALSE),0) -> 0 | AB93: =IFERROR(VLOOKUP($A93,Filtro.12!$A$4:$AL$2956,26,FALSE),0) -> 0 | AC93: =IFERROR(VLOOKUP($A93,Filtro.12!$A$4:$AL$2956,27,FALSE),0) -> 0 | AD93: =IFERROR(VLOOKUP($A93,Filtro.12!$A$4:$AL$2956,28,FALSE),0) -> 0 | AE93: =IFERROR(VLOOKUP($A93,Filtro.12!$A$4:$AL$2956,29,FALSE),0) -> 0 | AF93: =IFERROR(VLOOKUP($A93,Filtro.12!$A$4:$AL$2956,30,FALSE),0) -> 0 | AG93: =IFERROR(VLOOKUP($A93,Filtro.12!$A$4:$AL$2956,31,FALSE),0) -> 0 | AH93: =IFERROR(VLOOKUP($A93,Filtro.12!$A$4:$AL$2956,32,FALSE),0) -> 0 | AI93: =IFERROR(VLOOKUP($A93,Filtro.12!$A$4:$AL$2956,33,FALSE),0) -> 0 | AJ93: =IFERROR(VLOOKUP($A93,Filtro.12!$A$4:$AL$2956,34,FALSE),0) -> 0 | AK93: =IFERROR(VLOOKUP($A93,Filtro.12!$A$4:$AL$2956,35,FALSE),0) -> 0 | AL93: 8,000 | AM93: =IFERROR(VLOOKUP($A93,Filtro.12!$A$4:$AL$2956,37,FALSE),0) -> 0
A94: 01014345 | B94: 0108311 | C94: Teleconsulta Médica de Especialidad en Urología | D94: =IFERROR(VLOOKUP($A94,Filtro.12!$A$4:$AL$2956,2,FALSE),0) -> 1 | E94: =IFERROR(VLOOKUP($A94,Filtro.12!$A$4:$AL$2956,3,FALSE),0) -> 1 | F94: =IFERROR(VLOOKUP($A94,Filtro.12!$A$4:$AL$2956,4,FALSE),0) -> 1 | G94: =IFERROR(VLOOKUP($A94,Filtro.12!$A$4:$AL$2956,5,FALSE),0) -> 0 | H94: =IFERROR(VLOOKUP($A94,Filtro.12!$A$4:$AL$2956,6,FALSE),0) -> 0 | AB94: =IFERROR(VLOOKUP($A94,Filtro.12!$A$4:$AL$2956,26,FALSE),0) -> 0 | AC94: =IFERROR(VLOOKUP($A94,Filtro.12!$A$4:$AL$2956,27,FALSE),0) -> 1 | AD94: =IFERROR(VLOOKUP($A94,Filtro.12!$A$4:$AL$2956,28,FALSE),0) -> 0 | AE94: =IFERROR(VLOOKUP($A94,Filtro.12!$A$4:$AL$2956,29,FALSE),0) -> 0 | AF94: =IFERROR(VLOOKUP($A94,Filtro.12!$A$4:$AL$2956,30,FALSE),0) -> 0 | AG94: =IFERROR(VLOOKUP($A94,Filtro.12!$A$4:$AL$2956,31,FALSE),0) -> 0 | AH94: =IFERROR(VLOOKUP($A94,Filtro.12!$A$4:$AL$2956,32,FALSE),0) -> 0 | AI94: =IFERROR(VLOOKUP($A94,Filtro.12!$A$4:$AL$2956,33,FALSE),0) -> 0 | AJ94: =IFERROR(VLOOKUP($A94,Filtro.12!$A$4:$AL$2956,34,FALSE),0) -> 0 | AK94: =IFERROR(VLOOKUP($A94,Filtro.12!$A$4:$AL$2956,35,FALSE),0) -> 0 | AL94: 8,000 | AM94: =IFERROR(VLOOKUP($A94,Filtro.12!$A$4:$AL$2956,37,FALSE),0) -> 8,000
A95: 01014346 | B95: 0108319 | C95: Teleconsulta Médica de Especialidad en Coloproctología | D95: =IFERROR(VLOOKUP($A95,Filtro.12!$A$4:$AL$2956,2,FALSE),0) -> 52 | E95: =IFERROR(VLOOKUP($A95,Filtro.12!$A$4:$AL$2956,3,FALSE),0) -> 52 | F95: =IFERROR(VLOOKUP($A95,Filtro.12!$A$4:$AL$2956,4,FALSE),0) -> 52 | G95: =IFERROR(VLOOKUP($A95,Filtro.12!$A$4:$AL$2956,5,FALSE),0) -> 0 | H95: =IFERROR(VLOOKUP($A95,Filtro.12!$A$4:$AL$2956,6,FALSE),0) -> 0 | AB95: =IFERROR(VLOOKUP($A95,Filtro.12!$A$4:$AL$2956,26,FALSE),0) -> 0 | AC95: =IFERROR(VLOOKUP($A95,Filtro.12!$A$4:$AL$2956,27,FALSE),0) -> 52 | AD95: =IFERROR(VLOOKUP($A95,Filtro.12!$A$4:$AL$2956,28,FALSE),0) -> 0 | AE95: =IFERROR(VLOOKUP($A95,Filtro.12!$A$4:$AL$2956,29,FALSE),0) -> 0 | AF95: =IFERROR(VLOOKUP($A95,Filtro.12!$A$4:$AL$2956,30,FALSE),0) -> 0 | AG95: =IFERROR(VLOOKUP($A95,Filtro.12!$A$4:$AL$2956,31,FALSE),0) -> 0 | AH95: =IFERROR(VLOOKUP($A95,Filtro.12!$A$4:$AL$2956,32,FALSE),0) -> 0 | AI95: =IFERROR(VLOOKUP($A95,Filtro.12!$A$4:$AL$2956,33,FALSE),0) -> 0 | AJ95: =IFERROR(VLOOKUP($A95,Filtro.12!$A$4:$AL$2956,34,FALSE),0) -> 0 | AK95: =IFERROR(VLOOKUP($A95,Filtro.12!$A$4:$AL$2956,35,FALSE),0) -> 0 | AL95: 8,000 | AM95: =IFERROR(VLOOKUP($A95,Filtro.12!$A$4:$AL$2956,37,FALSE),0) -> 416,000
A96: 01014347 | B96: 0108320 | C96: Teleconsulta Médica de Especialidad en Diabetología | D96: =IFERROR(VLOOKUP($A96,Filtro.12!$A$4:$AL$2956,2,FALSE),0) -> 22 | E96: =IFERROR(VLOOKUP($A96,Filtro.12!$A$4:$AL$2956,3,FALSE),0) -> 22 | F96: =IFERROR(VLOOKUP($A96,Filtro.12!$A$4:$AL$2956,4,FALSE),0) -> 22 | G96: =IFERROR(VLOOKUP($A96,Filtro.12!$A$4:$AL$2956,5,FALSE),0) -> 0 | H96: =IFERROR(VLOOKUP($A96,Filtro.12!$A$4:$AL$2956,6,FALSE),0) -> 0 | AB96: =IFERROR(VLOOKUP($A96,Filtro.12!$A$4:$AL$2956,26,FALSE),0) -> 0 | AC96: =IFERROR(VLOOKUP($A96,Filtro.12!$A$4:$AL$2956,27,FALSE),0) -> 22 | AD96: =IFERROR(VLOOKUP($A96,Filtro.12!$A$4:$AL$2956,28,FALSE),0) -> 0 | AE96: =IFERROR(VLOOKUP($A96,Filtro.12!$A$4:$AL$2956,29,FALSE),0) -> 0 | AF96: =IFERROR(VLOOKUP($A96,Filtro.12!$A$4:$AL$2956,30,FALSE),0) -> 0 | AG96: =IFERROR(VLOOKUP($A96,Filtro.12!$A$4:$AL$2956,31,FALSE),0) -> 0 | AH96: =IFERROR(VLOOKUP($A96,Filtro.12!$A$4:$AL$2956,32,FALSE),0) -> 0 | AI96: =IFERROR(VLOOKUP($A96,Filtro.12!$A$4:$AL$2956,33,FALSE),0) -> 0 | AJ96: =IFERROR(VLOOKUP($A96,Filtro.12!$A$4:$AL$2956,34,FALSE),0) -> 0 | AK96: =IFERROR(VLOOKUP($A96,Filtro.12!$A$4:$AL$2956,35,FALSE),0) -> 0 | AL96: 8,000 | AM96: =IFERROR(VLOOKUP($A96,Filtro.12!$A$4:$AL$2956,37,FALSE),0) -> 176,000
A97: 01014348 | B97: 0108321 | C97: Teleconsulta Médica de Especialidad en Enfermedades Respiratorias Adulto | D97: =IFERROR(VLOOKUP($A97,Filtro.12!$A$4:$AL$2956,2,FALSE),0) -> 92 | E97: =IFERROR(VLOOKUP($A97,Filtro.12!$A$4:$AL$2956,3,FALSE),0) -> 92 | F97: =IFERROR(VLOOKUP($A97,Filtro.12!$A$4:$AL$2956,4,FALSE),0) -> 92 | G97: =IFERROR(VLOOKUP($A97,Filtro.12!$A$4:$AL$2956,5,FALSE),0) -> 0 | H97: =IFERROR(VLOOKUP($A97,Filtro.12!$A$4:$AL$2956,6,FALSE),0) -> 0 | AB97: =IFERROR(VLOOKUP($A97,Filtro.12!$A$4:$AL$2956,26,FALSE),0) -> 0 | AC97: =IFERROR(VLOOKUP($A97,Filtro.12!$A$4:$AL$2956,27,FALSE),0) -> 92 | AD97: =IFERROR(VLOOKUP($A97,Filtro.12!$A$4:$AL$2956,28,FALSE),0) -> 0 | AE97: =IFERROR(VLOOKUP($A97,Filtro.12!$A$4:$AL$2956,29,FALSE),0) -> 0 | AF97: =IFERROR(VLOOKUP($A97,Filtro.12!$A$4:$AL$2956,30,FALSE),0) -> 0 | AG97: =IFERROR(VLOOKUP($A97,Filtro.12!$A$4:$AL$2956,31,FALSE),0) -> 0 | AH97: =IFERROR(VLOOKUP($A97,Filtro.12!$A$4:$AL$2956,32,FALSE),0) -> 0 | AI97: =IFERROR(VLOOKUP($A97,Filtro.12!$A$4:$AL$2956,33,FALSE),0) -> 0 | AJ97: =IFERROR(VLOOKUP($A97,Filtro.12!$A$4:$AL$2956,34,FALSE),0) -> 0 | AK97: =IFERROR(VLOOKUP($A97,Filtro.12!$A$4:$AL$2956,35,FALSE),0) -> 0 | AL97: 8,000 | AM97: =IFERROR(VLOOKUP($A97,Filtro.12!$A$4:$AL$2956,37,FALSE),0) -> 736,000
A98: 01014349 | B98: 0108322 | C98: Teleconsulta Médica de Especialidad en Enfermedades Respiratorias Pediátricas | D98: =IFERROR(VLOOKUP($A98,Filtro.12!$A$4:$AL$2956,2,FALSE),0) -> 106 | E98: =IFERROR(VLOOKUP($A98,Filtro.12!$A$4:$AL$2956,3,FALSE),0) -> 106 | F98: =IFERROR(VLOOKUP($A98,Filtro.12!$A$4:$AL$2956,4,FALSE),0) -> 106 | G98: =IFERROR(VLOOKUP($A98,Filtro.12!$A$4:$AL$2956,5,FALSE),0) -> 0 | H98: =IFERROR(VLOOKUP($A98,Filtro.12!$A$4:$AL$2956,6,FALSE),0) -> 0 | AB98: =IFERROR(VLOOKUP($A98,Filtro.12!$A$4:$AL$2956,26,FALSE),0) -> 0 | AC98: =IFERROR(VLOOKUP($A98,Filtro.12!$A$4:$AL$2956,27,FALSE),0) -> 106 | AD98: =IFERROR(VLOOKUP($A98,Filtro.12!$A$4:$AL$2956,28,FALSE),0) -> 0 | AE98: =IFERROR(VLOOKUP($A98,Filtro.12!$A$4:$AL$2956,29,FALSE),0) -> 0 | AF98: =IFERROR(VLOOKUP($A98,Filtro.12!$A$4:$AL$2956,30,FALSE),0) -> 0 | AG98: =IFERROR(VLOOKUP($A98,Filtro.12!$A$4:$AL$2956,31,FALSE),0) -> 0 | AH98: =IFERROR(VLOOKUP($A98,Filtro.12!$A$4:$AL$2956,32,FALSE),0) -> 0 | AI98: =IFERROR(VLOOKUP($A98,Filtro.12!$A$4:$AL$2956,33,FALSE),0) -> 0 | AJ98: =IFERROR(VLOOKUP($A98,Filtro.12!$A$4:$AL$2956,34,FALSE),0) -> 0 | AK98: =IFERROR(VLOOKUP($A98,Filtro.12!$A$4:$AL$2956,35,FALSE),0) -> 0 | AL98: 8,000 | AM98: =IFERROR(VLOOKUP($A98,Filtro.12!$A$4:$AL$2956,37,FALSE),0) -> 848,000
A99: 01014350 | B99: 0108323 | C99: Teleconsulta Médica de Especialidad en Gastroenterología Adulto | D99: =IFERROR(VLOOKUP($A99,Filtro.12!$A$4:$AL$2956,2,FALSE),0) -> 45 | E99: =IFERROR(VLOOKUP($A99,Filtro.12!$A$4:$AL$2956,3,FALSE),0) -> 45 | F99: =IFERROR(VLOOKUP($A99,Filtro.12!$A$4:$AL$2956,4,FALSE),0) -> 45 | G99: =IFERROR(VLOOKUP($A99,Filtro.12!$A$4:$AL$2956,5,FALSE),0) -> 0 | H99: =IFERROR(VLOOKUP($A99,Filtro.12!$A$4:$AL$2956,6,FALSE),0) -> 0 | AB99: =IFERROR(VLOOKUP($A99,Filtro.12!$A$4:$AL$2956,26,FALSE),0) -> 0 | AC99: =IFERROR(VLOOKUP($A99,Filtro.12!$A$4:$AL$2956,27,FALSE),0) -> 45 | AD99: =IFERROR(VLOOKUP($A99,Filtro.12!$A$4:$AL$2956,28,FALSE),0) -> 0 | AE99: =IFERROR(VLOOKUP($A99,Filtro.12!$A$4:$AL$2956,29,FALSE),0) -> 0 | AF99: =IFERROR(VLOOKUP($A99,Filtro.12!$A$4:$AL$2956,30,FALSE),0) -> 0 | AG99: =IFERROR(VLOOKUP($A99,Filtro.12!$A$4:$AL$2956,31,FALSE),0) -> 0 | AH99: =IFERROR(VLOOKUP($A99,Filtro.12!$A$4:$AL$2956,32,FALSE),0) -> 0 | AI99: =IFERROR(VLOOKUP($A99,Filtro.12!$A$4:$AL$2956,33,FALSE),0) -> 0 | AJ99: =IFERROR(VLOOKUP($A99,Filtro.12!$A$4:$AL$2956,34,FALSE),0) -> 0 | AK99: =IFERROR(VLOOKUP($A99,Filtro.12!$A$4:$AL$2956,35,FALSE),0) -> 0 | AL99: 8,000 | AM99: =IFERROR(VLOOKUP($A99,Filtro.12!$A$4:$AL$2956,37,FALSE),0) -> 360,000
A100: 01014351 | B100: 0108324 | C100: Teleconsulta Médica de Especialidad en Gastroenterología Pediátrico | D100: =IFERROR(VLOOKUP($A100,Filtro.12!$A$4:$AL$2956,2,FALSE),0) -> 69 | E100: =IFERROR(VLOOKUP($A100,Filtro.12!$A$4:$AL$2956,3,FALSE),0) -> 69 | F100: =IFERROR(VLOOKUP($A100,Filtro.12!$A$4:$AL$2956,4,FALSE),0) -> 69 | G100: =IFERROR(VLOOKUP($A100,Filtro.12!$A$4:$AL$2956,5,FALSE),0) -> 0 | H100: =IFERROR(VLOOKUP($A100,Filtro.12!$A$4:$AL$2956,6,FALSE),0) -> 0 | AB100: =IFERROR(VLOOKUP($A100,Filtro.12!$A$4:$AL$2956,26,FALSE),0) -> 0 | AC100: =IFERROR(VLOOKUP($A100,Filtro.12!$A$4:$AL$2956,27,FALSE),0) -> 69 | AD100: =IFERROR(VLOOKUP($A100,Filtro.12!$A$4:$AL$2956,28,FALSE),0) -> 0 | AE100: =IFERROR(VLOOKUP($A100,Filtro.12!$A$4:$AL$2956,29,FALSE),0) -> 0 | AF100: =IFERROR(VLOOKUP($A100,Filtro.12!$A$4:$AL$2956,30,FALSE),0) -> 0 | AG100: =IFERROR(VLOOKUP($A100,Filtro.12!$A$4:$AL$2956,31,FALSE),0) -> 0 | AH100: =IFERROR(VLOOKUP($A100,Filtro.12!$A$4:$AL$2956,32,FALSE),0) -> 0 | AI100: =IFERROR(VLOOKUP($A100,Filtro.12!$A$4:$AL$2956,33,FALSE),0) -> 0 | AJ100: =IFERROR(VLOOKUP($A100,Filtro.12!$A$4:$AL$2956,34,FALSE),0) -> 0 | AK100: =IFERROR(VLOOKUP($A100,Filtro.12!$A$4:$AL$2956,35,FALSE),0) -> 0 | AL100: 8,000 | AM100: =IFERROR(VLOOKUP($A100,Filtro.12!$A$4:$AL$2956,37,FALSE),0) -> 552,000
A101: 01014352 | B101: 0108325 | C101: Teleconsulta Médica de Especialidad en Genética Clínica | D101: =IFERROR(VLOOKUP($A101,Filtro.12!$A$4:$AL$2956,2,FALSE),0) -> 67 | E101: =IFERROR(VLOOKUP($A101,Filtro.12!$A$4:$AL$2956,3,FALSE),0) -> 67 | F101: =IFERROR(VLOOKUP($A101,Filtro.12!$A$4:$AL$2956,4,FALSE),0) -> 67 | G101: =IFERROR(VLOOKUP($A101,Filtro.12!$A$4:$AL$2956,5,FALSE),0) -> 0 | H101: =IFERROR(VLOOKUP($A101,Filtro.12!$A$4:$AL$2956,6,FALSE),0) -> 0 | AB101: =IFERROR(VLOOKUP($A101,Filtro.12!$A$4:$AL$2956,26,FALSE),0) -> 0 | AC101: =IFERROR(VLOOKUP($A101,Filtro.12!$A$4:$AL$2956,27,FALSE),0) -> 67 | AD101: =IFERROR(VLOOKUP($A101,Filtro.12!$A$4:$AL$2956,28,FALSE),0) -> 0 | AE101: =IFERROR(VLOOKUP($A101,Filtro.12!$A$4:$AL$2956,29,FALSE),0) -> 0 | AF101: =IFERROR(VLOOKUP($A101,Filtro.12!$A$4:$AL$2956,30,FALSE),0) -> 0 | AG101: =IFERROR(VLOOKUP($A101,Filtro.12!$A$4:$AL$2956,31,FALSE),0) -> 0 | AH101: =IFERROR(VLOOKUP($A101,Filtro.12!$A$4:$AL$2956,32,FALSE),0) -> 0 | AI101: =IFERROR(VLOOKUP($A101,Filtro.12!$A$4:$AL$2956,33,FALSE),0) -> 0 | AJ101: =IFERROR(VLOOKUP($A101,Filtro.12!$A$4:$AL$2956,34,FALSE),0) -> 0 | AK101: =IFERROR(VLOOKUP($A101,Filtro.12!$A$4:$AL$2956,35,FALSE),0) -> 0 | AL101: 8,000 | AM101: =IFERROR(VLOOKUP($A101,Filtro.12!$A$4:$AL$2956,37,FALSE),0) -> 536,000
A102: 01014353 | B102: 0108326 | C102: Teleconsulta Médica de Especialidad en Nefrología Adulto | D102: =IFERROR(VLOOKUP($A102,Filtro.12!$A$4:$AL$2956,2,FALSE),0) -> 769 | E102: =IFERROR(VLOOKUP($A102,Filtro.12!$A$4:$AL$2956,3,FALSE),0) -> 766 | F102: =IFERROR(VLOOKUP($A102,Filtro.12!$A$4:$AL$2956,4,FALSE),0) -> 766 | G102: =IFERROR(VLOOKUP($A102,Filtro.12!$A$4:$AL$2956,5,FALSE),0) -> 0 | H102: =IFERROR(VLOOKUP($A102,Filtro.12!$A$4:$AL$2956,6,FALSE),0) -> 3 | AB102: =IFERROR(VLOOKUP($A102,Filtro.12!$A$4:$AL$2956,26,FALSE),0) -> 0 | AC102: =IFERROR(VLOOKUP($A102,Filtro.12!$A$4:$AL$2956,27,FALSE),0) -> 769 | AD102: =IFERROR(VLOOKUP($A102,Filtro.12!$A$4:$AL$2956,28,FALSE),0) -> 0 | AE102: =IFERROR(VLOOKUP($A102,Filtro.12!$A$4:$AL$2956,29,FALSE),0) -> 0 | AF102: =IFERROR(VLOOKUP($A102,Filtro.12!$A$4:$AL$2956,30,FALSE),0) -> 0 | AG102: =IFERROR(VLOOKUP($A102,Filtro.12!$A$4:$AL$2956,31,FALSE),0) -> 0 | AH102: =IFERROR(VLOOKUP($A102,Filtro.12!$A$4:$AL$2956,32,FALSE),0) -> 0 | AI102: =IFERROR(VLOOKUP($A102,Filtro.12!$A$4:$AL$2956,33,FALSE),0) -> 0 | AJ102: =IFERROR(VLOOKUP($A102,Filtro.12!$A$4:$AL$2956,34,FALSE),0) -> 0 | AK102: =IFERROR(VLOOKUP($A102,Filtro.12!$A$4:$AL$2956,35,FALSE),0) -> 0 | AL102: 8,000 | AM102: =IFERROR(VLOOKUP($A102,Filtro.12!$A$4:$AL$2956,37,FALSE),0) -> 6,128,000
A103: 01014354 | B103: 0108327 | C103: Teleconsulta Médica de Especialidad en Nefrología Pediátrico | D103: =IFERROR(VLOOKUP($A103,Filtro.12!$A$4:$AL$2956,2,FALSE),0) -> 3 | E103: =IFERROR(VLOOKUP($A103,Filtro.12!$A$4:$AL$2956,3,FALSE),0) -> 3 | F103: =IFERROR(VLOOKUP($A103,Filtro.12!$A$4:$AL$2956,4,FALSE),0) -> 3 | G103: =IFERROR(VLOOKUP($A103,Filtro.12!$A$4:$AL$2956,5,FALSE),0) -> 0 | H103: =IFERROR(VLOOKUP($A103,Filtro.12!$A$4:$AL$2956,6,FALSE),0) -> 0 | AB103: =IFERROR(VLOOKUP($A103,Filtro.12!$A$4:$AL$2956,26,FALSE),0) -> 0 | AC103: =IFERROR(VLOOKUP($A103,Filtro.12!$A$4:$AL$2956,27,FALSE),0) -> 3 | AD103: =IFERROR(VLOOKUP($A103,Filtro.12!$A$4:$AL$2956,28,FALSE),0) -> 0 | AE103: =IFERROR(VLOOKUP($A103,Filtro.12!$A$4:$AL$2956,29,FALSE),0) -> 0 | AF103: =IFERROR(VLOOKUP($A103,Filtro.12!$A$4:$AL$2956,30,FALSE),0) -> 0 | AG103: =IFERROR(VLOOKUP($A103,Filtro.12!$A$4:$AL$2956,31,FALSE),0) -> 0 | AH103: =IFERROR(VLOOKUP($A103,Filtro.12!$A$4:$AL$2956,32,FALSE),0) -> 0 | AI103: =IFERROR(VLOOKUP($A103,Filtro.12!$A$4:$AL$2956,33,FALSE),0) -> 0 | AJ103: =IFERROR(VLOOKUP($A103,Filtro.12!$A$4:$AL$2956,34,FALSE),0) -> 0 | AK103: =IFERROR(VLOOKUP($A103,Filtro.12!$A$4:$AL$2956,35,FALSE),0) -> 0 | AL103: 8,000 | AM103: =IFERROR(VLOOKUP($A103,Filtro.12!$A$4:$AL$2956,37,FALSE),0) -> 24,000
A104: 01014355 | B104: 0108331 | C104: Teleconsulta Médica de Especialidad en Radioterapia Oncológica | D104: =IFERROR(VLOOKUP($A104,Filtro.12!$A$4:$AL$2956,2,FALSE),0) -> 0 | E104: =IFERROR(VLOOKUP($A104,Filtro.12!$A$4:$AL$2956,3,FALSE),0) -> 0 | F104: =IFERROR(VLOOKUP($A104,Filtro.12!$A$4:$AL$2956,4,FALSE),0) -> 0 | G104: =IFERROR(VLOOKUP($A104,Filtro.12!$A$4:$AL$2956,5,FALSE),0) -> 0 | H104: =IFERROR(VLOOKUP($A104,Filtro.12!$A$4:$AL$2956,6,FALSE),0) -> 0 | AB104: =IFERROR(VLOOKUP($A104,Filtro.12!$A$4:$AL$2956,26,FALSE),0) -> 0 | AC104: =IFERROR(VLOOKUP($A104,Filtro.12!$A$4:$AL$2956,27,FALSE),0) -> 0 | AD104: =IFERROR(VLOOKUP($A104,Filtro.12!$A$4:$AL$2956,28,FALSE),0) -> 0 | AE104: =IFERROR(VLOOKUP($A104,Filtro.12!$A$4:$AL$2956,29,FALSE),0) -> 0 | AF104: =IFERROR(VLOOKUP($A104,Filtro.12!$A$4:$AL$2956,30,FALSE),0) -> 0 | AG104: =IFERROR(VLOOKUP($A104,Filtro.12!$A$4:$AL$2956,31,FALSE),0) -> 0 | AH104: =IFERROR(VLOOKUP($A104,Filtro.12!$A$4:$AL$2956,32,FALSE),0) -> 0 | AI104: =IFERROR(VLOOKUP($A104,Filtro.12!$A$4:$AL$2956,33,FALSE),0) -> 0 | AJ104: =IFERROR(VLOOKUP($A104,Filtro.12!$A$4:$AL$2956,34,FALSE),0) -> 0 | AK104: =IFERROR(VLOOKUP($A104,Filtro.12!$A$4:$AL$2956,35,FALSE),0) -> 0 | AL104: 8,000 | AM104: =IFERROR(VLOOKUP($A104,Filtro.12!$A$4:$AL$2956,37,FALSE),0) -> 0
A105: 01014356 | B105: 0108203 | C105: Teleconsulta Médica de Especialidad en Neurocirugía | D105: =IFERROR(VLOOKUP($A105,Filtro.12!$A$4:$AL$2956,2,FALSE),0) -> 0 | E105: =IFERROR(VLOOKUP($A105,Filtro.12!$A$4:$AL$2956,3,FALSE),0) -> 0 | F105: =IFERROR(VLOOKUP($A105,Filtro.12!$A$4:$AL$2956,4,FALSE),0) -> 0 | G105: =IFERROR(VLOOKUP($A105,Filtro.12!$A$4:$AL$2956,5,FALSE),0) -> 0 | H105: =IFERROR(VLOOKUP($A105,Filtro.12!$A$4:$AL$2956,6,FALSE),0) -> 0 | AB105: =IFERROR(VLOOKUP($A105,Filtro.12!$A$4:$AL$2956,26,FALSE),0) -> 0 | AC105: =IFERROR(VLOOKUP($A105,Filtro.12!$A$4:$AL$2956,27,FALSE),0) -> 0 | AD105: =IFERROR(VLOOKUP($A105,Filtro.12!$A$4:$AL$2956,28,FALSE),0) -> 0 | AE105: =IFERROR(VLOOKUP($A105,Filtro.12!$A$4:$AL$2956,29,FALSE),0) -> 0 | AF105: =IFERROR(VLOOKUP($A105,Filtro.12!$A$4:$AL$2956,30,FALSE),0) -> 0 | AG105: =IFERROR(VLOOKUP($A105,Filtro.12!$A$4:$AL$2956,31,FALSE),0) -> 0 | AH105: =IFERROR(VLOOKUP($A105,Filtro.12!$A$4:$AL$2956,32,FALSE),0) -> 0 | AI105: =IFERROR(VLOOKUP($A105,Filtro.12!$A$4:$AL$2956,33,FALSE),0) -> 0 | AJ105: =IFERROR(VLOOKUP($A105,Filtro.12!$A$4:$AL$2956,34,FALSE),0) -> 0 | AK105: =IFERROR(VLOOKUP($A105,Filtro.12!$A$4:$AL$2956,35,FALSE),0) -> 0 | AL105: 8,000 | AM105: =IFERROR(VLOOKUP($A105,Filtro.12!$A$4:$AL$2956,37,FALSE),0) -> 0
A106: 01014357 | B106: 0108204 | C106: Teleconsulta Médica de Especialidad en Oftalmología | D106: =IFERROR(VLOOKUP($A106,Filtro.12!$A$4:$AL$2956,2,FALSE),0) -> 296 | E106: =IFERROR(VLOOKUP($A106,Filtro.12!$A$4:$AL$2956,3,FALSE),0) -> 296 | F106: =IFERROR(VLOOKUP($A106,Filtro.12!$A$4:$AL$2956,4,FALSE),0) -> 296 | G106: =IFERROR(VLOOKUP($A106,Filtro.12!$A$4:$AL$2956,5,FALSE),0) -> 0 | H106: =IFERROR(VLOOKUP($A106,Filtro.12!$A$4:$AL$2956,6,FALSE),0) -> 0 | AB106: =IFERROR(VLOOKUP($A106,Filtro.12!$A$4:$AL$2956,26,FALSE),0) -> 0 | AC106: =IFERROR(VLOOKUP($A106,Filtro.12!$A$4:$AL$2956,27,FALSE),0) -> 296 | AD106: =IFERROR(VLOOKUP($A106,Filtro.12!$A$4:$AL$2956,28,FALSE),0) -> 0 | AE106: =IFERROR(VLOOKUP($A106,Filtro.12!$A$4:$AL$2956,29,FALSE),0) -> 0 | AF106: =IFERROR(VLOOKUP($A106,Filtro.12!$A$4:$AL$2956,30,FALSE),0) -> 0 | AG106: =IFERROR(VLOOKUP($A106,Filtro.12!$A$4:$AL$2956,31,FALSE),0) -> 0 | AH106: =IFERROR(VLOOKUP($A106,Filtro.12!$A$4:$AL$2956,32,FALSE),0) -> 0 | AI106: =IFERROR(VLOOKUP($A106,Filtro.12!$A$4:$AL$2956,33,FALSE),0) -> 0 | AJ106: =IFERROR(VLOOKUP($A106,Filtro.12!$A$4:$AL$2956,34,FALSE),0) -> 0 | AK106: =IFERROR(VLOOKUP($A106,Filtro.12!$A$4:$AL$2956,35,FALSE),0) -> 0 | AL106: 8,000 | AM106: =IFERROR(VLOOKUP($A106,Filtro.12!$A$4:$AL$2956,37,FALSE),0) -> 2,368,000
A107: 01014358 | B107: 0108205 | C107: Teleconsulta Médica de Especialidad en Otorrinolaringología | D107: =IFERROR(VLOOKUP($A107,Filtro.12!$A$4:$AL$2956,2,FALSE),0) -> 20 | E107: =IFERROR(VLOOKUP($A107,Filtro.12!$A$4:$AL$2956,3,FALSE),0) -> 20 | F107: =IFERROR(VLOOKUP($A107,Filtro.12!$A$4:$AL$2956,4,FALSE),0) -> 20 | G107: =IFERROR(VLOOKUP($A107,Filtro.12!$A$4:$AL$2956,5,FALSE),0) -> 0 | H107: =IFERROR(VLOOKUP($A107,Filtro.12!$A$4:$AL$2956,6,FALSE),0) -> 0 | AB107: =IFERROR(VLOOKUP($A107,Filtro.12!$A$4:$AL$2956,26,FALSE),0) -> 0 | AC107: =IFERROR(VLOOKUP($A107,Filtro.12!$A$4:$AL$2956,27,FALSE),0) -> 20 | AD107: =IFERROR(VLOOKUP($A107,Filtro.12!$A$4:$AL$2956,28,FALSE),0) -> 0 | AE107: =IFERROR(VLOOKUP($A107,Filtro.12!$A$4:$AL$2956,29,FALSE),0) -> 0 | AF107: =IFERROR(VLOOKUP($A107,Filtro.12!$A$4:$AL$2956,30,FALSE),0) -> 0 | AG107: =IFERROR(VLOOKUP($A107,Filtro.12!$A$4:$AL$2956,31,FALSE),0) -> 0 | AH107: =IFERROR(VLOOKUP($A107,Filtro.12!$A$4:$AL$2956,32,FALSE),0) -> 0 | AI107: =IFERROR(VLOOKUP($A107,Filtro.12!$A$4:$AL$2956,33,FALSE),0) -> 0 | AJ107: =IFERROR(VLOOKUP($A107,Filtro.12!$A$4:$AL$2956,34,FALSE),0) -> 0 | AK107: =IFERROR(VLOOKUP($A107,Filtro.12!$A$4:$AL$2956,35,FALSE),0) -> 0 | AL107: 8,000 | AM107: =IFERROR(VLOOKUP($A107,Filtro.12!$A$4:$AL$2956,37,FALSE),0) -> 160,000
A108: 01014359 | B108: 0108312 | C108: Teleconsulta Médica de Especialidad en Cirugía General | D108: =IFERROR(VLOOKUP($A108,Filtro.12!$A$4:$AL$2956,2,FALSE),0) -> 151 | E108: =IFERROR(VLOOKUP($A108,Filtro.12!$A$4:$AL$2956,3,FALSE),0) -> 151 | F108: =IFERROR(VLOOKUP($A108,Filtro.12!$A$4:$AL$2956,4,FALSE),0) -> 151 | G108: =IFERROR(VLOOKUP($A108,Filtro.12!$A$4:$AL$2956,5,FALSE),0) -> 0 | H108: =IFERROR(VLOOKUP($A108,Filtro.12!$A$4:$AL$2956,6,FALSE),0) -> 0 | AB108: =IFERROR(VLOOKUP($A108,Filtro.12!$A$4:$AL$2956,26,FALSE),0) -> 0 | AC108: =IFERROR(VLOOKUP($A108,Filtro.12!$A$4:$AL$2956,27,FALSE),0) -> 151 | AD108: =IFERROR(VLOOKUP($A108,Filtro.12!$A$4:$AL$2956,28,FALSE),0) -> 0 | AE108: =IFERROR(VLOOKUP($A108,Filtro.12!$A$4:$AL$2956,29,FALSE),0) -> 0 | AF108: =IFERROR(VLOOKUP($A108,Filtro.12!$A$4:$AL$2956,30,FALSE),0) -> 0 | AG108: =IFERROR(VLOOKUP($A108,Filtro.12!$A$4:$AL$2956,31,FALSE),0) -> 0 | AH108: =IFERROR(VLOOKUP($A108,Filtro.12!$A$4:$AL$2956,32,FALSE),0) -> 0 | AI108: =IFERROR(VLOOKUP($A108,Filtro.12!$A$4:$AL$2956,33,FALSE),0) -> 0 | AJ108: =IFERROR(VLOOKUP($A108,Filtro.12!$A$4:$AL$2956,34,FALSE),0) -> 0 | AK108: =IFERROR(VLOOKUP($A108,Filtro.12!$A$4:$AL$2956,35,FALSE),0) -> 0 | AL108: 8,000 | AM108: =IFERROR(VLOOKUP($A108,Filtro.12!$A$4:$AL$2956,37,FALSE),0) -> 1,208,000
A109: 01014360 | B109: 0108313 | C109: Teleconsulta Médica de Especialidad en Cirugía de Cabeza, Cuello y Maxilofacial | D109: =IFERROR(VLOOKUP($A109,Filtro.12!$A$4:$AL$2956,2,FALSE),0) -> 1 | E109: =IFERROR(VLOOKUP($A109,Filtro.12!$A$4:$AL$2956,3,FALSE),0) -> 1 | F109: =IFERROR(VLOOKUP($A109,Filtro.12!$A$4:$AL$2956,4,FALSE),0) -> 1 | G109: =IFERROR(VLOOKUP($A109,Filtro.12!$A$4:$AL$2956,5,FALSE),0) -> 0 | H109: =IFERROR(VLOOKUP($A109,Filtro.12!$A$4:$AL$2956,6,FALSE),0) -> 0 | AB109: =IFERROR(VLOOKUP($A109,Filtro.12!$A$4:$AL$2956,26,FALSE),0) -> 0 | AC109: =IFERROR(VLOOKUP($A109,Filtro.12!$A$4:$AL$2956,27,FALSE),0) -> 1 | AD109: =IFERROR(VLOOKUP($A109,Filtro.12!$A$4:$AL$2956,28,FALSE),0) -> 0 | AE109: =IFERROR(VLOOKUP($A109,Filtro.12!$A$4:$AL$2956,29,FALSE),0) -> 0 | AF109: =IFERROR(VLOOKUP($A109,Filtro.12!$A$4:$AL$2956,30,FALSE),0) -> 0 | AG109: =IFERROR(VLOOKUP($A109,Filtro.12!$A$4:$AL$2956,31,FALSE),0) -> 0 | AH109: =IFERROR(VLOOKUP($A109,Filtro.12!$A$4:$AL$2956,32,FALSE),0) -> 0 | AI109: =IFERROR(VLOOKUP($A109,Filtro.12!$A$4:$AL$2956,33,FALSE),0) -> 0 | AJ109: =IFERROR(VLOOKUP($A109,Filtro.12!$A$4:$AL$2956,34,FALSE),0) -> 0 | AK109: =IFERROR(VLOOKUP($A109,Filtro.12!$A$4:$AL$2956,35,FALSE),0) -> 0 | AL109: 8,000 | AM109: =IFERROR(VLOOKUP($A109,Filtro.12!$A$4:$AL$2956,37,FALSE),0) -> 8,000
A110: 01014361 | B110: 0108314 | C110: Teleconsulta Médica de Especialidad en Cirugía Cardiovascular | D110: =IFERROR(VLOOKUP($A110,Filtro.12!$A$4:$AL$2956,2,FALSE),0) -> 0 | E110: =IFERROR(VLOOKUP($A110,Filtro.12!$A$4:$AL$2956,3,FALSE),0) -> 0 | F110: =IFERROR(VLOOKUP($A110,Filtro.12!$A$4:$AL$2956,4,FALSE),0) -> 0 | G110: =IFERROR(VLOOKUP($A110,Filtro.12!$A$4:$AL$2956,5,FALSE),0) -> 0 | H110: =IFERROR(VLOOKUP($A110,Filtro.12!$A$4:$AL$2956,6,FALSE),0) -> 0 | AB110: =IFERROR(VLOOKUP($A110,Filtro.12!$A$4:$AL$2956,26,FALSE),0) -> 0 | AC110: =IFERROR(VLOOKUP($A110,Filtro.12!$A$4:$AL$2956,27,FALSE),0) -> 0 | AD110: =IFERROR(VLOOKUP($A110,Filtro.12!$A$4:$AL$2956,28,FALSE),0) -> 0 | AE110: =IFERROR(VLOOKUP($A110,Filtro.12!$A$4:$AL$2956,29,FALSE),0) -> 0 | AF110: =IFERROR(VLOOKUP($A110,Filtro.12!$A$4:$AL$2956,30,FALSE),0) -> 0 | AG110: =IFERROR(VLOOKUP($A110,Filtro.12!$A$4:$AL$2956,31,FALSE),0) -> 0 | AH110: =IFERROR(VLOOKUP($A110,Filtro.12!$A$4:$AL$2956,32,FALSE),0) -> 0 | AI110: =IFERROR(VLOOKUP($A110,Filtro.12!$A$4:$AL$2956,33,FALSE),0) -> 0 | AJ110: =IFERROR(VLOOKUP($A110,Filtro.12!$A$4:$AL$2956,34,FALSE),0) -> 0 | AK110: =IFERROR(VLOOKUP($A110,Filtro.12!$A$4:$AL$2956,35,FALSE),0) -> 0 | AL110: 8,000 | AM110: =IFERROR(VLOOKUP($A110,Filtro.12!$A$4:$AL$2956,37,FALSE),0) -> 0
A111: 01014362 | B111: 0108315 | C111: Teleconsulta Médica de Especialidad en Cirugía de Tórax | D111: =IFERROR(VLOOKUP($A111,Filtro.12!$A$4:$AL$2956,2,FALSE),0) -> 0 | E111: =IFERROR(VLOOKUP($A111,Filtro.12!$A$4:$AL$2956,3,FALSE),0) -> 0 | F111: =IFERROR(VLOOKUP($A111,Filtro.12!$A$4:$AL$2956,4,FALSE),0) -> 0 | G111: =IFERROR(VLOOKUP($A111,Filtro.12!$A$4:$AL$2956,5,FALSE),0) -> 0 | H111: =IFERROR(VLOOKUP($A111,Filtro.12!$A$4:$AL$2956,6,FALSE),0) -> 0 | AB111: =IFERROR(VLOOKUP($A111,Filtro.12!$A$4:$AL$2956,26,FALSE),0) -> 0 | AC111: =IFERROR(VLOOKUP($A111,Filtro.12!$A$4:$AL$2956,27,FALSE),0) -> 0 | AD111: =IFERROR(VLOOKUP($A111,Filtro.12!$A$4:$AL$2956,28,FALSE),0) -> 0 | AE111: =IFERROR(VLOOKUP($A111,Filtro.12!$A$4:$AL$2956,29,FALSE),0) -> 0 | AF111: =IFERROR(VLOOKUP($A111,Filtro.12!$A$4:$AL$2956,30,FALSE),0) -> 0 | AG111: =IFERROR(VLOOKUP($A111,Filtro.12!$A$4:$AL$2956,31,FALSE),0) -> 0 | AH111: =IFERROR(VLOOKUP($A111,Filtro.12!$A$4:$AL$2956,32,FALSE),0) -> 0 | AI111: =IFERROR(VLOOKUP($A111,Filtro.12!$A$4:$AL$2956,33,FALSE),0) -> 0 | AJ111: =IFERROR(VLOOKUP($A111,Filtro.12!$A$4:$AL$2956,34,FALSE),0) -> 0 | AK111: =IFERROR(VLOOKUP($A111,Filtro.12!$A$4:$AL$2956,35,FALSE),0) -> 0 | AL111: 8,000 | AM111: =IFERROR(VLOOKUP($A111,Filtro.12!$A$4:$AL$2956,37,FALSE),0) -> 0
A112: 01014363 | B112: 0108316 | C112: Teleconsulta Médica de Especialidad en Cirugía Plástica y Reparadora | D112: =IFERROR(VLOOKUP($A112,Filtro.12!$A$4:$AL$2956,2,FALSE),0) -> 0 | E112: =IFERROR(VLOOKUP($A112,Filtro.12!$A$4:$AL$2956,3,FALSE),0) -> 0 | F112: =IFERROR(VLOOKUP($A112,Filtro.12!$A$4:$AL$2956,4,FALSE),0) -> 0 | G112: =IFERROR(VLOOKUP($A112,Filtro.12!$A$4:$AL$2956,5,FALSE),0) -> 0 | H112: =IFERROR(VLOOKUP($A112,Filtro.12!$A$4:$AL$2956,6,FALSE),0) -> 0 | AB112: =IFERROR(VLOOKUP($A112,Filtro.12!$A$4:$AL$2956,26,FALSE),0) -> 0 | AC112: =IFERROR(VLOOKUP($A112,Filtro.12!$A$4:$AL$2956,27,FALSE),0) -> 0 | AD112: =IFERROR(VLOOKUP($A112,Filtro.12!$A$4:$AL$2956,28,FALSE),0) -> 0 | AE112: =IFERROR(VLOOKUP($A112,Filtro.12!$A$4:$AL$2956,29,FALSE),0) -> 0 | AF112: =IFERROR(VLOOKUP($A112,Filtro.12!$A$4:$AL$2956,30,FALSE),0) -> 0 | AG112: =IFERROR(VLOOKUP($A112,Filtro.12!$A$4:$AL$2956,31,FALSE),0) -> 0 | AH112: =IFERROR(VLOOKUP($A112,Filtro.12!$A$4:$AL$2956,32,FALSE),0) -> 0 | AI112: =IFERROR(VLOOKUP($A112,Filtro.12!$A$4:$AL$2956,33,FALSE),0) -> 0 | AJ112: =IFERROR(VLOOKUP($A112,Filtro.12!$A$4:$AL$2956,34,FALSE),0) -> 0 | AK112: =IFERROR(VLOOKUP($A112,Filtro.12!$A$4:$AL$2956,35,FALSE),0) -> 0 | AL112: 8,000 | AM112: =IFERROR(VLOOKUP($A112,Filtro.12!$A$4:$AL$2956,37,FALSE),0) -> 0
A113: 01014364 | B113: 0108317 | C113: Teleconsulta Médica de Especialidad en Cirugía Pediátrica | D113: =IFERROR(VLOOKUP($A113,Filtro.12!$A$4:$AL$2956,2,FALSE),0) -> 4 | E113: =IFERROR(VLOOKUP($A113,Filtro.12!$A$4:$AL$2956,3,FALSE),0) -> 4 | F113: =IFERROR(VLOOKUP($A113,Filtro.12!$A$4:$AL$2956,4,FALSE),0) -> 4 | G113: =IFERROR(VLOOKUP($A113,Filtro.12!$A$4:$AL$2956,5,FALSE),0) -> 0 | H113: =IFERROR(VLOOKUP($A113,Filtro.12!$A$4:$AL$2956,6,FALSE),0) -> 0 | AB113: =IFERROR(VLOOKUP($A113,Filtro.12!$A$4:$AL$2956,26,FALSE),0) -> 0 | AC113: =IFERROR(VLOOKUP($A113,Filtro.12!$A$4:$AL$2956,27,FALSE),0) -> 4 | AD113: =IFERROR(VLOOKUP($A113,Filtro.12!$A$4:$AL$2956,28,FALSE),0) -> 0 | AE113: =IFERROR(VLOOKUP($A113,Filtro.12!$A$4:$AL$2956,29,FALSE),0) -> 0 | AF113: =IFERROR(VLOOKUP($A113,Filtro.12!$A$4:$AL$2956,30,FALSE),0) -> 0 | AG113: =IFERROR(VLOOKUP($A113,Filtro.12!$A$4:$AL$2956,31,FALSE),0) -> 0 | AH113: =IFERROR(VLOOKUP($A113,Filtro.12!$A$4:$AL$2956,32,FALSE),0) -> 0 | AI113: =IFERROR(VLOOKUP($A113,Filtro.12!$A$4:$AL$2956,33,FALSE),0) -> 0 | AJ113: =IFERROR(VLOOKUP($A113,Filtro.12!$A$4:$AL$2956,34,FALSE),0) -> 0 | AK113: =IFERROR(VLOOKUP($A113,Filtro.12!$A$4:$AL$2956,35,FALSE),0) -> 0 | AL113: 8,000 | AM113: =IFERROR(VLOOKUP($A113,Filtro.12!$A$4:$AL$2956,37,FALSE),0) -> 32,000
A114: 01014365 | B114: 0108318 | C114: Teleconsulta Médica de Especialidad en Cirugía Vascular Periférica | D114: =IFERROR(VLOOKUP($A114,Filtro.12!$A$4:$AL$2956,2,FALSE),0) -> 1 | E114: =IFERROR(VLOOKUP($A114,Filtro.12!$A$4:$AL$2956,3,FALSE),0) -> 1 | F114: =IFERROR(VLOOKUP($A114,Filtro.12!$A$4:$AL$2956,4,FALSE),0) -> 1 | G114: =IFERROR(VLOOKUP($A114,Filtro.12!$A$4:$AL$2956,5,FALSE),0) -> 0 | H114: =IFERROR(VLOOKUP($A114,Filtro.12!$A$4:$AL$2956,6,FALSE),0) -> 0 | AB114: =IFERROR(VLOOKUP($A114,Filtro.12!$A$4:$AL$2956,26,FALSE),0) -> 0 | AC114: =IFERROR(VLOOKUP($A114,Filtro.12!$A$4:$AL$2956,27,FALSE),0) -> 1 | AD114: =IFERROR(VLOOKUP($A114,Filtro.12!$A$4:$AL$2956,28,FALSE),0) -> 0 | AE114: =IFERROR(VLOOKUP($A114,Filtro.12!$A$4:$AL$2956,29,FALSE),0) -> 0 | AF114: =IFERROR(VLOOKUP($A114,Filtro.12!$A$4:$AL$2956,30,FALSE),0) -> 0 | AG114: =IFERROR(VLOOKUP($A114,Filtro.12!$A$4:$AL$2956,31,FALSE),0) -> 0 | AH114: =IFERROR(VLOOKUP($A114,Filtro.12!$A$4:$AL$2956,32,FALSE),0) -> 0 | AI114: =IFERROR(VLOOKUP($A114,Filtro.12!$A$4:$AL$2956,33,FALSE),0) -> 0 | AJ114: =IFERROR(VLOOKUP($A114,Filtro.12!$A$4:$AL$2956,34,FALSE),0) -> 0 | AK114: =IFERROR(VLOOKUP($A114,Filtro.12!$A$4:$AL$2956,35,FALSE),0) -> 0 | AL114: 8,000 | AM114: =IFERROR(VLOOKUP($A114,Filtro.12!$A$4:$AL$2956,37,FALSE),0) -> 8,000
A115: 01014366 | B115: 0108329 | C115: Teleconsulta Médica de Especialidad en Anestesiología | D115: =IFERROR(VLOOKUP($A115,Filtro.12!$A$4:$AL$2956,2,FALSE),0) -> 2846 | E115: =IFERROR(VLOOKUP($A115,Filtro.12!$A$4:$AL$2956,3,FALSE),0) -> 2801 | F115: =IFERROR(VLOOKUP($A115,Filtro.12!$A$4:$AL$2956,4,FALSE),0) -> 2801 | G115: =IFERROR(VLOOKUP($A115,Filtro.12!$A$4:$AL$2956,5,FALSE),0) -> 0 | H115: =IFERROR(VLOOKUP($A115,Filtro.12!$A$4:$AL$2956,6,FALSE),0) -> 45 | AB115: =IFERROR(VLOOKUP($A115,Filtro.12!$A$4:$AL$2956,26,FALSE),0) -> 0 | AC115: =IFERROR(VLOOKUP($A115,Filtro.12!$A$4:$AL$2956,27,FALSE),0) -> 2846 | AD115: =IFERROR(VLOOKUP($A115,Filtro.12!$A$4:$AL$2956,28,FALSE),0) -> 0 | AE115: =IFERROR(VLOOKUP($A115,Filtro.12!$A$4:$AL$2956,29,FALSE),0) -> 681 | AF115: =IFERROR(VLOOKUP($A115,Filtro.12!$A$4:$AL$2956,30,FALSE),0) -> 0 | AG115: =IFERROR(VLOOKUP($A115,Filtro.12!$A$4:$AL$2956,31,FALSE),0) -> 0 | AH115: =IFERROR(VLOOKUP($A115,Filtro.12!$A$4:$AL$2956,32,FALSE),0) -> 0 | AI115: =IFERROR(VLOOKUP($A115,Filtro.12!$A$4:$AL$2956,33,FALSE),0) -> 0 | AJ115: =IFERROR(VLOOKUP($A115,Filtro.12!$A$4:$AL$2956,34,FALSE),0) -> 0 | AK115: =IFERROR(VLOOKUP($A115,Filtro.12!$A$4:$AL$2956,35,FALSE),0) -> 0 | AL115: 8,000 | AM115: =IFERROR(VLOOKUP($A115,Filtro.12!$A$4:$AL$2956,37,FALSE),0) -> 22,408,000
A116: 01014367 | B116: 0108332 | C116: Teleconsulta Médica de Especialidad en Ginecología Pediátrica y de la Adolescencia | D116: =IFERROR(VLOOKUP($A116,Filtro.12!$A$4:$AL$2956,2,FALSE),0) -> 0 | E116: =IFERROR(VLOOKUP($A116,Filtro.12!$A$4:$AL$2956,3,FALSE),0) -> 0 | F116: =IFERROR(VLOOKUP($A116,Filtro.12!$A$4:$AL$2956,4,FALSE),0) -> 0 | G116: =IFERROR(VLOOKUP($A116,Filtro.12!$A$4:$AL$2956,5,FALSE),0) -> 0 | H116: =IFERROR(VLOOKUP($A116,Filtro.12!$A$4:$AL$2956,6,FALSE),0) -> 0 | AB116: =IFERROR(VLOOKUP($A116,Filtro.12!$A$4:$AL$2956,26,FALSE),0) -> 0 | AC116: =IFERROR(VLOOKUP($A116,Filtro.12!$A$4:$AL$2956,27,FALSE),0) -> 0 | AD116: =IFERROR(VLOOKUP($A116,Filtro.12!$A$4:$AL$2956,28,FALSE),0) -> 0 | AE116: =IFERROR(VLOOKUP($A116,Filtro.12!$A$4:$AL$2956,29,FALSE),0) -> 0 | AF116: =IFERROR(VLOOKUP($A116,Filtro.12!$A$4:$AL$2956,30,FALSE),0) -> 0 | AG116: =IFERROR(VLOOKUP($A116,Filtro.12!$A$4:$AL$2956,31,FALSE),0) -> 0 | AH116: =IFERROR(VLOOKUP($A116,Filtro.12!$A$4:$AL$2956,32,FALSE),0) -> 0 | AI116: =IFERROR(VLOOKUP($A116,Filtro.12!$A$4:$AL$2956,33,FALSE),0) -> 0 | AJ116: =IFERROR(VLOOKUP($A116,Filtro.12!$A$4:$AL$2956,34,FALSE),0) -> 0 | AK116: =IFERROR(VLOOKUP($A116,Filtro.12!$A$4:$AL$2956,35,FALSE),0) -> 0 | AL116: 8,000 | AM116: =IFERROR(VLOOKUP($A116,Filtro.12!$A$4:$AL$2956,37,FALSE),0) -> 0
A117: 01014368 | B117: 0108333 | C117: Teleconsulta Médica de Especialidad en Medicina Materno Fetal | D117: =IFERROR(VLOOKUP($A117,Filtro.12!$A$4:$AL$2956,2,FALSE),0) -> 0 | E117: =IFERROR(VLOOKUP($A117,Filtro.12!$A$4:$AL$2956,3,FALSE),0) -> 0 | F117: =IFERROR(VLOOKUP($A117,Filtro.12!$A$4:$AL$2956,4,FALSE),0) -> 0 | G117: =IFERROR(VLOOKUP($A117,Filtro.12!$A$4:$AL$2956,5,FALSE),0) -> 0 | H117: =IFERROR(VLOOKUP($A117,Filtro.12!$A$4:$AL$2956,6,FALSE),0) -> 0 | AB117: =IFERROR(VLOOKUP($A117,Filtro.12!$A$4:$AL$2956,26,FALSE),0) -> 0 | AC117: =IFERROR(VLOOKUP($A117,Filtro.12!$A$4:$AL$2956,27,FALSE),0) -> 0 | AD117: =IFERROR(VLOOKUP($A117,Filtro.12!$A$4:$AL$2956,28,FALSE),0) -> 0 | AE117: =IFERROR(VLOOKUP($A117,Filtro.12!$A$4:$AL$2956,29,FALSE),0) -> 0 | AF117: =IFERROR(VLOOKUP($A117,Filtro.12!$A$4:$AL$2956,30,FALSE),0) -> 0 | AG117: =IFERROR(VLOOKUP($A117,Filtro.12!$A$4:$AL$2956,31,FALSE),0) -> 0 | AH117: =IFERROR(VLOOKUP($A117,Filtro.12!$A$4:$AL$2956,32,FALSE),0) -> 0 | AI117: =IFERROR(VLOOKUP($A117,Filtro.12!$A$4:$AL$2956,33,FALSE),0) -> 0 | AJ117: =IFERROR(VLOOKUP($A117,Filtro.12!$A$4:$AL$2956,34,FALSE),0) -> 0 | AK117: =IFERROR(VLOOKUP($A117,Filtro.12!$A$4:$AL$2956,35,FALSE),0) -> 0 | AL117: 8,000 | AM117: =IFERROR(VLOOKUP($A117,Filtro.12!$A$4:$AL$2956,37,FALSE),0) -> 0
A118: 01014369 | B118: 0108334 | C118: Teleconsulta Médica de Especialidad en Medicina Nuclear | D118: =IFERROR(VLOOKUP($A118,Filtro.12!$A$4:$AL$2956,2,FALSE),0) -> 0 | E118: =IFERROR(VLOOKUP($A118,Filtro.12!$A$4:$AL$2956,3,FALSE),0) -> 0 | F118: =IFERROR(VLOOKUP($A118,Filtro.12!$A$4:$AL$2956,4,FALSE),0) -> 0 | G118: =IFERROR(VLOOKUP($A118,Filtro.12!$A$4:$AL$2956,5,FALSE),0) -> 0 | H118: =IFERROR(VLOOKUP($A118,Filtro.12!$A$4:$AL$2956,6,FALSE),0) -> 0 | AB118: =IFERROR(VLOOKUP($A118,Filtro.12!$A$4:$AL$2956,26,FALSE),0) -> 0 | AC118: =IFERROR(VLOOKUP($A118,Filtro.12!$A$4:$AL$2956,27,FALSE),0) -> 0 | AD118: =IFERROR(VLOOKUP($A118,Filtro.12!$A$4:$AL$2956,28,FALSE),0) -> 0 | AE118: =IFERROR(VLOOKUP($A118,Filtro.12!$A$4:$AL$2956,29,FALSE),0) -> 0 | AF118: =IFERROR(VLOOKUP($A118,Filtro.12!$A$4:$AL$2956,30,FALSE),0) -> 0 | AG118: =IFERROR(VLOOKUP($A118,Filtro.12!$A$4:$AL$2956,31,FALSE),0) -> 0 | AH118: =IFERROR(VLOOKUP($A118,Filtro.12!$A$4:$AL$2956,32,FALSE),0) -> 0 | AI118: =IFERROR(VLOOKUP($A118,Filtro.12!$A$4:$AL$2956,33,FALSE),0) -> 0 | AJ118: =IFERROR(VLOOKUP($A118,Filtro.12!$A$4:$AL$2956,34,FALSE),0) -> 0 | AK118: =IFERROR(VLOOKUP($A118,Filtro.12!$A$4:$AL$2956,35,FALSE),0) -> 0 | AL118: 8,000 | AM118: =IFERROR(VLOOKUP($A118,Filtro.12!$A$4:$AL$2956,37,FALSE),0) -> 0
C119: TOTAL | D119: =SUM(D73:D118) -> 15260 | E119: =SUM(E73:E118) -> 15200 | F119: =SUM(F73:F118) -> 15200 | G119: =SUM(G73:G118) -> 0 | H119: =SUM(H73:H118) -> 60 | AB119: =SUM(AB73:AB118) -> 2 | AC119: 15258 | AD119: 0 | AE119: 681 | AF119: 0 | AG119: 0 | AH119: 0 | AI119: 0 | AJ119: 0 | AK119: 0 | AM119: =SUM(AM73:AM118) -> 121573820
C120: TELEMEDICINA PROFESIONALES NO MÉDICOS
A121: 01014370 | B121: 0108400 | C121: Teleconsulta: Atención Integral de Nutricionista (incluye 3 sesiones) | D121: =IFERROR(VLOOKUP($A121,Filtro.12!$A$4:$AL$2956,2,FALSE),0) -> 0 | E121: =IFERROR(VLOOKUP($A121,Filtro.12!$A$4:$AL$2956,3,FALSE),0) -> 0 | F121: =IFERROR(VLOOKUP($A121,Filtro.12!$A$4:$AL$2956,4,FALSE),0) -> 0 | G121: =IFERROR(VLOOKUP($A121,Filtro.12!$A$4:$AL$2956,5,FALSE),0) -> 0 | H121: =IFERROR(VLOOKUP($A121,Filtro.12!$A$4:$AL$2956,6,FALSE),0) -> 0 | AB121: =IFERROR(VLOOKUP($A121,Filtro.12!$A$4:$AL$2956,26,FALSE),0) -> 0 | AC121: =IFERROR(VLOOKUP($A121,Filtro.12!$A$4:$AL$2956,27,FALSE),0) -> 0 | AD121: =IFERROR(VLOOKUP($A121,Filtro.12!$A$4:$AL$2956,28,FALSE),0) -> 0 | AE121: =IFERROR(VLOOKUP($A121,Filtro.12!$A$4:$AL$2956,29,FALSE),0) -> 0 | AF121: =IFERROR(VLOOKUP($A121,Filtro.12!$A$4:$AL$2956,30,FALSE),0) -> 0 | AG121: =IFERROR(VLOOKUP($A121,Filtro.12!$A$4:$AL$2956,31,FALSE),0) -> 0 | AH121: =IFERROR(VLOOKUP($A121,Filtro.12!$A$4:$AL$2956,32,FALSE),0) -> 0 | AI121: =IFERROR(VLOOKUP($A121,Filtro.12!$A$4:$AL$2956,33,FALSE),0) -> 0 | AJ121: =IFERROR(VLOOKUP($A121,Filtro.12!$A$4:$AL$2956,34,FALSE),0) -> 0 | AK121: =IFERROR(VLOOKUP($A121,Filtro.12!$A$4:$AL$2956,35,FALSE),0) -> 0 | AL121: 23,120 | AM121: =IFERROR(VLOOKUP($A121,Filtro.12!$A$4:$AL$2956,37,FALSE),0) -> 0
C122: TOTAL | D122: =SUM(D121) -> 0 | E122: =SUM(E121) -> 0 | F122: =SUM(F121) -> 0 | G122: =SUM(G121) -> 0 | H122: =SUM(H121) -> 0 | AB122: =SUM(AB121) -> 0 | AC122: 0 | AD122: 0 | AE122: 0 | AF122: 0 | AG122: 0 | AH122: 0 | AI122: 0 | AJ122: 0 | AK122: 0 | AM122: =SUM(AM121) -> 0
C123: TELEINTERCONSULTA (TELEMEDICINA)
A124: 01014371 | B124: 0109001 | C124: Teleinterconsulta médica | D124: =IFERROR(VLOOKUP($A124,Filtro.12!$A$4:$AL$2956,2,FALSE),0) -> 131 | E124: =IFERROR(VLOOKUP($A124,Filtro.12!$A$4:$AL$2956,3,FALSE),0) -> 131 | F124: =IFERROR(VLOOKUP($A124,Filtro.12!$A$4:$AL$2956,4,FALSE),0) -> 131 | G124: =IFERROR(VLOOKUP($A124,Filtro.12!$A$4:$AL$2956,5,FALSE),0) -> 0 | H124: =IFERROR(VLOOKUP($A124,Filtro.12!$A$4:$AL$2956,6,FALSE),0) -> 0 | AB124: =IFERROR(VLOOKUP($A124,Filtro.12!$A$4:$AL$2956,26,FALSE),0) -> 0 | AC124: =IFERROR(VLOOKUP($A124,Filtro.12!$A$4:$AL$2956,27,FALSE),0) -> 131 | AD124: =IFERROR(VLOOKUP($A124,Filtro.12!$A$4:$AL$2956,28,FALSE),0) -> 0 | AE124: =IFERROR(VLOOKUP($A124,Filtro.12!$A$4:$AL$2956,29,FALSE),0) -> 0 | AF124: =IFERROR(VLOOKUP($A124,Filtro.12!$A$4:$AL$2956,30,FALSE),0) -> 0 | AG124: =IFERROR(VLOOKUP($A124,Filtro.12!$A$4:$AL$2956,31,FALSE),0) -> 0 | AH124: =IFERROR(VLOOKUP($A124,Filtro.12!$A$4:$AL$2956,32,FALSE),0) -> 0 | AI124: =IFERROR(VLOOKUP($A124,Filtro.12!$A$4:$AL$2956,33,FALSE),0) -> 0 | AJ124: =IFERROR(VLOOKUP($A124,Filtro.12!$A$4:$AL$2956,34,FALSE),0) -> 0 | AK124: =IFERROR(VLOOKUP($A124,Filtro.12!$A$4:$AL$2956,35,FALSE),0) -> 0 | AL124: 8,000 | AM124: =IFERROR(VLOOKUP($A124,Filtro.12!$A$4:$AL$2956,37,FALSE),0) -> 1,048,000
A125: 01014372 | B125: 0109002 | C125: Teleinterconsulta no médica | D125: =IFERROR(VLOOKUP($A125,Filtro.12!$A$4:$AL$2956,2,FALSE),0) -> 0 | E125: =IFERROR(VLOOKUP($A125,Filtro.12!$A$4:$AL$2956,3,FALSE),0) -> 0 | F125: =IFERROR(VLOOKUP($A125,Filtro.12!$A$4:$AL$2956,4,FALSE),0) -> 0 | G125: =IFERROR(VLOOKUP($A125,Filtro.12!$A$4:$AL$2956,5,FALSE),0) -> 0 | H125: =IFERROR(VLOOKUP($A125,Filtro.12!$A$4:$AL$2956,6,FALSE),0) -> 0 | AB125: =IFERROR(VLOOKUP($A125,Filtro.12!$A$4:$AL$2956,26,FALSE),0) -> 0 | AC125: =IFERROR(VLOOKUP($A125,Filtro.12!$A$4:$AL$2956,27,FALSE),0) -> 0 | AD125: =IFERROR(VLOOKUP($A125,Filtro.12!$A$4:$AL$2956,28,FALSE),0) -> 0 | AE125: =IFERROR(VLOOKUP($A125,Filtro.12!$A$4:$AL$2956,29,FALSE),0) -> 0 | AF125: =IFERROR(VLOOKUP($A125,Filtro.12!$A$4:$AL$2956,30,FALSE),0) -> 0 | AG125: =IFERROR(VLOOKUP($A125,Filtro.12!$A$4:$AL$2956,31,FALSE),0) -> 0 | AH125: =IFERROR(VLOOKUP($A125,Filtro.12!$A$4:$AL$2956,32,FALSE),0) -> 0 | AI125: =IFERROR(VLOOKUP($A125,Filtro.12!$A$4:$AL$2956,33,FALSE),0) -> 0 | AJ125: =IFERROR(VLOOKUP($A125,Filtro.12!$A$4:$AL$2956,34,FALSE),0) -> 0 | AK125: =IFERROR(VLOOKUP($A125,Filtro.12!$A$4:$AL$2956,35,FALSE),0) -> 0 | AL125: 6,800 | AM125: =IFERROR(VLOOKUP($A125,Filtro.12!$A$4:$AL$2956,37,FALSE),0) -> 0
C126: TOTAL | D126: =SUM(D124:D125) -> 131 | E126: =SUM(E124:E125) -> 131 | F126: =SUM(F124:F125) -> 131 | G126: =SUM(G124:G125) -> 0 | H126: =SUM(H124:H125) -> 0 | AB126: =SUM(AB124:AB125) -> 0 | AC126: 131 | AD126: 0 | AE126: 0 | AF126: 0 | AG126: 0 | AH126: 0 | AI126: 0 | AJ126: 0 | AK126: 0 | AM126: =SUM(AM124:AM125) -> 1,048,000
C127: EDUCACION DE GRUPO
A128: 01010029 | B128: 0103001 | C128: Educación de grupo por médico | D128: =IFERROR(VLOOKUP($A128,Filtro.12!$A$4:$AL$2956,2,FALSE),0) -> 384 | E128: =IFERROR(VLOOKUP($A128,Filtro.12!$A$4:$AL$2956,3,FALSE),0) -> 384 | F128: =IFERROR(VLOOKUP($A128,Filtro.12!$A$4:$AL$2956,4,FALSE),0) -> 384 | G128: =IFERROR(VLOOKUP($A128,Filtro.12!$A$4:$AL$2956,5,FALSE),0) -> 0 | H128: =IFERROR(VLOOKUP($A128,Filtro.12!$A$4:$AL$2956,6,FALSE),0) -> 0 | AB128: =IFERROR(VLOOKUP($A128,Filtro.12!$A$4:$AL$2956,26,FALSE),0) -> 0 | AC128: =IFERROR(VLOOKUP($A128,Filtro.12!$A$4:$AL$2956,27,FALSE),0) -> 384 | AD128: =IFERROR(VLOOKUP($A128,Filtro.12!$A$4:$AL$2956,28,FALSE),0) -> 0 | AE128: =IFERROR(VLOOKUP($A128,Filtro.12!$A$4:$AL$2956,29,FALSE),0) -> 0 | AF128: =IFERROR(VLOOKUP($A128,Filtro.12!$A$4:$AL$2956,30,FALSE),0) -> 0 | AG128: =IFERROR(VLOOKUP($A128,Filtro.12!$A$4:$AL$2956,31,FALSE),0) -> 0 | AH128: =IFERROR(VLOOKUP($A128,Filtro.12!$A$4:$AL$2956,32,FALSE),0) -> 0 | AI128: =IFERROR(VLOOKUP($A128,Filtro.12!$A$4:$AL$2956,33,FALSE),0) -> 0 | AJ128: =IFERROR(VLOOKUP($A128,Filtro.12!$A$4:$AL$2956,34,FALSE),0) -> 0 | AK128: =IFERROR(VLOOKUP($A128,Filtro.12!$A$4:$AL$2956,35,FALSE),0) -> 0 | AL128: 4,930 | AM128: =IFERROR(VLOOKUP($A128,Filtro.12!$A$4:$AL$2956,37,FALSE),0) -> 1,893,120
A129: 01010031 | B129: 0103003 | C129: Educación de grupo por Trabajador/a Social | D129: =IFERROR(VLOOKUP($A129,Filtro.12!$A$4:$AL$2956,2,FALSE),0) -> 181 | E129: =IFERROR(VLOOKUP($A129,Filtro.12!$A$4:$AL$2956,3,FALSE),0) -> 181 | F129: =IFERROR(VLOOKUP($A129,Filtro.12!$A$4:$AL$2956,4,FALSE),0) -> 181 | G129: =IFERROR(VLOOKUP($A129,Filtro.12!$A$4:$AL$2956,5,FALSE),0) -> 0 | H129: =IFERROR(VLOOKUP($A129,Filtro.12!$A$4:$AL$2956,6,FALSE),0) -> 0 | AB129: =IFERROR(VLOOKUP($A129,Filtro.12!$A$4:$AL$2956,26,FALSE),0) -> 0 | AC129: =IFERROR(VLOOKUP($A129,Filtro.12!$A$4:$AL$2956,27,FALSE),0) -> 181 | AD129: =IFERROR(VLOOKUP($A129,Filtro.12!$A$4:$AL$2956,28,FALSE),0) -> 0 | AE129: =IFERROR(VLOOKUP($A129,Filtro.12!$A$4:$AL$2956,29,FALSE),0) -> 0 | AF129: =IFERROR(VLOOKUP($A129,Filtro.12!$A$4:$AL$2956,30,FALSE),0) -> 0 | AG129: =IFERROR(VLOOKUP($A129,Filtro.12!$A$4:$AL$2956,31,FALSE),0) -> 0 | AH129: =IFERROR(VLOOKUP($A129,Filtro.12!$A$4:$AL$2956,32,FALSE),0) -> 0 | AI129: =IFERROR(VLOOKUP($A129,Filtro.12!$A$4:$AL$2956,33,FALSE),0) -> 0 | AJ129: =IFERROR(VLOOKUP($A129,Filtro.12!$A$4:$AL$2956,34,FALSE),0) -> 0 | AK129: =IFERROR(VLOOKUP($A129,Filtro.12!$A$4:$AL$2956,35,FALSE),0) -> 0 | AL129: 2,710 | AM129: =IFERROR(VLOOKUP($A129,Filtro.12!$A$4:$AL$2956,37,FALSE),0) -> 490,510
A130: 01010032 | B130: 0103004 | C130: Educación de grupo por auxiliar de enfermería | D130: =IFERROR(VLOOKUP($A130,Filtro.12!$A$4:$AL$2956,2,FALSE),0) -> 1 | E130: =IFERROR(VLOOKUP($A130,Filtro.12!$A$4:$AL$2956,3,FALSE),0) -> 1 | F130: =IFERROR(VLOOKUP($A130,Filtro.12!$A$4:$AL$2956,4,FALSE),0) -> 1 | G130: =IFERROR(VLOOKUP($A130,Filtro.12!$A$4:$AL$2956,5,FALSE),0) -> 0 | H130: =IFERROR(VLOOKUP($A130,Filtro.12!$A$4:$AL$2956,6,FALSE),0) -> 0 | AB130: =IFERROR(VLOOKUP($A130,Filtro.12!$A$4:$AL$2956,26,FALSE),0) -> 0 | AC130: =IFERROR(VLOOKUP($A130,Filtro.12!$A$4:$AL$2956,27,FALSE),0) -> 1 | AD130: =IFERROR(VLOOKUP($A130,Filtro.12!$A$4:$AL$2956,28,FALSE),0) -> 0 | AE130: =IFERROR(VLOOKUP($A130,Filtro.12!$A$4:$AL$2956,29,FALSE),0) -> 0 | AF130: =IFERROR(VLOOKUP($A130,Filtro.12!$A$4:$AL$2956,30,FALSE),0) -> 0 | AG130: =IFERROR(VLOOKUP($A130,Filtro.12!$A$4:$AL$2956,31,FALSE),0) -> 0 | AH130: =IFERROR(VLOOKUP($A130,Filtro.12!$A$4:$AL$2956,32,FALSE),0) -> 0 | AI130: =IFERROR(VLOOKUP($A130,Filtro.12!$A$4:$AL$2956,33,FALSE),0) -> 0 | AJ130: =IFERROR(VLOOKUP($A130,Filtro.12!$A$4:$AL$2956,34,FALSE),0) -> 0 | AK130: =IFERROR(VLOOKUP($A130,Filtro.12!$A$4:$AL$2956,35,FALSE),0) -> 0 | AL130: 830 | AM130: =IFERROR(VLOOKUP($A130,Filtro.12!$A$4:$AL$2956,37,FALSE),0) -> 830
A131: 01014373 | B131: 0103005 | C131: Educación de grupo por enfermera | D131: =IFERROR(VLOOKUP($A131,Filtro.12!$A$4:$AL$2956,2,FALSE),0) -> 37595 | E131: =IFERROR(VLOOKUP($A131,Filtro.12!$A$4:$AL$2956,3,FALSE),0) -> 37595 | F131: =IFERROR(VLOOKUP($A131,Filtro.12!$A$4:$AL$2956,4,FALSE),0) -> 37004 | G131: =IFERROR(VLOOKUP($A131,Filtro.12!$A$4:$AL$2956,5,FALSE),0) -> 591 | H131: =IFERROR(VLOOKUP($A131,Filtro.12!$A$4:$AL$2956,6,FALSE),0) -> 0 | AB131: =IFERROR(VLOOKUP($A131,Filtro.12!$A$4:$AL$2956,26,FALSE),0) -> 32501 | AC131: =IFERROR(VLOOKUP($A131,Filtro.12!$A$4:$AL$2956,27,FALSE),0) -> 5939 | AD131: =IFERROR(VLOOKUP($A131,Filtro.12!$A$4:$AL$2956,28,FALSE),0) -> 17 | AE131: =IFERROR(VLOOKUP($A131,Filtro.12!$A$4:$AL$2956,29,FALSE),0) -> 0 | AF131: =IFERROR(VLOOKUP($A131,Filtro.12!$A$4:$AL$2956,30,FALSE),0) -> 0 | AG131: =IFERROR(VLOOKUP($A131,Filtro.12!$A$4:$AL$2956,31,FALSE),0) -> 0 | AH131: =IFERROR(VLOOKUP($A131,Filtro.12!$A$4:$AL$2956,32,FALSE),0) -> 0 | AI131: =IFERROR(VLOOKUP($A131,Filtro.12!$A$4:$AL$2956,33,FALSE),0) -> 0 | AJ131: =IFERROR(VLOOKUP($A131,Filtro.12!$A$4:$AL$2956,34,FALSE),0) -> 0 | AK131: =IFERROR(VLOOKUP($A131,Filtro.12!$A$4:$AL$2956,35,FALSE),0) -> 0 | AL131: 2,710 | AM131: =IFERROR(VLOOKUP($A131,Filtro.12!$A$4:$AL$2956,37,FALSE),0) -> 100,280,840
A132: 01014374 | B132: 0103006 | C132: Educación de grupo por matrona | D132: =IFERROR(VLOOKUP($A132,Filtro.12!$A$4:$AL$2956,2,FALSE),0) -> 2000 | E132: =IFERROR(VLOOKUP($A132,Filtro.12!$A$4:$AL$2956,3,FALSE),0) -> 2000 | F132: =IFERROR(VLOOKUP($A132,Filtro.12!$A$4:$AL$2956,4,FALSE),0) -> 2000 | G132: =IFERROR(VLOOKUP($A132,Filtro.12!$A$4:$AL$2956,5,FALSE),0) -> 0 | H132: =IFERROR(VLOOKUP($A132,Filtro.12!$A$4:$AL$2956,6,FALSE),0) -> 0 | AB132: =IFERROR(VLOOKUP($A132,Filtro.12!$A$4:$AL$2956,26,FALSE),0) -> 26 | AC132: =IFERROR(VLOOKUP($A132,Filtro.12!$A$4:$AL$2956,27,FALSE),0) -> 2000 | AD132: =IFERROR(VLOOKUP($A132,Filtro.12!$A$4:$AL$2956,28,FALSE),0) -> 0 | AE132: =IFERROR(VLOOKUP($A132,Filtro.12!$A$4:$AL$2956,29,FALSE),0) -> 0 | AF132: =IFERROR(VLOOKUP($A132,Filtro.12!$A$4:$AL$2956,30,FALSE),0) -> 0 | AG132: =IFERROR(VLOOKUP($A132,Filtro.12!$A$4:$AL$2956,31,FALSE),0) -> 0 | AH132: =IFERROR(VLOOKUP($A132,Filtro.12!$A$4:$AL$2956,32,FALSE),0) -> 0 | AI132: =IFERROR(VLOOKUP($A132,Filtro.12!$A$4:$AL$2956,33,FALSE),0) -> 0 | AJ132: =IFERROR(VLOOKUP($A132,Filtro.12!$A$4:$AL$2956,34,FALSE),0) -> 0 | AK132: =IFERROR(VLOOKUP($A132,Filtro.12!$A$4:$AL$2956,35,FALSE),0) -> 0 | AL132: 2,710 | AM132: =IFERROR(VLOOKUP($A132,Filtro.12!$A$4:$AL$2956,37,FALSE),0) -> 5,420,000
A133: 01014375 | B133: 0103007 | C133: Educación de grupo por nutricionista | D133: =IFERROR(VLOOKUP($A133,Filtro.12!$A$4:$AL$2956,2,FALSE),0) -> 83 | E133: =IFERROR(VLOOKUP($A133,Filtro.12!$A$4:$AL$2956,3,FALSE),0) -> 83 | F133: =IFERROR(VLOOKUP($A133,Filtro.12!$A$4:$AL$2956,4,FALSE),0) -> 83 | G133: =IFERROR(VLOOKUP($A133,Filtro.12!$A$4:$AL$2956,5,FALSE),0) -> 0 | H133: =IFERROR(VLOOKUP($A133,Filtro.12!$A$4:$AL$2956,6,FALSE),0) -> 0 | AB133: =IFERROR(VLOOKUP($A133,Filtro.12!$A$4:$AL$2956,26,FALSE),0) -> 0 | AC133: =IFERROR(VLOOKUP($A133,Filtro.12!$A$4:$AL$2956,27,FALSE),0) -> 83 | AD133: =IFERROR(VLOOKUP($A133,Filtro.12!$A$4:$AL$2956,28,FALSE),0) -> 0 | AE133: =IFERROR(VLOOKUP($A133,Filtro.12!$A$4:$AL$2956,29,FALSE),0) -> 0 | AF133: =IFERROR(VLOOKUP($A133,Filtro.12!$A$4:$AL$2956,30,FALSE),0) -> 0 | AG133: =IFERROR(VLOOKUP($A133,Filtro.12!$A$4:$AL$2956,31,FALSE),0) -> 0 | AH133: =IFERROR(VLOOKUP($A133,Filtro.12!$A$4:$AL$2956,32,FALSE),0) -> 0 | AI133: =IFERROR(VLOOKUP($A133,Filtro.12!$A$4:$AL$2956,33,FALSE),0) -> 0 | AJ133: =IFERROR(VLOOKUP($A133,Filtro.12!$A$4:$AL$2956,34,FALSE),0) -> 0 | AK133: =IFERROR(VLOOKUP($A133,Filtro.12!$A$4:$AL$2956,35,FALSE),0) -> 0 | AL133: 2,710 | AM133: =IFERROR(VLOOKUP($A133,Filtro.12!$A$4:$AL$2956,37,FALSE),0) -> 224,930
C134: TOTAL ARANCEL MAI | D134: =SUM(D128:D133) -> 40244 | E134: =SUM(E128:E133) -> 40244 | F134: =SUM(F128:F133) -> 39653 | G134: =SUM(G128:G133) -> 591 | H134: =SUM(H128:H133) -> 0 | AB134: =SUM(AB128:AB133) -> 32527 | AC134: 8588 | AD134: 17 | AE134: 0 | AF134: 0 | AG134: 0 | AH134: 0 | AI134: 0 | AJ134: 0 | AK134: 0 | AM134: =SUM(AM128:AM133) -> 108,310,230
A135: 01010033 | B135: 01010033 | C135: Educación de grupo por otro integrante del equipo de salud | D135: =IFERROR(VLOOKUP($A135,Filtro.12!$A$4:$AL$2956,2,FALSE),0) -> 1888 | E135: =IFERROR(VLOOKUP($A135,Filtro.12!$A$4:$AL$2956,3,FALSE),0) -> 1888 | F135: =IFERROR(VLOOKUP($A135,Filtro.12!$A$4:$AL$2956,4,FALSE),0) -> 1888 | G135: =IFERROR(VLOOKUP($A135,Filtro.12!$A$4:$AL$2956,5,FALSE),0) -> 0 | H135: =IFERROR(VLOOKUP($A135,Filtro.12!$A$4:$AL$2956,6,FALSE),0) -> 0 | AB135: =IFERROR(VLOOKUP($A135,Filtro.12!$A$4:$AL$2956,26,FALSE),0) -> 443 | AC135: =IFERROR(VLOOKUP($A135,Filtro.12!$A$4:$AL$2956,27,FALSE),0) -> 1437 | AD135: =IFERROR(VLOOKUP($A135,Filtro.12!$A$4:$AL$2956,28,FALSE),0) -> 0 | AE135: =IFERROR(VLOOKUP($A135,Filtro.12!$A$4:$AL$2956,29,FALSE),0) -> 0 | AF135: =IFERROR(VLOOKUP($A135,Filtro.12!$A$4:$AL$2956,30,FALSE),0) -> 0 | AG135: =IFERROR(VLOOKUP($A135,Filtro.12!$A$4:$AL$2956,31,FALSE),0) -> 0 | AH135: =IFERROR(VLOOKUP($A135,Filtro.12!$A$4:$AL$2956,32,FALSE),0) -> 0 | AI135: =IFERROR(VLOOKUP($A135,Filtro.12!$A$4:$AL$2956,33,FALSE),0) -> 0 | AJ135: =IFERROR(VLOOKUP($A135,Filtro.12!$A$4:$AL$2956,34,FALSE),0) -> 0 | AK135: =IFERROR(VLOOKUP($A135,Filtro.12!$A$4:$AL$2956,35,FALSE),0) -> 0 | AM135: =IFERROR(VLOOKUP($A135,Filtro.12!$A$4:$AL$2956,37,FALSE),0) -> 0
C136: TOTAL ARANCEL MLE Y NO ARANCELADO | D136: =D135 -> 1888 | E136: =E135 -> 1888 | F136: =F135 -> 1888 | G136: =G135 -> 0 | H136: =H135 -> 0 | AB136: =AB135 -> 443 | AC136: 1437 | AD136: 0 | AE136: 0 | AF136: 0 | AG136: 0 | AH136: 0 | AI136: 0 | AJ136: 0 | AK136: 0
C137: TOTAL PRODUCCION | D137: =SUM(D134+D136) -> 42132 | E137: =SUM(E134+E136) -> 42132 | F137: =SUM(F134+F136) -> 41541 | G137: =SUM(G134+G136) -> 591 | H137: =SUM(H134+H136) -> 0 | AB137: =SUM(AB134+AB136) -> 32970 | AC137: 10025 | AD137: 17 | AE137: 0 | AF137: 0 | AG137: 0 | AH137: 0 | AI137: 0 | AJ137: 0 | AK137: 0 | AL137: 0 | AM137: =SUM(AM134+AM136) -> 108,310,230
C138: VISITAS DOMICILIARIAS
A139: 01010035 | B139: 0104002 | C139: Visita a domicilio por Trabajador/a Social | D139: =IFERROR(VLOOKUP($A139,Filtro.12!$A$4:$AL$2956,2,FALSE),0) -> 2926 | E139: =IFERROR(VLOOKUP($A139,Filtro.12!$A$4:$AL$2956,3,FALSE),0) -> 2924 | F139: =IFERROR(VLOOKUP($A139,Filtro.12!$A$4:$AL$2956,4,FALSE),0) -> 2924 | G139: =IFERROR(VLOOKUP($A139,Filtro.12!$A$4:$AL$2956,5,FALSE),0) -> 0 | H139: =IFERROR(VLOOKUP($A139,Filtro.12!$A$4:$AL$2956,6,FALSE),0) -> 2 | AB139: =IFERROR(VLOOKUP($A139,Filtro.12!$A$4:$AL$2956,26,FALSE),0) -> 299 | AC139: =IFERROR(VLOOKUP($A139,Filtro.12!$A$4:$AL$2956,27,FALSE),0) -> 2627 | AD139: =IFERROR(VLOOKUP($A139,Filtro.12!$A$4:$AL$2956,28,FALSE),0) -> 0 | AE139: =IFERROR(VLOOKUP($A139,Filtro.12!$A$4:$AL$2956,29,FALSE),0) -> 0 | AF139: =IFERROR(VLOOKUP($A139,Filtro.12!$A$4:$AL$2956,30,FALSE),0) -> 0 | AG139: =IFERROR(VLOOKUP($A139,Filtro.12!$A$4:$AL$2956,31,FALSE),0) -> 0 | AH139: =IFERROR(VLOOKUP($A139,Filtro.12!$A$4:$AL$2956,32,FALSE),0) -> 0 | AI139: =IFERROR(VLOOKUP($A139,Filtro.12!$A$4:$AL$2956,33,FALSE),0) -> 0 | AJ139: =IFERROR(VLOOKUP($A139,Filtro.12!$A$4:$AL$2956,34,FALSE),0) -> 0 | AK139: =IFERROR(VLOOKUP($A139,Filtro.12!$A$4:$AL$2956,35,FALSE),0) -> 0 | AL139: 2,350 | AM139: =IFERROR(VLOOKUP($A139,Filtro.12!$A$4:$AL$2956,37,FALSE),0) -> 6,871,400
A140: 01010036 | B140: 0104003 | C140: Visita a domicilio por auxiliar de enfermería | D140: =IFERROR(VLOOKUP($A140,Filtro.12!$A$4:$AL$2956,2,FALSE),0) -> 13386 | E140: =IFERROR(VLOOKUP($A140,Filtro.12!$A$4:$AL$2956,3,FALSE),0) -> 13384 | F140: =IFERROR(VLOOKUP($A140,Filtro.12!$A$4:$AL$2956,4,FALSE),0) -> 13384 | G140: =IFERROR(VLOOKUP($A140,Filtro.12!$A$4:$AL$2956,5,FALSE),0) -> 0 | H140: =IFERROR(VLOOKUP($A140,Filtro.12!$A$4:$AL$2956,6,FALSE),0) -> 2 | AB140: =IFERROR(VLOOKUP($A140,Filtro.12!$A$4:$AL$2956,26,FALSE),0) -> 12378 | AC140: =IFERROR(VLOOKUP($A140,Filtro.12!$A$4:$AL$2956,27,FALSE),0) -> 1008 | AD140: =IFERROR(VLOOKUP($A140,Filtro.12!$A$4:$AL$2956,28,FALSE),0) -> 0 | AE140: =IFERROR(VLOOKUP($A140,Filtro.12!$A$4:$AL$2956,29,FALSE),0) -> 0 | AF140: =IFERROR(VLOOKUP($A140,Filtro.12!$A$4:$AL$2956,30,FALSE),0) -> 0 | AG140: =IFERROR(VLOOKUP($A140,Filtro.12!$A$4:$AL$2956,31,FALSE),0) -> 0 | AH140: =IFERROR(VLOOKUP($A140,Filtro.12!$A$4:$AL$2956,32,FALSE),0) -> 0 | AI140: =IFERROR(VLOOKUP($A140,Filtro.12!$A$4:$AL$2956,33,FALSE),0) -> 0 | AJ140: =IFERROR(VLOOKUP($A140,Filtro.12!$A$4:$AL$2956,34,FALSE),0) -> 0 | AK140: =IFERROR(VLOOKUP($A140,Filtro.12!$A$4:$AL$2956,35,FALSE),0) -> 0 | AL140: 1,350 | AM140: =IFERROR(VLOOKUP($A140,Filtro.12!$A$4:$AL$2956,37,FALSE),0) -> 18,068,400
A141: 01014376 | B141: 0104004 | C141: Visita a domicilio por enfermera | D141: =IFERROR(VLOOKUP($A141,Filtro.12!$A$4:$AL$2956,2,FALSE),0) -> 27228 | E141: =IFERROR(VLOOKUP($A141,Filtro.12!$A$4:$AL$2956,3,FALSE),0) -> 27227 | F141: =IFERROR(VLOOKUP($A141,Filtro.12!$A$4:$AL$2956,4,FALSE),0) -> 27227 | G141: =IFERROR(VLOOKUP($A141,Filtro.12!$A$4:$AL$2956,5,FALSE),0) -> 0 | H141: =IFERROR(VLOOKUP($A141,Filtro.12!$A$4:$AL$2956,6,FALSE),0) -> 1 | AB141: =IFERROR(VLOOKUP($A141,Filtro.12!$A$4:$AL$2956,26,FALSE),0) -> 18328 | AC141: =IFERROR(VLOOKUP($A141,Filtro.12!$A$4:$AL$2956,27,FALSE),0) -> 8900 | AD141: =IFERROR(VLOOKUP($A141,Filtro.12!$A$4:$AL$2956,28,FALSE),0) -> 0 | AE141: =IFERROR(VLOOKUP($A141,Filtro.12!$A$4:$AL$2956,29,FALSE),0) -> 0 | AF141: =IFERROR(VLOOKUP($A141,Filtro.12!$A$4:$AL$2956,30,FALSE),0) -> 0 | AG141: =IFERROR(VLOOKUP($A141,Filtro.12!$A$4:$AL$2956,31,FALSE),0) -> 0 | AH141: =IFERROR(VLOOKUP($A141,Filtro.12!$A$4:$AL$2956,32,FALSE),0) -> 0 | AI141: =IFERROR(VLOOKUP($A141,Filtro.12!$A$4:$AL$2956,33,FALSE),0) -> 0 | AJ141: =IFERROR(VLOOKUP($A141,Filtro.12!$A$4:$AL$2956,34,FALSE),0) -> 0 | AK141: =IFERROR(VLOOKUP($A141,Filtro.12!$A$4:$AL$2956,35,FALSE),0) -> 0 | AL141: 2,350 | AM141: =IFERROR(VLOOKUP($A141,Filtro.12!$A$4:$AL$2956,37,FALSE),0) -> 63,983,450
A142: 01014377 | B142: 0104005 | C142: Visita a domicilio por matrona | D142: =IFERROR(VLOOKUP($A142,Filtro.12!$A$4:$AL$2956,2,FALSE),0) -> 179 | E142: =IFERROR(VLOOKUP($A142,Filtro.12!$A$4:$AL$2956,3,FALSE),0) -> 179 | F142: =IFERROR(VLOOKUP($A142,Filtro.12!$A$4:$AL$2956,4,FALSE),0) -> 179 | G142: =IFERROR(VLOOKUP($A142,Filtro.12!$A$4:$AL$2956,5,FALSE),0) -> 0 | H142: =IFERROR(VLOOKUP($A142,Filtro.12!$A$4:$AL$2956,6,FALSE),0) -> 0 | AB142: =IFERROR(VLOOKUP($A142,Filtro.12!$A$4:$AL$2956,26,FALSE),0) -> 0 | AC142: =IFERROR(VLOOKUP($A142,Filtro.12!$A$4:$AL$2956,27,FALSE),0) -> 179 | AD142: =IFERROR(VLOOKUP($A142,Filtro.12!$A$4:$AL$2956,28,FALSE),0) -> 0 | AE142: =IFERROR(VLOOKUP($A142,Filtro.12!$A$4:$AL$2956,29,FALSE),0) -> 0 | AF142: =IFERROR(VLOOKUP($A142,Filtro.12!$A$4:$AL$2956,30,FALSE),0) -> 0 | AG142: =IFERROR(VLOOKUP($A142,Filtro.12!$A$4:$AL$2956,31,FALSE),0) -> 0 | AH142: =IFERROR(VLOOKUP($A142,Filtro.12!$A$4:$AL$2956,32,FALSE),0) -> 0 | AI142: =IFERROR(VLOOKUP($A142,Filtro.12!$A$4:$AL$2956,33,FALSE),0) -> 0 | AJ142: =IFERROR(VLOOKUP($A142,Filtro.12!$A$4:$AL$2956,34,FALSE),0) -> 0 | AK142: =IFERROR(VLOOKUP($A142,Filtro.12!$A$4:$AL$2956,35,FALSE),0) -> 0 | AL142: 2,350 | AM142: =IFERROR(VLOOKUP($A142,Filtro.12!$A$4:$AL$2956,37,FALSE),0) -> 420,650
A143: 01014378 | B143: 0104006 | C143: Visita a domicilio por nutricionista | D143: =IFERROR(VLOOKUP($A143,Filtro.12!$A$4:$AL$2956,2,FALSE),0) -> 1012 | E143: =IFERROR(VLOOKUP($A143,Filtro.12!$A$4:$AL$2956,3,FALSE),0) -> 1012 | F143: =IFERROR(VLOOKUP($A143,Filtro.12!$A$4:$AL$2956,4,FALSE),0) -> 1012 | G143: =IFERROR(VLOOKUP($A143,Filtro.12!$A$4:$AL$2956,5,FALSE),0) -> 0 | H143: =IFERROR(VLOOKUP($A143,Filtro.12!$A$4:$AL$2956,6,FALSE),0) -> 0 | AB143: =IFERROR(VLOOKUP($A143,Filtro.12!$A$4:$AL$2956,26,FALSE),0) -> 545 | AC143: =IFERROR(VLOOKUP($A143,Filtro.12!$A$4:$AL$2956,27,FALSE),0) -> 467 | AD143: =IFERROR(VLOOKUP($A143,Filtro.12!$A$4:$AL$2956,28,FALSE),0) -> 0 | AE143: =IFERROR(VLOOKUP($A143,Filtro.12!$A$4:$AL$2956,29,FALSE),0) -> 0 | AF143: =IFERROR(VLOOKUP($A143,Filtro.12!$A$4:$AL$2956,30,FALSE),0) -> 0 | AG143: =IFERROR(VLOOKUP($A143,Filtro.12!$A$4:$AL$2956,31,FALSE),0) -> 0 | AH143: =IFERROR(VLOOKUP($A143,Filtro.12!$A$4:$AL$2956,32,FALSE),0) -> 0 | AI143: =IFERROR(VLOOKUP($A143,Filtro.12!$A$4:$AL$2956,33,FALSE),0) -> 0 | AJ143: =IFERROR(VLOOKUP($A143,Filtro.12!$A$4:$AL$2956,34,FALSE),0) -> 0 | AK143: =IFERROR(VLOOKUP($A143,Filtro.12!$A$4:$AL$2956,35,FALSE),0) -> 0 | AL143: 2,350 | AM143: =IFERROR(VLOOKUP($A143,Filtro.12!$A$4:$AL$2956,37,FALSE),0) -> 2,378,200
C144: TOTAL ARANCEL MAI | D144: =SUM(D139:D143) -> 44731 | E144: =SUM(E139:E143) -> 44726 | F144: =SUM(F139:F143) -> 44726 | G144: =SUM(G139:G143) -> 0 | H144: =SUM(H139:H143) -> 5 | AB144: =SUM(AB139:AB143) -> 31550 | AC144: 13181 | AD144: 0 | AE144: 0 | AF144: 0 | AG144: 0 | AH144: 0 | AI144: 0 | AJ144: 0 | AK144: 0 | AM144: =SUM(AM139:AM143) -> 91,722,100
A145: 01010037 | B145: 01010037 | C145: Visita a domicilio por otro integrante del equipo de salud | D145: =IFERROR(VLOOKUP($A145,Filtro.12!$A$4:$AL$2956,2,FALSE),0) -> 22490 | E145: =IFERROR(VLOOKUP($A145,Filtro.12!$A$4:$AL$2956,3,FALSE),0) -> 22487 | F145: =IFERROR(VLOOKUP($A145,Filtro.12!$A$4:$AL$2956,4,FALSE),0) -> 22487 | G145: =IFERROR(VLOOKUP($A145,Filtro.12!$A$4:$AL$2956,5,FALSE),0) -> 0 | H145: =IFERROR(VLOOKUP($A145,Filtro.12!$A$4:$AL$2956,6,FALSE),0) -> 3 | AB145: =IFERROR(VLOOKUP($A145,Filtro.12!$A$4:$AL$2956,26,FALSE),0) -> 14779 | AC145: =IFERROR(VLOOKUP($A145,Filtro.12!$A$4:$AL$2956,27,FALSE),0) -> 7711 | AD145: =IFERROR(VLOOKUP($A145,Filtro.12!$A$4:$AL$2956,28,FALSE),0) -> 0 | AE145: =IFERROR(VLOOKUP($A145,Filtro.12!$A$4:$AL$2956,29,FALSE),0) -> 0 | AF145: =IFERROR(VLOOKUP($A145,Filtro.12!$A$4:$AL$2956,30,FALSE),0) -> 0 | AG145: =IFERROR(VLOOKUP($A145,Filtro.12!$A$4:$AL$2956,31,FALSE),0) -> 0 | AH145: =IFERROR(VLOOKUP($A145,Filtro.12!$A$4:$AL$2956,32,FALSE),0) -> 0 | AI145: =IFERROR(VLOOKUP($A145,Filtro.12!$A$4:$AL$2956,33,FALSE),0) -> 0 | AJ145: =IFERROR(VLOOKUP($A145,Filtro.12!$A$4:$AL$2956,34,FALSE),0) -> 0 | AK145: =IFERROR(VLOOKUP($A145,Filtro.12!$A$4:$AL$2956,35,FALSE),0) -> 0
A146: 01010038 | B146: 01010038 | C146: Visita domiciaria por otro profesional y técnicos paramédico | D146: =IFERROR(VLOOKUP($A146,Filtro.12!$A$4:$AL$2956,2,FALSE),0) -> 12117 | E146: =IFERROR(VLOOKUP($A146,Filtro.12!$A$4:$AL$2956,3,FALSE),0) -> 12117 | F146: =IFERROR(VLOOKUP($A146,Filtro.12!$A$4:$AL$2956,4,FALSE),0) -> 12117 | G146: =IFERROR(VLOOKUP($A146,Filtro.12!$A$4:$AL$2956,5,FALSE),0) -> 0 | H146: =IFERROR(VLOOKUP($A146,Filtro.12!$A$4:$AL$2956,6,FALSE),0) -> 0 | AB146: =IFERROR(VLOOKUP($A146,Filtro.12!$A$4:$AL$2956,26,FALSE),0) -> 9399 | AC146: =IFERROR(VLOOKUP($A146,Filtro.12!$A$4:$AL$2956,27,FALSE),0) -> 175 | AD146: =IFERROR(VLOOKUP($A146,Filtro.12!$A$4:$AL$2956,28,FALSE),0) -> 0 | AE146: =IFERROR(VLOOKUP($A146,Filtro.12!$A$4:$AL$2956,29,FALSE),0) -> 0 | AF146: =IFERROR(VLOOKUP($A146,Filtro.12!$A$4:$AL$2956,30,FALSE),0) -> 0 | AG146: =IFERROR(VLOOKUP($A146,Filtro.12!$A$4:$AL$2956,31,FALSE),0) -> 0 | AH146: =IFERROR(VLOOKUP($A146,Filtro.12!$A$4:$AL$2956,32,FALSE),0) -> 0 | AI146: =IFERROR(VLOOKUP($A146,Filtro.12!$A$4:$AL$2956,33,FALSE),0) -> 0 | AJ146: =IFERROR(VLOOKUP($A146,Filtro.12!$A$4:$AL$2956,34,FALSE),0) -> 0 | AK146: =IFERROR(VLOOKUP($A146,Filtro.12!$A$4:$AL$2956,35,FALSE),0) -> 0
C147: TOTAL ARANCEL MLE Y NO ARANCELADO | D147: =SUM(D145:D146) -> 34607 | E147: =SUM(E145:E146) -> 34604 | F147: =SUM(F145:F146) -> 34604 | G147: =SUM(G145:G146) -> 0 | H147: =SUM(H145:H146) -> 3 | AB147: =SUM(AB145:AB146) -> 24178 | AC147: 7886 | AD147: 0 | AE147: 0 | AF147: 0 | AG147: 0 | AH147: 0 | AI147: 0 | AJ147: 0 | AK147: 0
C148: TOTAL | D148: =SUM(D144+D147) -> 79338 | E148: =SUM(E144+E147) -> 79330 | F148: =SUM(F144+F147) -> 79330 | G148: =SUM(G144+G147) -> 0 | H148: =SUM(H144+H147) -> 8 | AB148: =SUM(AB144+AB147) -> 55728 | AC148: 21067 | AD148: 0 | AE148: 0 | AF148: 0 | AG148: 0 | AH148: 0 | AI148: 0 | AJ148: 0 | AK148: 0 | AM148: =SUM(AM144+AM147) -> 91,722,100
C149: MISCELANEOS
A150: 01010042 | B150: 0106002 | C150: Curación simple ambulatoria | D150: =IFERROR(VLOOKUP($A150,Filtro.12!$A$4:$AL$2956,2,FALSE),0) -> 38713 | E150: =IFERROR(VLOOKUP($A150,Filtro.12!$A$4:$AL$2956,3,FALSE),0) -> 38675 | F150: =IFERROR(VLOOKUP($A150,Filtro.12!$A$4:$AL$2956,4,FALSE),0) -> 38635 | G150: =IFERROR(VLOOKUP($A150,Filtro.12!$A$4:$AL$2956,5,FALSE),0) -> 40 | H150: =IFERROR(VLOOKUP($A150,Filtro.12!$A$4:$AL$2956,6,FALSE),0) -> 38 | AB150: =IFERROR(VLOOKUP($A150,Filtro.12!$A$4:$AL$2956,26,FALSE),0) -> 4406 | AC150: =IFERROR(VLOOKUP($A150,Filtro.12!$A$4:$AL$2956,27,FALSE),0) -> 30282 | AD150: =IFERROR(VLOOKUP($A150,Filtro.12!$A$4:$AL$2956,28,FALSE),0) -> 4062 | AE150: =IFERROR(VLOOKUP($A150,Filtro.12!$A$4:$AL$2956,29,FALSE),0) -> 0 | AF150: =IFERROR(VLOOKUP($A150,Filtro.12!$A$4:$AL$2956,30,FALSE),0) -> 0 | AG150: =IFERROR(VLOOKUP($A150,Filtro.12!$A$4:$AL$2956,31,FALSE),0) -> 0 | AH150: =IFERROR(VLOOKUP($A150,Filtro.12!$A$4:$AL$2956,32,FALSE),0) -> 0 | AI150: =IFERROR(VLOOKUP($A150,Filtro.12!$A$4:$AL$2956,33,FALSE),0) -> 0 | AJ150: =IFERROR(VLOOKUP($A150,Filtro.12!$A$4:$AL$2956,34,FALSE),0) -> 0 | AK150: =IFERROR(VLOOKUP($A150,Filtro.12!$A$4:$AL$2956,35,FALSE),0) -> 0 | AL150: 900 | AM150: =IFERROR(VLOOKUP($A150,Filtro.12!$A$4:$AL$2956,37,FALSE),0) -> 34,771,500
A151: 01014379 | B151: 0106007 | C151: Oxigenoterapia Hiperbárica (1 sesión) | D151: =IFERROR(VLOOKUP($A151,Filtro.12!$A$4:$AL$2956,2,FALSE),0) -> 298 | E151: =IFERROR(VLOOKUP($A151,Filtro.12!$A$4:$AL$2956,3,FALSE),0) -> 298 | F151: =IFERROR(VLOOKUP($A151,Filtro.12!$A$4:$AL$2956,4,FALSE),0) -> 298 | G151: =IFERROR(VLOOKUP($A151,Filtro.12!$A$4:$AL$2956,5,FALSE),0) -> 0 | H151: =IFERROR(VLOOKUP($A151,Filtro.12!$A$4:$AL$2956,6,FALSE),0) -> 0 | AB151: =IFERROR(VLOOKUP($A151,Filtro.12!$A$4:$AL$2956,26,FALSE),0) -> 0 | AC151: =IFERROR(VLOOKUP($A151,Filtro.12!$A$4:$AL$2956,27,FALSE),0) -> 298 | AD151: =IFERROR(VLOOKUP($A151,Filtro.12!$A$4:$AL$2956,28,FALSE),0) -> 0 | AE151: =IFERROR(VLOOKUP($A151,Filtro.12!$A$4:$AL$2956,29,FALSE),0) -> 0 | AF151: =IFERROR(VLOOKUP($A151,Filtro.12!$A$4:$AL$2956,30,FALSE),0) -> 0 | AG151: =IFERROR(VLOOKUP($A151,Filtro.12!$A$4:$AL$2956,31,FALSE),0) -> 0 | AH151: =IFERROR(VLOOKUP($A151,Filtro.12!$A$4:$AL$2956,32,FALSE),0) -> 0 | AI151: =IFERROR(VLOOKUP($A151,Filtro.12!$A$4:$AL$2956,33,FALSE),0) -> 0 | AJ151: =IFERROR(VLOOKUP($A151,Filtro.12!$A$4:$AL$2956,34,FALSE),0) -> 0 | AK151: =IFERROR(VLOOKUP($A151,Filtro.12!$A$4:$AL$2956,35,FALSE),0) -> 0 | AL151: 27,850 | AM151: =IFERROR(VLOOKUP($A151,Filtro.12!$A$4:$AL$2956,37,FALSE),0) -> 8,299,300
A152: 01014705 | B152: 0106101 | C152: Atención Integral de Acupuntura | D152: =IFERROR(VLOOKUP($A152,Filtro.12!$A$4:$AL$2956,2,FALSE),0) -> 1228 | E152: =IFERROR(VLOOKUP($A152,Filtro.12!$A$4:$AL$2956,3,FALSE),0) -> 1228 | F152: =IFERROR(VLOOKUP($A152,Filtro.12!$A$4:$AL$2956,4,FALSE),0) -> 1228 | G152: =IFERROR(VLOOKUP($A152,Filtro.12!$A$4:$AL$2956,5,FALSE),0) -> 0 | H152: =IFERROR(VLOOKUP($A152,Filtro.12!$A$4:$AL$2956,6,FALSE),0) -> 0 | AB152: =IFERROR(VLOOKUP($A152,Filtro.12!$A$4:$AL$2956,26,FALSE),0) -> 0 | AC152: =IFERROR(VLOOKUP($A152,Filtro.12!$A$4:$AL$2956,27,FALSE),0) -> 1228 | AD152: =IFERROR(VLOOKUP($A152,Filtro.12!$A$4:$AL$2956,28,FALSE),0) -> 0 | AE152: =IFERROR(VLOOKUP($A152,Filtro.12!$A$4:$AL$2956,29,FALSE),0) -> 0 | AF152: =IFERROR(VLOOKUP($A152,Filtro.12!$A$4:$AL$2956,30,FALSE),0) -> 0 | AG152: =IFERROR(VLOOKUP($A152,Filtro.12!$A$4:$AL$2956,31,FALSE),0) -> 0 | AH152: =IFERROR(VLOOKUP($A152,Filtro.12!$A$4:$AL$2956,32,FALSE),0) -> 0 | AI152: =IFERROR(VLOOKUP($A152,Filtro.12!$A$4:$AL$2956,33,FALSE),0) -> 0 | AJ152: =IFERROR(VLOOKUP($A152,Filtro.12!$A$4:$AL$2956,34,FALSE),0) -> 0 | AK152: =IFERROR(VLOOKUP($A152,Filtro.12!$A$4:$AL$2956,35,FALSE),0) -> 0 | AL152: 6,490 | AM152: =IFERROR(VLOOKUP($A152,Filtro.12!$A$4:$AL$2956,37,FALSE),0) -> 7,969,720
C153: TOTAL ARANCEL MAI | D153: =SUM(D150:D152) -> 40239 | E153: =SUM(E150:E152) -> 40201 | F153: =SUM(F150:F152) -> 40161 | G153: =SUM(G150:G152) -> 40 | H153: =SUM(H150:H152) -> 38 | AB153: =SUM(AB150:AB152) -> 4406 | AC153: 31808 | AD153: 4062 | AE153: 0 | AF153: 0 | AG153: 0 | AH153: 0 | AI153: 0 | AJ153: 0 | AK153: 0 | AM153: =SUM(AM150:AM152) -> 51040520
A154: 01014706 | B154: 01010043 | C154: Autocontrol pacientes Diabetico insulino dependiente (D.I.D. mensual) | D154: =IFERROR(VLOOKUP($A154,Filtro.12!$A$4:$AL$2956,2,FALSE),0) -> 11791 | E154: =IFERROR(VLOOKUP($A154,Filtro.12!$A$4:$AL$2956,3,FALSE),0) -> 11791 | F154: =IFERROR(VLOOKUP($A154,Filtro.12!$A$4:$AL$2956,4,FALSE),0) -> 11791 | G154: =IFERROR(VLOOKUP($A154,Filtro.12!$A$4:$AL$2956,5,FALSE),0) -> 0 | H154: =IFERROR(VLOOKUP($A154,Filtro.12!$A$4:$AL$2956,6,FALSE),0) -> 0 | AB154: =IFERROR(VLOOKUP($A154,Filtro.12!$A$4:$AL$2956,26,FALSE),0) -> 0 | AC154: =IFERROR(VLOOKUP($A154,Filtro.12!$A$4:$AL$2956,27,FALSE),0) -> 11791 | AD154: =IFERROR(VLOOKUP($A154,Filtro.12!$A$4:$AL$2956,28,FALSE),0) -> 0 | AE154: =IFERROR(VLOOKUP($A154,Filtro.12!$A$4:$AL$2956,29,FALSE),0) -> 0 | AF154: =IFERROR(VLOOKUP($A154,Filtro.12!$A$4:$AL$2956,30,FALSE),0) -> 0 | AG154: =IFERROR(VLOOKUP($A154,Filtro.12!$A$4:$AL$2956,31,FALSE),0) -> 0 | AH154: =IFERROR(VLOOKUP($A154,Filtro.12!$A$4:$AL$2956,32,FALSE),0) -> 0 | AI154: =IFERROR(VLOOKUP($A154,Filtro.12!$A$4:$AL$2956,33,FALSE),0) -> 0 | AJ154: =IFERROR(VLOOKUP($A154,Filtro.12!$A$4:$AL$2956,34,FALSE),0) -> 0 | AK154: =IFERROR(VLOOKUP($A154,Filtro.12!$A$4:$AL$2956,35,FALSE),0) -> 0
A155: 01014707 | B155: 01010044 | C155: Oxigenoterapia domiciliaria (pacientes oxígeno dependientes) | D155: =IFERROR(VLOOKUP($A155,Filtro.12!$A$4:$AL$2956,2,FALSE),0) -> 817 | E155: =IFERROR(VLOOKUP($A155,Filtro.12!$A$4:$AL$2956,3,FALSE),0) -> 817 | F155: =IFERROR(VLOOKUP($A155,Filtro.12!$A$4:$AL$2956,4,FALSE),0) -> 817 | G155: =IFERROR(VLOOKUP($A155,Filtro.12!$A$4:$AL$2956,5,FALSE),0) -> 0 | H155: =IFERROR(VLOOKUP($A155,Filtro.12!$A$4:$AL$2956,6,FALSE),0) -> 0 | AB155: =IFERROR(VLOOKUP($A155,Filtro.12!$A$4:$AL$2956,26,FALSE),0) -> 289 | AC155: =IFERROR(VLOOKUP($A155,Filtro.12!$A$4:$AL$2956,27,FALSE),0) -> 528 | AD155: =IFERROR(VLOOKUP($A155,Filtro.12!$A$4:$AL$2956,28,FALSE),0) -> 0 | AE155: =IFERROR(VLOOKUP($A155,Filtro.12!$A$4:$AL$2956,29,FALSE),0) -> 0 | AF155: =IFERROR(VLOOKUP($A155,Filtro.12!$A$4:$AL$2956,30,FALSE),0) -> 0 | AG155: =IFERROR(VLOOKUP($A155,Filtro.12!$A$4:$AL$2956,31,FALSE),0) -> 0 | AH155: =IFERROR(VLOOKUP($A155,Filtro.12!$A$4:$AL$2956,32,FALSE),0) -> 0 | AI155: =IFERROR(VLOOKUP($A155,Filtro.12!$A$4:$AL$2956,33,FALSE),0) -> 0 | AJ155: =IFERROR(VLOOKUP($A155,Filtro.12!$A$4:$AL$2956,34,FALSE),0) -> 0 | AK155: =IFERROR(VLOOKUP($A155,Filtro.12!$A$4:$AL$2956,35,FALSE),0) -> 0
A156: 01010047 | B156: 01010047 | C156: Procedimientos de podología | D156: =IFERROR(VLOOKUP($A156,Filtro.12!$A$4:$AL$2956,2,FALSE),0) -> 2212 | E156: =IFERROR(VLOOKUP($A156,Filtro.12!$A$4:$AL$2956,3,FALSE),0) -> 2212 | F156: =IFERROR(VLOOKUP($A156,Filtro.12!$A$4:$AL$2956,4,FALSE),0) -> 2212 | G156: =IFERROR(VLOOKUP($A156,Filtro.12!$A$4:$AL$2956,5,FALSE),0) -> 0 | H156: =IFERROR(VLOOKUP($A156,Filtro.12!$A$4:$AL$2956,6,FALSE),0) -> 0 | AB156: =IFERROR(VLOOKUP($A156,Filtro.12!$A$4:$AL$2956,26,FALSE),0) -> 14 | AC156: =IFERROR(VLOOKUP($A156,Filtro.12!$A$4:$AL$2956,27,FALSE),0) -> 2198 | AD156: =IFERROR(VLOOKUP($A156,Filtro.12!$A$4:$AL$2956,28,FALSE),0) -> 0 | AE156: =IFERROR(VLOOKUP($A156,Filtro.12!$A$4:$AL$2956,29,FALSE),0) -> 0 | AF156: =IFERROR(VLOOKUP($A156,Filtro.12!$A$4:$AL$2956,30,FALSE),0) -> 0 | AG156: =IFERROR(VLOOKUP($A156,Filtro.12!$A$4:$AL$2956,31,FALSE),0) -> 0 | AH156: =IFERROR(VLOOKUP($A156,Filtro.12!$A$4:$AL$2956,32,FALSE),0) -> 0 | AI156: =IFERROR(VLOOKUP($A156,Filtro.12!$A$4:$AL$2956,33,FALSE),0) -> 0 | AJ156: =IFERROR(VLOOKUP($A156,Filtro.12!$A$4:$AL$2956,34,FALSE),0) -> 0 | AK156: =IFERROR(VLOOKUP($A156,Filtro.12!$A$4:$AL$2956,35,FALSE),0) -> 0
C157: TOTAL ARANCEL MLE Y NO ARANCELADO | D157: =SUM(D154:D156) -> 14820 | E157: =SUM(E154:E156) -> 14820 | F157: =SUM(F154:F156) -> 14820 | G157: =SUM(G154:G156) -> 0 | H157: =SUM(H154:H156) -> 0 | AB157: =SUM(AB154:AB156) -> 303 | AC157: 14517 | AD157: 0 | AE157: 0 | AF157: 0 | AG157: 0 | AH157: 0 | AI157: 0 | AJ157: 0 | AK157: 0
C158: TOTAL PRODUCCION | D158: =SUM(D153+D157) -> 55059 | E158: =SUM(E153+E157) -> 55021 | F158: =SUM(F153+F157) -> 54981 | G158: =SUM(G153+G157) -> 40 | H158: =SUM(H153+H157) -> 38 | AB158: =SUM(AB153+AB157) -> 4709 | AC158: 46325 | AD158: 4062 | AE158: 0 | AF158: 0 | AG158: 0 | AH158: 0 | AI158: 0 | AJ158: 0 | AK158: 0 | AM158: =SUM(AM153+AM157) -> 51,040,520
C159: OTRAS MISCELANEOS
A160: 01010048 | B160: 5099048 | C160: Hemoglucotest instantáneo | D160: =IFERROR(VLOOKUP($A160,Filtro.12!$A$4:$AL$2956,2,FALSE),0) -> 986080 | E160: =IFERROR(VLOOKUP($A160,Filtro.12!$A$4:$AL$2956,3,FALSE),0) -> 986080 | F160: =IFERROR(VLOOKUP($A160,Filtro.12!$A$4:$AL$2956,4,FALSE),0) -> 986080 | G160: =IFERROR(VLOOKUP($A160,Filtro.12!$A$4:$AL$2956,5,FALSE),0) -> 0 | H160: =IFERROR(VLOOKUP($A160,Filtro.12!$A$4:$AL$2956,6,FALSE),0) -> 0 | AB160: =IFERROR(VLOOKUP($A160,Filtro.12!$A$4:$AL$2956,26,FALSE),0) -> 144550 | AC160: =IFERROR(VLOOKUP($A160,Filtro.12!$A$4:$AL$2956,27,FALSE),0) -> 782193 | AD160: =IFERROR(VLOOKUP($A160,Filtro.12!$A$4:$AL$2956,28,FALSE),0) -> 59337 | AE160: =IFERROR(VLOOKUP($A160,Filtro.12!$A$4:$AL$2956,29,FALSE),0) -> 0 | AF160: =IFERROR(VLOOKUP($A160,Filtro.12!$A$4:$AL$2956,30,FALSE),0) -> 0 | AG160: =IFERROR(VLOOKUP($A160,Filtro.12!$A$4:$AL$2956,31,FALSE),0) -> 0 | AH160: =IFERROR(VLOOKUP($A160,Filtro.12!$A$4:$AL$2956,32,FALSE),0) -> 0 | AI160: =IFERROR(VLOOKUP($A160,Filtro.12!$A$4:$AL$2956,33,FALSE),0) -> 0 | AJ160: =IFERROR(VLOOKUP($A160,Filtro.12!$A$4:$AL$2956,34,FALSE),0) -> 0 | AK160: =IFERROR(VLOOKUP($A160,Filtro.12!$A$4:$AL$2956,35,FALSE),0) -> 0
A161: 01010049 | B161: 5099008 | C161: Actividad Básica | D161: =IFERROR(VLOOKUP($A161,Filtro.12!$A$4:$AL$2956,2,FALSE),0) -> 1963 | E161: =IFERROR(VLOOKUP($A161,Filtro.12!$A$4:$AL$2956,3,FALSE),0) -> 1963 | F161: =IFERROR(VLOOKUP($A161,Filtro.12!$A$4:$AL$2956,4,FALSE),0) -> 1963 | G161: =IFERROR(VLOOKUP($A161,Filtro.12!$A$4:$AL$2956,5,FALSE),0) -> 0 | H161: =IFERROR(VLOOKUP($A161,Filtro.12!$A$4:$AL$2956,6,FALSE),0) -> 0 | AB161: =IFERROR(VLOOKUP($A161,Filtro.12!$A$4:$AL$2956,26,FALSE),0) -> 0 | AC161: =IFERROR(VLOOKUP($A161,Filtro.12!$A$4:$AL$2956,27,FALSE),0) -> 1963 | AD161: =IFERROR(VLOOKUP($A161,Filtro.12!$A$4:$AL$2956,28,FALSE),0) -> 0 | AE161: =IFERROR(VLOOKUP($A161,Filtro.12!$A$4:$AL$2956,29,FALSE),0) -> 0 | AF161: =IFERROR(VLOOKUP($A161,Filtro.12!$A$4:$AL$2956,30,FALSE),0) -> 0 | AG161: =IFERROR(VLOOKUP($A161,Filtro.12!$A$4:$AL$2956,31,FALSE),0) -> 0 | AH161: =IFERROR(VLOOKUP($A161,Filtro.12!$A$4:$AL$2956,32,FALSE),0) -> 0 | AI161: =IFERROR(VLOOKUP($A161,Filtro.12!$A$4:$AL$2956,33,FALSE),0) -> 0 | AJ161: =IFERROR(VLOOKUP($A161,Filtro.12!$A$4:$AL$2956,34,FALSE),0) -> 0 | AK161: =IFERROR(VLOOKUP($A161,Filtro.12!$A$4:$AL$2956,35,FALSE),0) -> 0
A162: 01010050 | B162: 5099009 | C162: Actividad Terapeutica | D162: =IFERROR(VLOOKUP($A162,Filtro.12!$A$4:$AL$2956,2,FALSE),0) -> 4546 | E162: =IFERROR(VLOOKUP($A162,Filtro.12!$A$4:$AL$2956,3,FALSE),0) -> 4546 | F162: =IFERROR(VLOOKUP($A162,Filtro.12!$A$4:$AL$2956,4,FALSE),0) -> 4546 | G162: =IFERROR(VLOOKUP($A162,Filtro.12!$A$4:$AL$2956,5,FALSE),0) -> 0 | H162: =IFERROR(VLOOKUP($A162,Filtro.12!$A$4:$AL$2956,6,FALSE),0) -> 0 | AB162: =IFERROR(VLOOKUP($A162,Filtro.12!$A$4:$AL$2956,26,FALSE),0) -> 1289 | AC162: =IFERROR(VLOOKUP($A162,Filtro.12!$A$4:$AL$2956,27,FALSE),0) -> 3257 | AD162: =IFERROR(VLOOKUP($A162,Filtro.12!$A$4:$AL$2956,28,FALSE),0) -> 0 | AE162: =IFERROR(VLOOKUP($A162,Filtro.12!$A$4:$AL$2956,29,FALSE),0) -> 0 | AF162: =IFERROR(VLOOKUP($A162,Filtro.12!$A$4:$AL$2956,30,FALSE),0) -> 0 | AG162: =IFERROR(VLOOKUP($A162,Filtro.12!$A$4:$AL$2956,31,FALSE),0) -> 0 | AH162: =IFERROR(VLOOKUP($A162,Filtro.12!$A$4:$AL$2956,32,FALSE),0) -> 0 | AI162: =IFERROR(VLOOKUP($A162,Filtro.12!$A$4:$AL$2956,33,FALSE),0) -> 0 | AJ162: =IFERROR(VLOOKUP($A162,Filtro.12!$A$4:$AL$2956,34,FALSE),0) -> 0 | AK162: =IFERROR(VLOOKUP($A162,Filtro.12!$A$4:$AL$2956,35,FALSE),0) -> 0
A163: 01010051 | B163: 5099010 | C163: Evaluacion Actividad | D163: =IFERROR(VLOOKUP($A163,Filtro.12!$A$4:$AL$2956,2,FALSE),0) -> 668 | E163: =IFERROR(VLOOKUP($A163,Filtro.12!$A$4:$AL$2956,3,FALSE),0) -> 668 | F163: =IFERROR(VLOOKUP($A163,Filtro.12!$A$4:$AL$2956,4,FALSE),0) -> 668 | G163: =IFERROR(VLOOKUP($A163,Filtro.12!$A$4:$AL$2956,5,FALSE),0) -> 0 | H163: =IFERROR(VLOOKUP($A163,Filtro.12!$A$4:$AL$2956,6,FALSE),0) -> 0 | AB163: =IFERROR(VLOOKUP($A163,Filtro.12!$A$4:$AL$2956,26,FALSE),0) -> 63 | AC163: =IFERROR(VLOOKUP($A163,Filtro.12!$A$4:$AL$2956,27,FALSE),0) -> 560 | AD163: =IFERROR(VLOOKUP($A163,Filtro.12!$A$4:$AL$2956,28,FALSE),0) -> 0 | AE163: =IFERROR(VLOOKUP($A163,Filtro.12!$A$4:$AL$2956,29,FALSE),0) -> 0 | AF163: =IFERROR(VLOOKUP($A163,Filtro.12!$A$4:$AL$2956,30,FALSE),0) -> 0 | AG163: =IFERROR(VLOOKUP($A163,Filtro.12!$A$4:$AL$2956,31,FALSE),0) -> 0 | AH163: =IFERROR(VLOOKUP($A163,Filtro.12!$A$4:$AL$2956,32,FALSE),0) -> 0 | AI163: =IFERROR(VLOOKUP($A163,Filtro.12!$A$4:$AL$2956,33,FALSE),0) -> 0 | AJ163: =IFERROR(VLOOKUP($A163,Filtro.12!$A$4:$AL$2956,34,FALSE),0) -> 0 | AK163: =IFERROR(VLOOKUP($A163,Filtro.12!$A$4:$AL$2956,35,FALSE),0) -> 0
A164: 01010052 | B164: 5099011 | C164: Evaluacion prevocacional | D164: =IFERROR(VLOOKUP($A164,Filtro.12!$A$4:$AL$2956,2,FALSE),0) -> 0 | E164: =IFERROR(VLOOKUP($A164,Filtro.12!$A$4:$AL$2956,3,FALSE),0) -> 0 | F164: =IFERROR(VLOOKUP($A164,Filtro.12!$A$4:$AL$2956,4,FALSE),0) -> 0 | G164: =IFERROR(VLOOKUP($A164,Filtro.12!$A$4:$AL$2956,5,FALSE),0) -> 0 | H164: =IFERROR(VLOOKUP($A164,Filtro.12!$A$4:$AL$2956,6,FALSE),0) -> 0 | AB164: =IFERROR(VLOOKUP($A164,Filtro.12!$A$4:$AL$2956,26,FALSE),0) -> 0 | AC164: =IFERROR(VLOOKUP($A164,Filtro.12!$A$4:$AL$2956,27,FALSE),0) -> 0 | AD164: =IFERROR(VLOOKUP($A164,Filtro.12!$A$4:$AL$2956,28,FALSE),0) -> 0 | AE164: =IFERROR(VLOOKUP($A164,Filtro.12!$A$4:$AL$2956,29,FALSE),0) -> 0 | AF164: =IFERROR(VLOOKUP($A164,Filtro.12!$A$4:$AL$2956,30,FALSE),0) -> 0 | AG164: =IFERROR(VLOOKUP($A164,Filtro.12!$A$4:$AL$2956,31,FALSE),0) -> 0 | AH164: =IFERROR(VLOOKUP($A164,Filtro.12!$A$4:$AL$2956,32,FALSE),0) -> 0 | AI164: =IFERROR(VLOOKUP($A164,Filtro.12!$A$4:$AL$2956,33,FALSE),0) -> 0 | AJ164: =IFERROR(VLOOKUP($A164,Filtro.12!$A$4:$AL$2956,34,FALSE),0) -> 0 | AK164: =IFERROR(VLOOKUP($A164,Filtro.12!$A$4:$AL$2956,35,FALSE),0) -> 0
A165: 01010053 | B165: 5099063 | C165: Evaluación cognitiva | D165: =IFERROR(VLOOKUP($A165,Filtro.12!$A$4:$AL$2956,2,FALSE),0) -> 559 | E165: =IFERROR(VLOOKUP($A165,Filtro.12!$A$4:$AL$2956,3,FALSE),0) -> 559 | F165: =IFERROR(VLOOKUP($A165,Filtro.12!$A$4:$AL$2956,4,FALSE),0) -> 559 | G165: =IFERROR(VLOOKUP($A165,Filtro.12!$A$4:$AL$2956,5,FALSE),0) -> 0 | H165: =IFERROR(VLOOKUP($A165,Filtro.12!$A$4:$AL$2956,6,FALSE),0) -> 0 | AB165: =IFERROR(VLOOKUP($A165,Filtro.12!$A$4:$AL$2956,26,FALSE),0) -> 325 | AC165: =IFERROR(VLOOKUP($A165,Filtro.12!$A$4:$AL$2956,27,FALSE),0) -> 234 | AD165: =IFERROR(VLOOKUP($A165,Filtro.12!$A$4:$AL$2956,28,FALSE),0) -> 0 | AE165: =IFERROR(VLOOKUP($A165,Filtro.12!$A$4:$AL$2956,29,FALSE),0) -> 0 | AF165: =IFERROR(VLOOKUP($A165,Filtro.12!$A$4:$AL$2956,30,FALSE),0) -> 0 | AG165: =IFERROR(VLOOKUP($A165,Filtro.12!$A$4:$AL$2956,31,FALSE),0) -> 0 | AH165: =IFERROR(VLOOKUP($A165,Filtro.12!$A$4:$AL$2956,32,FALSE),0) -> 0 | AI165: =IFERROR(VLOOKUP($A165,Filtro.12!$A$4:$AL$2956,33,FALSE),0) -> 0 | AJ165: =IFERROR(VLOOKUP($A165,Filtro.12!$A$4:$AL$2956,34,FALSE),0) -> 0 | AK165: =IFERROR(VLOOKUP($A165,Filtro.12!$A$4:$AL$2956,35,FALSE),0) -> 0
A166: 01010054 | B166: 5099064 | C166: Estimulación cognitiva | D166: =IFERROR(VLOOKUP($A166,Filtro.12!$A$4:$AL$2956,2,FALSE),0) -> 4004 | E166: =IFERROR(VLOOKUP($A166,Filtro.12!$A$4:$AL$2956,3,FALSE),0) -> 4004 | F166: =IFERROR(VLOOKUP($A166,Filtro.12!$A$4:$AL$2956,4,FALSE),0) -> 4004 | G166: =IFERROR(VLOOKUP($A166,Filtro.12!$A$4:$AL$2956,5,FALSE),0) -> 0 | H166: =IFERROR(VLOOKUP($A166,Filtro.12!$A$4:$AL$2956,6,FALSE),0) -> 0 | AB166: =IFERROR(VLOOKUP($A166,Filtro.12!$A$4:$AL$2956,26,FALSE),0) -> 2409 | AC166: =IFERROR(VLOOKUP($A166,Filtro.12!$A$4:$AL$2956,27,FALSE),0) -> 1595 | AD166: =IFERROR(VLOOKUP($A166,Filtro.12!$A$4:$AL$2956,28,FALSE),0) -> 0 | AE166: =IFERROR(VLOOKUP($A166,Filtro.12!$A$4:$AL$2956,29,FALSE),0) -> 0 | AF166: =IFERROR(VLOOKUP($A166,Filtro.12!$A$4:$AL$2956,30,FALSE),0) -> 0 | AG166: =IFERROR(VLOOKUP($A166,Filtro.12!$A$4:$AL$2956,31,FALSE),0) -> 0 | AH166: =IFERROR(VLOOKUP($A166,Filtro.12!$A$4:$AL$2956,32,FALSE),0) -> 0 | AI166: =IFERROR(VLOOKUP($A166,Filtro.12!$A$4:$AL$2956,33,FALSE),0) -> 0 | AJ166: =IFERROR(VLOOKUP($A166,Filtro.12!$A$4:$AL$2956,34,FALSE),0) -> 0 | AK166: =IFERROR(VLOOKUP($A166,Filtro.12!$A$4:$AL$2956,35,FALSE),0) -> 0
A167: 01010055 | B167: 5099111 | C167: Curacion avanzada de herida | D167: =IFERROR(VLOOKUP($A167,Filtro.12!$A$4:$AL$2956,2,FALSE),0) -> 19760 | E167: =IFERROR(VLOOKUP($A167,Filtro.12!$A$4:$AL$2956,3,FALSE),0) -> 19760 | F167: =IFERROR(VLOOKUP($A167,Filtro.12!$A$4:$AL$2956,4,FALSE),0) -> 19760 | G167: =IFERROR(VLOOKUP($A167,Filtro.12!$A$4:$AL$2956,5,FALSE),0) -> 0 | H167: =IFERROR(VLOOKUP($A167,Filtro.12!$A$4:$AL$2956,6,FALSE),0) -> 0 | AB167: =IFERROR(VLOOKUP($A167,Filtro.12!$A$4:$AL$2956,26,FALSE),0) -> 607 | AC167: =IFERROR(VLOOKUP($A167,Filtro.12!$A$4:$AL$2956,27,FALSE),0) -> 18383 | AD167: =IFERROR(VLOOKUP($A167,Filtro.12!$A$4:$AL$2956,28,FALSE),0) -> 651 | AE167: =IFERROR(VLOOKUP($A167,Filtro.12!$A$4:$AL$2956,29,FALSE),0) -> 0 | AF167: =IFERROR(VLOOKUP($A167,Filtro.12!$A$4:$AL$2956,30,FALSE),0) -> 0 | AG167: =IFERROR(VLOOKUP($A167,Filtro.12!$A$4:$AL$2956,31,FALSE),0) -> 0 | AH167: =IFERROR(VLOOKUP($A167,Filtro.12!$A$4:$AL$2956,32,FALSE),0) -> 0 | AI167: =IFERROR(VLOOKUP($A167,Filtro.12!$A$4:$AL$2956,33,FALSE),0) -> 0 | AJ167: =IFERROR(VLOOKUP($A167,Filtro.12!$A$4:$AL$2956,34,FALSE),0) -> 0 | AK167: =IFERROR(VLOOKUP($A167,Filtro.12!$A$4:$AL$2956,35,FALSE),0) -> 0
A168: 01010056 | B168: 0102701 | C168: Evaluación Motriz Funcional | D168: =IFERROR(VLOOKUP($A168,Filtro.12!$A$4:$AL$2956,2,FALSE),0) -> 570 | E168: =IFERROR(VLOOKUP($A168,Filtro.12!$A$4:$AL$2956,3,FALSE),0) -> 570 | F168: =IFERROR(VLOOKUP($A168,Filtro.12!$A$4:$AL$2956,4,FALSE),0) -> 570 | G168: =IFERROR(VLOOKUP($A168,Filtro.12!$A$4:$AL$2956,5,FALSE),0) -> 0 | H168: =IFERROR(VLOOKUP($A168,Filtro.12!$A$4:$AL$2956,6,FALSE),0) -> 0 | AB168: =IFERROR(VLOOKUP($A168,Filtro.12!$A$4:$AL$2956,26,FALSE),0) -> 324 | AC168: =IFERROR(VLOOKUP($A168,Filtro.12!$A$4:$AL$2956,27,FALSE),0) -> 246 | AD168: =IFERROR(VLOOKUP($A168,Filtro.12!$A$4:$AL$2956,28,FALSE),0) -> 0 | AE168: =IFERROR(VLOOKUP($A168,Filtro.12!$A$4:$AL$2956,29,FALSE),0) -> 0 | AF168: =IFERROR(VLOOKUP($A168,Filtro.12!$A$4:$AL$2956,30,FALSE),0) -> 0 | AG168: =IFERROR(VLOOKUP($A168,Filtro.12!$A$4:$AL$2956,31,FALSE),0) -> 0 | AH168: =IFERROR(VLOOKUP($A168,Filtro.12!$A$4:$AL$2956,32,FALSE),0) -> 0 | AI168: =IFERROR(VLOOKUP($A168,Filtro.12!$A$4:$AL$2956,33,FALSE),0) -> 0 | AJ168: =IFERROR(VLOOKUP($A168,Filtro.12!$A$4:$AL$2956,34,FALSE),0) -> 0 | AK168: =IFERROR(VLOOKUP($A168,Filtro.12!$A$4:$AL$2956,35,FALSE),0) -> 0
A169: 01010057 | B169: 0102702 | C169: Evaluación cognitiva-perceptual | D169: =IFERROR(VLOOKUP($A169,Filtro.12!$A$4:$AL$2956,2,FALSE),0) -> 480 | E169: =IFERROR(VLOOKUP($A169,Filtro.12!$A$4:$AL$2956,3,FALSE),0) -> 480 | F169: =IFERROR(VLOOKUP($A169,Filtro.12!$A$4:$AL$2956,4,FALSE),0) -> 480 | G169: =IFERROR(VLOOKUP($A169,Filtro.12!$A$4:$AL$2956,5,FALSE),0) -> 0 | H169: =IFERROR(VLOOKUP($A169,Filtro.12!$A$4:$AL$2956,6,FALSE),0) -> 0 | AB169: =IFERROR(VLOOKUP($A169,Filtro.12!$A$4:$AL$2956,26,FALSE),0) -> 254 | AC169: =IFERROR(VLOOKUP($A169,Filtro.12!$A$4:$AL$2956,27,FALSE),0) -> 226 | AD169: =IFERROR(VLOOKUP($A169,Filtro.12!$A$4:$AL$2956,28,FALSE),0) -> 0 | AE169: =IFERROR(VLOOKUP($A169,Filtro.12!$A$4:$AL$2956,29,FALSE),0) -> 0 | AF169: =IFERROR(VLOOKUP($A169,Filtro.12!$A$4:$AL$2956,30,FALSE),0) -> 0 | AG169: =IFERROR(VLOOKUP($A169,Filtro.12!$A$4:$AL$2956,31,FALSE),0) -> 0 | AH169: =IFERROR(VLOOKUP($A169,Filtro.12!$A$4:$AL$2956,32,FALSE),0) -> 0 | AI169: =IFERROR(VLOOKUP($A169,Filtro.12!$A$4:$AL$2956,33,FALSE),0) -> 0 | AJ169: =IFERROR(VLOOKUP($A169,Filtro.12!$A$4:$AL$2956,34,FALSE),0) -> 0 | AK169: =IFERROR(VLOOKUP($A169,Filtro.12!$A$4:$AL$2956,35,FALSE),0) -> 0
A170: 01010058 | B170: 0102703 | C170: Evaluación independencia en actividades de la vida diaria | D170: =IFERROR(VLOOKUP($A170,Filtro.12!$A$4:$AL$2956,2,FALSE),0) -> 519 | E170: =IFERROR(VLOOKUP($A170,Filtro.12!$A$4:$AL$2956,3,FALSE),0) -> 519 | F170: =IFERROR(VLOOKUP($A170,Filtro.12!$A$4:$AL$2956,4,FALSE),0) -> 519 | G170: =IFERROR(VLOOKUP($A170,Filtro.12!$A$4:$AL$2956,5,FALSE),0) -> 0 | H170: =IFERROR(VLOOKUP($A170,Filtro.12!$A$4:$AL$2956,6,FALSE),0) -> 0 | AB170: =IFERROR(VLOOKUP($A170,Filtro.12!$A$4:$AL$2956,26,FALSE),0) -> 276 | AC170: =IFERROR(VLOOKUP($A170,Filtro.12!$A$4:$AL$2956,27,FALSE),0) -> 243 | AD170: =IFERROR(VLOOKUP($A170,Filtro.12!$A$4:$AL$2956,28,FALSE),0) -> 0 | AE170: =IFERROR(VLOOKUP($A170,Filtro.12!$A$4:$AL$2956,29,FALSE),0) -> 0 | AF170: =IFERROR(VLOOKUP($A170,Filtro.12!$A$4:$AL$2956,30,FALSE),0) -> 0 | AG170: =IFERROR(VLOOKUP($A170,Filtro.12!$A$4:$AL$2956,31,FALSE),0) -> 0 | AH170: =IFERROR(VLOOKUP($A170,Filtro.12!$A$4:$AL$2956,32,FALSE),0) -> 0 | AI170: =IFERROR(VLOOKUP($A170,Filtro.12!$A$4:$AL$2956,33,FALSE),0) -> 0 | AJ170: =IFERROR(VLOOKUP($A170,Filtro.12!$A$4:$AL$2956,34,FALSE),0) -> 0 | AK170: =IFERROR(VLOOKUP($A170,Filtro.12!$A$4:$AL$2956,35,FALSE),0) -> 0
A171: 01010059 | B171: 0102704 | C171: Evaluación barreras arquitectónicas | D171: =IFERROR(VLOOKUP($A171,Filtro.12!$A$4:$AL$2956,2,FALSE),0) -> 0 | E171: =IFERROR(VLOOKUP($A171,Filtro.12!$A$4:$AL$2956,3,FALSE),0) -> 0 | F171: =IFERROR(VLOOKUP($A171,Filtro.12!$A$4:$AL$2956,4,FALSE),0) -> 0 | G171: =IFERROR(VLOOKUP($A171,Filtro.12!$A$4:$AL$2956,5,FALSE),0) -> 0 | H171: =IFERROR(VLOOKUP($A171,Filtro.12!$A$4:$AL$2956,6,FALSE),0) -> 0 | AB171: =IFERROR(VLOOKUP($A171,Filtro.12!$A$4:$AL$2956,26,FALSE),0) -> 0 | AC171: =IFERROR(VLOOKUP($A171,Filtro.12!$A$4:$AL$2956,27,FALSE),0) -> 0 | AD171: =IFERROR(VLOOKUP($A171,Filtro.12!$A$4:$AL$2956,28,FALSE),0) -> 0 | AE171: =IFERROR(VLOOKUP($A171,Filtro.12!$A$4:$AL$2956,29,FALSE),0) -> 0 | AF171: =IFERROR(VLOOKUP($A171,Filtro.12!$A$4:$AL$2956,30,FALSE),0) -> 0 | AG171: =IFERROR(VLOOKUP($A171,Filtro.12!$A$4:$AL$2956,31,FALSE),0) -> 0 | AH171: =IFERROR(VLOOKUP($A171,Filtro.12!$A$4:$AL$2956,32,FALSE),0) -> 0 | AI171: =IFERROR(VLOOKUP($A171,Filtro.12!$A$4:$AL$2956,33,FALSE),0) -> 0 | AJ171: =IFERROR(VLOOKUP($A171,Filtro.12!$A$4:$AL$2956,34,FALSE),0) -> 0 | AK171: =IFERROR(VLOOKUP($A171,Filtro.12!$A$4:$AL$2956,35,FALSE),0) -> 0
A172: 01010060 | B172: 0102705 | C172: Evaluación puesto de trabajo | D172: =IFERROR(VLOOKUP($A172,Filtro.12!$A$4:$AL$2956,2,FALSE),0) -> 0 | E172: =IFERROR(VLOOKUP($A172,Filtro.12!$A$4:$AL$2956,3,FALSE),0) -> 0 | F172: =IFERROR(VLOOKUP($A172,Filtro.12!$A$4:$AL$2956,4,FALSE),0) -> 0 | G172: =IFERROR(VLOOKUP($A172,Filtro.12!$A$4:$AL$2956,5,FALSE),0) -> 0 | H172: =IFERROR(VLOOKUP($A172,Filtro.12!$A$4:$AL$2956,6,FALSE),0) -> 0 | AB172: =IFERROR(VLOOKUP($A172,Filtro.12!$A$4:$AL$2956,26,FALSE),0) -> 0 | AC172: =IFERROR(VLOOKUP($A172,Filtro.12!$A$4:$AL$2956,27,FALSE),0) -> 0 | AD172: =IFERROR(VLOOKUP($A172,Filtro.12!$A$4:$AL$2956,28,FALSE),0) -> 0 | AE172: =IFERROR(VLOOKUP($A172,Filtro.12!$A$4:$AL$2956,29,FALSE),0) -> 0 | AF172: =IFERROR(VLOOKUP($A172,Filtro.12!$A$4:$AL$2956,30,FALSE),0) -> 0 | AG172: =IFERROR(VLOOKUP($A172,Filtro.12!$A$4:$AL$2956,31,FALSE),0) -> 0 | AH172: =IFERROR(VLOOKUP($A172,Filtro.12!$A$4:$AL$2956,32,FALSE),0) -> 0 | AI172: =IFERROR(VLOOKUP($A172,Filtro.12!$A$4:$AL$2956,33,FALSE),0) -> 0 | AJ172: =IFERROR(VLOOKUP($A172,Filtro.12!$A$4:$AL$2956,34,FALSE),0) -> 0 | AK172: =IFERROR(VLOOKUP($A172,Filtro.12!$A$4:$AL$2956,35,FALSE),0) -> 0
A173: 01010061 | B173: 0102706 | C173: Evaluación del desarrollo Psicomotor | D173: =IFERROR(VLOOKUP($A173,Filtro.12!$A$4:$AL$2956,2,FALSE),0) -> 385 | E173: =IFERROR(VLOOKUP($A173,Filtro.12!$A$4:$AL$2956,3,FALSE),0) -> 385 | F173: =IFERROR(VLOOKUP($A173,Filtro.12!$A$4:$AL$2956,4,FALSE),0) -> 385 | G173: =IFERROR(VLOOKUP($A173,Filtro.12!$A$4:$AL$2956,5,FALSE),0) -> 0 | H173: =IFERROR(VLOOKUP($A173,Filtro.12!$A$4:$AL$2956,6,FALSE),0) -> 0 | AB173: =IFERROR(VLOOKUP($A173,Filtro.12!$A$4:$AL$2956,26,FALSE),0) -> 13 | AC173: =IFERROR(VLOOKUP($A173,Filtro.12!$A$4:$AL$2956,27,FALSE),0) -> 372 | AD173: =IFERROR(VLOOKUP($A173,Filtro.12!$A$4:$AL$2956,28,FALSE),0) -> 0 | AE173: =IFERROR(VLOOKUP($A173,Filtro.12!$A$4:$AL$2956,29,FALSE),0) -> 0 | AF173: =IFERROR(VLOOKUP($A173,Filtro.12!$A$4:$AL$2956,30,FALSE),0) -> 0 | AG173: =IFERROR(VLOOKUP($A173,Filtro.12!$A$4:$AL$2956,31,FALSE),0) -> 0 | AH173: =IFERROR(VLOOKUP($A173,Filtro.12!$A$4:$AL$2956,32,FALSE),0) -> 0 | AI173: =IFERROR(VLOOKUP($A173,Filtro.12!$A$4:$AL$2956,33,FALSE),0) -> 0 | AJ173: =IFERROR(VLOOKUP($A173,Filtro.12!$A$4:$AL$2956,34,FALSE),0) -> 0 | AK173: =IFERROR(VLOOKUP($A173,Filtro.12!$A$4:$AL$2956,35,FALSE),0) -> 0
A174: 01010062 | B174: 0102707 | C174: Reentrenamiento de las funciones cognitiva-perceptual | D174: =IFERROR(VLOOKUP($A174,Filtro.12!$A$4:$AL$2956,2,FALSE),0) -> 639 | E174: =IFERROR(VLOOKUP($A174,Filtro.12!$A$4:$AL$2956,3,FALSE),0) -> 639 | F174: =IFERROR(VLOOKUP($A174,Filtro.12!$A$4:$AL$2956,4,FALSE),0) -> 639 | G174: =IFERROR(VLOOKUP($A174,Filtro.12!$A$4:$AL$2956,5,FALSE),0) -> 0 | H174: =IFERROR(VLOOKUP($A174,Filtro.12!$A$4:$AL$2956,6,FALSE),0) -> 0 | AB174: =IFERROR(VLOOKUP($A174,Filtro.12!$A$4:$AL$2956,26,FALSE),0) -> 361 | AC174: =IFERROR(VLOOKUP($A174,Filtro.12!$A$4:$AL$2956,27,FALSE),0) -> 278 | AD174: =IFERROR(VLOOKUP($A174,Filtro.12!$A$4:$AL$2956,28,FALSE),0) -> 0 | AE174: =IFERROR(VLOOKUP($A174,Filtro.12!$A$4:$AL$2956,29,FALSE),0) -> 0 | AF174: =IFERROR(VLOOKUP($A174,Filtro.12!$A$4:$AL$2956,30,FALSE),0) -> 0 | AG174: =IFERROR(VLOOKUP($A174,Filtro.12!$A$4:$AL$2956,31,FALSE),0) -> 0 | AH174: =IFERROR(VLOOKUP($A174,Filtro.12!$A$4:$AL$2956,32,FALSE),0) -> 0 | AI174: =IFERROR(VLOOKUP($A174,Filtro.12!$A$4:$AL$2956,33,FALSE),0) -> 0 | AJ174: =IFERROR(VLOOKUP($A174,Filtro.12!$A$4:$AL$2956,34,FALSE),0) -> 0 | AK174: =IFERROR(VLOOKUP($A174,Filtro.12!$A$4:$AL$2956,35,FALSE),0) -> 0
A175: 01010063 | B175: 0102708 | C175: Reentrenamiento de las actividades de la vida diaria | D175: =IFERROR(VLOOKUP($A175,Filtro.12!$A$4:$AL$2956,2,FALSE),0) -> 1735 | E175: =IFERROR(VLOOKUP($A175,Filtro.12!$A$4:$AL$2956,3,FALSE),0) -> 1735 | F175: =IFERROR(VLOOKUP($A175,Filtro.12!$A$4:$AL$2956,4,FALSE),0) -> 1735 | G175: =IFERROR(VLOOKUP($A175,Filtro.12!$A$4:$AL$2956,5,FALSE),0) -> 0 | H175: =IFERROR(VLOOKUP($A175,Filtro.12!$A$4:$AL$2956,6,FALSE),0) -> 0 | AB175: =IFERROR(VLOOKUP($A175,Filtro.12!$A$4:$AL$2956,26,FALSE),0) -> 570 | AC175: =IFERROR(VLOOKUP($A175,Filtro.12!$A$4:$AL$2956,27,FALSE),0) -> 1165 | AD175: =IFERROR(VLOOKUP($A175,Filtro.12!$A$4:$AL$2956,28,FALSE),0) -> 0 | AE175: =IFERROR(VLOOKUP($A175,Filtro.12!$A$4:$AL$2956,29,FALSE),0) -> 0 | AF175: =IFERROR(VLOOKUP($A175,Filtro.12!$A$4:$AL$2956,30,FALSE),0) -> 0 | AG175: =IFERROR(VLOOKUP($A175,Filtro.12!$A$4:$AL$2956,31,FALSE),0) -> 0 | AH175: =IFERROR(VLOOKUP($A175,Filtro.12!$A$4:$AL$2956,32,FALSE),0) -> 0 | AI175: =IFERROR(VLOOKUP($A175,Filtro.12!$A$4:$AL$2956,33,FALSE),0) -> 0 | AJ175: =IFERROR(VLOOKUP($A175,Filtro.12!$A$4:$AL$2956,34,FALSE),0) -> 0 | AK175: =IFERROR(VLOOKUP($A175,Filtro.12!$A$4:$AL$2956,35,FALSE),0) -> 0
A176: 01010064 | B176: 0102709 | C176: Reentrenamiento laboral | D176: =IFERROR(VLOOKUP($A176,Filtro.12!$A$4:$AL$2956,2,FALSE),0) -> 0 | E176: =IFERROR(VLOOKUP($A176,Filtro.12!$A$4:$AL$2956,3,FALSE),0) -> 0 | F176: =IFERROR(VLOOKUP($A176,Filtro.12!$A$4:$AL$2956,4,FALSE),0) -> 0 | G176: =IFERROR(VLOOKUP($A176,Filtro.12!$A$4:$AL$2956,5,FALSE),0) -> 0 | H176: =IFERROR(VLOOKUP($A176,Filtro.12!$A$4:$AL$2956,6,FALSE),0) -> 0 | AB176: =IFERROR(VLOOKUP($A176,Filtro.12!$A$4:$AL$2956,26,FALSE),0) -> 0 | AC176: =IFERROR(VLOOKUP($A176,Filtro.12!$A$4:$AL$2956,27,FALSE),0) -> 0 | AD176: =IFERROR(VLOOKUP($A176,Filtro.12!$A$4:$AL$2956,28,FALSE),0) -> 0 | AE176: =IFERROR(VLOOKUP($A176,Filtro.12!$A$4:$AL$2956,29,FALSE),0) -> 0 | AF176: =IFERROR(VLOOKUP($A176,Filtro.12!$A$4:$AL$2956,30,FALSE),0) -> 0 | AG176: =IFERROR(VLOOKUP($A176,Filtro.12!$A$4:$AL$2956,31,FALSE),0) -> 0 | AH176: =IFERROR(VLOOKUP($A176,Filtro.12!$A$4:$AL$2956,32,FALSE),0) -> 0 | AI176: =IFERROR(VLOOKUP($A176,Filtro.12!$A$4:$AL$2956,33,FALSE),0) -> 0 | AJ176: =IFERROR(VLOOKUP($A176,Filtro.12!$A$4:$AL$2956,34,FALSE),0) -> 0 | AK176: =IFERROR(VLOOKUP($A176,Filtro.12!$A$4:$AL$2956,35,FALSE),0) -> 0
A177: 01010065 | B177: 01010065 | C177: Comité junta médica | D177: =IFERROR(VLOOKUP($A177,Filtro.12!$A$4:$AL$2956,2,FALSE),0) -> 641 | E177: =IFERROR(VLOOKUP($A177,Filtro.12!$A$4:$AL$2956,3,FALSE),0) -> 641 | F177: =IFERROR(VLOOKUP($A177,Filtro.12!$A$4:$AL$2956,4,FALSE),0) -> 641 | G177: =IFERROR(VLOOKUP($A177,Filtro.12!$A$4:$AL$2956,5,FALSE),0) -> 0 | H177: =IFERROR(VLOOKUP($A177,Filtro.12!$A$4:$AL$2956,6,FALSE),0) -> 0 | AB177: =IFERROR(VLOOKUP($A177,Filtro.12!$A$4:$AL$2956,26,FALSE),0) -> 0 | AC177: =IFERROR(VLOOKUP($A177,Filtro.12!$A$4:$AL$2956,27,FALSE),0) -> 641 | AD177: =IFERROR(VLOOKUP($A177,Filtro.12!$A$4:$AL$2956,28,FALSE),0) -> 0 | AE177: =IFERROR(VLOOKUP($A177,Filtro.12!$A$4:$AL$2956,29,FALSE),0) -> 0 | AF177: =IFERROR(VLOOKUP($A177,Filtro.12!$A$4:$AL$2956,30,FALSE),0) -> 0 | AG177: =IFERROR(VLOOKUP($A177,Filtro.12!$A$4:$AL$2956,31,FALSE),0) -> 0 | AH177: =IFERROR(VLOOKUP($A177,Filtro.12!$A$4:$AL$2956,32,FALSE),0) -> 0 | AI177: =IFERROR(VLOOKUP($A177,Filtro.12!$A$4:$AL$2956,33,FALSE),0) -> 0 | AJ177: =IFERROR(VLOOKUP($A177,Filtro.12!$A$4:$AL$2956,34,FALSE),0) -> 0 | AK177: =IFERROR(VLOOKUP($A177,Filtro.12!$A$4:$AL$2956,35,FALSE),0) -> 0
A178: 01010066 | B178: 01010066 | C178: Consultorías médicas de especialidades | D178: =IFERROR(VLOOKUP($A178,Filtro.12!$A$4:$AL$2956,2,FALSE),0) -> 2173 | E178: =IFERROR(VLOOKUP($A178,Filtro.12!$A$4:$AL$2956,3,FALSE),0) -> 2173 | F178: =IFERROR(VLOOKUP($A178,Filtro.12!$A$4:$AL$2956,4,FALSE),0) -> 2173 | G178: =IFERROR(VLOOKUP($A178,Filtro.12!$A$4:$AL$2956,5,FALSE),0) -> 0 | H178: =IFERROR(VLOOKUP($A178,Filtro.12!$A$4:$AL$2956,6,FALSE),0) -> 0 | AB178: =IFERROR(VLOOKUP($A178,Filtro.12!$A$4:$AL$2956,26,FALSE),0) -> 0 | AC178: =IFERROR(VLOOKUP($A178,Filtro.12!$A$4:$AL$2956,27,FALSE),0) -> 128 | AD178: =IFERROR(VLOOKUP($A178,Filtro.12!$A$4:$AL$2956,28,FALSE),0) -> 2045 | AE178: =IFERROR(VLOOKUP($A178,Filtro.12!$A$4:$AL$2956,29,FALSE),0) -> 546 | AF178: =IFERROR(VLOOKUP($A178,Filtro.12!$A$4:$AL$2956,30,FALSE),0) -> 0 | AG178: =IFERROR(VLOOKUP($A178,Filtro.12!$A$4:$AL$2956,31,FALSE),0) -> 68 | AH178: =IFERROR(VLOOKUP($A178,Filtro.12!$A$4:$AL$2956,32,FALSE),0) -> 0 | AI178: =IFERROR(VLOOKUP($A178,Filtro.12!$A$4:$AL$2956,33,FALSE),0) -> 0 | AJ178: =IFERROR(VLOOKUP($A178,Filtro.12!$A$4:$AL$2956,34,FALSE),0) -> 0 | AK178: =IFERROR(VLOOKUP($A178,Filtro.12!$A$4:$AL$2956,35,FALSE),0) -> 0
A179: 01010067 | B179: 01010067 | C179: Consultorías odontólogos | D179: =IFERROR(VLOOKUP($A179,Filtro.12!$A$4:$AL$2956,2,FALSE),0) -> 0 | E179: =IFERROR(VLOOKUP($A179,Filtro.12!$A$4:$AL$2956,3,FALSE),0) -> 0 | F179: =IFERROR(VLOOKUP($A179,Filtro.12!$A$4:$AL$2956,4,FALSE),0) -> 0 | G179: =IFERROR(VLOOKUP($A179,Filtro.12!$A$4:$AL$2956,5,FALSE),0) -> 0 | H179: =IFERROR(VLOOKUP($A179,Filtro.12!$A$4:$AL$2956,6,FALSE),0) -> 0 | AB179: =IFERROR(VLOOKUP($A179,Filtro.12!$A$4:$AL$2956,26,FALSE),0) -> 0 | AC179: =IFERROR(VLOOKUP($A179,Filtro.12!$A$4:$AL$2956,27,FALSE),0) -> 0 | AD179: =IFERROR(VLOOKUP($A179,Filtro.12!$A$4:$AL$2956,28,FALSE),0) -> 0 | AE179: =IFERROR(VLOOKUP($A179,Filtro.12!$A$4:$AL$2956,29,FALSE),0) -> 0 | AF179: =IFERROR(VLOOKUP($A179,Filtro.12!$A$4:$AL$2956,30,FALSE),0) -> 0 | AG179: =IFERROR(VLOOKUP($A179,Filtro.12!$A$4:$AL$2956,31,FALSE),0) -> 0 | AH179: =IFERROR(VLOOKUP($A179,Filtro.12!$A$4:$AL$2956,32,FALSE),0) -> 0 | AI179: =IFERROR(VLOOKUP($A179,Filtro.12!$A$4:$AL$2956,33,FALSE),0) -> 0 | AJ179: =IFERROR(VLOOKUP($A179,Filtro.12!$A$4:$AL$2956,34,FALSE),0) -> 0 | AK179: =IFERROR(VLOOKUP($A179,Filtro.12!$A$4:$AL$2956,35,FALSE),0) -> 0
A180: 01010068 | B180: 01010068 | C180: Consejerias Individual por profesional de salud | D180: =IFERROR(VLOOKUP($A180,Filtro.12!$A$4:$AL$2956,2,FALSE),0) -> 29272 | E180: =IFERROR(VLOOKUP($A180,Filtro.12!$A$4:$AL$2956,3,FALSE),0) -> 29272 | F180: =IFERROR(VLOOKUP($A180,Filtro.12!$A$4:$AL$2956,4,FALSE),0) -> 29250 | G180: =IFERROR(VLOOKUP($A180,Filtro.12!$A$4:$AL$2956,5,FALSE),0) -> 22 | H180: =IFERROR(VLOOKUP($A180,Filtro.12!$A$4:$AL$2956,6,FALSE),0) -> 0 | AB180: =IFERROR(VLOOKUP($A180,Filtro.12!$A$4:$AL$2956,26,FALSE),0) -> 7789 | AC180: =IFERROR(VLOOKUP($A180,Filtro.12!$A$4:$AL$2956,27,FALSE),0) -> 20787 | AD180: =IFERROR(VLOOKUP($A180,Filtro.12!$A$4:$AL$2956,28,FALSE),0) -> 0 | AE180: =IFERROR(VLOOKUP($A180,Filtro.12!$A$4:$AL$2956,29,FALSE),0) -> 0 | AF180: =IFERROR(VLOOKUP($A180,Filtro.12!$A$4:$AL$2956,30,FALSE),0) -> 0 | AG180: =IFERROR(VLOOKUP($A180,Filtro.12!$A$4:$AL$2956,31,FALSE),0) -> 0 | AH180: =IFERROR(VLOOKUP($A180,Filtro.12!$A$4:$AL$2956,32,FALSE),0) -> 0 | AI180: =IFERROR(VLOOKUP($A180,Filtro.12!$A$4:$AL$2956,33,FALSE),0) -> 0 | AJ180: =IFERROR(VLOOKUP($A180,Filtro.12!$A$4:$AL$2956,34,FALSE),0) -> 0 | AK180: =IFERROR(VLOOKUP($A180,Filtro.12!$A$4:$AL$2956,35,FALSE),0) -> 0
A181: 01010069 | B181: 01010069 | C181: Consejerias Familiar por profesionales de salud | D181: =IFERROR(VLOOKUP($A181,Filtro.12!$A$4:$AL$2956,2,FALSE),0) -> 708 | E181: =IFERROR(VLOOKUP($A181,Filtro.12!$A$4:$AL$2956,3,FALSE),0) -> 708 | F181: =IFERROR(VLOOKUP($A181,Filtro.12!$A$4:$AL$2956,4,FALSE),0) -> 708 | G181: =IFERROR(VLOOKUP($A181,Filtro.12!$A$4:$AL$2956,5,FALSE),0) -> 0 | H181: =IFERROR(VLOOKUP($A181,Filtro.12!$A$4:$AL$2956,6,FALSE),0) -> 0 | AB181: =IFERROR(VLOOKUP($A181,Filtro.12!$A$4:$AL$2956,26,FALSE),0) -> 0 | AC181: =IFERROR(VLOOKUP($A181,Filtro.12!$A$4:$AL$2956,27,FALSE),0) -> 708 | AD181: =IFERROR(VLOOKUP($A181,Filtro.12!$A$4:$AL$2956,28,FALSE),0) -> 0 | AE181: =IFERROR(VLOOKUP($A181,Filtro.12!$A$4:$AL$2956,29,FALSE),0) -> 0 | AF181: =IFERROR(VLOOKUP($A181,Filtro.12!$A$4:$AL$2956,30,FALSE),0) -> 0 | AG181: =IFERROR(VLOOKUP($A181,Filtro.12!$A$4:$AL$2956,31,FALSE),0) -> 0 | AH181: =IFERROR(VLOOKUP($A181,Filtro.12!$A$4:$AL$2956,32,FALSE),0) -> 0 | AI181: =IFERROR(VLOOKUP($A181,Filtro.12!$A$4:$AL$2956,33,FALSE),0) -> 0 | AJ181: =IFERROR(VLOOKUP($A181,Filtro.12!$A$4:$AL$2956,34,FALSE),0) -> 0 | AK181: =IFERROR(VLOOKUP($A181,Filtro.12!$A$4:$AL$2956,35,FALSE),0) -> 0
A182: 01010070 | B182: 01010070 | C182: Instalación de clips en lesiones sangrantes | D182: =IFERROR(VLOOKUP($A182,Filtro.12!$A$4:$AL$2956,2,FALSE),0) -> 0 | E182: =IFERROR(VLOOKUP($A182,Filtro.12!$A$4:$AL$2956,3,FALSE),0) -> 0 | F182: =IFERROR(VLOOKUP($A182,Filtro.12!$A$4:$AL$2956,4,FALSE),0) -> 0 | G182: =IFERROR(VLOOKUP($A182,Filtro.12!$A$4:$AL$2956,5,FALSE),0) -> 0 | H182: =IFERROR(VLOOKUP($A182,Filtro.12!$A$4:$AL$2956,6,FALSE),0) -> 0 | AB182: =IFERROR(VLOOKUP($A182,Filtro.12!$A$4:$AL$2956,26,FALSE),0) -> 0 | AC182: =IFERROR(VLOOKUP($A182,Filtro.12!$A$4:$AL$2956,27,FALSE),0) -> 0 | AD182: =IFERROR(VLOOKUP($A182,Filtro.12!$A$4:$AL$2956,28,FALSE),0) -> 0 | AE182: =IFERROR(VLOOKUP($A182,Filtro.12!$A$4:$AL$2956,29,FALSE),0) -> 0 | AF182: =IFERROR(VLOOKUP($A182,Filtro.12!$A$4:$AL$2956,30,FALSE),0) -> 0 | AG182: =IFERROR(VLOOKUP($A182,Filtro.12!$A$4:$AL$2956,31,FALSE),0) -> 0 | AH182: =IFERROR(VLOOKUP($A182,Filtro.12!$A$4:$AL$2956,32,FALSE),0) -> 0 | AI182: =IFERROR(VLOOKUP($A182,Filtro.12!$A$4:$AL$2956,33,FALSE),0) -> 0 | AJ182: =IFERROR(VLOOKUP($A182,Filtro.12!$A$4:$AL$2956,34,FALSE),0) -> 0 | AK182: =IFERROR(VLOOKUP($A182,Filtro.12!$A$4:$AL$2956,35,FALSE),0) -> 0
A183: 01010071 | B183: 01010071 | C183: Instalación vendaje compresivo (Coban) | D183: =IFERROR(VLOOKUP($A183,Filtro.12!$A$4:$AL$2956,2,FALSE),0) -> 11 | E183: =IFERROR(VLOOKUP($A183,Filtro.12!$A$4:$AL$2956,3,FALSE),0) -> 11 | F183: =IFERROR(VLOOKUP($A183,Filtro.12!$A$4:$AL$2956,4,FALSE),0) -> 11 | G183: =IFERROR(VLOOKUP($A183,Filtro.12!$A$4:$AL$2956,5,FALSE),0) -> 0 | H183: =IFERROR(VLOOKUP($A183,Filtro.12!$A$4:$AL$2956,6,FALSE),0) -> 0 | AB183: =IFERROR(VLOOKUP($A183,Filtro.12!$A$4:$AL$2956,26,FALSE),0) -> 1 | AC183: =IFERROR(VLOOKUP($A183,Filtro.12!$A$4:$AL$2956,27,FALSE),0) -> 10 | AD183: =IFERROR(VLOOKUP($A183,Filtro.12!$A$4:$AL$2956,28,FALSE),0) -> 0 | AE183: =IFERROR(VLOOKUP($A183,Filtro.12!$A$4:$AL$2956,29,FALSE),0) -> 0 | AF183: =IFERROR(VLOOKUP($A183,Filtro.12!$A$4:$AL$2956,30,FALSE),0) -> 0 | AG183: =IFERROR(VLOOKUP($A183,Filtro.12!$A$4:$AL$2956,31,FALSE),0) -> 0 | AH183: =IFERROR(VLOOKUP($A183,Filtro.12!$A$4:$AL$2956,32,FALSE),0) -> 0 | AI183: =IFERROR(VLOOKUP($A183,Filtro.12!$A$4:$AL$2956,33,FALSE),0) -> 0 | AJ183: =IFERROR(VLOOKUP($A183,Filtro.12!$A$4:$AL$2956,34,FALSE),0) -> 0 | AK183: =IFERROR(VLOOKUP($A183,Filtro.12!$A$4:$AL$2956,35,FALSE),0) -> 0
C184: TOTAL | D184: =SUM(D160:D183) -> 1054713 | E184: =SUM(E160:E183) -> 1054713 | F184: =SUM(F160:F183) -> 1054691 | G184: =SUM(G160:G183) -> 22 | H184: =SUM(H160:H183) -> 0 | AB184: =SUM(AB160:AB183) -> 158831 | AC184: 832989 | AD184: 62033 | AE184: 546 | AF184: 0 | AG184: 68 | AH184: 0 | AI184: 0 | AJ184: 0 | AK184: 0 | AM184: 0
C185: TRASPLANTES
A186: 01010072 | B186: 01010072 | C186: Estudio receptor donante cadáver | D186: =IFERROR(VLOOKUP($A186,Filtro.12!$A$4:$AL$2956,2,FALSE),0) -> 0 | E186: =IFERROR(VLOOKUP($A186,Filtro.12!$A$4:$AL$2956,3,FALSE),0) -> 0 | F186: =IFERROR(VLOOKUP($A186,Filtro.12!$A$4:$AL$2956,4,FALSE),0) -> 0 | G186: =IFERROR(VLOOKUP($A186,Filtro.12!$A$4:$AL$2956,5,FALSE),0) -> 0 | H186: =IFERROR(VLOOKUP($A186,Filtro.12!$A$4:$AL$2956,6,FALSE),0) -> 0 | AB186: =IFERROR(VLOOKUP($A186,Filtro.12!$A$4:$AL$2956,26,FALSE),0) -> 0 | AC186: =IFERROR(VLOOKUP($A186,Filtro.12!$A$4:$AL$2956,27,FALSE),0) -> 0 | AD186: =IFERROR(VLOOKUP($A186,Filtro.12!$A$4:$AL$2956,28,FALSE),0) -> 0 | AE186: =IFERROR(VLOOKUP($A186,Filtro.12!$A$4:$AL$2956,29,FALSE),0) -> 0 | AF186: =IFERROR(VLOOKUP($A186,Filtro.12!$A$4:$AL$2956,30,FALSE),0) -> 0 | AG186: =IFERROR(VLOOKUP($A186,Filtro.12!$A$4:$AL$2956,31,FALSE),0) -> 0 | AH186: =IFERROR(VLOOKUP($A186,Filtro.12!$A$4:$AL$2956,32,FALSE),0) -> 0 | AI186: =IFERROR(VLOOKUP($A186,Filtro.12!$A$4:$AL$2956,33,FALSE),0) -> 0 | AJ186: =IFERROR(VLOOKUP($A186,Filtro.12!$A$4:$AL$2956,34,FALSE),0) -> 0 | AK186: =IFERROR(VLOOKUP($A186,Filtro.12!$A$4:$AL$2956,35,FALSE),0) -> 0
A187: 01010073 | B187: 01010073 | C187: Estudio receptor donante vivo | D187: =IFERROR(VLOOKUP($A187,Filtro.12!$A$4:$AL$2956,2,FALSE),0) -> 0 | E187: =IFERROR(VLOOKUP($A187,Filtro.12!$A$4:$AL$2956,3,FALSE),0) -> 0 | F187: =IFERROR(VLOOKUP($A187,Filtro.12!$A$4:$AL$2956,4,FALSE),0) -> 0 | G187: =IFERROR(VLOOKUP($A187,Filtro.12!$A$4:$AL$2956,5,FALSE),0) -> 0 | H187: =IFERROR(VLOOKUP($A187,Filtro.12!$A$4:$AL$2956,6,FALSE),0) -> 0 | AB187: =IFERROR(VLOOKUP($A187,Filtro.12!$A$4:$AL$2956,26,FALSE),0) -> 0 | AC187: =IFERROR(VLOOKUP($A187,Filtro.12!$A$4:$AL$2956,27,FALSE),0) -> 0 | AD187: =IFERROR(VLOOKUP($A187,Filtro.12!$A$4:$AL$2956,28,FALSE),0) -> 0 | AE187: =IFERROR(VLOOKUP($A187,Filtro.12!$A$4:$AL$2956,29,FALSE),0) -> 0 | AF187: =IFERROR(VLOOKUP($A187,Filtro.12!$A$4:$AL$2956,30,FALSE),0) -> 0 | AG187: =IFERROR(VLOOKUP($A187,Filtro.12!$A$4:$AL$2956,31,FALSE),0) -> 0 | AH187: =IFERROR(VLOOKUP($A187,Filtro.12!$A$4:$AL$2956,32,FALSE),0) -> 0 | AI187: =IFERROR(VLOOKUP($A187,Filtro.12!$A$4:$AL$2956,33,FALSE),0) -> 0 | AJ187: =IFERROR(VLOOKUP($A187,Filtro.12!$A$4:$AL$2956,34,FALSE),0) -> 0 | AK187: =IFERROR(VLOOKUP($A187,Filtro.12!$A$4:$AL$2956,35,FALSE),0) -> 0
A188: 01010074 | B188: 01010074 | C188: Estudio receptores corazón-pulmón | D188: =IFERROR(VLOOKUP($A188,Filtro.12!$A$4:$AL$2956,2,FALSE),0) -> 0 | E188: =IFERROR(VLOOKUP($A188,Filtro.12!$A$4:$AL$2956,3,FALSE),0) -> 0 | F188: =IFERROR(VLOOKUP($A188,Filtro.12!$A$4:$AL$2956,4,FALSE),0) -> 0 | G188: =IFERROR(VLOOKUP($A188,Filtro.12!$A$4:$AL$2956,5,FALSE),0) -> 0 | H188: =IFERROR(VLOOKUP($A188,Filtro.12!$A$4:$AL$2956,6,FALSE),0) -> 0 | AB188: =IFERROR(VLOOKUP($A188,Filtro.12!$A$4:$AL$2956,26,FALSE),0) -> 0 | AC188: =IFERROR(VLOOKUP($A188,Filtro.12!$A$4:$AL$2956,27,FALSE),0) -> 0 | AD188: =IFERROR(VLOOKUP($A188,Filtro.12!$A$4:$AL$2956,28,FALSE),0) -> 0 | AE188: =IFERROR(VLOOKUP($A188,Filtro.12!$A$4:$AL$2956,29,FALSE),0) -> 0 | AF188: =IFERROR(VLOOKUP($A188,Filtro.12!$A$4:$AL$2956,30,FALSE),0) -> 0 | AG188: =IFERROR(VLOOKUP($A188,Filtro.12!$A$4:$AL$2956,31,FALSE),0) -> 0 | AH188: =IFERROR(VLOOKUP($A188,Filtro.12!$A$4:$AL$2956,32,FALSE),0) -> 0 | AI188: =IFERROR(VLOOKUP($A188,Filtro.12!$A$4:$AL$2956,33,FALSE),0) -> 0 | AJ188: =IFERROR(VLOOKUP($A188,Filtro.12!$A$4:$AL$2956,34,FALSE),0) -> 0 | AK188: =IFERROR(VLOOKUP($A188,Filtro.12!$A$4:$AL$2956,35,FALSE),0) -> 0
A189: 01010075 | B189: 01010075 | C189: Estudio pacientes trasplante medula ósea | D189: =IFERROR(VLOOKUP($A189,Filtro.12!$A$4:$AL$2956,2,FALSE),0) -> 0 | E189: =IFERROR(VLOOKUP($A189,Filtro.12!$A$4:$AL$2956,3,FALSE),0) -> 0 | F189: =IFERROR(VLOOKUP($A189,Filtro.12!$A$4:$AL$2956,4,FALSE),0) -> 0 | G189: =IFERROR(VLOOKUP($A189,Filtro.12!$A$4:$AL$2956,5,FALSE),0) -> 0 | H189: =IFERROR(VLOOKUP($A189,Filtro.12!$A$4:$AL$2956,6,FALSE),0) -> 0 | AB189: =IFERROR(VLOOKUP($A189,Filtro.12!$A$4:$AL$2956,26,FALSE),0) -> 0 | AC189: =IFERROR(VLOOKUP($A189,Filtro.12!$A$4:$AL$2956,27,FALSE),0) -> 0 | AD189: =IFERROR(VLOOKUP($A189,Filtro.12!$A$4:$AL$2956,28,FALSE),0) -> 0 | AE189: =IFERROR(VLOOKUP($A189,Filtro.12!$A$4:$AL$2956,29,FALSE),0) -> 0 | AF189: =IFERROR(VLOOKUP($A189,Filtro.12!$A$4:$AL$2956,30,FALSE),0) -> 0 | AG189: =IFERROR(VLOOKUP($A189,Filtro.12!$A$4:$AL$2956,31,FALSE),0) -> 0 | AH189: =IFERROR(VLOOKUP($A189,Filtro.12!$A$4:$AL$2956,32,FALSE),0) -> 0 | AI189: =IFERROR(VLOOKUP($A189,Filtro.12!$A$4:$AL$2956,33,FALSE),0) -> 0 | AJ189: =IFERROR(VLOOKUP($A189,Filtro.12!$A$4:$AL$2956,34,FALSE),0) -> 0 | AK189: =IFERROR(VLOOKUP($A189,Filtro.12!$A$4:$AL$2956,35,FALSE),0) -> 0
A190: 01010076 | B190: 01010076 | C190: Trasplante de medula autólogo | D190: =IFERROR(VLOOKUP($A190,Filtro.12!$A$4:$AL$2956,2,FALSE),0) -> 0 | E190: =IFERROR(VLOOKUP($A190,Filtro.12!$A$4:$AL$2956,3,FALSE),0) -> 0 | F190: =IFERROR(VLOOKUP($A190,Filtro.12!$A$4:$AL$2956,4,FALSE),0) -> 0 | G190: =IFERROR(VLOOKUP($A190,Filtro.12!$A$4:$AL$2956,5,FALSE),0) -> 0 | H190: =IFERROR(VLOOKUP($A190,Filtro.12!$A$4:$AL$2956,6,FALSE),0) -> 0 | AB190: =IFERROR(VLOOKUP($A190,Filtro.12!$A$4:$AL$2956,26,FALSE),0) -> 0 | AC190: =IFERROR(VLOOKUP($A190,Filtro.12!$A$4:$AL$2956,27,FALSE),0) -> 0 | AD190: =IFERROR(VLOOKUP($A190,Filtro.12!$A$4:$AL$2956,28,FALSE),0) -> 0 | AE190: =IFERROR(VLOOKUP($A190,Filtro.12!$A$4:$AL$2956,29,FALSE),0) -> 0 | AF190: =IFERROR(VLOOKUP($A190,Filtro.12!$A$4:$AL$2956,30,FALSE),0) -> 0 | AG190: =IFERROR(VLOOKUP($A190,Filtro.12!$A$4:$AL$2956,31,FALSE),0) -> 0 | AH190: =IFERROR(VLOOKUP($A190,Filtro.12!$A$4:$AL$2956,32,FALSE),0) -> 0 | AI190: =IFERROR(VLOOKUP($A190,Filtro.12!$A$4:$AL$2956,33,FALSE),0) -> 0 | AJ190: =IFERROR(VLOOKUP($A190,Filtro.12!$A$4:$AL$2956,34,FALSE),0) -> 0 | AK190: =IFERROR(VLOOKUP($A190,Filtro.12!$A$4:$AL$2956,35,FALSE),0) -> 0
A191: 01010077 | B191: 01010077 | C191: Trasplante de medula alógeno | D191: =IFERROR(VLOOKUP($A191,Filtro.12!$A$4:$AL$2956,2,FALSE),0) -> 0 | E191: =IFERROR(VLOOKUP($A191,Filtro.12!$A$4:$AL$2956,3,FALSE),0) -> 0 | F191: =IFERROR(VLOOKUP($A191,Filtro.12!$A$4:$AL$2956,4,FALSE),0) -> 0 | G191: =IFERROR(VLOOKUP($A191,Filtro.12!$A$4:$AL$2956,5,FALSE),0) -> 0 | H191: =IFERROR(VLOOKUP($A191,Filtro.12!$A$4:$AL$2956,6,FALSE),0) -> 0 | AB191: =IFERROR(VLOOKUP($A191,Filtro.12!$A$4:$AL$2956,26,FALSE),0) -> 0 | AC191: =IFERROR(VLOOKUP($A191,Filtro.12!$A$4:$AL$2956,27,FALSE),0) -> 0 | AD191: =IFERROR(VLOOKUP($A191,Filtro.12!$A$4:$AL$2956,28,FALSE),0) -> 0 | AE191: =IFERROR(VLOOKUP($A191,Filtro.12!$A$4:$AL$2956,29,FALSE),0) -> 0 | AF191: =IFERROR(VLOOKUP($A191,Filtro.12!$A$4:$AL$2956,30,FALSE),0) -> 0 | AG191: =IFERROR(VLOOKUP($A191,Filtro.12!$A$4:$AL$2956,31,FALSE),0) -> 0 | AH191: =IFERROR(VLOOKUP($A191,Filtro.12!$A$4:$AL$2956,32,FALSE),0) -> 0 | AI191: =IFERROR(VLOOKUP($A191,Filtro.12!$A$4:$AL$2956,33,FALSE),0) -> 0 | AJ191: =IFERROR(VLOOKUP($A191,Filtro.12!$A$4:$AL$2956,34,FALSE),0) -> 0 | AK191: =IFERROR(VLOOKUP($A191,Filtro.12!$A$4:$AL$2956,35,FALSE),0) -> 0
A192: 01010078 | B192: 01010078 | C192: Trasplante medula de cordón | D192: =IFERROR(VLOOKUP($A192,Filtro.12!$A$4:$AL$2956,2,FALSE),0) -> 0 | E192: =IFERROR(VLOOKUP($A192,Filtro.12!$A$4:$AL$2956,3,FALSE),0) -> 0 | F192: =IFERROR(VLOOKUP($A192,Filtro.12!$A$4:$AL$2956,4,FALSE),0) -> 0 | G192: =IFERROR(VLOOKUP($A192,Filtro.12!$A$4:$AL$2956,5,FALSE),0) -> 0 | H192: =IFERROR(VLOOKUP($A192,Filtro.12!$A$4:$AL$2956,6,FALSE),0) -> 0 | AB192: =IFERROR(VLOOKUP($A192,Filtro.12!$A$4:$AL$2956,26,FALSE),0) -> 0 | AC192: =IFERROR(VLOOKUP($A192,Filtro.12!$A$4:$AL$2956,27,FALSE),0) -> 0 | AD192: =IFERROR(VLOOKUP($A192,Filtro.12!$A$4:$AL$2956,28,FALSE),0) -> 0 | AE192: =IFERROR(VLOOKUP($A192,Filtro.12!$A$4:$AL$2956,29,FALSE),0) -> 0 | AF192: =IFERROR(VLOOKUP($A192,Filtro.12!$A$4:$AL$2956,30,FALSE),0) -> 0 | AG192: =IFERROR(VLOOKUP($A192,Filtro.12!$A$4:$AL$2956,31,FALSE),0) -> 0 | AH192: =IFERROR(VLOOKUP($A192,Filtro.12!$A$4:$AL$2956,32,FALSE),0) -> 0 | AI192: =IFERROR(VLOOKUP($A192,Filtro.12!$A$4:$AL$2956,33,FALSE),0) -> 0 | AJ192: =IFERROR(VLOOKUP($A192,Filtro.12!$A$4:$AL$2956,34,FALSE),0) -> 0 | AK192: =IFERROR(VLOOKUP($A192,Filtro.12!$A$4:$AL$2956,35,FALSE),0) -> 0
A193: 01010079 | B193: 01010079 | C193: Trasplante medula aploidentico | D193: =IFERROR(VLOOKUP($A193,Filtro.12!$A$4:$AL$2956,2,FALSE),0) -> 0 | E193: =IFERROR(VLOOKUP($A193,Filtro.12!$A$4:$AL$2956,3,FALSE),0) -> 0 | F193: =IFERROR(VLOOKUP($A193,Filtro.12!$A$4:$AL$2956,4,FALSE),0) -> 0 | G193: =IFERROR(VLOOKUP($A193,Filtro.12!$A$4:$AL$2956,5,FALSE),0) -> 0 | H193: =IFERROR(VLOOKUP($A193,Filtro.12!$A$4:$AL$2956,6,FALSE),0) -> 0 | AB193: =IFERROR(VLOOKUP($A193,Filtro.12!$A$4:$AL$2956,26,FALSE),0) -> 0 | AC193: =IFERROR(VLOOKUP($A193,Filtro.12!$A$4:$AL$2956,27,FALSE),0) -> 0 | AD193: =IFERROR(VLOOKUP($A193,Filtro.12!$A$4:$AL$2956,28,FALSE),0) -> 0 | AE193: =IFERROR(VLOOKUP($A193,Filtro.12!$A$4:$AL$2956,29,FALSE),0) -> 0 | AF193: =IFERROR(VLOOKUP($A193,Filtro.12!$A$4:$AL$2956,30,FALSE),0) -> 0 | AG193: =IFERROR(VLOOKUP($A193,Filtro.12!$A$4:$AL$2956,31,FALSE),0) -> 0 | AH193: =IFERROR(VLOOKUP($A193,Filtro.12!$A$4:$AL$2956,32,FALSE),0) -> 0 | AI193: =IFERROR(VLOOKUP($A193,Filtro.12!$A$4:$AL$2956,33,FALSE),0) -> 0 | AJ193: =IFERROR(VLOOKUP($A193,Filtro.12!$A$4:$AL$2956,34,FALSE),0) -> 0 | AK193: =IFERROR(VLOOKUP($A193,Filtro.12!$A$4:$AL$2956,35,FALSE),0) -> 0
A194: 01010080 | B194: 01010080 | C194: Trasplante de córnea (incluye procuramiento y seguimiento por un año) | D194: =IFERROR(VLOOKUP($A194,Filtro.12!$A$4:$AL$2956,2,FALSE),0) -> 6 | E194: =IFERROR(VLOOKUP($A194,Filtro.12!$A$4:$AL$2956,3,FALSE),0) -> 6 | F194: =IFERROR(VLOOKUP($A194,Filtro.12!$A$4:$AL$2956,4,FALSE),0) -> 6 | G194: =IFERROR(VLOOKUP($A194,Filtro.12!$A$4:$AL$2956,5,FALSE),0) -> 0 | H194: =IFERROR(VLOOKUP($A194,Filtro.12!$A$4:$AL$2956,6,FALSE),0) -> 0 | AB194: =IFERROR(VLOOKUP($A194,Filtro.12!$A$4:$AL$2956,26,FALSE),0) -> 6 | AC194: =IFERROR(VLOOKUP($A194,Filtro.12!$A$4:$AL$2956,27,FALSE),0) -> 0 | AD194: =IFERROR(VLOOKUP($A194,Filtro.12!$A$4:$AL$2956,28,FALSE),0) -> 0 | AE194: =IFERROR(VLOOKUP($A194,Filtro.12!$A$4:$AL$2956,29,FALSE),0) -> 0 | AF194: =IFERROR(VLOOKUP($A194,Filtro.12!$A$4:$AL$2956,30,FALSE),0) -> 0 | AG194: =IFERROR(VLOOKUP($A194,Filtro.12!$A$4:$AL$2956,31,FALSE),0) -> 0 | AH194: =IFERROR(VLOOKUP($A194,Filtro.12!$A$4:$AL$2956,32,FALSE),0) -> 0 | AI194: =IFERROR(VLOOKUP($A194,Filtro.12!$A$4:$AL$2956,33,FALSE),0) -> 0 | AJ194: =IFERROR(VLOOKUP($A194,Filtro.12!$A$4:$AL$2956,34,FALSE),0) -> 0 | AK194: =IFERROR(VLOOKUP($A194,Filtro.12!$A$4:$AL$2956,35,FALSE),0) -> 0
A195: 01010081 | B195: 01010081 | C195: Soporte pretrasplante hepático extracorporeo por sesión | D195: =IFERROR(VLOOKUP($A195,Filtro.12!$A$4:$AL$2956,2,FALSE),0) -> 0 | E195: =IFERROR(VLOOKUP($A195,Filtro.12!$A$4:$AL$2956,3,FALSE),0) -> 0 | F195: =IFERROR(VLOOKUP($A195,Filtro.12!$A$4:$AL$2956,4,FALSE),0) -> 0 | G195: =IFERROR(VLOOKUP($A195,Filtro.12!$A$4:$AL$2956,5,FALSE),0) -> 0 | H195: =IFERROR(VLOOKUP($A195,Filtro.12!$A$4:$AL$2956,6,FALSE),0) -> 0 | AB195: =IFERROR(VLOOKUP($A195,Filtro.12!$A$4:$AL$2956,26,FALSE),0) -> 0 | AC195: =IFERROR(VLOOKUP($A195,Filtro.12!$A$4:$AL$2956,27,FALSE),0) -> 0 | AD195: =IFERROR(VLOOKUP($A195,Filtro.12!$A$4:$AL$2956,28,FALSE),0) -> 0 | AE195: =IFERROR(VLOOKUP($A195,Filtro.12!$A$4:$AL$2956,29,FALSE),0) -> 0 | AF195: =IFERROR(VLOOKUP($A195,Filtro.12!$A$4:$AL$2956,30,FALSE),0) -> 0 | AG195: =IFERROR(VLOOKUP($A195,Filtro.12!$A$4:$AL$2956,31,FALSE),0) -> 0 | AH195: =IFERROR(VLOOKUP($A195,Filtro.12!$A$4:$AL$2956,32,FALSE),0) -> 0 | AI195: =IFERROR(VLOOKUP($A195,Filtro.12!$A$4:$AL$2956,33,FALSE),0) -> 0 | AJ195: =IFERROR(VLOOKUP($A195,Filtro.12!$A$4:$AL$2956,34,FALSE),0) -> 0 | AK195: =IFERROR(VLOOKUP($A195,Filtro.12!$A$4:$AL$2956,35,FALSE),0) -> 0
A196: 01010082 | B196: 01010082 | C196: Mantención donante cadáver (pulmón, corazón o hígado) (muerte cerebral) | D196: =IFERROR(VLOOKUP($A196,Filtro.12!$A$4:$AL$2956,2,FALSE),0) -> 8 | E196: =IFERROR(VLOOKUP($A196,Filtro.12!$A$4:$AL$2956,3,FALSE),0) -> 7 | F196: =IFERROR(VLOOKUP($A196,Filtro.12!$A$4:$AL$2956,4,FALSE),0) -> 7 | G196: =IFERROR(VLOOKUP($A196,Filtro.12!$A$4:$AL$2956,5,FALSE),0) -> 0 | H196: =IFERROR(VLOOKUP($A196,Filtro.12!$A$4:$AL$2956,6,FALSE),0) -> 1 | AB196: =IFERROR(VLOOKUP($A196,Filtro.12!$A$4:$AL$2956,26,FALSE),0) -> 8 | AC196: =IFERROR(VLOOKUP($A196,Filtro.12!$A$4:$AL$2956,27,FALSE),0) -> 0 | AD196: =IFERROR(VLOOKUP($A196,Filtro.12!$A$4:$AL$2956,28,FALSE),0) -> 0 | AE196: =IFERROR(VLOOKUP($A196,Filtro.12!$A$4:$AL$2956,29,FALSE),0) -> 0 | AF196: =IFERROR(VLOOKUP($A196,Filtro.12!$A$4:$AL$2956,30,FALSE),0) -> 0 | AG196: =IFERROR(VLOOKUP($A196,Filtro.12!$A$4:$AL$2956,31,FALSE),0) -> 0 | AH196: =IFERROR(VLOOKUP($A196,Filtro.12!$A$4:$AL$2956,32,FALSE),0) -> 0 | AI196: =IFERROR(VLOOKUP($A196,Filtro.12!$A$4:$AL$2956,33,FALSE),0) -> 0 | AJ196: =IFERROR(VLOOKUP($A196,Filtro.12!$A$4:$AL$2956,34,FALSE),0) -> 0 | AK196: =IFERROR(VLOOKUP($A196,Filtro.12!$A$4:$AL$2956,35,FALSE),0) -> 0
C197: TOTAL | D197: =SUM(D186:D196) -> 14 | E197: =SUM(E186:E196) -> 13 | F197: =SUM(F186:F196) -> 13 | G197: =SUM(G186:G196) -> 0 | H197: =SUM(H186:H196) -> 1 | AB197: =SUM(AB186:AB196) -> 14 | AC197: 0 | AD197: 0 | AE197: 0 | AF197: 0 | AG197: 0 | AH197: 0 | AI197: 0 | AJ197: 0 | AK197: 0 | AM197: 0
C198: ATENCION CERRADA
A199: 01014380 | B199: 0201010 | C199: Dia Cama de Hospitalización Integral Cuidados Básicos | D199: =IFERROR(VLOOKUP($A199,Filtro.12!$A$4:$AL$2956,2,FALSE),0) -> 36717 | E199: =IFERROR(VLOOKUP($A199,Filtro.12!$A$4:$AL$2956,3,FALSE),0) -> 36190 | F199: =IFERROR(VLOOKUP($A199,Filtro.12!$A$4:$AL$2956,4,FALSE),0) -> 36176 | G199: =IFERROR(VLOOKUP($A199,Filtro.12!$A$4:$AL$2956,5,FALSE),0) -> 14 | H199: =IFERROR(VLOOKUP($A199,Filtro.12!$A$4:$AL$2956,6,FALSE),0) -> 527 | AB199: =IFERROR(VLOOKUP($A199,Filtro.12!$A$4:$AL$2956,26,FALSE),0) -> 34225 | AC199: =IFERROR(VLOOKUP($A199,Filtro.12!$A$4:$AL$2956,27,FALSE),0) -> 1565 | AD199: =IFERROR(VLOOKUP($A199,Filtro.12!$A$4:$AL$2956,28,FALSE),0) -> 228 | AE199: =IFERROR(VLOOKUP($A199,Filtro.12!$A$4:$AL$2956,29,FALSE),0) -> 0 | AF199: =IFERROR(VLOOKUP($A199,Filtro.12!$A$4:$AL$2956,30,FALSE),0) -> 0 | AG199: =IFERROR(VLOOKUP($A199,Filtro.12!$A$4:$AL$2956,31,FALSE),0) -> 0 | AH199: =IFERROR(VLOOKUP($A199,Filtro.12!$A$4:$AL$2956,32,FALSE),0) -> 0 | AI199: =IFERROR(VLOOKUP($A199,Filtro.12!$A$4:$AL$2956,33,FALSE),0) -> 0 | AJ199: =IFERROR(VLOOKUP($A199,Filtro.12!$A$4:$AL$2956,34,FALSE),0) -> 0 | AK199: =IFERROR(VLOOKUP($A199,Filtro.12!$A$4:$AL$2956,35,FALSE),0) -> 0 | AL199: 42,910 | AM199: =IFERROR(VLOOKUP($A199,Filtro.12!$A$4:$AL$2956,37,FALSE),0) -> 1,552,312,160
A200: 01014381 | B200: 0201110 | C200: Dia Cama de Hospitalización Integral Cuidados Medios | D200: =IFERROR(VLOOKUP($A200,Filtro.12!$A$4:$AL$2956,2,FALSE),0) -> 188832 | E200: =IFERROR(VLOOKUP($A200,Filtro.12!$A$4:$AL$2956,3,FALSE),0) -> 185446 | F200: =IFERROR(VLOOKUP($A200,Filtro.12!$A$4:$AL$2956,4,FALSE),0) -> 185439 | G200: =IFERROR(VLOOKUP($A200,Filtro.12!$A$4:$AL$2956,5,FALSE),0) -> 7 | H200: =IFERROR(VLOOKUP($A200,Filtro.12!$A$4:$AL$2956,6,FALSE),0) -> 3386 | AB200: =IFERROR(VLOOKUP($A200,Filtro.12!$A$4:$AL$2956,26,FALSE),0) -> 182249 | AC200: =IFERROR(VLOOKUP($A200,Filtro.12!$A$4:$AL$2956,27,FALSE),0) -> 465 | AD200: =IFERROR(VLOOKUP($A200,Filtro.12!$A$4:$AL$2956,28,FALSE),0) -> 0 | AE200: =IFERROR(VLOOKUP($A200,Filtro.12!$A$4:$AL$2956,29,FALSE),0) -> 0 | AF200: =IFERROR(VLOOKUP($A200,Filtro.12!$A$4:$AL$2956,30,FALSE),0) -> 0 | AG200: =IFERROR(VLOOKUP($A200,Filtro.12!$A$4:$AL$2956,31,FALSE),0) -> 0 | AH200: =IFERROR(VLOOKUP($A200,Filtro.12!$A$4:$AL$2956,32,FALSE),0) -> 0 | AI200: =IFERROR(VLOOKUP($A200,Filtro.12!$A$4:$AL$2956,33,FALSE),0) -> 0 | AJ200: =IFERROR(VLOOKUP($A200,Filtro.12!$A$4:$AL$2956,34,FALSE),0) -> 0 | AK200: =IFERROR(VLOOKUP($A200,Filtro.12!$A$4:$AL$2956,35,FALSE),0) -> 0 | AL200: 48,310 | AM200: =IFERROR(VLOOKUP($A200,Filtro.12!$A$4:$AL$2956,37,FALSE),0) -> 8,958,558,090
... 3025 more rows

Sheet B17
B1: SERVICIO DE SALUD / ESTABLECIMIENTO MUNICIPAL
B2: =CONCATENATE("COMUNA: ",[1]NOMBRE!B2," - ","( ",[1]NOMBRE!C2,[1]NOMBRE!D2,[1]NOMBRE!E2,[1]NOMBRE!F2,[1]NOMBRE!G2," )") -> COMUNA: - ( )
B3: =CONCATENATE("ESTABLECIMIENTO/ESTRATEGIA: ",[1]NOMBRE!B3," - ","( ",[1]NOMBRE!C3,[1]NOMBRE!D3,[1]NOMBRE!E3,[1]NOMBRE!F3,[1]NOMBRE!G3,[1]NOMBRE!H3," )") -> ESTABLECIMIENTO/ESTRATEGIA: - ( )
B4: =CONCATENATE("MES: ",[1]NOMBRE!B6," - ","( ",[1]NOMBRE!C6,[1]NOMBRE!D6," )") -> MES: - ( )
B5: =CONCATENATE("AÑO: ",[1]NOMBRE!B7) -> AÑO: 2024
E6: REM-B17. ACTIVIDADES DE APOYO DIAGNOSTICO y TERAPEUTICO
B8: SECCION A: ATENCIONES ABIERTAS
B9: CÓDIGOS | C9: IDENTIFICACIÓN DE PRESTACIONES | D9: TOTAL PRODUCCIÓN | E9: TOTAL BENEFICIARIOS MAI | F9: PAGO POR PRESTACIONES ($)
C10: CONSULTAS Y ATENCION MÉDICA | D10: =SUM(D11:D17) -> 849900 | E10: =SUM(E11:E17) -> 834531 | F10: =SUM(F11:F17) -> 7,816,304,090
A11: 99100120 | C11: Consulta Médica general | D11: =IFERROR(VLOOKUP($A11,Filtro.12!$A$4:$AL$2956,2,FALSE),0) -> 80107 | E11: =IFERROR(VLOOKUP($A11,Filtro.12!$A$4:$AL$2956,3,FALSE),0) -> 80107 | F11: =IFERROR(VLOOKUP($A11,Filtro.12!$A$4:$AL$2956,4,FALSE),0) -> 541,523,320
A12: 17400010 | C12: Consulta Médica de Especialidades | D12: =IFERROR(VLOOKUP($A12,Filtro.12!$A$4:$AL$2956,2,FALSE),0) -> 430421 | E12: =IFERROR(VLOOKUP($A12,Filtro.12!$A$4:$AL$2956,3,FALSE),0) -> 429175 | F12: =IFERROR(VLOOKUP($A12,Filtro.12!$A$4:$AL$2956,4,FALSE),0) -> 4,128,663,500
A13: 17400020 | C13: Consulta en Unidades de Urgencia Hospitalaria | D13: =IFERROR(VLOOKUP($A13,Filtro.12!$A$4:$AL$2956,2,FALSE),0) -> 319945 | E13: =IFERROR(VLOOKUP($A13,Filtro.12!$A$4:$AL$2956,3,FALSE),0) -> 306285 | F13: =IFERROR(VLOOKUP($A13,Filtro.12!$A$4:$AL$2956,4,FALSE),0) -> 2,946,461,700
A14: 17400030 | C14: Atención médica del recién nacido en sala de parto o pabellón quirúrgico c/s reanimación cardio-respiratoria | D14: =IFERROR(VLOOKUP($A14,Filtro.12!$A$4:$AL$2956,2,FALSE),0) -> 3453 | E14: =IFERROR(VLOOKUP($A14,Filtro.12!$A$4:$AL$2956,3,FALSE),0) -> 3050 | F14: =IFERROR(VLOOKUP($A14,Filtro.12!$A$4:$AL$2956,4,FALSE),0) -> 54,442,500
A15: 17400040 | C15: Telemedicina/ Teleconsulta por profesional médico | D15: =IFERROR(VLOOKUP($A15,Filtro.12!$A$4:$AL$2956,2,FALSE),0) -> 15260 | E15: =IFERROR(VLOOKUP($A15,Filtro.12!$A$4:$AL$2956,3,FALSE),0) -> 15200 | F15: =IFERROR(VLOOKUP($A15,Filtro.12!$A$4:$AL$2956,4,FALSE),0) -> 121,573,820
A16: 17400060 | C16: Teleinterconsulta (Telemedicina) | D16: =IFERROR(VLOOKUP($A16,Filtro.12!$A$4:$AL$2956,2,FALSE),0) -> 131 | E16: =IFERROR(VLOOKUP($A16,Filtro.12!$A$4:$AL$2956,3,FALSE),0) -> 131 | F16: =IFERROR(VLOOKUP($A16,Filtro.12!$A$4:$AL$2956,4,FALSE),0) -> 1,048,000
A17: 99000130 | B17: 0903006 | C17: Consultoría de salud mental por psiquiatra (sesión 4 hrs.) (mínimo 8 pacientes) | D17: =IFERROR(VLOOKUP($A17,Filtro.12!$A$4:$AL$2956,2,FALSE),0) -> 583 | E17: =IFERROR(VLOOKUP($A17,Filtro.12!$A$4:$AL$2956,3,FALSE),0) -> 583 | F17: =IFERROR(VLOOKUP($A17,Filtro.12!$A$4:$AL$2956,4,FALSE),0) -> 22,591,250
C18: CONSULTAS POR OTROS PROFESIONALES DE LA SALUD | D18: =SUM(D19:D29) -> 364365 | E18: =SUM(E19:E29) -> 363430 | F18: =SUM(F19:F29) -> 967,326,940
A19: 17400070 | B19: 0102008 | C19: Consulta o control por enfermera/o | D19: =IFERROR(VLOOKUP($A19,Filtro.12!$A$4:$AL$2956,2,FALSE),0) -> 125804 | E19: =IFERROR(VLOOKUP($A19,Filtro.12!$A$4:$AL$2956,3,FALSE),0) -> 125433 | F19: =IFERROR(VLOOKUP($A19,Filtro.12!$A$4:$AL$2956,4,FALSE),0) -> 188,149,500
A20: 99000150 | B20: 0102002 | C20: Control de salud niño con EDP por enfermera/o | D20: =IFERROR(VLOOKUP($A20,Filtro.12!$A$4:$AL$2956,2,FALSE),0) -> 2344 | E20: =IFERROR(VLOOKUP($A20,Filtro.12!$A$4:$AL$2956,3,FALSE),0) -> 2344 | F20: =IFERROR(VLOOKUP($A20,Filtro.12!$A$4:$AL$2956,4,FALSE),0) -> 6,000,640
A21: 99000160 | B21: 0102003 | C21: Consulta o control por auxiliar de enfermería | D21: =IFERROR(VLOOKUP($A21,Filtro.12!$A$4:$AL$2956,2,FALSE),0) -> 25048 | E21: =IFERROR(VLOOKUP($A21,Filtro.12!$A$4:$AL$2956,3,FALSE),0) -> 25045 | F21: =IFERROR(VLOOKUP($A21,Filtro.12!$A$4:$AL$2956,4,FALSE),0) -> 20,787,350
A22: 99000170 | B22: 0102005 | C22: Consulta por fonoaudiólogo/a | D22: =IFERROR(VLOOKUP($A22,Filtro.12!$A$4:$AL$2956,2,FALSE),0) -> 18348 | E22: =IFERROR(VLOOKUP($A22,Filtro.12!$A$4:$AL$2956,3,FALSE),0) -> 18340 | F22: =IFERROR(VLOOKUP($A22,Filtro.12!$A$4:$AL$2956,4,FALSE),0) -> 37,413,600
A23: 17400080 | B23: 0102009 | C23: Consulta o control por matron/a | D23: =IFERROR(VLOOKUP($A23,Filtro.12!$A$4:$AL$2956,2,FALSE),0) -> 64804 | E23: =IFERROR(VLOOKUP($A23,Filtro.12!$A$4:$AL$2956,3,FALSE),0) -> 64518 | F23: =IFERROR(VLOOKUP($A23,Filtro.12!$A$4:$AL$2956,4,FALSE),0) -> 96,777,000
A24: 17400090 | B24: 0102010 | C24: Consulta o control por nutricionista | D24: =IFERROR(VLOOKUP($A24,Filtro.12!$A$4:$AL$2956,2,FALSE),0) -> 30270 | E24: =IFERROR(VLOOKUP($A24,Filtro.12!$A$4:$AL$2956,3,FALSE),0) -> 30190 | F24: =IFERROR(VLOOKUP($A24,Filtro.12!$A$4:$AL$2956,4,FALSE),0) -> 45,285,000
A25: 99000200 | B25: 0903002 | C25: Consulta o control psicológico clínico | D25: =IFERROR(VLOOKUP($A25,Filtro.12!$A$4:$AL$2956,2,FALSE),0) -> 36252 | E25: =IFERROR(VLOOKUP($A25,Filtro.12!$A$4:$AL$2956,3,FALSE),0) -> 36196 | F25: =IFERROR(VLOOKUP($A25,Filtro.12!$A$4:$AL$2956,4,FALSE),0) -> 132,839,320
A26: 99000210 | B26: 0903003 | C26: Consulta de salud mental por otros profesionales | D26: =IFERROR(VLOOKUP($A26,Filtro.12!$A$4:$AL$2956,2,FALSE),0) -> 43756 | E26: =IFERROR(VLOOKUP($A26,Filtro.12!$A$4:$AL$2956,3,FALSE),0) -> 43665 | F26: =IFERROR(VLOOKUP($A26,Filtro.12!$A$4:$AL$2956,4,FALSE),0) -> 160,250,550
A27: 99000220 | B27: 0903004 | C27: Intervención psicosocial grupal (4 a 8 pacientes, familiares o cuidadores) | D27: =IFERROR(VLOOKUP($A27,Filtro.12!$A$4:$AL$2956,2,FALSE),0) -> 8995 | E27: =IFERROR(VLOOKUP($A27,Filtro.12!$A$4:$AL$2956,3,FALSE),0) -> 8955 | F27: =IFERROR(VLOOKUP($A27,Filtro.12!$A$4:$AL$2956,4,FALSE),0) -> 130,563,900
A28: 99000230 | B28: 0903005 | C28: Psicoterapia de grupo (por psicólogo o psiquiatra) (4 a 8 pacientes) | D28: =IFERROR(VLOOKUP($A28,Filtro.12!$A$4:$AL$2956,2,FALSE),0) -> 8744 | E28: =IFERROR(VLOOKUP($A28,Filtro.12!$A$4:$AL$2956,3,FALSE),0) -> 8744 | F28: =IFERROR(VLOOKUP($A28,Filtro.12!$A$4:$AL$2956,4,FALSE),0) -> 149,260,080
A29: 17400050 | C29: Telemedicina/ Teleconsulta por profesional no médico | D29: =IFERROR(VLOOKUP($A29,Filtro.12!$A$4:$AL$2956,2,FALSE),0) -> 0 | E29: =IFERROR(VLOOKUP($A29,Filtro.12!$A$4:$AL$2956,3,FALSE),0) -> 0 | F29: =IFERROR(VLOOKUP($A29,Filtro.12!$A$4:$AL$2956,4,FALSE),0) -> 0
C30: OTRAS CONSULTAS Y ATENCION MEDICA | D30: =SUM(D31:D32) -> 41074
A31: 99100170 | C31: Consulta por otros profesionales | D31: =IFERROR(VLOOKUP($A31,Filtro.12!$A$4:$AL$2956,2,FALSE),0) -> 24869 | E31: =IFERROR(VLOOKUP($A31,Filtro.12!$A$4:$AL$2956,3,FALSE),0) -> 0 | F31: =IFERROR(VLOOKUP($A31,Filtro.12!$A$4:$AL$2956,4,FALSE),0) -> 0
A32: 17200390 | C32: Consulta por Trabajador(a) Social | D32: =IFERROR(VLOOKUP($A32,Filtro.12!$A$4:$AL$2956,2,FALSE),0) -> 16205 | E32: =IFERROR(VLOOKUP($A32,Filtro.12!$A$4:$AL$2956,3,FALSE),0) -> 0 | F32: =IFERROR(VLOOKUP($A32,Filtro.12!$A$4:$AL$2956,4,FALSE),0) -> 0
C33: PROGRAMAS DE REHABILITACIÓN | D33: =SUM(D34:D35) -> 249 | E33: =SUM(E34:E35) -> 249 | F33: =SUM(F34:F35) -> 3,829,371
A34: 99000240 | B34: 0903007 | C34: Programa de rehabilitación tipo 1 (mensual, grupo 6 a 10 pers.) | D34: =IFERROR(VLOOKUP($A34,Filtro.12!$A$4:$AL$2956,2,FALSE),0) -> 0 | E34: =IFERROR(VLOOKUP($A34,Filtro.12!$A$4:$AL$2956,3,FALSE),0) -> 0 | F34: =IFERROR(VLOOKUP($A34,Filtro.12!$A$4:$AL$2956,4,FALSE),0) -> 0
A35: 99000250 | B35: 0903008 | C35: Programa de rehabilitación tipo 2 (mensual, grupo 5 a 7 pers.) | D35: =IFERROR(VLOOKUP($A35,Filtro.12!$A$4:$AL$2956,2,FALSE),0) -> 249 | E35: =IFERROR(VLOOKUP($A35,Filtro.12!$A$4:$AL$2956,3,FALSE),0) -> 249 | F35: =IFERROR(VLOOKUP($A35,Filtro.12!$A$4:$AL$2956,4,FALSE),0) -> 3,829,371
C36: OTROS PROGRAMAS | D36: =D$37 -> 100
A37: 99100210 | B37: 0901003 | C37: Sesión de terapia electroconvulsivante (hasta 6 sesiones por ciclo o sesiones de mantención) c/ sesión | D37: =IFERROR(VLOOKUP($A37,Filtro.12!$A$4:$AL$2956,2,FALSE),0) -> 100 | E37: =IFERROR(VLOOKUP($A37,Filtro.12!$A$4:$AL$2956,3,FALSE),0) -> 0 | F37: =IFERROR(VLOOKUP($A37,Filtro.12!$A$4:$AL$2956,4,FALSE),0) -> 0
C38: EDUCACION DE GRUPO | D38: =SUM(D39:D44) -> 40244 | E38: =SUM(E39:E44) -> 39653 | F38: =SUM(F39:F44) -> 108,310,230
A39: 99000260 | B39: 0103001 | C39: Educación de grupo por médico | D39: =IFERROR(VLOOKUP($A39,Filtro.12!$A$4:$AL$2956,2,FALSE),0) -> 384 | E39: =IFERROR(VLOOKUP($A39,Filtro.12!$A$4:$AL$2956,3,FALSE),0) -> 384 | F39: =IFERROR(VLOOKUP($A39,Filtro.12!$A$4:$AL$2956,4,FALSE),0) -> 1,893,120
A40: 99000270 | B40: 0103005 | C40: Educación de grupo por enfermera | D40: =IFERROR(VLOOKUP($A40,Filtro.12!$A$4:$AL$2956,2,FALSE),0) -> 37595 | E40: =IFERROR(VLOOKUP($A40,Filtro.12!$A$4:$AL$2956,3,FALSE),0) -> 37004 | F40: =IFERROR(VLOOKUP($A40,Filtro.12!$A$4:$AL$2956,4,FALSE),0) -> 100,280,840
A41: 99000280 | B41: 0103003 | C41: Educación de grupo por Trabajador/a Social | D41: =IFERROR(VLOOKUP($A41,Filtro.12!$A$4:$AL$2956,2,FALSE),0) -> 181 | E41: =IFERROR(VLOOKUP($A41,Filtro.12!$A$4:$AL$2956,3,FALSE),0) -> 181 | F41: =IFERROR(VLOOKUP($A41,Filtro.12!$A$4:$AL$2956,4,FALSE),0) -> 490,510
A42: 99000290 | B42: 0103004 | C42: Educación de grupo por auxiliar de enfermería | D42: =IFERROR(VLOOKUP($A42,Filtro.12!$A$4:$AL$2956,2,FALSE),0) -> 1 | E42: =IFERROR(VLOOKUP($A42,Filtro.12!$A$4:$AL$2956,3,FALSE),0) -> 1 | F42: =IFERROR(VLOOKUP($A42,Filtro.12!$A$4:$AL$2956,4,FALSE),0) -> 830
A43: 17400100 | B43: 0103006 | C43: Educación de grupo por matrona | D43: =IFERROR(VLOOKUP($A43,Filtro.12!$A$4:$AL$2956,2,FALSE),0) -> 2000 | E43: =IFERROR(VLOOKUP($A43,Filtro.12!$A$4:$AL$2956,3,FALSE),0) -> 2000 | F43: =IFERROR(VLOOKUP($A43,Filtro.12!$A$4:$AL$2956,4,FALSE),0) -> 5,420,000
A44: 17400110 | B44: 0103007 | C44: Educación de grupo por nutricionista | D44: =IFERROR(VLOOKUP($A44,Filtro.12!$A$4:$AL$2956,2,FALSE),0) -> 83 | E44: =IFERROR(VLOOKUP($A44,Filtro.12!$A$4:$AL$2956,3,FALSE),0) -> 83 | F44: =IFERROR(VLOOKUP($A44,Filtro.12!$A$4:$AL$2956,4,FALSE),0) -> 224,930
C45: OTRA EDUCACIÓN DE GRUPO | D45: =D46 -> 1,888
A46: 99100220 | C46: Educación de grupo por otro integrante del equipo de salud | D46: =IFERROR(VLOOKUP($A46,Filtro.12!$A$4:$AL$2956,2,FALSE),0) -> 1888 | E46: =IFERROR(VLOOKUP($A46,Filtro.12!$A$4:$AL$2956,3,FALSE),0) -> 0 | F46: =IFERROR(VLOOKUP($A46,Filtro.12!$A$4:$AL$2956,4,FALSE),0) -> 0
C47: VISITAS DOMICILIARIAS | D47: =SUM(D48:D52) -> 44,731 | E47: =SUM(E48:E52) -> 44,726 | F47: =SUM(F48:F52) -> 91,722,100
A48: 17400120 | B48: 0104004 | C48: Visita a domicilio por enfermera | D48: =IFERROR(VLOOKUP($A48,Filtro.12!$A$4:$AL$2956,2,FALSE),0) -> 27228 | E48: =IFERROR(VLOOKUP($A48,Filtro.12!$A$4:$AL$2956,3,FALSE),0) -> 27227 | F48: =IFERROR(VLOOKUP($A48,Filtro.12!$A$4:$AL$2956,4,FALSE),0) -> 63,983,450
A49: 99000310 | B49: 0104002 | C49: Visita a domicilio por asistente social | D49: =IFERROR(VLOOKUP($A49,Filtro.12!$A$4:$AL$2956,2,FALSE),0) -> 2926 | E49: =IFERROR(VLOOKUP($A49,Filtro.12!$A$4:$AL$2956,3,FALSE),0) -> 2924 | F49: =IFERROR(VLOOKUP($A49,Filtro.12!$A$4:$AL$2956,4,FALSE),0) -> 6,871,400
A50: 99000320 | B50: 0104003 | C50: Visita a domicilio por auxiliar de enfermería | D50: =IFERROR(VLOOKUP($A50,Filtro.12!$A$4:$AL$2956,2,FALSE),0) -> 13386 | E50: =IFERROR(VLOOKUP($A50,Filtro.12!$A$4:$AL$2956,3,FALSE),0) -> 13384 | F50: =IFERROR(VLOOKUP($A50,Filtro.12!$A$4:$AL$2956,4,FALSE),0) -> 18,068,400
A51: 17400130 | B51: 0104005 | C51: Visita a domicilio por matrona | D51: =IFERROR(VLOOKUP($A51,Filtro.12!$A$4:$AL$2956,2,FALSE),0) -> 179 | E51: =IFERROR(VLOOKUP($A51,Filtro.12!$A$4:$AL$2956,3,FALSE),0) -> 179 | F51: =IFERROR(VLOOKUP($A51,Filtro.12!$A$4:$AL$2956,4,FALSE),0) -> 420,650
A52: 17400140 | B52: 0104006 | C52: Visita a domicilio por nutricionista | D52: =IFERROR(VLOOKUP($A52,Filtro.12!$A$4:$AL$2956,2,FALSE),0) -> 1012 | E52: =IFERROR(VLOOKUP($A52,Filtro.12!$A$4:$AL$2956,3,FALSE),0) -> 1012 | F52: =IFERROR(VLOOKUP($A52,Filtro.12!$A$4:$AL$2956,4,FALSE),0) -> 2,378,200
C53: OTRAS VISITAS DOMICILIARIAS | D53: =SUM(D54:D55) -> 34,607
A54: 99100230 | C54: Visita a domicilio por otro integrante del equipo de salud | D54: =IFERROR(VLOOKUP($A54,Filtro.12!$A$4:$AL$2956,2,FALSE),0) -> 22490 | E54: =IFERROR(VLOOKUP($A54,Filtro.12!$A$4:$AL$2956,3,FALSE),0) -> 0 | F54: =IFERROR(VLOOKUP($A54,Filtro.12!$A$4:$AL$2956,4,FALSE),0) -> 0
A55: 99100240 | C55: Visita domiciliaria por profesional y técnico paramédico | D55: =IFERROR(VLOOKUP($A55,Filtro.12!$A$4:$AL$2956,2,FALSE),0) -> 12117 | E55: =IFERROR(VLOOKUP($A55,Filtro.12!$A$4:$AL$2956,3,FALSE),0) -> 0 | F55: =IFERROR(VLOOKUP($A55,Filtro.12!$A$4:$AL$2956,4,FALSE),0) -> 0
C56: TOTAL | D56: =D10+D18+D33+D38+D47+D30+D36+D45+D53 -> 1,377,158 | E56: =E10+E18+E33+E38+E47 -> 1,282,589 | F56: =F10+F18+F33+F38+F47 -> 8,987,492,731
B57: SECCION B: ATENCION CERRADA, DIAS DE HOSPITALIZACION
B58: CODIGOS | C58: IDENTIFICACION DE PRESTACIONES | D58: TOTAL PRODUCCIÓN | E58: TOTAL BENEFICIARIOS MAI | F58: PAGO POR PRESTACIONES ($)
C59: ATENCIÓN CERRADA
A60: 17400150 | B60: 0201010 | C60: Dia Cama de Hospitalización Integral Cuidados Básicos | D60: =IFERROR(VLOOKUP($A60,Filtro.12!$A$4:$AL$2956,2,FALSE),0) -> 36717 | E60: =IFERROR(VLOOKUP($A60,Filtro.12!$A$4:$AL$2956,3,FALSE),0) -> 36176 | F60: =IFERROR(VLOOKUP($A60,Filtro.12!$A$4:$AL$2956,4,FALSE),0) -> 1,552,312,160
A61: 17400160 | B61: 0201110 | C61: Dia Cama de Hospitalización Integral Cuidados Medios | D61: =IFERROR(VLOOKUP($A61,Filtro.12!$A$4:$AL$2956,2,FALSE),0) -> 188832 | E61: =IFERROR(VLOOKUP($A61,Filtro.12!$A$4:$AL$2956,3,FALSE),0) -> 185439 | F61: =IFERROR(VLOOKUP($A61,Filtro.12!$A$4:$AL$2956,4,FALSE),0) -> 8,958,558,090
A62: 17400170 | B62: 0201301 | C62: Día Cama de Hospitalización Integral Adulto en Unidad de Tratamiento Intermedio (U.T.I) | D62: =IFERROR(VLOOKUP($A62,Filtro.12!$A$4:$AL$2956,2,FALSE),0) -> 30795 | E62: =IFERROR(VLOOKUP($A62,Filtro.12!$A$4:$AL$2956,3,FALSE),0) -> 30547 | F62: =IFERROR(VLOOKUP($A62,Filtro.12!$A$4:$AL$2956,4,FALSE),0) -> 2,744,342,480
A63: 17400180 | B63: 0201302 | C63: Día Cama de Hospitalización Integral Pediátrica en Unidad de Tratamiento Intermedio (U.T.I) | D63: =IFERROR(VLOOKUP($A63,Filtro.12!$A$4:$AL$2956,2,FALSE),0) -> 2907 | E63: =IFERROR(VLOOKUP($A63,Filtro.12!$A$4:$AL$2956,3,FALSE),0) -> 2828 | F63: =IFERROR(VLOOKUP($A63,Filtro.12!$A$4:$AL$2956,4,FALSE),0) -> 254,067,520
A64: 17400190 | B64: 0201303 | C64: Día Cama de Hospitalización Integral Neonatal en Unidad de Tratamiento Intermedio (U.T.I) | D64: =IFERROR(VLOOKUP($A64,Filtro.12!$A$4:$AL$2956,2,FALSE),0) -> 4752 | E64: =IFERROR(VLOOKUP($A64,Filtro.12!$A$4:$AL$2956,3,FALSE),0) -> 4711 | F64: =IFERROR(VLOOKUP($A64,Filtro.12!$A$4:$AL$2956,4,FALSE),0) -> 423,236,240
A65: 17400200 | B65: 0201201 | C65: Día Cama de Hospitalización Integral Adulto en Unidad de Cuidado Intensivo (U.C.I.) | D65: =IFERROR(VLOOKUP($A65,Filtro.12!$A$4:$AL$2956,2,FALSE),0) -> 14070 | E65: =IFERROR(VLOOKUP($A65,Filtro.12!$A$4:$AL$2956,3,FALSE),0) -> 13883 | F65: =IFERROR(VLOOKUP($A65,Filtro.12!$A$4:$AL$2956,4,FALSE),0) -> 2,582,099,170
A66: 17400210 | B66: 0201202 | C66: Día Cama de Hospitalización Integral Pediátrica en Unidad de Cuidado Intensivo (U.C.I). | D66: =IFERROR(VLOOKUP($A66,Filtro.12!$A$4:$AL$2956,2,FALSE),0) -> 445 | E66: =IFERROR(VLOOKUP($A66,Filtro.12!$A$4:$AL$2956,3,FALSE),0) -> 443 | F66: =IFERROR(VLOOKUP($A66,Filtro.12!$A$4:$AL$2956,4,FALSE),0) -> 82,393,570
A67: 17400220 | B67: 0201203 | C67: Día Cama de Hospitalización Integral Neonatal en Unidad de Cuidado Intensivo (U.C.I.) | D67: =IFERROR(VLOOKUP($A67,Filtro.12!$A$4:$AL$2956,2,FALSE),0) -> 2756 | E67: =IFERROR(VLOOKUP($A67,Filtro.12!$A$4:$AL$2956,3,FALSE),0) -> 2739 | F67: =IFERROR(VLOOKUP($A67,Filtro.12!$A$4:$AL$2956,4,FALSE),0) -> 509,426,610
A68: 17400230 | B68: 0201410 | C68: Día Cama de Hospitalización Integral Obstetricia | D68: =IFERROR(VLOOKUP($A68,Filtro.12!$A$4:$AL$2956,2,FALSE),0) -> 21441 | E68: =IFERROR(VLOOKUP($A68,Filtro.12!$A$4:$AL$2956,3,FALSE),0) -> 21171 | F68: =IFERROR(VLOOKUP($A68,Filtro.12!$A$4:$AL$2956,4,FALSE),0) -> 909,717,870
A69: 17400240 | B69: 0201403 | C69: Día Cama de Hospitalización Integral Sala Cuna | D69: =IFERROR(VLOOKUP($A69,Filtro.12!$A$4:$AL$2956,2,FALSE),0) -> 3792 | E69: =IFERROR(VLOOKUP($A69,Filtro.12!$A$4:$AL$2956,3,FALSE),0) -> 3783 | F69: =IFERROR(VLOOKUP($A69,Filtro.12!$A$4:$AL$2956,4,FALSE),0) -> 32,798,610
A70: 17400250 | B70: 0201404 | C70: Día Cama de Hospitalización Integral Incubadora | D70: =IFERROR(VLOOKUP($A70,Filtro.12!$A$4:$AL$2956,2,FALSE),0) -> 993 | E70: =IFERROR(VLOOKUP($A70,Filtro.12!$A$4:$AL$2956,3,FALSE),0) -> 944 | F70: =IFERROR(VLOOKUP($A70,Filtro.12!$A$4:$AL$2956,4,FALSE),0) -> 76,095,840
A71: 17400270 | B71: 0201406 | C71: Día Cama de Hospitalización Integral Psiquiatría | D71: =IFERROR(VLOOKUP($A71,Filtro.12!$A$4:$AL$2956,2,FALSE),0) -> 12954 | E71: =IFERROR(VLOOKUP($A71,Filtro.12!$A$4:$AL$2956,3,FALSE),0) -> 12940 | F71: =IFERROR(VLOOKUP($A71,Filtro.12!$A$4:$AL$2956,4,FALSE),0) -> 412,527,200
A72: 17400280 | B72: 0201407 | C72: Día Cama de Hospitalizacion Integral de Observación - Ambulatorio | D72: =IFERROR(VLOOKUP($A72,Filtro.12!$A$4:$AL$2956,2,FALSE),0) -> 80850 | E72: =IFERROR(VLOOKUP($A72,Filtro.12!$A$4:$AL$2956,3,FALSE),0) -> 80772 | F72: =IFERROR(VLOOKUP($A72,Filtro.12!$A$4:$AL$2956,4,FALSE),0) -> 730,178,880
A73: 17400290 | B73: 0201501 | C73: Dia Cama Hospitalizacion Domiciliaria Cuidados Básicos | D73: =IFERROR(VLOOKUP($A73,Filtro.12!$A$4:$AL$2956,2,FALSE),0) -> 5820 | E73: =IFERROR(VLOOKUP($A73,Filtro.12!$A$4:$AL$2956,3,FALSE),0) -> 5820 | F73: =IFERROR(VLOOKUP($A73,Filtro.12!$A$4:$AL$2956,4,FALSE),0) -> 243,741,600
A74: 17400300 | B74: 0201502 | C74: Dia Cama Hospitalizacion Domiciliaria Cuidados Medios | D74: =IFERROR(VLOOKUP($A74,Filtro.12!$A$4:$AL$2956,2,FALSE),0) -> 26017 | E74: =IFERROR(VLOOKUP($A74,Filtro.12!$A$4:$AL$2956,3,FALSE),0) -> 25983 | F74: =IFERROR(VLOOKUP($A74,Filtro.12!$A$4:$AL$2956,4,FALSE),0) -> 1,665,250,470
A75: 17400310 | B75: 0201503 | C75: Dia Cama Hospitalizacion Domiciliaria Cuidados Alta Complejidad | D75: =IFERROR(VLOOKUP($A75,Filtro.12!$A$4:$AL$2956,2,FALSE),0) -> 9670 | E75: =IFERROR(VLOOKUP($A75,Filtro.12!$A$4:$AL$2956,3,FALSE),0) -> 9606 | F75: =IFERROR(VLOOKUP($A75,Filtro.12!$A$4:$AL$2956,4,FALSE),0) -> 1,025,440,500
C76: TOTAL | D76: =SUM(D60:D75) -> 442811 | E76: =SUM(E60:E75) -> 437785 | F76: =SUM(F60:F75) -> 22,202,186,810
B77: SECCIÓN C:TRATAMIENTO ABREVIADO DE LA TUBERCULOSIS
B78: CODIGOS | C78: TRATAMIENTO ABREVIADO DE LA TUBERCULOSIS | D78: TOTAL PRODUCCIÓN | E78: TOTAL BENEFICIARIOS MAI | F78: PAGO POR PRESTACIONES ($)
A79: 99001860 | B79: 3003001 | C79: TBC, Esquema primario (mensual) | D79: =IFERROR(VLOOKUP($A79,Filtro.12!$A$4:$AL$2956,2,FALSE),0) -> 11 | E79: =IFERROR(VLOOKUP($A79,Filtro.12!$A$4:$AL$2956,3,FALSE),0) -> 11 | F79: =IFERROR(VLOOKUP($A79,Filtro.12!$A$4:$AL$2956,4,FALSE),0) -> 102,740
A80: 99001870 | B80: 3003002 | C80: TBC, Esquema primario simplificado (mensual) | D80: =IFERROR(VLOOKUP($A80,Filtro.12!$A$4:$AL$2956,2,FALSE),0) -> 3 | E80: =IFERROR(VLOOKUP($A80,Filtro.12!$A$4:$AL$2956,3,FALSE),0) -> 3 | F80: =IFERROR(VLOOKUP($A80,Filtro.12!$A$4:$AL$2956,4,FALSE),0) -> 14,910
A81: 99001880 | B81: 3003003 | C81: TBC, Esquema secundario (mensual) | D81: =IFERROR(VLOOKUP($A81,Filtro.12!$A$4:$AL$2956,2,FALSE),0) -> 2 | E81: =IFERROR(VLOOKUP($A81,Filtro.12!$A$4:$AL$2956,3,FALSE),0) -> 2 | F81: =IFERROR(VLOOKUP($A81,Filtro.12!$A$4:$AL$2956,4,FALSE),0) -> 37,460
A82: 99001890 | B82: 3003004 | C82: TBC, Esquema normado de retratamiento (mensual) | D82: =IFERROR(VLOOKUP($A82,Filtro.12!$A$4:$AL$2956,2,FALSE),0) -> 0 | E82: =IFERROR(VLOOKUP($A82,Filtro.12!$A$4:$AL$2956,3,FALSE),0) -> 0 | F82: =IFERROR(VLOOKUP($A82,Filtro.12!$A$4:$AL$2956,4,FALSE),0) -> 0
A83: 99001900 | B83: 3003005 | C83: TBC, Esquema especial de retratamiento (mensual) | D83: =IFERROR(VLOOKUP($A83,Filtro.12!$A$4:$AL$2956,2,FALSE),0) -> 0 | E83: =IFERROR(VLOOKUP($A83,Filtro.12!$A$4:$AL$2956,3,FALSE),0) -> 0 | F83: =IFERROR(VLOOKUP($A83,Filtro.12!$A$4:$AL$2956,4,FALSE),0) -> 0
C84: TOTAL | D84: =SUM(D79:D83) -> 16 | E84: =SUM(E79:E83) -> 16 | F84: =SUM(F79:F83) -> 155,110
B85: SECCIÓN D:TRASLADO, RESCATES Y RONDAS RURALES
B86: CODIGOS | C86: TRASLADO, RESCATES Y RONDAS RURALES | D86: TOTAL PRODUCCIÓN | E86: TOTAL BENEFICIARIOS MAI | F86: PAGO POR PRESTACIONES ($)
A87: 99001910 | B87: 2401061 | C87: Rescate simple y/o traslado en móvil 1 | D87: =IFERROR(VLOOKUP($A87,Filtro.12!$A$4:$AL$2956,2,FALSE),0) -> 3175 | E87: =IFERROR(VLOOKUP($A87,Filtro.12!$A$4:$AL$2956,3,FALSE),0) -> 3167 | F87: =IFERROR(VLOOKUP($A87,Filtro.12!$A$4:$AL$2956,4,FALSE),0) -> 79,079,990
A88: 99001920 | B88: 2401062 | C88: Rescate profesionalizado y/o traslado paciente complejo móvil 2 | D88: =IFERROR(VLOOKUP($A88,Filtro.12!$A$4:$AL$2956,2,FALSE),0) -> 2398 | E88: =IFERROR(VLOOKUP($A88,Filtro.12!$A$4:$AL$2956,3,FALSE),0) -> 2369 | F88: =IFERROR(VLOOKUP($A88,Filtro.12!$A$4:$AL$2956,4,FALSE),0) -> 186,084,950
A89: 99001930 | B89: 2401063 | C89: Rescate medicalizado y/o traslado paciente critico en móvil 3 | D89: =IFERROR(VLOOKUP($A89,Filtro.12!$A$4:$AL$2956,2,FALSE),0) -> 304 | E89: =IFERROR(VLOOKUP($A89,Filtro.12!$A$4:$AL$2956,3,FALSE),0) -> 304 | F89: =IFERROR(VLOOKUP($A89,Filtro.12!$A$4:$AL$2956,4,FALSE),0) -> 29,597,440
A90: 99001940 | B90: 2401064 | C90: Traslado en ambulancia | D90: =IFERROR(VLOOKUP($A90,Filtro.12!$A$4:$AL$2956,2,FALSE),0) -> 43044 | E90: =IFERROR(VLOOKUP($A90,Filtro.12!$A$4:$AL$2956,3,FALSE),0) -> 43037 | F90: =IFERROR(VLOOKUP($A90,Filtro.12!$A$4:$AL$2956,4,FALSE),0) -> 147,616,910
A91: 99001950 | B91: 2401065 | C91: Ronda rural terrestre, c/ km recorrido | D91: =IFERROR(VLOOKUP($A91,Filtro.12!$A$4:$AL$2956,2,FALSE),0) -> 76017 | E91: =IFERROR(VLOOKUP($A91,Filtro.12!$A$4:$AL$2956,3,FALSE),0) -> 76017 | F91: =IFERROR(VLOOKUP($A91,Filtro.12!$A$4:$AL$2956,4,FALSE),0) -> 5,321,190
A92: 99001960 | B92: 2401066 | C92: Ronda rural aérea, c/ hora de vuelo | D92: =IFERROR(VLOOKUP($A92,Filtro.12!$A$4:$AL$2956,2,FALSE),0) -> 0 | E92: =IFERROR(VLOOKUP($A92,Filtro.12!$A$4:$AL$2956,3,FALSE),0) -> 0 | F92: =IFERROR(VLOOKUP($A92,Filtro.12!$A$4:$AL$2956,4,FALSE),0) -> 0
A93: 99001970 | B93: 2401067 | C93: Ronda rural marítima, c/ hora de navegación | D93: =IFERROR(VLOOKUP($A93,Filtro.12!$A$4:$AL$2956,2,FALSE),0) -> 0 | E93: =IFERROR(VLOOKUP($A93,Filtro.12!$A$4:$AL$2956,3,FALSE),0) -> 0 | F93: =IFERROR(VLOOKUP($A93,Filtro.12!$A$4:$AL$2956,4,FALSE),0) -> 0
C94: TOTAL | D94: =SUM(D87:D93) -> 124938 | E94: =SUM(E87:E93) -> 124894 | F94: =SUM(F87:F93) -> 447,700,480
B95: SECCION E: PARTOS
B96: CODIGOS | C96: IDENTIFICACION DE PRESTACIONES | D96: TOTAL PRODUCCIÓN | E96: TOTAL BENEFICIARIOS MAI | F96: PAGO POR PRESTACIONES ($)
A97: 99000740 | B97: 2004103 | C97: Parto normal | D97: =IFERROR(VLOOKUP($A97,Filtro.12!$A$4:$AL$2956,2,FALSE),0) -> 2448 | E97: =IFERROR(VLOOKUP($A97,Filtro.12!$A$4:$AL$2956,3,FALSE),0) -> 2294 | F97: =IFERROR(VLOOKUP($A97,Filtro.12!$A$4:$AL$2956,4,FALSE),0) -> 400,761,800
A98: 99000750 | B98: 2004113 | C98: Parto distósico vaginal | D98: =IFERROR(VLOOKUP($A98,Filtro.12!$A$4:$AL$2956,2,FALSE),0) -> 32 | E98: =IFERROR(VLOOKUP($A98,Filtro.12!$A$4:$AL$2956,3,FALSE),0) -> 25 | F98: =IFERROR(VLOOKUP($A98,Filtro.12!$A$4:$AL$2956,4,FALSE),0) -> 4,595,000
C99: TOTAL | D99: =SUM(D97:D98) -> 2480 | E99: =SUM(E97:E98) -> 2319 | F99: =SUM(F97:F98) -> 405,356,800
B100: SECCION F: ATENCION ODONTOLOGICA
C101: Prestaciones | D101: TOTAL PRODUCCIÓN | E101: TOTAL BENEFICIARIOS MAI | F101: PAGO POR PRESTACIONES ($)
A102: 17400320 | B102: 2701XXX | C102: Consulta y atención odontológica | D102: =IFERROR(VLOOKUP($A102,Filtro.12!$A$4:$AL$2956,2,FALSE),0) -> 153808 | E102: =IFERROR(VLOOKUP($A102,Filtro.12!$A$4:$AL$2956,3,FALSE),0) -> 153736 | F102: =IFERROR(VLOOKUP($A102,Filtro.12!$A$4:$AL$2956,4,FALSE),0) -> 682,067,500
A103: 17400330 | B103: 2702XXX | C103: Exámenes imagenológicos odontológico | D103: =IFERROR(VLOOKUP($A103,Filtro.12!$A$4:$AL$2956,2,FALSE),0) -> 23616 | E103: =IFERROR(VLOOKUP($A103,Filtro.12!$A$4:$AL$2956,3,FALSE),0) -> 23546 | F103: =IFERROR(VLOOKUP($A103,Filtro.12!$A$4:$AL$2956,4,FALSE),0) -> 280,422,610
A104: 17400340 | B104: 2703XXX | C104: Odontología general: Actividades preventivas y recuperativas | D104: =IFERROR(VLOOKUP($A104,Filtro.12!$A$4:$AL$2956,2,FALSE),0) -> 60492 | E104: =IFERROR(VLOOKUP($A104,Filtro.12!$A$4:$AL$2956,3,FALSE),0) -> 60472 | F104: =IFERROR(VLOOKUP($A104,Filtro.12!$A$4:$AL$2956,4,FALSE),0) -> 525,598,760
A105: 17400350 | B105: 2704XXX | C105: Especialidades | D105: =IFERROR(VLOOKUP($A105,Filtro.12!$A$4:$AL$2956,2,FALSE),0) -> 28908 | E105: =IFERROR(VLOOKUP($A105,Filtro.12!$A$4:$AL$2956,3,FALSE),0) -> 28905 | F105: =IFERROR(VLOOKUP($A105,Filtro.12!$A$4:$AL$2956,4,FALSE),0) -> 927,163,390
A106: 17400360 | B106: 2705XXX | C106: Cirugías | D106: =IFERROR(VLOOKUP($A106,Filtro.12!$A$4:$AL$2956,2,FALSE),0) -> 9155 | E106: =IFERROR(VLOOKUP($A106,Filtro.12!$A$4:$AL$2956,3,FALSE),0) -> 7852 | F106: =IFERROR(VLOOKUP($A106,Filtro.12!$A$4:$AL$2956,4,FALSE),0) -> 376,598,850
A107: 99100440 | C107: Otras prestaciones odontológicas | D107: =IFERROR(VLOOKUP($A107,Filtro.12!$A$4:$AL$2956,2,FALSE),0) -> 28531 | E107: =IFERROR(VLOOKUP($A107,Filtro.12!$A$4:$AL$2956,3,FALSE),0) -> 0 | F107: =IFERROR(VLOOKUP($A107,Filtro.12!$A$4:$AL$2956,4,FALSE),0) -> 0
C108: TOTAL | D108: =SUM(D102:D107) -> 304510 | E108: =SUM(E102:E106) -> 274511 | F108: =SUM(F102:F106) -> 2,791,851,110
B109: SECCION G: LENTES, AUDIFONOS
B110: CODIGOS | C110: IDENTIFICACION DE PRESTACIONES | D110: TOTAL PRODUCCIÓN | E110: TOTAL BENEFICIARIOS MAI | F110: PAGO POR PRESTACIONES ($)
A111: 99001470 | B111: 3001001 | C111: Lentes ópticos | D111: =IFERROR(VLOOKUP($A111,Filtro.12!$A$4:$AL$2956,2,FALSE),0) -> 17780 | E111: =IFERROR(VLOOKUP($A111,Filtro.12!$A$4:$AL$2956,3,FALSE),0) -> 17701 | F111: =IFERROR(VLOOKUP($A111,Filtro.12!$A$4:$AL$2956,4,FALSE),0) -> 463,058,160
A112: 99001480 | B112: 3001002 | C112: Audífonos | D112: =IFERROR(VLOOKUP($A112,Filtro.12!$A$4:$AL$2956,2,FALSE),0) -> 2547 | E112: =IFERROR(VLOOKUP($A112,Filtro.12!$A$4:$AL$2956,3,FALSE),0) -> 2546 | F112: =IFERROR(VLOOKUP($A112,Filtro.12!$A$4:$AL$2956,4,FALSE),0) -> 834,935,240
C113: TOTAL | D113: =SUM(D111:D112) -> 20327 | E113: =SUM(E111:E112) -> 20247 | F113: =SUM(F111:F112) -> 1,297,993,400
B114: SECCIÓN H: MEDICINA TRANSFUSIONAL
B115: CODIGOS | C115: IDENTIFICACION DE PRESTACIONES | D115: TOTAL PRODUCCIÓN | E115: TOTAL BENEFICIARIOS MAI | F115: PAGO POR PRESTACIONES ($)
A116: 99001490 | B116: Grupo 07 | C116: Medicina Transfusional | D116: =IFERROR(VLOOKUP($A116,#REF!,2,FALSE),0) -> 0 | E116: =IFERROR(VLOOKUP($A116,#REF!,3,FALSE),0) -> 0 | F116: =IFERROR(VLOOKUP($A116,#REF!,4,FALSE),0) -> 0
B117: SECCION I: EXAMENES DE DIAGNOSTICO
B118: TIPO DE EXAMEN | D118: TOTAL | E118: EXAMENES REALIZADOS | I118: PROCEDENCIA | L118: PRODUCCION INTRA HOSPITAL | O118: OPERATIVO | P118: COMPRAS REALIZADAS | R118: VENTAS DE SERVICIOS | S118: TOTAL DE PROCEDIMIENTOS INFORMADOS | T118: PAGO POR PRESTACIONES ($)
E119: TOTAL BENEFICIARIOS | F119: BENEFICIARIOS | H119: NO BENEFICIARIOS | I119: ATENCION CERRADA | J119: ATENCION ABIERTA | K119: EMERGENCIA | L119: POR HONORARIOS | M119: POR CONVENIOS | N119: POR CONSULTORES DE LLAMADA | P119: AL SISTEMA | Q119: EXTRA-SISTEMA
F120: MAI | G120: MLE
B121: TOTAL EXAMENES LABORATORIO | D121: =+D122+D123+D124+D125+D126+D127+D131+D132+D133 -> 4768997 | E121: 4707264 | F121: 4644683 | G121: 62581 | H121: 61733 | I121: 1415629 | J121: 2079693 | K121: 1264312 | L121: 0 | M121: 0 | N121: 0 | O121: 0 | P121: 63730 | Q121: 21090 | R121: 184807 | S121: 0 | T121: =SUM(T122:T126,T127,T131:T133) -> 17,024,454,150
A122: 17010100 | B122: I | C122: HEMATOLOGICOS | D122: =IFERROR(VLOOKUP($A122,Filtro.12!$A$4:$AL$2956,2,FALSE),0) -> 1304585 | E122: =IFERROR(VLOOKUP($A122,Filtro.12!$A$4:$AL$2956,3,FALSE),0) -> 1283850 | F122: =IFERROR(VLOOKUP($A122,Filtro.12!$A$4:$AL$2956,4,FALSE),0) -> 1,261,145 | G122: =IFERROR(VLOOKUP($A122,Filtro.12!$A$4:$AL$2956,5,FALSE),0) -> 22705 | H122: =IFERROR(VLOOKUP($A122,Filtro.12!$A$4:$AL$2956,6,FALSE),0) -> 20735 | I122: =IFERROR(VLOOKUP($A122,Filtro.12!$A$4:$AL$2956,7,FALSE),0) -> 418738 | J122: =IFERROR(VLOOKUP($A122,Filtro.12!$A$4:$AL$2956,8,FALSE),0) -> 490393 | K122: =IFERROR(VLOOKUP($A122,Filtro.12!$A$4:$AL$2956,9,FALSE),0) -> 389446 | L122: =IFERROR(VLOOKUP($A122,Filtro.12!$A$4:$AL$2956,10,FALSE),0) -> 0 | M122: =IFERROR(VLOOKUP($A122,Filtro.12!$A$4:$AL$2956,11,FALSE),0) -> 0 | N122: =IFERROR(VLOOKUP($A122,Filtro.12!$A$4:$AL$2956,12,FALSE),0) -> 0 | O122: =IFERROR(VLOOKUP($A122,Filtro.12!$A$4:$AL$2956,13,FALSE),0) -> 0 | P122: =IFERROR(VLOOKUP($A122,Filtro.12!$A$4:$AL$2956,14,FALSE),0) -> 8008 | Q122: =IFERROR(VLOOKUP($A122,Filtro.12!$A$4:$AL$2956,15,FALSE),0) -> 3778 | R122: =IFERROR(VLOOKUP($A122,Filtro.12!$A$4:$AL$2956,16,FALSE),0) -> 46369 | T122: =IFERROR(VLOOKUP($A122,Filtro.12!$A$4:$AL$2956,18,FALSE),0) -> 2,822,762,080
A123: 17010200 | B123: II | C123: BIOQUIMICOS | D123: =IFERROR(VLOOKUP($A123,Filtro.12!$A$4:$AL$2956,2,FALSE),0) -> 2447160 | E123: =IFERROR(VLOOKUP($A123,Filtro.12!$A$4:$AL$2956,3,FALSE),0) -> 2415103 | F123: =IFERROR(VLOOKUP($A123,Filtro.12!$A$4:$AL$2956,4,FALSE),0) -> 2,394,340 | G123: =IFERROR(VLOOKUP($A123,Filtro.12!$A$4:$AL$2956,5,FALSE),0) -> 20763 | H123: =IFERROR(VLOOKUP($A123,Filtro.12!$A$4:$AL$2956,6,FALSE),0) -> 32057 | I123: =IFERROR(VLOOKUP($A123,Filtro.12!$A$4:$AL$2956,7,FALSE),0) -> 802527 | J123: =IFERROR(VLOOKUP($A123,Filtro.12!$A$4:$AL$2956,8,FALSE),0) -> 965385 | K123: =IFERROR(VLOOKUP($A123,Filtro.12!$A$4:$AL$2956,9,FALSE),0) -> 676861 | L123: =IFERROR(VLOOKUP($A123,Filtro.12!$A$4:$AL$2956,10,FALSE),0) -> 0 | M123: =IFERROR(VLOOKUP($A123,Filtro.12!$A$4:$AL$2956,11,FALSE),0) -> 0 | N123: =IFERROR(VLOOKUP($A123,Filtro.12!$A$4:$AL$2956,12,FALSE),0) -> 0 | O123: =IFERROR(VLOOKUP($A123,Filtro.12!$A$4:$AL$2956,13,FALSE),0) -> 0 | P123: =IFERROR(VLOOKUP($A123,Filtro.12!$A$4:$AL$2956,14,FALSE),0) -> 15367 | Q123: =IFERROR(VLOOKUP($A123,Filtro.12!$A$4:$AL$2956,15,FALSE),0) -> 1292 | R123: =IFERROR(VLOOKUP($A123,Filtro.12!$A$4:$AL$2956,16,FALSE),0) -> 78146 | T123: =IFERROR(VLOOKUP($A123,Filtro.12!$A$4:$AL$2956,18,FALSE),0) -> 7,696,553,510
A124: 17010300 | B124: III | C124: HORMONALES | D124: =IFERROR(VLOOKUP($A124,Filtro.12!$A$4:$AL$2956,2,FALSE),0) -> 234511 | E124: =IFERROR(VLOOKUP($A124,Filtro.12!$A$4:$AL$2956,3,FALSE),0) -> 233114 | F124: =IFERROR(VLOOKUP($A124,Filtro.12!$A$4:$AL$2956,4,FALSE),0) -> 227,990 | G124: =IFERROR(VLOOKUP($A124,Filtro.12!$A$4:$AL$2956,5,FALSE),0) -> 5124 | H124: =IFERROR(VLOOKUP($A124,Filtro.12!$A$4:$AL$2956,6,FALSE),0) -> 1397 | I124: =IFERROR(VLOOKUP($A124,Filtro.12!$A$4:$AL$2956,7,FALSE),0) -> 22853 | J124: =IFERROR(VLOOKUP($A124,Filtro.12!$A$4:$AL$2956,8,FALSE),0) -> 204150 | K124: =IFERROR(VLOOKUP($A124,Filtro.12!$A$4:$AL$2956,9,FALSE),0) -> 7453 | L124: =IFERROR(VLOOKUP($A124,Filtro.12!$A$4:$AL$2956,10,FALSE),0) -> 0 | M124: =IFERROR(VLOOKUP($A124,Filtro.12!$A$4:$AL$2956,11,FALSE),0) -> 0 | N124: =IFERROR(VLOOKUP($A124,Filtro.12!$A$4:$AL$2956,12,FALSE),0) -> 0 | O124: =IFERROR(VLOOKUP($A124,Filtro.12!$A$4:$AL$2956,13,FALSE),0) -> 0 | P124: =IFERROR(VLOOKUP($A124,Filtro.12!$A$4:$AL$2956,14,FALSE),0) -> 17102 | Q124: =IFERROR(VLOOKUP($A124,Filtro.12!$A$4:$AL$2956,15,FALSE),0) -> 382 | R124: =IFERROR(VLOOKUP($A124,Filtro.12!$A$4:$AL$2956,16,FALSE),0) -> 16298 | T124: =IFERROR(VLOOKUP($A124,Filtro.12!$A$4:$AL$2956,18,FALSE),0) -> 1,453,330,750
A125: 17010400 | B125: IV | C125: GENETICA | D125: =IFERROR(VLOOKUP($A125,Filtro.12!$A$4:$AL$2956,2,FALSE),0) -> 0 | E125: =IFERROR(VLOOKUP($A125,Filtro.12!$A$4:$AL$2956,3,FALSE),0) -> 0 | F125: =IFERROR(VLOOKUP($A125,Filtro.12!$A$4:$AL$2956,4,FALSE),0) -> 0 | G125: =IFERROR(VLOOKUP($A125,Filtro.12!$A$4:$AL$2956,5,FALSE),0) -> 0 | H125: =IFERROR(VLOOKUP($A125,Filtro.12!$A$4:$AL$2956,6,FALSE),0) -> 0 | I125: =IFERROR(VLOOKUP($A125,Filtro.12!$A$4:$AL$2956,7,FALSE),0) -> 0 | J125: =IFERROR(VLOOKUP($A125,Filtro.12!$A$4:$AL$2956,8,FALSE),0) -> 0 | K125: =IFERROR(VLOOKUP($A125,Filtro.12!$A$4:$AL$2956,9,FALSE),0) -> 0 | L125: =IFERROR(VLOOKUP($A125,Filtro.12!$A$4:$AL$2956,10,FALSE),0) -> 0 | M125: =IFERROR(VLOOKUP($A125,Filtro.12!$A$4:$AL$2956,11,FALSE),0) -> 0 | N125: =IFERROR(VLOOKUP($A125,Filtro.12!$A$4:$AL$2956,12,FALSE),0) -> 0 | O125: =IFERROR(VLOOKUP($A125,Filtro.12!$A$4:$AL$2956,13,FALSE),0) -> 0 | P125: =IFERROR(VLOOKUP($A125,Filtro.12!$A$4:$AL$2956,14,FALSE),0) -> 0 | Q125: =IFERROR(VLOOKUP($A125,Filtro.12!$A$4:$AL$2956,15,FALSE),0) -> 148 | R125: =IFERROR(VLOOKUP($A125,Filtro.12!$A$4:$AL$2956,16,FALSE),0) -> 0 | S125: =IFERROR(VLOOKUP($A125,Filtro.12!$A$4:$AL$2956,17,FALSE),0) -> 0 | T125: =IFERROR(VLOOKUP($A125,Filtro.12!$A$4:$AL$2956,18,FALSE),0) -> 0
A126: 17010500 | B126: V | C126: INMUNOLOGICOS | D126: =IFERROR(VLOOKUP($A126,Filtro.12!$A$4:$AL$2956,2,FALSE),0) -> 228719 | E126: =IFERROR(VLOOKUP($A126,Filtro.12!$A$4:$AL$2956,3,FALSE),0) -> 225585 | F126: =IFERROR(VLOOKUP($A126,Filtro.12!$A$4:$AL$2956,4,FALSE),0) -> 222,272 | G126: =IFERROR(VLOOKUP($A126,Filtro.12!$A$4:$AL$2956,5,FALSE),0) -> 3313 | H126: =IFERROR(VLOOKUP($A126,Filtro.12!$A$4:$AL$2956,6,FALSE),0) -> 3134 | I126: =IFERROR(VLOOKUP($A126,Filtro.12!$A$4:$AL$2956,7,FALSE),0) -> 70990 | J126: =IFERROR(VLOOKUP($A126,Filtro.12!$A$4:$AL$2956,8,FALSE),0) -> 85236 | K126: =IFERROR(VLOOKUP($A126,Filtro.12!$A$4:$AL$2956,9,FALSE),0) -> 72514 | L126: =IFERROR(VLOOKUP($A126,Filtro.12!$A$4:$AL$2956,10,FALSE),0) -> 0 | M126: =IFERROR(VLOOKUP($A126,Filtro.12!$A$4:$AL$2956,11,FALSE),0) -> 0 | N126: =IFERROR(VLOOKUP($A126,Filtro.12!$A$4:$AL$2956,12,FALSE),0) -> 0 | O126: =IFERROR(VLOOKUP($A126,Filtro.12!$A$4:$AL$2956,13,FALSE),0) -> 0 | P126: =IFERROR(VLOOKUP($A126,Filtro.12!$A$4:$AL$2956,14,FALSE),0) -> 17882 | Q126: =IFERROR(VLOOKUP($A126,Filtro.12!$A$4:$AL$2956,15,FALSE),0) -> 3934 | R126: =IFERROR(VLOOKUP($A126,Filtro.12!$A$4:$AL$2956,16,FALSE),0) -> 1742 | T126: =IFERROR(VLOOKUP($A126,Filtro.12!$A$4:$AL$2956,18,FALSE),0) -> 1,518,237,490
B127: VI | C127: MICROBIOLOGICOS | D127: =SUM(D128:D130) -> 279285 | E127: 276697 | F127: 270134 | G127: 6563 | H127: 2588 | I127: 61478 | J127: 148140 | K127: 68771 | L127: 0 | M127: 0 | N127: 0 | O127: 0 | P127: 3448 | Q127: 10591 | R127: 6948 | S127: 0 | T127: =SUM(T128:T130) -> 2,967,582,830
A128: 17010601 | C128: a) BACTERIAS Y HONGOS | D128: =IFERROR(VLOOKUP($A128,Filtro.12!$A$4:$AL$2956,2,FALSE),0) -> 157093 | E128: =IFERROR(VLOOKUP($A128,Filtro.12!$A$4:$AL$2956,3,FALSE),0) -> 155256 | F128: =IFERROR(VLOOKUP($A128,Filtro.12!$A$4:$AL$2956,4,FALSE),0) -> 153719 | G128: =IFERROR(VLOOKUP($A128,Filtro.12!$A$4:$AL$2956,5,FALSE),0) -> 1537 | H128: =IFERROR(VLOOKUP($A128,Filtro.12!$A$4:$AL$2956,6,FALSE),0) -> 1837 | I128: =IFERROR(VLOOKUP($A128,Filtro.12!$A$4:$AL$2956,7,FALSE),0) -> 46838 | J128: =IFERROR(VLOOKUP($A128,Filtro.12!$A$4:$AL$2956,8,FALSE),0) -> 64360 | K128: =IFERROR(VLOOKUP($A128,Filtro.12!$A$4:$AL$2956,9,FALSE),0) -> 44893 | L128: =IFERROR(VLOOKUP($A128,Filtro.12!$A$4:$AL$2956,10,FALSE),0) -> 0 | M128: =IFERROR(VLOOKUP($A128,Filtro.12!$A$4:$AL$2956,11,FALSE),0) -> 0 | N128: =IFERROR(VLOOKUP($A128,Filtro.12!$A$4:$AL$2956,12,FALSE),0) -> 0 | O128: =IFERROR(VLOOKUP($A128,Filtro.12!$A$4:$AL$2956,13,FALSE),0) -> 0 | P128: =IFERROR(VLOOKUP($A128,Filtro.12!$A$4:$AL$2956,14,FALSE),0) -> 258 | Q128: =IFERROR(VLOOKUP($A128,Filtro.12!$A$4:$AL$2956,15,FALSE),0) -> 9425 | R128: =IFERROR(VLOOKUP($A128,Filtro.12!$A$4:$AL$2956,16,FALSE),0) -> 5439 | T128: =IFERROR(VLOOKUP($A128,Filtro.12!$A$4:$AL$2956,18,FALSE),0) -> 875,727,130
A129: 17010602 | C129: b) PARASITOS | D129: =IFERROR(VLOOKUP($A129,Filtro.12!$A$4:$AL$2956,2,FALSE),0) -> 36102 | E129: =IFERROR(VLOOKUP($A129,Filtro.12!$A$4:$AL$2956,3,FALSE),0) -> 36036 | F129: =IFERROR(VLOOKUP($A129,Filtro.12!$A$4:$AL$2956,4,FALSE),0) -> 33225 | G129: =IFERROR(VLOOKUP($A129,Filtro.12!$A$4:$AL$2956,5,FALSE),0) -> 2811 | H129: =IFERROR(VLOOKUP($A129,Filtro.12!$A$4:$AL$2956,6,FALSE),0) -> 66 | I129: =IFERROR(VLOOKUP($A129,Filtro.12!$A$4:$AL$2956,7,FALSE),0) -> 1637 | J129: =IFERROR(VLOOKUP($A129,Filtro.12!$A$4:$AL$2956,8,FALSE),0) -> 33906 | K129: =IFERROR(VLOOKUP($A129,Filtro.12!$A$4:$AL$2956,9,FALSE),0) -> 530 | L129: =IFERROR(VLOOKUP($A129,Filtro.12!$A$4:$AL$2956,10,FALSE),0) -> 0 | M129: =IFERROR(VLOOKUP($A129,Filtro.12!$A$4:$AL$2956,11,FALSE),0) -> 0 | N129: =IFERROR(VLOOKUP($A129,Filtro.12!$A$4:$AL$2956,12,FALSE),0) -> 0 | O129: =IFERROR(VLOOKUP($A129,Filtro.12!$A$4:$AL$2956,13,FALSE),0) -> 0 | P129: =IFERROR(VLOOKUP($A129,Filtro.12!$A$4:$AL$2956,14,FALSE),0) -> 399 | Q129: =IFERROR(VLOOKUP($A129,Filtro.12!$A$4:$AL$2956,15,FALSE),0) -> 666 | R129: =IFERROR(VLOOKUP($A129,Filtro.12!$A$4:$AL$2956,16,FALSE),0) -> 1233 | T129: =IFERROR(VLOOKUP($A129,Filtro.12!$A$4:$AL$2956,18,FALSE),0) -> 182,484,960
A130: 17010603 | C130: c) VIRUS | D130: =IFERROR(VLOOKUP($A130,Filtro.12!$A$4:$AL$2956,2,FALSE),0) -> 86090 | E130: =IFERROR(VLOOKUP($A130,Filtro.12!$A$4:$AL$2956,3,FALSE),0) -> 85405 | F130: =IFERROR(VLOOKUP($A130,Filtro.12!$A$4:$AL$2956,4,FALSE),0) -> 83190 | G130: =IFERROR(VLOOKUP($A130,Filtro.12!$A$4:$AL$2956,5,FALSE),0) -> 2215 | H130: =IFERROR(VLOOKUP($A130,Filtro.12!$A$4:$AL$2956,6,FALSE),0) -> 685 | I130: =IFERROR(VLOOKUP($A130,Filtro.12!$A$4:$AL$2956,7,FALSE),0) -> 13003 | J130: =IFERROR(VLOOKUP($A130,Filtro.12!$A$4:$AL$2956,8,FALSE),0) -> 49874 | K130: =IFERROR(VLOOKUP($A130,Filtro.12!$A$4:$AL$2956,9,FALSE),0) -> 23348 | L130: =IFERROR(VLOOKUP($A130,Filtro.12!$A$4:$AL$2956,10,FALSE),0) -> 0 | M130: =IFERROR(VLOOKUP($A130,Filtro.12!$A$4:$AL$2956,11,FALSE),0) -> 0 | N130: =IFERROR(VLOOKUP($A130,Filtro.12!$A$4:$AL$2956,12,FALSE),0) -> 0 | O130: =IFERROR(VLOOKUP($A130,Filtro.12!$A$4:$AL$2956,13,FALSE),0) -> 0 | P130: =IFERROR(VLOOKUP($A130,Filtro.12!$A$4:$AL$2956,14,FALSE),0) -> 2791 | Q130: =IFERROR(VLOOKUP($A130,Filtro.12!$A$4:$AL$2956,15,FALSE),0) -> 500 | R130: =IFERROR(VLOOKUP($A130,Filtro.12!$A$4:$AL$2956,16,FALSE),0) -> 276 | T130: =IFERROR(VLOOKUP($A130,Filtro.12!$A$4:$AL$2956,18,FALSE),0) -> 1,909,370,740
A131: 17010700 | B131: VII | C131: PROCEDIMIENTO O DETERMINACION DIRECTA C/PACIENTE | D131: =IFERROR(VLOOKUP($A131,Filtro.12!$A$4:$AL$2956,2,FALSE),0) -> 15012 | E131: =IFERROR(VLOOKUP($A131,Filtro.12!$A$4:$AL$2956,3,FALSE),0) -> 15012 | F131: =IFERROR(VLOOKUP($A131,Filtro.12!$A$4:$AL$2956,4,FALSE),0) -> 15012 | G131: =IFERROR(VLOOKUP($A131,Filtro.12!$A$4:$AL$2956,5,FALSE),0) -> 0 | H131: =IFERROR(VLOOKUP($A131,Filtro.12!$A$4:$AL$2956,6,FALSE),0) -> 0 | I131: =IFERROR(VLOOKUP($A131,Filtro.12!$A$4:$AL$2956,7,FALSE),0) -> 13669 | J131: =IFERROR(VLOOKUP($A131,Filtro.12!$A$4:$AL$2956,8,FALSE),0) -> 529 | K131: =IFERROR(VLOOKUP($A131,Filtro.12!$A$4:$AL$2956,9,FALSE),0) -> 777 | L131: =IFERROR(VLOOKUP($A131,Filtro.12!$A$4:$AL$2956,10,FALSE),0) -> 0 | M131: =IFERROR(VLOOKUP($A131,Filtro.12!$A$4:$AL$2956,11,FALSE),0) -> 0 | N131: =IFERROR(VLOOKUP($A131,Filtro.12!$A$4:$AL$2956,12,FALSE),0) -> 0 | O131: =IFERROR(VLOOKUP($A131,Filtro.12!$A$4:$AL$2956,13,FALSE),0) -> 0 | P131: =IFERROR(VLOOKUP($A131,Filtro.12!$A$4:$AL$2956,14,FALSE),0) -> 0 | Q131: =IFERROR(VLOOKUP($A131,Filtro.12!$A$4:$AL$2956,15,FALSE),0) -> 0 | R131: =IFERROR(VLOOKUP($A131,Filtro.12!$A$4:$AL$2956,16,FALSE),0) -> 0 | T131: =IFERROR(VLOOKUP($A131,Filtro.12!$A$4:$AL$2956,18,FALSE),0) -> 41,025,840
A132: 17010800 | B132: VIII | C132: EX. DE DEPOSICIONES EXUDADOS. SECREC. Y OTROS LIQ. | D132: =IFERROR(VLOOKUP($A132,Filtro.12!$A$4:$AL$2956,2,FALSE),0) -> 12999 | E132: =IFERROR(VLOOKUP($A132,Filtro.12!$A$4:$AL$2956,3,FALSE),0) -> 12815 | F132: =IFERROR(VLOOKUP($A132,Filtro.12!$A$4:$AL$2956,4,FALSE),0) -> 12722 | G132: =IFERROR(VLOOKUP($A132,Filtro.12!$A$4:$AL$2956,5,FALSE),0) -> 93 | H132: =IFERROR(VLOOKUP($A132,Filtro.12!$A$4:$AL$2956,6,FALSE),0) -> 184 | I132: =IFERROR(VLOOKUP($A132,Filtro.12!$A$4:$AL$2956,7,FALSE),0) -> 5402 | J132: =IFERROR(VLOOKUP($A132,Filtro.12!$A$4:$AL$2956,8,FALSE),0) -> 4546 | K132: =IFERROR(VLOOKUP($A132,Filtro.12!$A$4:$AL$2956,9,FALSE),0) -> 3064 | L132: =IFERROR(VLOOKUP($A132,Filtro.12!$A$4:$AL$2956,10,FALSE),0) -> 0 | M132: =IFERROR(VLOOKUP($A132,Filtro.12!$A$4:$AL$2956,11,FALSE),0) -> 0 | N132: =IFERROR(VLOOKUP($A132,Filtro.12!$A$4:$AL$2956,12,FALSE),0) -> 0 | O132: =IFERROR(VLOOKUP($A132,Filtro.12!$A$4:$AL$2956,13,FALSE),0) -> 0 | P132: =IFERROR(VLOOKUP($A132,Filtro.12!$A$4:$AL$2956,14,FALSE),0) -> 427 | Q132: =IFERROR(VLOOKUP($A132,Filtro.12!$A$4:$AL$2956,15,FALSE),0) -> 777 | R132: =IFERROR(VLOOKUP($A132,Filtro.12!$A$4:$AL$2956,16,FALSE),0) -> 166 | T132: =IFERROR(VLOOKUP($A132,Filtro.12!$A$4:$AL$2956,18,FALSE),0) -> 29,812,060
A133: 17010900 | B133: IX | C133: ORINA | D133: =IFERROR(VLOOKUP($A133,Filtro.12!$A$4:$AL$2956,2,FALSE),0) -> 246726 | E133: =IFERROR(VLOOKUP($A133,Filtro.12!$A$4:$AL$2956,3,FALSE),0) -> 245088 | F133: =IFERROR(VLOOKUP($A133,Filtro.12!$A$4:$AL$2956,4,FALSE),0) -> 241068 | G133: =IFERROR(VLOOKUP($A133,Filtro.12!$A$4:$AL$2956,5,FALSE),0) -> 4020 | H133: =IFERROR(VLOOKUP($A133,Filtro.12!$A$4:$AL$2956,6,FALSE),0) -> 1638 | I133: =IFERROR(VLOOKUP($A133,Filtro.12!$A$4:$AL$2956,7,FALSE),0) -> 19972 | J133: =IFERROR(VLOOKUP($A133,Filtro.12!$A$4:$AL$2956,8,FALSE),0) -> 181314 | K133: =IFERROR(VLOOKUP($A133,Filtro.12!$A$4:$AL$2956,9,FALSE),0) -> 45426 | L133: =IFERROR(VLOOKUP($A133,Filtro.12!$A$4:$AL$2956,10,FALSE),0) -> 0 | M133: =IFERROR(VLOOKUP($A133,Filtro.12!$A$4:$AL$2956,11,FALSE),0) -> 0 | N133: =IFERROR(VLOOKUP($A133,Filtro.12!$A$4:$AL$2956,12,FALSE),0) -> 0 | O133: =IFERROR(VLOOKUP($A133,Filtro.12!$A$4:$AL$2956,13,FALSE),0) -> 0 | P133: =IFERROR(VLOOKUP($A133,Filtro.12!$A$4:$AL$2956,14,FALSE),0) -> 1496 | Q133: =IFERROR(VLOOKUP($A133,Filtro.12!$A$4:$AL$2956,15,FALSE),0) -> 188 | R133: =IFERROR(VLOOKUP($A133,Filtro.12!$A$4:$AL$2956,16,FALSE),0) -> 35138 | T133: =IFERROR(VLOOKUP($A133,Filtro.12!$A$4:$AL$2956,18,FALSE),0) -> 495,149,590
B134: TOTAL EXAMENES IMAGENOLOGIA | D134: =+D135+D136+D137+D138+D142+D143 -> 426303 | E134: 422264 | F134: 338772 | G134: 1138 | H134: 3605 | I134: 43382 | J134: 119654 | K134: 179834 | L134: 105 | M134: 0 | N134: 125 | O134: 0 | P134: 0 | Q134: 1262 | R134: 14 | S134: =+S135+S136+S137 -> 0 | T134: =+T135+T136+T137+T138+T142 -> 10,653,029,720
A135: 17011001 | B135: I. a) | C135: EX. RADIOLOGICOS SIMPLES | D135: =IFERROR(VLOOKUP($A135,Filtro.12!$A$4:$AL$2956,2,FALSE),0) -> 249984 | E135: =IFERROR(VLOOKUP($A135,Filtro.12!$A$4:$AL$2956,3,FALSE),0) -> 247297 | F135: =IFERROR(VLOOKUP($A135,Filtro.12!$A$4:$AL$2956,4,FALSE),0) -> 246244 | G135: =IFERROR(VLOOKUP($A135,Filtro.12!$A$4:$AL$2956,5,FALSE),0) -> 1053 | H135: =IFERROR(VLOOKUP($A135,Filtro.12!$A$4:$AL$2956,6,FALSE),0) -> 2687 | I135: =IFERROR(VLOOKUP($A135,Filtro.12!$A$4:$AL$2956,7,FALSE),0) -> 25194 | J135: =IFERROR(VLOOKUP($A135,Filtro.12!$A$4:$AL$2956,8,FALSE),0) -> 89117 | K135: =IFERROR(VLOOKUP($A135,Filtro.12!$A$4:$AL$2956,9,FALSE),0) -> 135080 | L135: =IFERROR(VLOOKUP($A135,Filtro.12!$A$4:$AL$2956,10,FALSE),0) -> 76 | M135: =IFERROR(VLOOKUP($A135,Filtro.12!$A$4:$AL$2956,11,FALSE),0) -> 0 | N135: =IFERROR(VLOOKUP($A135,Filtro.12!$A$4:$AL$2956,12,FALSE),0) -> 120 | O135: =IFERROR(VLOOKUP($A135,Filtro.12!$A$4:$AL$2956,13,FALSE),0) -> 0 | P135: =IFERROR(VLOOKUP($A135,Filtro.12!$A$4:$AL$2956,14,FALSE),0) -> 0 | Q135: =IFERROR(VLOOKUP($A135,Filtro.12!$A$4:$AL$2956,15,FALSE),0) -> 372 | R135: =IFERROR(VLOOKUP($A135,Filtro.12!$A$4:$AL$2956,16,FALSE),0) -> 14 | S135: =IFERROR(VLOOKUP($A135,Filtro.12!$A$4:$AL$2956,17,FALSE),0) -> 0 | T135: =IFERROR(VLOOKUP($A135,Filtro.12!$A$4:$AL$2956,18,FALSE),0) -> 2,743,572,210
A136: 17011002 | B136: I. b) | C136: EX. RADIOLOGICOS COMPLEJOS | D136: =IFERROR(VLOOKUP($A136,Filtro.12!$A$4:$AL$2956,2,FALSE),0) -> 452 | E136: =IFERROR(VLOOKUP($A136,Filtro.12!$A$4:$AL$2956,3,FALSE),0) -> 449 | F136: =IFERROR(VLOOKUP($A136,Filtro.12!$A$4:$AL$2956,4,FALSE),0) -> 449 | G136: =IFERROR(VLOOKUP($A136,Filtro.12!$A$4:$AL$2956,5,FALSE),0) -> 0 | H136: =IFERROR(VLOOKUP($A136,Filtro.12!$A$4:$AL$2956,6,FALSE),0) -> 3 | I136: =IFERROR(VLOOKUP($A136,Filtro.12!$A$4:$AL$2956,7,FALSE),0) -> 247 | J136: =IFERROR(VLOOKUP($A136,Filtro.12!$A$4:$AL$2956,8,FALSE),0) -> 199 | K136: =IFERROR(VLOOKUP($A136,Filtro.12!$A$4:$AL$2956,9,FALSE),0) -> 6 | L136: =IFERROR(VLOOKUP($A136,Filtro.12!$A$4:$AL$2956,10,FALSE),0) -> 29 | M136: =IFERROR(VLOOKUP($A136,Filtro.12!$A$4:$AL$2956,11,FALSE),0) -> 0 | N136: =IFERROR(VLOOKUP($A136,Filtro.12!$A$4:$AL$2956,12,FALSE),0) -> 5 | O136: =IFERROR(VLOOKUP($A136,Filtro.12!$A$4:$AL$2956,13,FALSE),0) -> 0 | P136: =IFERROR(VLOOKUP($A136,Filtro.12!$A$4:$AL$2956,14,FALSE),0) -> 0 | Q136: =IFERROR(VLOOKUP($A136,Filtro.12!$A$4:$AL$2956,15,FALSE),0) -> 0 | R136: =IFERROR(VLOOKUP($A136,Filtro.12!$A$4:$AL$2956,16,FALSE),0) -> 0 | S136: =IFERROR(VLOOKUP($A136,Filtro.12!$A$4:$AL$2956,17,FALSE),0) -> 0 | T136: =IFERROR(VLOOKUP($A136,Filtro.12!$A$4:$AL$2956,18,FALSE),0) -> 24,244,600
A137: 17011003 | B137: II. | C137: TOMOGRAFIA AXIAL COMP. | D137: =IFERROR(VLOOKUP($A137,Filtro.12!$A$4:$AL$2956,2,FALSE),0) -> 84182 | E137: =IFERROR(VLOOKUP($A137,Filtro.12!$A$4:$AL$2956,3,FALSE),0) -> 83267 | F137: =IFERROR(VLOOKUP($A137,Filtro.12!$A$4:$AL$2956,4,FALSE),0) -> 83182 | G137: =IFERROR(VLOOKUP($A137,Filtro.12!$A$4:$AL$2956,5,FALSE),0) -> 85 | H137: =IFERROR(VLOOKUP($A137,Filtro.12!$A$4:$AL$2956,6,FALSE),0) -> 915 | I137: =IFERROR(VLOOKUP($A137,Filtro.12!$A$4:$AL$2956,7,FALSE),0) -> 15629 | J137: =IFERROR(VLOOKUP($A137,Filtro.12!$A$4:$AL$2956,8,FALSE),0) -> 24170 | K137: =IFERROR(VLOOKUP($A137,Filtro.12!$A$4:$AL$2956,9,FALSE),0) -> 44334 | L137: =IFERROR(VLOOKUP($A137,Filtro.12!$A$4:$AL$2956,10,FALSE),0) -> 0 | M137: =IFERROR(VLOOKUP($A137,Filtro.12!$A$4:$AL$2956,11,FALSE),0) -> 0 | N137: =IFERROR(VLOOKUP($A137,Filtro.12!$A$4:$AL$2956,12,FALSE),0) -> 0 | O137: =IFERROR(VLOOKUP($A137,Filtro.12!$A$4:$AL$2956,13,FALSE),0) -> 0 | P137: =IFERROR(VLOOKUP($A137,Filtro.12!$A$4:$AL$2956,14,FALSE),0) -> 0 | Q137: =IFERROR(VLOOKUP($A137,Filtro.12!$A$4:$AL$2956,15,FALSE),0) -> 24 | R137: =IFERROR(VLOOKUP($A137,Filtro.12!$A$4:$AL$2956,16,FALSE),0) -> 0 | S137: =IFERROR(VLOOKUP($A137,Filtro.12!$A$4:$AL$2956,17,FALSE),0) -> 0 | T137: =IFERROR(VLOOKUP($A137,Filtro.12!$A$4:$AL$2956,18,FALSE),0) -> 6,321,323,060
B138: III | C138: ULTRASONOGRAFIA | D138: =SUM(D139:D141) -> 82788 | E138: 82354 | F138: =IFERROR(VLOOKUP($A138,Filtro.12!$A$4:$AL$2956,4,FALSE),0) -> 0 | G138: =IFERROR(VLOOKUP($A138,Filtro.12!$A$4:$AL$2956,5,FALSE),0) -> 0 | H138: =IFERROR(VLOOKUP($A138,Filtro.12!$A$4:$AL$2956,6,FALSE),0) -> 0 | I138: =IFERROR(VLOOKUP($A138,Filtro.12!$A$4:$AL$2956,7,FALSE),0) -> 0 | J138: =IFERROR(VLOOKUP($A138,Filtro.12!$A$4:$AL$2956,8,FALSE),0) -> 0 | K138: =IFERROR(VLOOKUP($A138,Filtro.12!$A$4:$AL$2956,9,FALSE),0) -> 0 | L138: =IFERROR(VLOOKUP($A138,Filtro.12!$A$4:$AL$2956,10,FALSE),0) -> 0 | M138: =IFERROR(VLOOKUP($A138,Filtro.12!$A$4:$AL$2956,11,FALSE),0) -> 0 | N138: =IFERROR(VLOOKUP($A138,Filtro.12!$A$4:$AL$2956,12,FALSE),0) -> 0 | O138: =IFERROR(VLOOKUP($A138,Filtro.12!$A$4:$AL$2956,13,FALSE),0) -> 0 | P138: =IFERROR(VLOOKUP($A138,Filtro.12!$A$4:$AL$2956,14,FALSE),0) -> 0 | Q138: =IFERROR(VLOOKUP($A138,Filtro.12!$A$4:$AL$2956,15,FALSE),0) -> 0 | R138: =IFERROR(VLOOKUP($A138,Filtro.12!$A$4:$AL$2956,16,FALSE),0) -> 0 | S138: =IFERROR(VLOOKUP($A138,Filtro.12!$A$4:$AL$2956,17,FALSE),0) -> 0 | T138: =IFERROR(VLOOKUP($A138,Filtro.12!$A$4:$AL$2956,18,FALSE),0) -> 0
A139: 17011004 | C139: Ecotomografias ( Sin Ecografía Obstetr. Y Abdominal ) | D139: =IFERROR(VLOOKUP($A139,Filtro.12!$A$4:$AL$2956,2,FALSE),0) -> 60290 | E139: =IFERROR(VLOOKUP($A139,Filtro.12!$A$4:$AL$2956,3,FALSE),0) -> 59955 | F139: =IFERROR(VLOOKUP($A139,Filtro.12!$A$4:$AL$2956,4,FALSE),0) -> 59936 | G139: =IFERROR(VLOOKUP($A139,Filtro.12!$A$4:$AL$2956,5,FALSE),0) -> 19 | H139: =IFERROR(VLOOKUP($A139,Filtro.12!$A$4:$AL$2956,6,FALSE),0) -> 335 | I139: =IFERROR(VLOOKUP($A139,Filtro.12!$A$4:$AL$2956,7,FALSE),0) -> 6918 | J139: =IFERROR(VLOOKUP($A139,Filtro.12!$A$4:$AL$2956,8,FALSE),0) -> 42495 | K139: =IFERROR(VLOOKUP($A139,Filtro.12!$A$4:$AL$2956,9,FALSE),0) -> 10952 | L139: =IFERROR(VLOOKUP($A139,Filtro.12!$A$4:$AL$2956,10,FALSE),0) -> 1372 | M139: =IFERROR(VLOOKUP($A139,Filtro.12!$A$4:$AL$2956,11,FALSE),0) -> 0 | N139: =IFERROR(VLOOKUP($A139,Filtro.12!$A$4:$AL$2956,12,FALSE),0) -> 38 | O139: =IFERROR(VLOOKUP($A139,Filtro.12!$A$4:$AL$2956,13,FALSE),0) -> 0 | P139: =IFERROR(VLOOKUP($A139,Filtro.12!$A$4:$AL$2956,14,FALSE),0) -> 0 | Q139: =IFERROR(VLOOKUP($A139,Filtro.12!$A$4:$AL$2956,15,FALSE),0) -> 355 | R139: =IFERROR(VLOOKUP($A139,Filtro.12!$A$4:$AL$2956,16,FALSE),0) -> 0 | S139: =IFERROR(VLOOKUP($A139,Filtro.12!$A$4:$AL$2956,17,FALSE),0) -> 0 | T139: =IFERROR(VLOOKUP($A139,Filtro.12!$A$4:$AL$2956,18,FALSE),0) -> 1,203,736,300
A140: 17011005 | C140: Ecografías Obstétricas | D140: =IFERROR(VLOOKUP($A140,Filtro.12!$A$4:$AL$2956,2,FALSE),0) -> 13810 | E140: =IFERROR(VLOOKUP($A140,Filtro.12!$A$4:$AL$2956,3,FALSE),0) -> 13737 | F140: =IFERROR(VLOOKUP($A140,Filtro.12!$A$4:$AL$2956,4,FALSE),0) -> 13737 | G140: =IFERROR(VLOOKUP($A140,Filtro.12!$A$4:$AL$2956,5,FALSE),0) -> 0 | H140: =IFERROR(VLOOKUP($A140,Filtro.12!$A$4:$AL$2956,6,FALSE),0) -> 73 | I140: =IFERROR(VLOOKUP($A140,Filtro.12!$A$4:$AL$2956,7,FALSE),0) -> 799 | J140: =IFERROR(VLOOKUP($A140,Filtro.12!$A$4:$AL$2956,8,FALSE),0) -> 7537 | K140: =IFERROR(VLOOKUP($A140,Filtro.12!$A$4:$AL$2956,9,FALSE),0) -> 5473 | L140: =IFERROR(VLOOKUP($A140,Filtro.12!$A$4:$AL$2956,10,FALSE),0) -> 0 | M140: =IFERROR(VLOOKUP($A140,Filtro.12!$A$4:$AL$2956,11,FALSE),0) -> 0 | N140: =IFERROR(VLOOKUP($A140,Filtro.12!$A$4:$AL$2956,12,FALSE),0) -> 0 | O140: =IFERROR(VLOOKUP($A140,Filtro.12!$A$4:$AL$2956,13,FALSE),0) -> 0 | P140: =IFERROR(VLOOKUP($A140,Filtro.12!$A$4:$AL$2956,14,FALSE),0) -> 0 | Q140: =IFERROR(VLOOKUP($A140,Filtro.12!$A$4:$AL$2956,15,FALSE),0) -> 0 | R140: =IFERROR(VLOOKUP($A140,Filtro.12!$A$4:$AL$2956,16,FALSE),0) -> 0 | S140: =IFERROR(VLOOKUP($A140,Filtro.12!$A$4:$AL$2956,17,FALSE),0) -> 0 | T140: =IFERROR(VLOOKUP($A140,Filtro.12!$A$4:$AL$2956,18,FALSE),0) -> 94,647,930
A141: 17181000 | C141: Ecotomografias abdominal | D141: =IFERROR(VLOOKUP($A141,Filtro.12!$A$4:$AL$2956,2,FALSE),0) -> 8688 | E141: =IFERROR(VLOOKUP($A141,Filtro.12!$A$4:$AL$2956,3,FALSE),0) -> 8662 | F141: =IFERROR(VLOOKUP($A141,Filtro.12!$A$4:$AL$2956,4,FALSE),0) -> 8658 | G141: =IFERROR(VLOOKUP($A141,Filtro.12!$A$4:$AL$2956,5,FALSE),0) -> 4 | H141: =IFERROR(VLOOKUP($A141,Filtro.12!$A$4:$AL$2956,6,FALSE),0) -> 26 | I141: =IFERROR(VLOOKUP($A141,Filtro.12!$A$4:$AL$2956,7,FALSE),0) -> 1639 | J141: =IFERROR(VLOOKUP($A141,Filtro.12!$A$4:$AL$2956,8,FALSE),0) -> 5077 | K141: =IFERROR(VLOOKUP($A141,Filtro.12!$A$4:$AL$2956,9,FALSE),0) -> 1968 | L141: =IFERROR(VLOOKUP($A141,Filtro.12!$A$4:$AL$2956,10,FALSE),0) -> 350 | M141: =IFERROR(VLOOKUP($A141,Filtro.12!$A$4:$AL$2956,11,FALSE),0) -> 0 | N141: =IFERROR(VLOOKUP($A141,Filtro.12!$A$4:$AL$2956,12,FALSE),0) -> 0 | O141: =IFERROR(VLOOKUP($A141,Filtro.12!$A$4:$AL$2956,13,FALSE),0) -> 34 | P141: =IFERROR(VLOOKUP($A141,Filtro.12!$A$4:$AL$2956,14,FALSE),0) -> 0 | Q141: =IFERROR(VLOOKUP($A141,Filtro.12!$A$4:$AL$2956,15,FALSE),0) -> 261 | R141: =IFERROR(VLOOKUP($A141,Filtro.12!$A$4:$AL$2956,16,FALSE),0) -> 0 | S141: =IFERROR(VLOOKUP($A141,Filtro.12!$A$4:$AL$2956,17,FALSE),0) -> 0 | T141: =IFERROR(VLOOKUP($A141,Filtro.12!$A$4:$AL$2956,18,FALSE),0) -> 218,527,920
A142: 17019999 | B142: IV | C142: RESONANCIA MAGNÉTICA | D142: =IFERROR(VLOOKUP($A142,Filtro.12!$A$4:$AL$2956,2,FALSE),0) -> 8328 | E142: =IFERROR(VLOOKUP($A142,Filtro.12!$A$4:$AL$2956,3,FALSE),0) -> 8328 | F142: =IFERROR(VLOOKUP($A142,Filtro.12!$A$4:$AL$2956,4,FALSE),0) -> 8328 | G142: =IFERROR(VLOOKUP($A142,Filtro.12!$A$4:$AL$2956,5,FALSE),0) -> 0 | H142: =IFERROR(VLOOKUP($A142,Filtro.12!$A$4:$AL$2956,6,FALSE),0) -> 0 | I142: =IFERROR(VLOOKUP($A142,Filtro.12!$A$4:$AL$2956,7,FALSE),0) -> 2249 | J142: =IFERROR(VLOOKUP($A142,Filtro.12!$A$4:$AL$2956,8,FALSE),0) -> 5662 | K142: =IFERROR(VLOOKUP($A142,Filtro.12!$A$4:$AL$2956,9,FALSE),0) -> 414 | L142: =IFERROR(VLOOKUP($A142,Filtro.12!$A$4:$AL$2956,10,FALSE),0) -> 0 | M142: =IFERROR(VLOOKUP($A142,Filtro.12!$A$4:$AL$2956,11,FALSE),0) -> 0 | N142: =IFERROR(VLOOKUP($A142,Filtro.12!$A$4:$AL$2956,12,FALSE),0) -> 0 | O142: =IFERROR(VLOOKUP($A142,Filtro.12!$A$4:$AL$2956,13,FALSE),0) -> 0 | P142: =IFERROR(VLOOKUP($A142,Filtro.12!$A$4:$AL$2956,14,FALSE),0) -> 0 | Q142: =IFERROR(VLOOKUP($A142,Filtro.12!$A$4:$AL$2956,15,FALSE),0) -> 853 | R142: =IFERROR(VLOOKUP($A142,Filtro.12!$A$4:$AL$2956,16,FALSE),0) -> 0 | S142: =IFERROR(VLOOKUP($A142,Filtro.12!$A$4:$AL$2956,17,FALSE),0) -> 0 | T142: =IFERROR(VLOOKUP($A142,Filtro.12!$A$4:$AL$2956,18,FALSE),0) -> 1,563,889,850
A143: 17200110 | C143: OTROS EXÁMENES DE IMÁGENES | D143: =IFERROR(VLOOKUP($A143,Filtro.12!$A$4:$AL$2956,2,FALSE),0) -> 569 | E143: =IFERROR(VLOOKUP($A143,Filtro.12!$A$4:$AL$2956,3,FALSE),0) -> 569 | F143: =IFERROR(VLOOKUP($A143,Filtro.12!$A$4:$AL$2956,4,FALSE),0) -> 569 | G143: =IFERROR(VLOOKUP($A143,Filtro.12!$A$4:$AL$2956,5,FALSE),0) -> 0 | H143: =IFERROR(VLOOKUP($A143,Filtro.12!$A$4:$AL$2956,6,FALSE),0) -> 0 | I143: =IFERROR(VLOOKUP($A143,Filtro.12!$A$4:$AL$2956,7,FALSE),0) -> 63 | J143: =IFERROR(VLOOKUP($A143,Filtro.12!$A$4:$AL$2956,8,FALSE),0) -> 506 | K143: =IFERROR(VLOOKUP($A143,Filtro.12!$A$4:$AL$2956,9,FALSE),0) -> 0 | L143: =IFERROR(VLOOKUP($A143,Filtro.12!$A$4:$AL$2956,10,FALSE),0) -> 0 | M143: =IFERROR(VLOOKUP($A143,Filtro.12!$A$4:$AL$2956,11,FALSE),0) -> 0 | N143: =IFERROR(VLOOKUP($A143,Filtro.12!$A$4:$AL$2956,12,FALSE),0) -> 0 | O143: =IFERROR(VLOOKUP($A143,Filtro.12!$A$4:$AL$2956,13,FALSE),0) -> 0 | P143: =IFERROR(VLOOKUP($A143,Filtro.12!$A$4:$AL$2956,14,FALSE),0) -> 0 | Q143: =IFERROR(VLOOKUP($A143,Filtro.12!$A$4:$AL$2956,15,FALSE),0) -> 13 | R143: =IFERROR(VLOOKUP($A143,Filtro.12!$A$4:$AL$2956,16,FALSE),0) -> 0 | T143: =IFERROR(VLOOKUP($A143,Filtro.12!$A$4:$AL$2956,18,FALSE),0) -> 0
A144: 17200120 | B144: TOMA DE MUESTRAS | D144: =IFERROR(VLOOKUP($A144,Filtro.12!$A$4:$AL$2956,2,FALSE),0) -> 158541 | E144: =IFERROR(VLOOKUP($A144,Filtro.12!$A$4:$AL$2956,3,FALSE),0) -> 158329 | F144: =IFERROR(VLOOKUP($A144,Filtro.12!$A$4:$AL$2956,4,FALSE),0) -> 158173 | G144: =IFERROR(VLOOKUP($A144,Filtro.12!$A$4:$AL$2956,5,FALSE),0) -> 156 | H144: =IFERROR(VLOOKUP($A144,Filtro.12!$A$4:$AL$2956,6,FALSE),0) -> 212 | I144: =IFERROR(VLOOKUP($A144,Filtro.12!$A$4:$AL$2956,7,FALSE),0) -> 11442 | J144: =IFERROR(VLOOKUP($A144,Filtro.12!$A$4:$AL$2956,8,FALSE),0) -> 141089 | K144: =IFERROR(VLOOKUP($A144,Filtro.12!$A$4:$AL$2956,9,FALSE),0) -> 5939 | L144: =IFERROR(VLOOKUP($A144,Filtro.12!$A$4:$AL$2956,10,FALSE),0) -> 0 | M144: =IFERROR(VLOOKUP($A144,Filtro.12!$A$4:$AL$2956,11,FALSE),0) -> 0 | N144: =IFERROR(VLOOKUP($A144,Filtro.12!$A$4:$AL$2956,12,FALSE),0) -> 0 | O144: =IFERROR(VLOOKUP($A144,Filtro.12!$A$4:$AL$2956,13,FALSE),0) -> 0 | P144: =IFERROR(VLOOKUP($A144,Filtro.12!$A$4:$AL$2956,14,FALSE),0) -> 0 | Q144: =IFERROR(VLOOKUP($A144,Filtro.12!$A$4:$AL$2956,15,FALSE),0) -> 0 | R144: =IFERROR(VLOOKUP($A144,Filtro.12!$A$4:$AL$2956,16,FALSE),0) -> 0 | T144: =IFERROR(VLOOKUP($A144,Filtro.12!$A$4:$AL$2956,18,FALSE),0) -> 0
A145: 99999991 | B145: EXAMENES ANATOMIA PATOLOGICA | D145: =IFERROR(VLOOKUP($A145,Filtro.12!$A$4:$AL$2956,2,FALSE),0) -> 111815 | E145: =IFERROR(VLOOKUP($A145,Filtro.12!$A$4:$AL$2956,3,FALSE),0) -> 111806 | F145: =IFERROR(VLOOKUP($A145,Filtro.12!$A$4:$AL$2956,4,FALSE),0) -> 111806 | G145: =IFERROR(VLOOKUP($A145,Filtro.12!$A$4:$AL$2956,5,FALSE),0) -> 0 | H145: =IFERROR(VLOOKUP($A145,Filtro.12!$A$4:$AL$2956,6,FALSE),0) -> 9 | I145: =IFERROR(VLOOKUP($A145,Filtro.12!$A$4:$AL$2956,7,FALSE),0) -> 17532 | J145: =IFERROR(VLOOKUP($A145,Filtro.12!$A$4:$AL$2956,8,FALSE),0) -> 94417 | K145: =IFERROR(VLOOKUP($A145,Filtro.12!$A$4:$AL$2956,9,FALSE),0) -> 37 | L145: =IFERROR(VLOOKUP($A145,Filtro.12!$A$4:$AL$2956,10,FALSE),0) -> 0 | M145: =IFERROR(VLOOKUP($A145,Filtro.12!$A$4:$AL$2956,11,FALSE),0) -> 0 | N145: =IFERROR(VLOOKUP($A145,Filtro.12!$A$4:$AL$2956,12,FALSE),0) -> 0 | O145: =IFERROR(VLOOKUP($A145,Filtro.12!$A$4:$AL$2956,13,FALSE),0) -> 0 | P145: =IFERROR(VLOOKUP($A145,Filtro.12!$A$4:$AL$2956,14,FALSE),0) -> 0 | Q145: =IFERROR(VLOOKUP($A145,Filtro.12!$A$4:$AL$2956,15,FALSE),0) -> 2113 | R145: =IFERROR(VLOOKUP($A145,Filtro.12!$A$4:$AL$2956,16,FALSE),0) -> 0 | T145: =IFERROR(VLOOKUP($A145,Filtro.12!$A$4:$AL$2956,18,FALSE),0) -> 1,727,376,340
B146: SECCION J: MEDICINA NUCLEAR Y RADIOTERAPIA
B147: TIPO DE PROCEDIMIENTO | D147: TOTAL | E147: PROCEDIMIENTOS | I147: PROCEDENCIA | L147: PRODUCCION INTRA HOSPITAL | O147: OPERATIVO | P147: COMPRAS REALIZADAS | R147: VENTAS DE SERVICIOS | S147: PAGO POR PRESTACIONES ($)
E148: TOTAL BENEFICIARIOS | F148: BENEFICIARIOS | H148: NO BENEFICIARIOS | I148: ATENCION CERRADA | J148: ATENCION ABIERTA | K148: EMERGENCIA | L148: POR HONORARIOS | M148: POR CONVENIOS | N148: POR CONSULTORES DE LLAMADA | P148: AL SISTEMA | Q148: EXTRA-SISTEMA
F149: MAI | G149: MLE
A150: 17400370 | B150: MEDICINA NUCLEAR | D150: =IFERROR(VLOOKUP($A150,Filtro.12!$A$4:$AL$2956,2,FALSE),0) -> 3 | E150: =IFERROR(VLOOKUP($A150,Filtro.12!$A$4:$AL$2956,3,FALSE),0) -> 3 | F150: =IFERROR(VLOOKUP($A150,Filtro.12!$A$4:$AL$2956,4,FALSE),0) -> 3 | G150: =IFERROR(VLOOKUP($A150,Filtro.12!$A$4:$AL$2956,5,FALSE),0) -> 0 | H150: =IFERROR(VLOOKUP($A150,Filtro.12!$A$4:$AL$2956,6,FALSE),0) -> 0 | I150: =IFERROR(VLOOKUP($A150,Filtro.12!$A$4:$AL$2956,7,FALSE),0) -> 0 | J150: =IFERROR(VLOOKUP($A150,Filtro.12!$A$4:$AL$2956,8,FALSE),0) -> 3 | K150: =IFERROR(VLOOKUP($A150,Filtro.12!$A$4:$AL$2956,9,FALSE),0) -> 0 | L150: =IFERROR(VLOOKUP($A150,Filtro.12!$A$4:$AL$2956,10,FALSE),0) -> 0 | M150: =IFERROR(VLOOKUP($A150,Filtro.12!$A$4:$AL$2956,11,FALSE),0) -> 0 | N150: =IFERROR(VLOOKUP($A150,Filtro.12!$A$4:$AL$2956,12,FALSE),0) -> 0 | O150: =IFERROR(VLOOKUP($A150,Filtro.12!$A$4:$AL$2956,13,FALSE),0) -> 0 | P150: =IFERROR(VLOOKUP($A150,Filtro.12!$A$4:$AL$2956,14,FALSE),0) -> 0 | Q150: =IFERROR(VLOOKUP($A150,Filtro.12!$A$4:$AL$2956,15,FALSE),0) -> 205 | R150: =IFERROR(VLOOKUP($A150,Filtro.12!$A$4:$AL$2956,16,FALSE),0) -> 0 | S150: =IFERROR(VLOOKUP($A150,#REF!,17,FALSE),0) -> 0
A151: 17020301 | B151: BRAQUITERAPIA | D151: =IFERROR(VLOOKUP($A151,Filtro.12!$A$4:$AL$2956,2,FALSE),0) -> 0 | E151: =IFERROR(VLOOKUP($A151,Filtro.12!$A$4:$AL$2956,3,FALSE),0) -> 0 | F151: =IFERROR(VLOOKUP($A151,Filtro.12!$A$4:$AL$2956,4,FALSE),0) -> 0 | G151: =IFERROR(VLOOKUP($A151,Filtro.12!$A$4:$AL$2956,5,FALSE),0) -> 0 | H151: =IFERROR(VLOOKUP($A151,Filtro.12!$A$4:$AL$2956,6,FALSE),0) -> 0 | I151: =IFERROR(VLOOKUP($A151,Filtro.12!$A$4:$AL$2956,7,FALSE),0) -> 0 | J151: =IFERROR(VLOOKUP($A151,Filtro.12!$A$4:$AL$2956,8,FALSE),0) -> 0 | K151: =IFERROR(VLOOKUP($A151,Filtro.12!$A$4:$AL$2956,9,FALSE),0) -> 0 | L151: =IFERROR(VLOOKUP($A151,Filtro.12!$A$4:$AL$2956,10,FALSE),0) -> 0 | M151: =IFERROR(VLOOKUP($A151,Filtro.12!$A$4:$AL$2956,11,FALSE),0) -> 0 | N151: =IFERROR(VLOOKUP($A151,Filtro.12!$A$4:$AL$2956,12,FALSE),0) -> 0 | O151: =IFERROR(VLOOKUP($A151,Filtro.12!$A$4:$AL$2956,13,FALSE),0) -> 0 | P151: =IFERROR(VLOOKUP($A151,Filtro.12!$A$4:$AL$2956,14,FALSE),0) -> 0 | Q151: =IFERROR(VLOOKUP($A151,Filtro.12!$A$4:$AL$2956,15,FALSE),0) -> 0 | R151: =IFERROR(VLOOKUP($A151,Filtro.12!$A$4:$AL$2956,16,FALSE),0) -> 0 | S151: =IFERROR(VLOOKUP($A151,Filtro.12!$A$4:$AL$2956,17,FALSE),0) -> 0
A152: 99200140 | B152: RADIOTERAPIA | D152: =IFERROR(VLOOKUP($A152,Filtro.12!$A$4:$AL$2956,2,FALSE),0) -> 0 | E152: =IFERROR(VLOOKUP($A152,Filtro.12!$A$4:$AL$2956,3,FALSE),0) -> 0 | F152: =IFERROR(VLOOKUP($A152,Filtro.12!$A$4:$AL$2956,4,FALSE),0) -> 0 | G152: =IFERROR(VLOOKUP($A152,Filtro.12!$A$4:$AL$2956,5,FALSE),0) -> 0 | H152: =IFERROR(VLOOKUP($A152,Filtro.12!$A$4:$AL$2956,6,FALSE),0) -> 0 | I152: =IFERROR(VLOOKUP($A152,Filtro.12!$A$4:$AL$2956,7,FALSE),0) -> 0 | J152: =IFERROR(VLOOKUP($A152,Filtro.12!$A$4:$AL$2956,8,FALSE),0) -> 0 | K152: =IFERROR(VLOOKUP($A152,Filtro.12!$A$4:$AL$2956,9,FALSE),0) -> 0 | L152: =IFERROR(VLOOKUP($A152,Filtro.12!$A$4:$AL$2956,10,FALSE),0) -> 0 | M152: =IFERROR(VLOOKUP($A152,Filtro.12!$A$4:$AL$2956,11,FALSE),0) -> 0 | N152: =IFERROR(VLOOKUP($A152,Filtro.12!$A$4:$AL$2956,12,FALSE),0) -> 0 | O152: =IFERROR(VLOOKUP($A152,Filtro.12!$A$4:$AL$2956,13,FALSE),0) -> 0 | P152: =IFERROR(VLOOKUP($A152,Filtro.12!$A$4:$AL$2956,14,FALSE),0) -> 0 | Q152: =IFERROR(VLOOKUP($A152,Filtro.12!$A$4:$AL$2956,15,FALSE),0) -> 0 | R152: =IFERROR(VLOOKUP($A152,Filtro.12!$A$4:$AL$2956,16,FALSE),0) -> 0 | S152: =IFERROR(VLOOKUP($A152,Filtro.12!$A$4:$AL$2956,17,FALSE),0) -> 0
A153: 17400381 | B153: QUIMIOTERAPIA | D153: =IFERROR(VLOOKUP($A153,Filtro.12!$A$4:$AL$2956,2,FALSE),0) -> 7681 | E153: =IFERROR(VLOOKUP($A153,Filtro.12!$A$4:$AL$2956,3,FALSE),0) -> 7621 | F153: =IFERROR(VLOOKUP($A153,Filtro.12!$A$4:$AL$2956,4,FALSE),0) -> 7621 | G153: =IFERROR(VLOOKUP($A153,Filtro.12!$A$4:$AL$2956,5,FALSE),0) -> 0 | H153: =IFERROR(VLOOKUP($A153,Filtro.12!$A$4:$AL$2956,6,FALSE),0) -> 60 | I153: =IFERROR(VLOOKUP($A153,Filtro.12!$A$4:$AL$2956,7,FALSE),0) -> 27 | J153: =IFERROR(VLOOKUP($A153,Filtro.12!$A$4:$AL$2956,8,FALSE),0) -> 7654 | K153: =IFERROR(VLOOKUP($A153,Filtro.12!$A$4:$AL$2956,9,FALSE),0) -> 0 | L153: =IFERROR(VLOOKUP($A153,Filtro.12!$A$4:$AL$2956,10,FALSE),0) -> 0 | M153: =IFERROR(VLOOKUP($A153,Filtro.12!$A$4:$AL$2956,11,FALSE),0) -> 0 | N153: =IFERROR(VLOOKUP($A153,Filtro.12!$A$4:$AL$2956,12,FALSE),0) -> 0 | O153: =IFERROR(VLOOKUP($A153,Filtro.12!$A$4:$AL$2956,13,FALSE),0) -> 0 | P153: =IFERROR(VLOOKUP($A153,Filtro.12!$A$4:$AL$2956,14,FALSE),0) -> 0 | Q153: =IFERROR(VLOOKUP($A153,Filtro.12!$A$4:$AL$2956,15,FALSE),0) -> 0 | R153: =IFERROR(VLOOKUP($A153,Filtro.12!$A$4:$AL$2956,16,FALSE),0) -> 0 | S153: =IFERROR(VLOOKUP($A153,Filtro.12!$A$4:$AL$2956,17,FALSE),0) -> 4,118,628,100
A154: 99200150 | B154: RADIOCIRUGÍA | D154: =IFERROR(VLOOKUP($A154,Filtro.12!$A$4:$AL$2956,2,FALSE),0) -> 0 | E154: =IFERROR(VLOOKUP($A154,Filtro.12!$A$4:$AL$2956,3,FALSE),0) -> 0 | F154: =IFERROR(VLOOKUP($A154,Filtro.12!$A$4:$AL$2956,4,FALSE),0) -> 0 | G154: =IFERROR(VLOOKUP($A154,Filtro.12!$A$4:$AL$2956,5,FALSE),0) -> 0 | H154: =IFERROR(VLOOKUP($A154,Filtro.12!$A$4:$AL$2956,6,FALSE),0) -> 0 | I154: =IFERROR(VLOOKUP($A154,Filtro.12!$A$4:$AL$2956,7,FALSE),0) -> 0 | J154: =IFERROR(VLOOKUP($A154,Filtro.12!$A$4:$AL$2956,8,FALSE),0) -> 0 | K154: =IFERROR(VLOOKUP($A154,Filtro.12!$A$4:$AL$2956,9,FALSE),0) -> 0 | L154: =IFERROR(VLOOKUP($A154,Filtro.12!$A$4:$AL$2956,10,FALSE),0) -> 0 | M154: =IFERROR(VLOOKUP($A154,Filtro.12!$A$4:$AL$2956,11,FALSE),0) -> 0 | N154: =IFERROR(VLOOKUP($A154,Filtro.12!$A$4:$AL$2956,12,FALSE),0) -> 0 | O154: =IFERROR(VLOOKUP($A154,Filtro.12!$A$4:$AL$2956,13,FALSE),0) -> 0 | P154: =IFERROR(VLOOKUP($A154,Filtro.12!$A$4:$AL$2956,14,FALSE),0) -> 0 | Q154: =IFERROR(VLOOKUP($A154,Filtro.12!$A$4:$AL$2956,15,FALSE),0) -> 0 | R154: =IFERROR(VLOOKUP($A154,Filtro.12!$A$4:$AL$2956,16,FALSE),0) -> 0 | S154: =IFERROR(VLOOKUP($A154,Filtro.12!$A$4:$AL$2956,17,FALSE),0) -> 0
B155: TOTAL | D155: =SUM(D150+D151+D152+D153+D154) -> 7684 | E155: 7624 | F155: 7624 | G155: 0 | H155: 60 | I155: 27 | J155: 7657 | K155: 0 | L155: 0 | M155: 0 | N155: 0 | O155: 0 | P155: 0 | Q155: 205 | R155: 0 | S155: 4118628100
B156: SECCION K: HEMODIALISIS
B157: HEMODIALISIS | D157: TOTAL | E157: PROCEDIMIENTOS | I157: PROCEDENCIA | L157: PRODUCCION INTRA HOSPITAL | O157: OPERATIVO | P157: COMPRAS REALIZADAS | R157: VENTAS DE SERVICIOS | S157: PAGO POR PRESTACIONES ($)
E158: TOTAL BENEFI-CIARIOS | F158: BENEFICIARIOS | H158: NO BENEFI-CIARIOS | I158: ATENCION CERRADA | J158: ATENCION ABIERTA | K158: EMERGENCIA | L158: POR HONORARIOS | M158: POR CONVENIOS | N158: POR CONSULTORES DE LLAMADA | P158: AL SISTEMA | Q158: EXTRA-SISTEMA
F159: MAI | G159: MLE
A160: 17040100 | B160: 1901023 | C160: Hemodiálisis con insumos incluidos | D160: =IFERROR(VLOOKUP($A160,Filtro.12!$A$4:$AL$2956,2,FALSE),0) -> 0 | E160: =IFERROR(VLOOKUP($A160,Filtro.12!$A$4:$AL$2956,3,FALSE),0) -> 0 | F160: =IFERROR(VLOOKUP($A160,Filtro.12!$A$4:$AL$2956,4,FALSE),0) -> 0 | G160: =IFERROR(VLOOKUP($A160,Filtro.12!$A$4:$AL$2956,5,FALSE),0) -> 0 | H160: =IFERROR(VLOOKUP($A160,Filtro.12!$A$4:$AL$2956,6,FALSE),0) -> 0 | I160: =IFERROR(VLOOKUP($A160,Filtro.12!$A$4:$AL$2956,7,FALSE),0) -> 0 | J160: =IFERROR(VLOOKUP($A160,Filtro.12!$A$4:$AL$2956,8,FALSE),0) -> 0 | K160: =IFERROR(VLOOKUP($A160,Filtro.12!$A$4:$AL$2956,9,FALSE),0) -> 0 | L160: =IFERROR(VLOOKUP($A160,Filtro.12!$A$4:$AL$2956,10,FALSE),0) -> 0 | M160: =IFERROR(VLOOKUP($A160,Filtro.12!$A$4:$AL$2956,11,FALSE),0) -> 0 | N160: =IFERROR(VLOOKUP($A160,Filtro.12!$A$4:$AL$2956,12,FALSE),0) -> 0 | O160: =IFERROR(VLOOKUP($A160,Filtro.12!$A$4:$AL$2956,13,FALSE),0) -> 0 | P160: =IFERROR(VLOOKUP($A160,Filtro.12!$A$4:$AL$2956,14,FALSE),0) -> 0 | Q160: =IFERROR(VLOOKUP($A160,Filtro.12!$A$4:$AL$2956,15,FALSE),0) -> 0 | R160: =IFERROR(VLOOKUP($A160,Filtro.12!$A$4:$AL$2956,16,FALSE),0) -> 0 | S160: =IFERROR(VLOOKUP($A160,Filtro.12!$A$4:$AL$2956,17,FALSE),0) -> 0
A161: 17200130 | B161: 1901024 | C161: Hemodiálisis sin insumos | D161: =IFERROR(VLOOKUP($A161,Filtro.12!$A$4:$AL$2956,2,FALSE),0) -> 0 | E161: =IFERROR(VLOOKUP($A161,Filtro.12!$A$4:$AL$2956,3,FALSE),0) -> 0 | F161: =IFERROR(VLOOKUP($A161,Filtro.12!$A$4:$AL$2956,4,FALSE),0) -> 0 | G161: =IFERROR(VLOOKUP($A161,Filtro.12!$A$4:$AL$2956,5,FALSE),0) -> 0 | H161: =IFERROR(VLOOKUP($A161,Filtro.12!$A$4:$AL$2956,6,FALSE),0) -> 0 | I161: =IFERROR(VLOOKUP($A161,Filtro.12!$A$4:$AL$2956,7,FALSE),0) -> 0 | J161: =IFERROR(VLOOKUP($A161,Filtro.12!$A$4:$AL$2956,8,FALSE),0) -> 0 | K161: =IFERROR(VLOOKUP($A161,Filtro.12!$A$4:$AL$2956,9,FALSE),0) -> 0 | L161: =IFERROR(VLOOKUP($A161,Filtro.12!$A$4:$AL$2956,10,FALSE),0) -> 0 | M161: =IFERROR(VLOOKUP($A161,Filtro.12!$A$4:$AL$2956,11,FALSE),0) -> 0 | N161: =IFERROR(VLOOKUP($A161,Filtro.12!$A$4:$AL$2956,12,FALSE),0) -> 0 | O161: =IFERROR(VLOOKUP($A161,Filtro.12!$A$4:$AL$2956,13,FALSE),0) -> 0 | P161: =IFERROR(VLOOKUP($A161,Filtro.12!$A$4:$AL$2956,14,FALSE),0) -> 0 | Q161: =IFERROR(VLOOKUP($A161,Filtro.12!$A$4:$AL$2956,15,FALSE),0) -> 0 | R161: =IFERROR(VLOOKUP($A161,Filtro.12!$A$4:$AL$2956,16,FALSE),0) -> 0 | S161: =IFERROR(VLOOKUP($A161,Filtro.12!$A$4:$AL$2956,17,FALSE),0) -> 0
A162: 17040200 | B162: 1901025 | C162: Peritoneodiálisis (incluye insumos) | D162: =IFERROR(VLOOKUP($A162,Filtro.12!$A$4:$AL$2956,2,FALSE),0) -> 616 | E162: =IFERROR(VLOOKUP($A162,Filtro.12!$A$4:$AL$2956,3,FALSE),0) -> 616 | F162: =IFERROR(VLOOKUP($A162,Filtro.12!$A$4:$AL$2956,4,FALSE),0) -> 616 | G162: =IFERROR(VLOOKUP($A162,Filtro.12!$A$4:$AL$2956,5,FALSE),0) -> 0 | H162: =IFERROR(VLOOKUP($A162,Filtro.12!$A$4:$AL$2956,6,FALSE),0) -> 0 | I162: =IFERROR(VLOOKUP($A162,Filtro.12!$A$4:$AL$2956,7,FALSE),0) -> 151 | J162: =IFERROR(VLOOKUP($A162,Filtro.12!$A$4:$AL$2956,8,FALSE),0) -> 465 | K162: =IFERROR(VLOOKUP($A162,Filtro.12!$A$4:$AL$2956,9,FALSE),0) -> 0 | L162: =IFERROR(VLOOKUP($A162,Filtro.12!$A$4:$AL$2956,10,FALSE),0) -> 0 | M162: =IFERROR(VLOOKUP($A162,Filtro.12!$A$4:$AL$2956,11,FALSE),0) -> 0 | N162: =IFERROR(VLOOKUP($A162,Filtro.12!$A$4:$AL$2956,12,FALSE),0) -> 0 | O162: =IFERROR(VLOOKUP($A162,Filtro.12!$A$4:$AL$2956,13,FALSE),0) -> 0 | P162: =IFERROR(VLOOKUP($A162,Filtro.12!$A$4:$AL$2956,14,FALSE),0) -> 0 | Q162: =IFERROR(VLOOKUP($A162,Filtro.12!$A$4:$AL$2956,15,FALSE),0) -> 0 | R162: =IFERROR(VLOOKUP($A162,Filtro.12!$A$4:$AL$2956,16,FALSE),0) -> 0 | S162: =IFERROR(VLOOKUP($A162,Filtro.12!$A$4:$AL$2956,17,FALSE),0) -> 22,465,520
A163: 17200140 | B163: 1901026 | C163: Peritoneodiálisis continua en paciente crónico (adulto o niños) (tratamiento mensual) | D163: =IFERROR(VLOOKUP($A163,Filtro.12!$A$4:$AL$2956,2,FALSE),0) -> 281 | E163: =IFERROR(VLOOKUP($A163,Filtro.12!$A$4:$AL$2956,3,FALSE),0) -> 281 | F163: =IFERROR(VLOOKUP($A163,Filtro.12!$A$4:$AL$2956,4,FALSE),0) -> 281 | G163: =IFERROR(VLOOKUP($A163,Filtro.12!$A$4:$AL$2956,5,FALSE),0) -> 0 | H163: =IFERROR(VLOOKUP($A163,Filtro.12!$A$4:$AL$2956,6,FALSE),0) -> 0 | I163: =IFERROR(VLOOKUP($A163,Filtro.12!$A$4:$AL$2956,7,FALSE),0) -> 73 | J163: =IFERROR(VLOOKUP($A163,Filtro.12!$A$4:$AL$2956,8,FALSE),0) -> 208 | K163: =IFERROR(VLOOKUP($A163,Filtro.12!$A$4:$AL$2956,9,FALSE),0) -> 0 | L163: =IFERROR(VLOOKUP($A163,Filtro.12!$A$4:$AL$2956,10,FALSE),0) -> 0 | M163: =IFERROR(VLOOKUP($A163,Filtro.12!$A$4:$AL$2956,11,FALSE),0) -> 0 | N163: =IFERROR(VLOOKUP($A163,Filtro.12!$A$4:$AL$2956,12,FALSE),0) -> 0 | O163: =IFERROR(VLOOKUP($A163,Filtro.12!$A$4:$AL$2956,13,FALSE),0) -> 0 | P163: =IFERROR(VLOOKUP($A163,Filtro.12!$A$4:$AL$2956,14,FALSE),0) -> 0 | Q163: =IFERROR(VLOOKUP($A163,Filtro.12!$A$4:$AL$2956,15,FALSE),0) -> 0 | R163: =IFERROR(VLOOKUP($A163,Filtro.12!$A$4:$AL$2956,16,FALSE),0) -> 0 | S163: =IFERROR(VLOOKUP($A163,Filtro.12!$A$4:$AL$2956,17,FALSE),0) -> 307,644,420
A164: 17190440 | B164: 1901126 | C164: Instalación de cateter para peritoneodiális | D164: =IFERROR(VLOOKUP($A164,Filtro.12!$A$4:$AL$2956,2,FALSE),0) -> 7 | E164: =IFERROR(VLOOKUP($A164,Filtro.12!$A$4:$AL$2956,3,FALSE),0) -> 7 | F164: =IFERROR(VLOOKUP($A164,Filtro.12!$A$4:$AL$2956,4,FALSE),0) -> 7 | G164: =IFERROR(VLOOKUP($A164,Filtro.12!$A$4:$AL$2956,5,FALSE),0) -> 0 | H164: =IFERROR(VLOOKUP($A164,Filtro.12!$A$4:$AL$2956,6,FALSE),0) -> 0 | I164: =IFERROR(VLOOKUP($A164,Filtro.12!$A$4:$AL$2956,7,FALSE),0) -> 7 | J164: =IFERROR(VLOOKUP($A164,Filtro.12!$A$4:$AL$2956,8,FALSE),0) -> 0 | K164: =IFERROR(VLOOKUP($A164,Filtro.12!$A$4:$AL$2956,9,FALSE),0) -> 0 | L164: =IFERROR(VLOOKUP($A164,Filtro.12!$A$4:$AL$2956,10,FALSE),0) -> 0 | M164: =IFERROR(VLOOKUP($A164,Filtro.12!$A$4:$AL$2956,11,FALSE),0) -> 0 | N164: =IFERROR(VLOOKUP($A164,Filtro.12!$A$4:$AL$2956,12,FALSE),0) -> 0 | O164: =IFERROR(VLOOKUP($A164,Filtro.12!$A$4:$AL$2956,13,FALSE),0) -> 0 | P164: =IFERROR(VLOOKUP($A164,Filtro.12!$A$4:$AL$2956,14,FALSE),0) -> 0 | Q164: =IFERROR(VLOOKUP($A164,Filtro.12!$A$4:$AL$2956,15,FALSE),0) -> 0 | R164: =IFERROR(VLOOKUP($A164,Filtro.12!$A$4:$AL$2956,16,FALSE),0) -> 0 | S164: =IFERROR(VLOOKUP($A164,Filtro.12!$A$4:$AL$2956,17,FALSE),0) -> 3,480,960
A165: 17040400 | B165: 1901027 | C165: Hemodiálisis, tratamiento mensual (con insumos incluidos) | D165: =IFERROR(VLOOKUP($A165,Filtro.12!$A$4:$AL$2956,2,FALSE),0) -> 0 | E165: =IFERROR(VLOOKUP($A165,Filtro.12!$A$4:$AL$2956,3,FALSE),0) -> 0 | F165: =IFERROR(VLOOKUP($A165,Filtro.12!$A$4:$AL$2956,4,FALSE),0) -> 0 | G165: =IFERROR(VLOOKUP($A165,Filtro.12!$A$4:$AL$2956,5,FALSE),0) -> 0 | H165: =IFERROR(VLOOKUP($A165,Filtro.12!$A$4:$AL$2956,6,FALSE),0) -> 0 | I165: =IFERROR(VLOOKUP($A165,Filtro.12!$A$4:$AL$2956,7,FALSE),0) -> 0 | J165: =IFERROR(VLOOKUP($A165,Filtro.12!$A$4:$AL$2956,8,FALSE),0) -> 0 | K165: =IFERROR(VLOOKUP($A165,Filtro.12!$A$4:$AL$2956,9,FALSE),0) -> 0 | L165: =IFERROR(VLOOKUP($A165,Filtro.12!$A$4:$AL$2956,10,FALSE),0) -> 0 | M165: =IFERROR(VLOOKUP($A165,Filtro.12!$A$4:$AL$2956,11,FALSE),0) -> 0 | N165: =IFERROR(VLOOKUP($A165,Filtro.12!$A$4:$AL$2956,12,FALSE),0) -> 0 | O165: =IFERROR(VLOOKUP($A165,Filtro.12!$A$4:$AL$2956,13,FALSE),0) -> 0 | P165: =IFERROR(VLOOKUP($A165,Filtro.12!$A$4:$AL$2956,14,FALSE),0) -> 0 | Q165: =IFERROR(VLOOKUP($A165,Filtro.12!$A$4:$AL$2956,15,FALSE),0) -> 0 | R165: =IFERROR(VLOOKUP($A165,Filtro.12!$A$4:$AL$2956,16,FALSE),0) -> 0 | S165: =IFERROR(VLOOKUP($A165,Filtro.12!$A$4:$AL$2956,17,FALSE),0) -> 0
A166: 17040500 | B166: 1901028 | C166: Hemodiálisis con bicarbonato con insumos (por sesion) | D166: =IFERROR(VLOOKUP($A166,Filtro.12!$A$4:$AL$2956,2,FALSE),0) -> 16508 | E166: =IFERROR(VLOOKUP($A166,Filtro.12!$A$4:$AL$2956,3,FALSE),0) -> 16464 | F166: =IFERROR(VLOOKUP($A166,Filtro.12!$A$4:$AL$2956,4,FALSE),0) -> 16463 | G166: =IFERROR(VLOOKUP($A166,Filtro.12!$A$4:$AL$2956,5,FALSE),0) -> 1 | H166: =IFERROR(VLOOKUP($A166,Filtro.12!$A$4:$AL$2956,6,FALSE),0) -> 44 | I166: =IFERROR(VLOOKUP($A166,Filtro.12!$A$4:$AL$2956,7,FALSE),0) -> 3471 | J166: =IFERROR(VLOOKUP($A166,Filtro.12!$A$4:$AL$2956,8,FALSE),0) -> 12840 | K166: =IFERROR(VLOOKUP($A166,Filtro.12!$A$4:$AL$2956,9,FALSE),0) -> 38 | L166: =IFERROR(VLOOKUP($A166,Filtro.12!$A$4:$AL$2956,10,FALSE),0) -> 0 | M166: =IFERROR(VLOOKUP($A166,Filtro.12!$A$4:$AL$2956,11,FALSE),0) -> 0 | N166: =IFERROR(VLOOKUP($A166,Filtro.12!$A$4:$AL$2956,12,FALSE),0) -> 0 | O166: =IFERROR(VLOOKUP($A166,Filtro.12!$A$4:$AL$2956,13,FALSE),0) -> 0 | P166: =IFERROR(VLOOKUP($A166,Filtro.12!$A$4:$AL$2956,14,FALSE),0) -> 0 | Q166: =IFERROR(VLOOKUP($A166,Filtro.12!$A$4:$AL$2956,15,FALSE),0) -> 34 | R166: =IFERROR(VLOOKUP($A166,Filtro.12!$A$4:$AL$2956,16,FALSE),0) -> 0 | S166: =IFERROR(VLOOKUP($A166,Filtro.12!$A$4:$AL$2956,17,FALSE),0) -> 1,128,703,280
A167: 17200150 | B167: 1901029 | C167: Hemodiálisis con bicarbonato con insumos (tratamiento mensual) | D167: =IFERROR(VLOOKUP($A167,Filtro.12!$A$4:$AL$2956,2,FALSE),0) -> 1864 | E167: =IFERROR(VLOOKUP($A167,Filtro.12!$A$4:$AL$2956,3,FALSE),0) -> 1849 | F167: =IFERROR(VLOOKUP($A167,Filtro.12!$A$4:$AL$2956,4,FALSE),0) -> 1849 | G167: =IFERROR(VLOOKUP($A167,Filtro.12!$A$4:$AL$2956,5,FALSE),0) -> 0 | H167: =IFERROR(VLOOKUP($A167,Filtro.12!$A$4:$AL$2956,6,FALSE),0) -> 15 | I167: =IFERROR(VLOOKUP($A167,Filtro.12!$A$4:$AL$2956,7,FALSE),0) -> 730 | J167: =IFERROR(VLOOKUP($A167,Filtro.12!$A$4:$AL$2956,8,FALSE),0) -> 1095 | K167: =IFERROR(VLOOKUP($A167,Filtro.12!$A$4:$AL$2956,9,FALSE),0) -> 52 | L167: =IFERROR(VLOOKUP($A167,Filtro.12!$A$4:$AL$2956,10,FALSE),0) -> 0 | M167: =IFERROR(VLOOKUP($A167,Filtro.12!$A$4:$AL$2956,11,FALSE),0) -> 0 | N167: =IFERROR(VLOOKUP($A167,Filtro.12!$A$4:$AL$2956,12,FALSE),0) -> 0 | O167: =IFERROR(VLOOKUP($A167,Filtro.12!$A$4:$AL$2956,13,FALSE),0) -> 0 | P167: =IFERROR(VLOOKUP($A167,Filtro.12!$A$4:$AL$2956,14,FALSE),0) -> 0 | Q167: =IFERROR(VLOOKUP($A167,Filtro.12!$A$4:$AL$2956,15,FALSE),0) -> 1 | R167: =IFERROR(VLOOKUP($A167,Filtro.12!$A$4:$AL$2956,16,FALSE),0) -> 0 | S167: =IFERROR(VLOOKUP($A167,Filtro.12!$A$4:$AL$2956,17,FALSE),0) -> 1,550,294,050
A168: 17400382 | B168: 1901031 | C168: Instalación de catéter de peritoneodiálisis laparoscopia | D168: =IFERROR(VLOOKUP($A168,Filtro.12!$A$4:$AL$2956,2,FALSE),0) -> 15 | E168: =IFERROR(VLOOKUP($A168,Filtro.12!$A$4:$AL$2956,3,FALSE),0) -> 14 | F168: =IFERROR(VLOOKUP($A168,Filtro.12!$A$4:$AL$2956,4,FALSE),0) -> 14 | G168: =IFERROR(VLOOKUP($A168,Filtro.12!$A$4:$AL$2956,5,FALSE),0) -> 0 | H168: =IFERROR(VLOOKUP($A168,Filtro.12!$A$4:$AL$2956,6,FALSE),0) -> 1 | I168: =IFERROR(VLOOKUP($A168,Filtro.12!$A$4:$AL$2956,7,FALSE),0) -> 12 | J168: =IFERROR(VLOOKUP($A168,Filtro.12!$A$4:$AL$2956,8,FALSE),0) -> 3 | K168: =IFERROR(VLOOKUP($A168,Filtro.12!$A$4:$AL$2956,9,FALSE),0) -> 0 | L168: =IFERROR(VLOOKUP($A168,Filtro.12!$A$4:$AL$2956,10,FALSE),0) -> 0 | M168: =IFERROR(VLOOKUP($A168,Filtro.12!$A$4:$AL$2956,11,FALSE),0) -> 0 | N168: =IFERROR(VLOOKUP($A168,Filtro.12!$A$4:$AL$2956,12,FALSE),0) -> 0 | O168: =IFERROR(VLOOKUP($A168,Filtro.12!$A$4:$AL$2956,13,FALSE),0) -> 0 | P168: =IFERROR(VLOOKUP($A168,Filtro.12!$A$4:$AL$2956,14,FALSE),0) -> 0 | Q168: =IFERROR(VLOOKUP($A168,Filtro.12!$A$4:$AL$2956,15,FALSE),0) -> 0 | R168: =IFERROR(VLOOKUP($A168,Filtro.12!$A$4:$AL$2956,16,FALSE),0) -> 0 | S168: =IFERROR(VLOOKUP($A168,Filtro.12!$A$4:$AL$2956,17,FALSE),0) -> 8,688,540
A169: 17400383 | B169: 1901032 | C169: Retiro de catéter de peritoneodiálisis | D169: =IFERROR(VLOOKUP($A169,Filtro.12!$A$4:$AL$2956,2,FALSE),0) -> 6 | E169: =IFERROR(VLOOKUP($A169,Filtro.12!$A$4:$AL$2956,3,FALSE),0) -> 6 | F169: =IFERROR(VLOOKUP($A169,Filtro.12!$A$4:$AL$2956,4,FALSE),0) -> 6 | G169: =IFERROR(VLOOKUP($A169,Filtro.12!$A$4:$AL$2956,5,FALSE),0) -> 0 | H169: =IFERROR(VLOOKUP($A169,Filtro.12!$A$4:$AL$2956,6,FALSE),0) -> 0 | I169: =IFERROR(VLOOKUP($A169,Filtro.12!$A$4:$AL$2956,7,FALSE),0) -> 4 | J169: =IFERROR(VLOOKUP($A169,Filtro.12!$A$4:$AL$2956,8,FALSE),0) -> 2 | K169: =IFERROR(VLOOKUP($A169,Filtro.12!$A$4:$AL$2956,9,FALSE),0) -> 0 | L169: =IFERROR(VLOOKUP($A169,Filtro.12!$A$4:$AL$2956,10,FALSE),0) -> 0 | M169: =IFERROR(VLOOKUP($A169,Filtro.12!$A$4:$AL$2956,11,FALSE),0) -> 0 | N169: =IFERROR(VLOOKUP($A169,Filtro.12!$A$4:$AL$2956,12,FALSE),0) -> 0 | O169: =IFERROR(VLOOKUP($A169,Filtro.12!$A$4:$AL$2956,13,FALSE),0) -> 0 | P169: =IFERROR(VLOOKUP($A169,Filtro.12!$A$4:$AL$2956,14,FALSE),0) -> 0 | Q169: =IFERROR(VLOOKUP($A169,Filtro.12!$A$4:$AL$2956,15,FALSE),0) -> 0 | R169: =IFERROR(VLOOKUP($A169,Filtro.12!$A$4:$AL$2956,16,FALSE),0) -> 0 | S169: =IFERROR(VLOOKUP($A169,Filtro.12!$A$4:$AL$2956,17,FALSE),0) -> 995,280
A170: 17400384 | B170: 1901033 | C170: Revisión de catéter de peritoneodiálisis laparoscopia | D170: =IFERROR(VLOOKUP($A170,Filtro.12!$A$4:$AL$2956,2,FALSE),0) -> 5 | E170: =IFERROR(VLOOKUP($A170,Filtro.12!$A$4:$AL$2956,3,FALSE),0) -> 5 | F170: =IFERROR(VLOOKUP($A170,Filtro.12!$A$4:$AL$2956,4,FALSE),0) -> 5 | G170: =IFERROR(VLOOKUP($A170,Filtro.12!$A$4:$AL$2956,5,FALSE),0) -> 0 | H170: =IFERROR(VLOOKUP($A170,Filtro.12!$A$4:$AL$2956,6,FALSE),0) -> 0 | I170: =IFERROR(VLOOKUP($A170,Filtro.12!$A$4:$AL$2956,7,FALSE),0) -> 4 | J170: =IFERROR(VLOOKUP($A170,Filtro.12!$A$4:$AL$2956,8,FALSE),0) -> 0 | K170: =IFERROR(VLOOKUP($A170,Filtro.12!$A$4:$AL$2956,9,FALSE),0) -> 1 | L170: =IFERROR(VLOOKUP($A170,Filtro.12!$A$4:$AL$2956,10,FALSE),0) -> 0 | M170: =IFERROR(VLOOKUP($A170,Filtro.12!$A$4:$AL$2956,11,FALSE),0) -> 0 | N170: =IFERROR(VLOOKUP($A170,Filtro.12!$A$4:$AL$2956,12,FALSE),0) -> 0 | O170: =IFERROR(VLOOKUP($A170,Filtro.12!$A$4:$AL$2956,13,FALSE),0) -> 0 | P170: =IFERROR(VLOOKUP($A170,Filtro.12!$A$4:$AL$2956,14,FALSE),0) -> 0 | Q170: =IFERROR(VLOOKUP($A170,Filtro.12!$A$4:$AL$2956,15,FALSE),0) -> 0 | R170: =IFERROR(VLOOKUP($A170,Filtro.12!$A$4:$AL$2956,16,FALSE),0) -> 0 | S170: =IFERROR(VLOOKUP($A170,Filtro.12!$A$4:$AL$2956,17,FALSE),0) -> 1,690,200
B171: TOTAL | D171: =SUM(D160:D170) -> 19302 | E171: 19242 | F171: 19241 | G171: 1 | H171: 60 | I171: 4452 | J171: 14613 | K171: 91 | L171: 0 | M171: 0 | N171: 0 | O171: 0 | P171: 0 | Q171: 35 | R171: 0 | S171: 3023962250
B172: SECCION L: INTERVENCIONES QUIRURGICAS
B173: TIPO DE INTERVENCION QUIRURGICA | D173: TOTAL PRODUCCIÓN | E173: TOTAL BENEFICIARIOS | F173: INTERVENCIONES QUIRÚRGICAS | L173: CIRUGÍAS MENORES | M173: PRODUCCION INTRA HOSPITAL | P173: OPERATIVO | Q173: COMPRAS REALIZADAS | S173: VENTAS DE SERVICIOS | T173: INTERVENCIONES 100% | U173: INTERVENCIONES 50% | V173: INTERVENCIONES 75% | W173: PAGO POR PRESTACIONES ($)
F174: PRINCIPAL | I174: SECUNDARIA
F175: MAI | G175: MLE | H175: NO BENEFI-CIARIOS | I175: MAI | J175: MLE | K175: NO BENEFI-CIARIOS | M175: POR HONORARIOS | N175: POR CONVENIOS | O175: POR CONSULTORES DE LLAMADA | Q175: AL SISTEMA | R175: EXTRA-SISTEMA
A176: 17050100 | B176: I | C176: NEUROCIRUGIA | D176: =IFERROR(VLOOKUP($A176,Filtro.12!$A$4:$AL$2956,2,FALSE),0) -> 1,356 | E176: =IFERROR(VLOOKUP($A176,Filtro.12!$A$4:$AL$2956,3,FALSE),0) -> 1,121 | F176: =IFERROR(VLOOKUP($A176,Filtro.12!$A$4:$AL$2956,4,FALSE),0) -> 1,082 | G176: =IFERROR(VLOOKUP($A176,Filtro.12!$A$4:$AL$2956,5,FALSE),0) -> 39 | H176: =IFERROR(VLOOKUP($A176,Filtro.12!$A$4:$AL$2956,6,FALSE),0) -> 40 | I176: =IFERROR(VLOOKUP($A176,Filtro.12!$A$4:$AL$2956,7,FALSE),0) -> 188 | J176: =IFERROR(VLOOKUP($A176,Filtro.12!$A$4:$AL$2956,8,FALSE),0) -> 1 | K176: =IFERROR(VLOOKUP($A176,Filtro.12!$A$4:$AL$2956,9,FALSE),0) -> 6 | L176: =IFERROR(VLOOKUP($A176,Filtro.12!$A$4:$AL$2956,10,FALSE),0) -> 0 | M176: =IFERROR(VLOOKUP($A176,Filtro.12!$A$4:$AL$2956,11,FALSE),0) -> 0 | N176: =IFERROR(VLOOKUP($A176,Filtro.12!$A$4:$AL$2956,12,FALSE),0) -> 0 | O176: =IFERROR(VLOOKUP($A176,Filtro.12!$A$4:$AL$2956,13,FALSE),0) -> 0 | P176: =IFERROR(VLOOKUP($A176,Filtro.12!$A$4:$AL$2956,14,FALSE),0) -> 0 | Q176: =IFERROR(VLOOKUP($A176,Filtro.12!$A$4:$AL$2956,15,FALSE),0) -> 0 | R176: =IFERROR(VLOOKUP($A176,Filtro.12!$A$4:$AL$2956,16,FALSE),0) -> 0 | S176: =IFERROR(VLOOKUP($A176,Filtro.12!$A$4:$AL$2956,17,FALSE),0) -> 0 | T176: =IFERROR(VLOOKUP($A176,Filtro.12!$A$4:$AL$2956,18,FALSE),0) -> 1,082 | U176: =IFERROR(VLOOKUP($A176,Filtro.12!$A$4:$AL$2956,19,FALSE),0) -> 188 | W176: =IFERROR(VLOOKUP($A176,Filtro.12!$A$4:$AL$2956,21,FALSE),0) -> 596,647,595
A177: 17050200 | B177: II | C177: CIRUGIA OFTALMOLOGICA | D177: =IFERROR(VLOOKUP($A177,Filtro.12!$A$4:$AL$2956,2,FALSE),0) -> 8,318 | E177: =IFERROR(VLOOKUP($A177,Filtro.12!$A$4:$AL$2956,3,FALSE),0) -> 7,096 | F177: =IFERROR(VLOOKUP($A177,Filtro.12!$A$4:$AL$2956,4,FALSE),0) -> 7,096 | G177: =IFERROR(VLOOKUP($A177,Filtro.12!$A$4:$AL$2956,5,FALSE),0) -> 0 | H177: =IFERROR(VLOOKUP($A177,Filtro.12!$A$4:$AL$2956,6,FALSE),0) -> 13 | I177: =IFERROR(VLOOKUP($A177,Filtro.12!$A$4:$AL$2956,7,FALSE),0) -> 1,205 | J177: =IFERROR(VLOOKUP($A177,Filtro.12!$A$4:$AL$2956,8,FALSE),0) -> 0 | K177: =IFERROR(VLOOKUP($A177,Filtro.12!$A$4:$AL$2956,9,FALSE),0) -> 4 | L177: =IFERROR(VLOOKUP($A177,Filtro.12!$A$4:$AL$2956,10,FALSE),0) -> 1,639 | M177: =IFERROR(VLOOKUP($A177,Filtro.12!$A$4:$AL$2956,11,FALSE),0) -> 677 | N177: =IFERROR(VLOOKUP($A177,Filtro.12!$A$4:$AL$2956,12,FALSE),0) -> 0 | O177: =IFERROR(VLOOKUP($A177,Filtro.12!$A$4:$AL$2956,13,FALSE),0) -> 15 | P177: =IFERROR(VLOOKUP($A177,Filtro.12!$A$4:$AL$2956,14,FALSE),0) -> 0 | Q177: =IFERROR(VLOOKUP($A177,Filtro.12!$A$4:$AL$2956,15,FALSE),0) -> 0 | R177: =IFERROR(VLOOKUP($A177,Filtro.12!$A$4:$AL$2956,16,FALSE),0) -> 0 | S177: =IFERROR(VLOOKUP($A177,Filtro.12!$A$4:$AL$2956,17,FALSE),0) -> 0 | T177: =IFERROR(VLOOKUP($A177,Filtro.12!$A$4:$AL$2956,18,FALSE),0) -> 7,096 | U177: =IFERROR(VLOOKUP($A177,Filtro.12!$A$4:$AL$2956,19,FALSE),0) -> 1,205 | W177: =IFERROR(VLOOKUP($A177,Filtro.12!$A$4:$AL$2956,21,FALSE),0) -> 4,035,302,750
A178: 17050300 | B178: III | C178: CIRUGIA OTORRINOLOGICA | D178: =IFERROR(VLOOKUP($A178,Filtro.12!$A$4:$AL$2956,2,FALSE),0) -> 2,522 | E178: =IFERROR(VLOOKUP($A178,Filtro.12!$A$4:$AL$2956,3,FALSE),0) -> 2,028 | F178: =IFERROR(VLOOKUP($A178,Filtro.12!$A$4:$AL$2956,4,FALSE),0) -> 2,027 | G178: =IFERROR(VLOOKUP($A178,Filtro.12!$A$4:$AL$2956,5,FALSE),0) -> 1 | H178: =IFERROR(VLOOKUP($A178,Filtro.12!$A$4:$AL$2956,6,FALSE),0) -> 13 | I178: =IFERROR(VLOOKUP($A178,Filtro.12!$A$4:$AL$2956,7,FALSE),0) -> 478 | J178: =IFERROR(VLOOKUP($A178,Filtro.12!$A$4:$AL$2956,8,FALSE),0) -> 0 | K178: =IFERROR(VLOOKUP($A178,Filtro.12!$A$4:$AL$2956,9,FALSE),0) -> 3 | L178: =IFERROR(VLOOKUP($A178,Filtro.12!$A$4:$AL$2956,10,FALSE),0) -> 744 | M178: =IFERROR(VLOOKUP($A178,Filtro.12!$A$4:$AL$2956,11,FALSE),0) -> 180 | N178: =IFERROR(VLOOKUP($A178,Filtro.12!$A$4:$AL$2956,12,FALSE),0) -> 0 | O178: =IFERROR(VLOOKUP($A178,Filtro.12!$A$4:$AL$2956,13,FALSE),0) -> 7 | P178: =IFERROR(VLOOKUP($A178,Filtro.12!$A$4:$AL$2956,14,FALSE),0) -> 0 | Q178: =IFERROR(VLOOKUP($A178,Filtro.12!$A$4:$AL$2956,15,FALSE),0) -> 0 | R178: =IFERROR(VLOOKUP($A178,Filtro.12!$A$4:$AL$2956,16,FALSE),0) -> 0 | S178: =IFERROR(VLOOKUP($A178,Filtro.12!$A$4:$AL$2956,17,FALSE),0) -> 0 | T178: =IFERROR(VLOOKUP($A178,Filtro.12!$A$4:$AL$2956,18,FALSE),0) -> 2,027 | U178: =IFERROR(VLOOKUP($A178,Filtro.12!$A$4:$AL$2956,19,FALSE),0) -> 478 | W178: =IFERROR(VLOOKUP($A178,Filtro.12!$A$4:$AL$2956,21,FALSE),0) -> 343,028,975
A179: 17050400 | B179: IV | C179: CIRUGIA DE CABEZA Y CUELLO | D179: =IFERROR(VLOOKUP($A179,Filtro.12!$A$4:$AL$2956,2,FALSE),0) -> 553 | E179: =IFERROR(VLOOKUP($A179,Filtro.12!$A$4:$AL$2956,3,FALSE),0) -> 418 | F179: =IFERROR(VLOOKUP($A179,Filtro.12!$A$4:$AL$2956,4,FALSE),0) -> 411 | G179: =IFERROR(VLOOKUP($A179,Filtro.12!$A$4:$AL$2956,5,FALSE),0) -> 7 | H179: =IFERROR(VLOOKUP($A179,Filtro.12!$A$4:$AL$2956,6,FALSE),0) -> 6 | I179: =IFERROR(VLOOKUP($A179,Filtro.12!$A$4:$AL$2956,7,FALSE),0) -> 127 | J179: =IFERROR(VLOOKUP($A179,Filtro.12!$A$4:$AL$2956,8,FALSE),0) -> 0 | K179: =IFERROR(VLOOKUP($A179,Filtro.12!$A$4:$AL$2956,9,FALSE),0) -> 2 | L179: =IFERROR(VLOOKUP($A179,Filtro.12!$A$4:$AL$2956,10,FALSE),0) -> 155 | M179: =IFERROR(VLOOKUP($A179,Filtro.12!$A$4:$AL$2956,11,FALSE),0) -> 3 | N179: =IFERROR(VLOOKUP($A179,Filtro.12!$A$4:$AL$2956,12,FALSE),0) -> 0 | O179: =IFERROR(VLOOKUP($A179,Filtro.12!$A$4:$AL$2956,13,FALSE),0) -> 2 | P179: =IFERROR(VLOOKUP($A179,Filtro.12!$A$4:$AL$2956,14,FALSE),0) -> 0 | Q179: =IFERROR(VLOOKUP($A179,Filtro.12!$A$4:$AL$2956,15,FALSE),0) -> 0 | R179: =IFERROR(VLOOKUP($A179,Filtro.12!$A$4:$AL$2956,16,FALSE),0) -> 0 | S179: =IFERROR(VLOOKUP($A179,Filtro.12!$A$4:$AL$2956,17,FALSE),0) -> 0 | T179: =IFERROR(VLOOKUP($A179,Filtro.12!$A$4:$AL$2956,18,FALSE),0) -> 411 | U179: =IFERROR(VLOOKUP($A179,Filtro.12!$A$4:$AL$2956,19,FALSE),0) -> 127 | W179: =IFERROR(VLOOKUP($A179,Filtro.12!$A$4:$AL$2956,21,FALSE),0) -> 113,219,160
A180: 17050500 | B180: V | C180: CIRUGIA PLASTICA Y REPARADORA | D180: =IFERROR(VLOOKUP($A180,Filtro.12!$A$4:$AL$2956,2,FALSE),0) -> 1,424 | E180: =IFERROR(VLOOKUP($A180,Filtro.12!$A$4:$AL$2956,3,FALSE),0) -> 1,158 | F180: =IFERROR(VLOOKUP($A180,Filtro.12!$A$4:$AL$2956,4,FALSE),0) -> 1,148 | G180: =IFERROR(VLOOKUP($A180,Filtro.12!$A$4:$AL$2956,5,FALSE),0) -> 10 | H180: =IFERROR(VLOOKUP($A180,Filtro.12!$A$4:$AL$2956,6,FALSE),0) -> 21 | I180: =IFERROR(VLOOKUP($A180,Filtro.12!$A$4:$AL$2956,7,FALSE),0) -> 240 | J180: =IFERROR(VLOOKUP($A180,Filtro.12!$A$4:$AL$2956,8,FALSE),0) -> 2 | K180: =IFERROR(VLOOKUP($A180,Filtro.12!$A$4:$AL$2956,9,FALSE),0) -> 3 | L180: =IFERROR(VLOOKUP($A180,Filtro.12!$A$4:$AL$2956,10,FALSE),0) -> 833 | M180: =IFERROR(VLOOKUP($A180,Filtro.12!$A$4:$AL$2956,11,FALSE),0) -> 10 | N180: =IFERROR(VLOOKUP($A180,Filtro.12!$A$4:$AL$2956,12,FALSE),0) -> 0 | O180: =IFERROR(VLOOKUP($A180,Filtro.12!$A$4:$AL$2956,13,FALSE),0) -> 4 | P180: =IFERROR(VLOOKUP($A180,Filtro.12!$A$4:$AL$2956,14,FALSE),0) -> 0 | Q180: =IFERROR(VLOOKUP($A180,Filtro.12!$A$4:$AL$2956,15,FALSE),0) -> 0 | R180: =IFERROR(VLOOKUP($A180,Filtro.12!$A$4:$AL$2956,16,FALSE),0) -> 0 | S180: =IFERROR(VLOOKUP($A180,Filtro.12!$A$4:$AL$2956,17,FALSE),0) -> 0 | T180: =IFERROR(VLOOKUP($A180,Filtro.12!$A$4:$AL$2956,18,FALSE),0) -> 1,148 | U180: =IFERROR(VLOOKUP($A180,Filtro.12!$A$4:$AL$2956,19,FALSE),0) -> 240 | W180: =IFERROR(VLOOKUP($A180,Filtro.12!$A$4:$AL$2956,21,FALSE),0) -> 149,059,480
A181: 17050600 | B181: VI | C181: DERMATOLOGÍA Y TEGUMENTOS | D181: =IFERROR(VLOOKUP($A181,Filtro.12!$A$4:$AL$2956,2,FALSE),0) -> 4,490 | E181: =IFERROR(VLOOKUP($A181,Filtro.12!$A$4:$AL$2956,3,FALSE),0) -> 4,201 | F181: =IFERROR(VLOOKUP($A181,Filtro.12!$A$4:$AL$2956,4,FALSE),0) -> 4,191 | G181: =IFERROR(VLOOKUP($A181,Filtro.12!$A$4:$AL$2956,5,FALSE),0) -> 10 | H181: =IFERROR(VLOOKUP($A181,Filtro.12!$A$4:$AL$2956,6,FALSE),0) -> 27 | I181: =IFERROR(VLOOKUP($A181,Filtro.12!$A$4:$AL$2956,7,FALSE),0) -> 248 | J181: =IFERROR(VLOOKUP($A181,Filtro.12!$A$4:$AL$2956,8,FALSE),0) -> 9 | K181: =IFERROR(VLOOKUP($A181,Filtro.12!$A$4:$AL$2956,9,FALSE),0) -> 5 | L181: =IFERROR(VLOOKUP($A181,Filtro.12!$A$4:$AL$2956,10,FALSE),0) -> 4,387 | M181: =IFERROR(VLOOKUP($A181,Filtro.12!$A$4:$AL$2956,11,FALSE),0) -> 6 | N181: =IFERROR(VLOOKUP($A181,Filtro.12!$A$4:$AL$2956,12,FALSE),0) -> 0 | O181: =IFERROR(VLOOKUP($A181,Filtro.12!$A$4:$AL$2956,13,FALSE),0) -> 10 | P181: =IFERROR(VLOOKUP($A181,Filtro.12!$A$4:$AL$2956,14,FALSE),0) -> 0 | Q181: =IFERROR(VLOOKUP($A181,Filtro.12!$A$4:$AL$2956,15,FALSE),0) -> 0 | R181: =IFERROR(VLOOKUP($A181,Filtro.12!$A$4:$AL$2956,16,FALSE),0) -> 0 | S181: =IFERROR(VLOOKUP($A181,Filtro.12!$A$4:$AL$2956,17,FALSE),0) -> 0 | T181: =IFERROR(VLOOKUP($A181,Filtro.12!$A$4:$AL$2956,18,FALSE),0) -> 4,191 | U181: =IFERROR(VLOOKUP($A181,Filtro.12!$A$4:$AL$2956,19,FALSE),0) -> 248 | W181: =IFERROR(VLOOKUP($A181,Filtro.12!$A$4:$AL$2956,21,FALSE),0) -> 244,933,115
